Workbook

Sheet Главная
A1: Q | K1: 30 | L1: H | P1: 10.0 | S1: Hs | AM1: 8 | CJ1: L:\08_Engineering\04_0_Общая_Техническая_Информация\04_1_Чертежи\УПТ | DM1: 0 | DN1: =0.3*$K$1 -> 9 | DO1: =0.6*$K$1 -> 18 | DP1: =0.95*$K$1 -> 28.5 | DQ1: =1.3*$K$1 -> 39 | DR1: =$EC$1*DM1^2+$EE$1 -> 0 | DS1: =$EC$1*DN1^2+$EE$1 -> 0.9 | DT1: =$EC$1*DO1^2+$EE$1 -> 3.6 | DU1: =$EC$1*DP1^2+$EE$1 -> 9.025 | DV1: =$EC$1*DQ1^2+$EE$1 -> 16.9 | DW1: =DM1^2*$EF$4+DM1*$EG$4+$EH$4 -> 32 | DX1: =DN1^2*$EF$4+DN1*$EG$4+$EH$4 -> 35.015 | DY1: =DO1^2*$EF$4+DO1*$EG$4+$EH$4 -> 32.36 | DZ1: =DP1^2*$EF$4+DP1*$EG$4+$EH$4 -> 22.09625 | EA1: =DQ1^2*$EF$4+DQ1*$EG$4+$EH$4 -> 4.115 | EC1: =($P$1-$T$1)/($K$1^2) -> 0.01111111111 | ED1: 0 | EE1: =$T$1 -> 0
A3: Листы Данных | J3: Артикул | K3: Hазвание | L3: Q1 мин | M3: Q2 | N3: Q3 | O3: Q4 | P3: Q5 макс | Q3: H1 (Qмин) | R3: H2 | S3: H3 | T3: H4 | U3: H5 (Qмакс) | Z3: H(Q) | AA3: Cтоимость EUR, c НДС, регион Россия | AB3: 1.0 | AC3: 2.0 | AD3: 3.0 | AE3: 4.0 | AF3: 5.0 | AG3: 1.0 | AH3: 2.0 | AI3: 3.0 | AJ3: 4.0 | AK3: 5.0 | AL3: 5.0 | AM3: масса | AN3: Dвых | AO3: Dвх | AP3: Поколение станций | AQ3: ="Выбранная рабочая точка: "&"Расход м3/ч,"&K1&" Напор "&P1&"м" -> Выбранная рабочая точка: Расход м3/ч,30 Напор 10м | AR3: short | AS3: Pump | AT3: BL/Helix | AU3: материал корпуса | AV3: материал колеса | AW3: Статическое уплотнение | AX3: Вал насоса | AY3: Система накопительных трубопроводов | AZ3: жидкость | BA3: температура | BB3: плотность | BC3: вязкость | BD3: Управление ЧП | BE3: Класс защиты прибора упр. | BF3: Мембранный напорный бак | BG3: Защита от сухого хода | BH3: класс энергоэф | BI3: подключение к сети | BJ3: перепад напряжения | BK3: номинальная мощьность | BL3: номинальный ток | BM3: число рабочих насосов | BN3: максимальное рабочее давление | BO3: максимальное давление на входе | BP3: H0 | BQ3: H1 | BR3: H2 | BS3: H3 | BT3: L1 | BU3: L2 | BV3: L5 | BW3: L6 | BX3: L7 | BY3: P0 | BZ3: P1 | CA3: P2 | CB3: P3 | CC3: P4 | CD3: P5 | CE3: P7 | CF3: P12 | CG3: Чертеж в PDF | CH3: Чертеж в DWG | CI3: 3D модель STEP | CJ3: Чертеж в 3D DWG | CK3: 1.0 | CL3: 2.0 | CM3: 3.0 | CN3: 4.0 | CO3: 5.0 | CP3: 1 | CQ3: 2 | CR3: 3 | CS3: 4 | CT3: 5 | CU3: 1 | CV3: 2.000 | CW3: 3.000 | CX3: 4.000 | CY3: H(Q) | DA3: 1 | DB3: 2 | DC3: 3 | DD3: 4 | DE3: 5 | DF3: 1 | DG3: 2 | DH3: 3 | DI3: 4 | DJ3: 5 | DK3: 5 | DL3: кривая трубопровода | DM3: q1 | DN3: q2 | DO3: q3 | DP3: q4 | DQ3: q5 | DR3: h обьекта 1 | DS3: h обьекта 2 | DT3: h обьекта 3 | DU3: h обьекта 4 | DV3: h обьекта 5 | DW3: р Насоса1 | DX3: р Насоса2 | DY3: р Насоса3 | DZ3: р Насоса4 | EA3: р Насоса5 | EB3: zzz | EC3: a (син) | ED3: b (син) | EE3: Hs (син) | EF3: a | EG3: b | EH3: c | EI3: a(рез вычитания) | EJ3: b(рез вычитания) | EK3: c (результат вычитания) | EL3: q пересечения | EM3: h пересечения | EN3: Наличие концевых выключателей | EO3: покраска значений Q id | EP3: dQ+ | EQ3: dQ- | ER3: d H | ET3: a | EU3: b | EV3: c | EW3: a(рез вычитания) | EX3: b(рез вычитания) | EY3: c (результат вычитания) | EZ3: q пересечения | FA3: h пересечения
J4: 2453563 | K4: CO 2 Helix V 2202/SK-FFS-R | L4: 4.0 | M4: 10.0 | N4: 20.0 | O4: 30.0 | P4: 35.0 | Q4: 33.9 | R4: 34.7 | S4: 30.1 | T4: 18.4 | U4: 9.9 | V4: =IFERROR(VLOOKUP(J4,Прайс!A:E,Настройки!$E$1,0)*Настройки!$E$2,"по запросу") -> по запросу | W4: -0.0 | X4: 0.6 | Y4: 32.0 | Z4: =$K$1^2*W4+$K$1*X4+Y4 -> 18.4 | AA4: =IF($K$1=0,V4,IF(OR($K$1<CK4,$K$1>CO4,EL4>CO4,CY4<$P$1),"не подходит",V4)) -> по запросу | AB4: 4.0 | AC4: 11.8 | AD4: 19.5 | AE4: 27.3 | AF4: 35.0 | AG4: 33.9 | AH4: 34.4 | AI4: 30.5 | AJ4: 22.4 | AK4: 9.9 | AL4: 268.3 | AM4: 364 | AN4: 100 | AO4: 100 | AP4: 2R | AR4: CO-2 Helix V 2202 | AS4: Helix V 2202 | AT4: Helix | AU4: EN-GJL-250 | AV4: 1.4307 [AISI304L] | AW4: EPDM | AX4: 1.4057 [AISI431] | AY4: 1.4571 [AISI316Ti ] | AZ4: вода 100% | BA4: 20° | BB4: 998.3 kg/m3 | BC4: 1.00 mm2/s | BD4: SK-FFS/2-3,0(8A)/J-4,0A/V-3~1,0A | BE4: IP54 | BF4: нет | BG4: нет | BH4: IE2 | BI4: 3~400/50 Гц | BJ4: ±10% | BK4: 3 | BM4: 1 | BN4: 16 | BO4: 10 | BQ4: 210 | BR4: 1695 | BS4: 120 | BT4: 948 | BU4: 1080 | BW4: 600 | BZ4: 1784 | CB4: 500 | CD4: 1334 | CE4: 396 | CF4: 438 | CG4: чертеж pdf | CH4: чертеж dwg | CI4: чертеж step | CJ4: чертеж 3d_dwg | CK4: 4.0 | CL4: 10.0 | CM4: 20.0 | CN4: 30.0 | CO4: 35.0 | CP4: 34.04 | CQ4: 35 | CR4: 31 | CS4: 20 | CT4: 11.875 | CV4: -0.035 | CW4: 0.650 | CX4: 32.000 | CY4: =$K$1^2*CV4+$K$1*CW4+CX4 -> 20.0 | CZ4: CO-2 Helix V 2202 без учёта потерь напора | DA4: 4.0 | DB4: 11.8 | DC4: 19.5 | DD4: 27.3 | DE4: 35.0 | DF4: 34.0 | DG4: 34.8 | DH4: 31.4 | DI4: 23.7 | DJ4: 11.9 | EF4: =CV4 -> -0.035 | EG4: =CW4 -> 0.650 | EH4: =CX4 -> 32.000 | EI4: =$EC$1-EF4 -> 0.04611111111 | EJ4: =$ED$1-EG4 -> -0.65 | EK4: =$EE$1-EH4 -> -32 | EL4: =(-EJ4+SQRT(EJ4^2-4*EI4*EK4))/(2*EI4) -> 34.3 | EM4: =$EC$1*EL4^2+$EE$1 -> 13.1 | EN4: да | EO4: =(P4-L4)*0.5+L4 -> 19.5 | EP4: =(P4-L4)*0.66+L4 -> 24.46 | EQ4: =(P4-L4)*0.33+L4 -> 14.23 | ER4: =EM4-$P$1 -> 3.1 | ET4: =W4 -> -0.036 | EU4: =X4 -> 0.624 | EV4: =Y4 -> 32.000 | EW4: =$EC$1-ET4 -> 0.04698111111 | EX4: =$ED$1-EU4 -> -0.624 | EY4: =$EE$1-EV4 -> -32 | EZ4: =(-EX4+SQRT(EX4^2-4*EW4*EY4))/(2*EW4) -> 33.6 | FA4: =$EC$1*EZ4^2+$EE$1 -> 12.5
J5: 2453632 | K5: CO 3 Helix V 1602/SK-FFS-R | L5: 6.0 | M5: 18.0 | N5: 30.0 | O5: 42.0 | P5: 52.0 | Q5: 25.4 | R5: 23.7 | S5: 19.9 | T5: 13.2 | U5: 5.0 | V5: =IFERROR(VLOOKUP(J5,Прайс!A:E,Настройки!$E$1,0)*Настройки!$E$2,"по запросу") -> по запросу | W5: -0.0 | X5: 0.1 | Y5: 24.9 | Z5: 19.8 | AA5: по запросу | AB5: 6.0 | AC5: 17.5 | AD5: 29.0 | AE5: 40.5 | AF5: 52.0 | AG5: 25.3 | AH5: 24.1 | AI5: 20.3 | AJ5: 14.0 | AK5: 5.2 | AL5: 337.2 | AM5: 369.5 | AN5: 80 | AO5: 80 | AP5: 2R | AR5: CO-3 Helix V 1602 | AS5: Helix V 1602 | AT5: Helix | AU5: EN-GJL-250 | AV5: 1.4307 [AISI304L] | AW5: EPDM | AX5: 1.4057 [AISI431] | AY5: 1.4571 [AISI316Ti ] | AZ5: вода 100% | BA5: 20° | BB5: 998.3 kg/m3 | BC5: 1.00 mm2/s | BD5: SK-FFS/3-1,5(4A)/V-3~1,0A | BE5: IP54 | BF5: нет | BG5: нет | BH5: IE2 | BI5: 3~400/50 Гц | BJ5: ±10% | BK5: 1.5 | BM5: 2 | BN5: 16 | BO5: 10 | BQ5: 180 | BR5: 1675 | BS5: 100 | BT5: 854 | BU5: 900 | BW5: 600 | BZ5: 1664 | CB5: 450 | CD5: 1262 | CE5: 396 | CF5: 416 | CG5: чертеж pdf | CH5: чертеж dwg | CI5: чертеж step | CJ5: чертеж 3d_dwg | CK5: 6.0 | CL5: 18.0 | CM5: 30.0 | CN5: 42.0 | CO5: 52.0 | CP5: 25.44 | CQ5: 24.08 | CR5: 20.86 | CS5: 15.11 | CT5: 8 | CV5: -0.008 | CW5: 0.117 | CX5: 24.939 | CY5: 20.8 | CZ5: CO-3 Helix V 1602 без учёта потерь напора | DA5: 6.0 | DB5: 17.5 | DC5: 29.0 | DD5: 40.5 | DE5: 52.0 | DF5: 25.3 | DG5: 24.4 | DH5: 21.2 | DI5: 15.8 | DJ5: 8.1 | EF5: -0.008 | EG5: 0.117 | EH5: 24.939 | EI5: 0.01958302275 | EJ5: -0.1170270378 | EK5: -24.93942166 | EL5: 38.8 | EM5: 16.7 | EN5: да | EO5: 29.0 | EP5: 36.36 | EQ5: 21.18 | ER5: 6.7 | ET5: -0.010 | EU5: 0.116 | EV5: 24.946 | EW5: 0.02065802275 | EX5: -0.1159770378 | EY5: -24.94642166 | EZ5: 37.7 | FA5: 15.8
J6: 2453633 | K6: CO 3 Helix V 1603/SK-FFS-R | L6: 6.0 | M6: 18.0 | N6: 30.0 | O6: 42.0 | P6: 52.0 | Q6: 38.3 | R6: 36.1 | S6: 30.8 | T6: 21.3 | U6: 9.7 | V6: =IFERROR(VLOOKUP(J6,Прайс!A:E,Настройки!$E$1,0)*Настройки!$E$2,"по запросу") -> по запросу | W6: -0.0 | X6: 0.2 | Y6: 37.5 | Z6: 30.7 | AA6: по запросу | AB6: 6.0 | AC6: 17.5 | AD6: 29.0 | AE6: 40.5 | AF6: 52.0 | AG6: 38.2 | AH6: 36.6 | AI6: 31.3 | AJ6: 22.4 | AK6: 9.8 | AL6: 340.2 | AM6: 378.5 | AN6: 80 | AO6: 80 | AP6: 2R | AR6: CO-3 Helix V 1603 | AS6: Helix V 1603 | AT6: Helix | AU6: EN-GJL-250 | AV6: 1.4307 [AISI304L] | AW6: EPDM | AX6: 1.4057 [AISI431] | AY6: 1.4571 [AISI316Ti ] | AZ6: вода 100% | BA6: 20° | BB6: 998.3 kg/m3 | BC6: 1.00 mm2/s | BD6: SK-FFS/3-2,2(6A)/V-3~1,0A | BE6: IP54 | BF6: нет | BG6: нет | BH6: IE2 | BI6: 3~400/50 Гц | BJ6: ±10% | BK6: 2.2 | BM6: 2 | BN6: 16 | BO6: 10 | BQ6: 180 | BR6: 1675 | BS6: 100 | BT6: 854 | BU6: 900 | BW6: 600 | BZ6: 1664 | CB6: 450 | CD6: 1262 | CE6: 396 | CF6: 416 | CG6: чертеж pdf | CH6: чертеж dwg | CI6: чертеж step | CJ6: чертеж 3d_dwg | CK6: 6.0 | CL6: 18.0 | CM6: 30.0 | CN6: 42.0 | CO6: 52.0 | CP6: 38.37 | CQ6: 36.45 | CR6: 31.77 | CS6: 23.21 | CT6: 12.63 | CV6: -0.013 | CW6: 0.189 | CX6: 37.540 | CY6: 31.7 | CZ6: CO-3 Helix V 1603 без учёта потерь напора | DA6: 6.0 | DB6: 17.5 | DC6: 29.0 | DD6: 40.5 | DE6: 52.0 | DF6: 38.2 | DG6: 36.9 | DH6: 32.3 | DI6: 24.2 | DJ6: 12.8 | EF6: -0.013 | EG6: 0.189 | EH6: 37.540 | EI6: 0.02388536396 | EJ6: -0.1885074644 | EK6: -37.54036311 | EL6: 43.8 | EM6: 21.3 | EN6: да | EO6: 29.0 | EP6: 36.36 | EQ6: 21.18 | ER6: 11.3 | ET6: -0.014 | EU6: 0.187 | EV6: 37.547 | EW6: 0.02496036396 | EX6: -0.1874574644 | EY6: -37.54736311 | EZ6: 42.7 | FA6: 20.3
J7: 2453622 | K7: CO 3 Helix V 1004/SK-FFS-R | L7: 3.0 | M7: 4.0 | N7: 16.0 | O7: 24.0 | P7: 32.0 | Q7: 40.1 | R7: 39.8 | S7: 33.7 | T7: 23.4 | U7: 6.3 | V7: =IFERROR(VLOOKUP(J7,Прайс!A:E,Настройки!$E$1,0)*Настройки!$E$2,"по запросу") -> по запросу | W7: -0.0 | X7: 0.4 | Y7: 39.2 | Z7: 11.1 | AA7: по запросу | AB7: 3.0 | AC7: 10.3 | AD7: 17.5 | AE7: 24.8 | AF7: 32.0 | AG7: 39.9 | AH7: 38.4 | AI7: 32.3 | AJ7: 21.7 | AK7: 6.4 | AL7: 298.6 | AM7: 366.5 | AN7: 80 | AO7: 80 | AP7: 2R | AR7: CO-3 Helix V 1004 | AS7: Helix V 1004 | AT7: Helix | AU7: EN-GJL-250 | AV7: 1.4307 [AISI304L] | AW7: EPDM | AX7: 1.4057 [AISI431] | AY7: 1.4571 [AISI316Ti ] | AZ7: вода 100% | BA7: 20° | BB7: 998.3 kg/m3 | BC7: 1.00 mm2/s | BD7: SK-FFS/3-1,5(4A)/V-3~1,0A | BE7: IP54 | BF7: нет | BG7: нет | BH7: IE2 | BI7: 3~400/50 Гц | BJ7: ±10% | BK7: 1.5 | BM7: 2 | BN7: 16 | BO7: 10 | BQ7: 180 | BR7: 1675 | BS7: 100 | BT7: 854 | BU7: 900 | BW7: 600 | BZ7: 1618 | CB7: 450 | CD7: 1216 | CE7: 396 | CF7: 370 | CG7: чертеж pdf | CH7: чертеж dwg | CI7: чертеж step | CJ7: чертеж 3d_dwg | CK7: 3.0 | CL7: 4.0 | CM7: 16.0 | CN7: 24.0 | CO7: 32.0 | CP7: 40.12 | CQ7: 39.87 | CR7: 33.98 | CS7: 24.1 | CT7: 7.561 | CV7: -0.042 | CW7: 0.369 | CX7: 39.206 | CY7: 12.2 | CZ7: CO-3 Helix V 1004 без учёта потерь напора | DA7: 3.0 | DB7: 10.3 | DC7: 17.5 | DD7: 24.8 | DE7: 32.0 | DF7: 39.9 | DG7: 38.5 | DH7: 32.7 | DI7: 22.4 | DJ7: 7.7 | EF7: -0.042 | EG7: 0.369 | EH7: 39.206 | EI7: 0.05339968497 | EJ7: -0.3689407943 | EK7: -39.20589694 | EL7: 30.8 | EM7: 10.5 | EN7: да | EO7: 17.5 | EP7: 22.14 | EQ7: 12.57 | ER7: 0.5 | ET7: -0.044 | EU7: 0.369 | EV7: 39.206 | EW7: 0.05464968497 | EX7: -0.3687407943 | EY7: -39.20579694 | EZ7: 30.4 | FA7: 10.2
J8: 2453570 | K8: CO 2 Helix V 3601/SK-FFS-R | L8: 6.0 | M8: 10.0 | N8: 30.0 | O8: 50.0 | P8: 55.0 | Q8: 25.0 | R8: 24.0 | S8: 19.7 | T8: 16.2 | U8: 5.3 | V8: =IFERROR(VLOOKUP(J8,Прайс!A:E,Настройки!$E$1,0)*Настройки!$E$2,"по запросу") -> по запросу | W8: -0.0 | X8: 0.2 | Y8: 23.7 | Z8: 21.2 | AA8: по запросу | AB8: 6.0 | AC8: 18.3 | AD8: 30.5 | AE8: 42.8 | AF8: 55.0 | AG8: 24.3 | AH8: 23.8 | AI8: 21.1 | AJ8: 15.9 | AK8: 8.5 | AL8: 339.8 | AM8: 408 | AN8: 125 | AO8: 125 | AP8: 2R | AR8: CO-2 Helix V 3601 | AS8: Helix V 3601 | AT8: Helix | AU8: EN-GJL-250 | AV8: 1.4307 [AISI304L] | AW8: EPDM | AX8: 1.4057 [AISI431] | AY8: 1.4571 [AISI316Ti ] | AZ8: вода 100% | BA8: 20° | BB8: 998.3 kg/m3 | BC8: 1.00 mm2/s | BD8: SK-FFS/2-3,0(8A)/J-4,0A/V-3~1,0A | BE8: IP54 | BF8: нет | BG8: нет | BH8: IE2 | BI8: 3~400/50 Гц | BJ8: ±10% | BK8: 3 | BM8: 1 | BN8: 16 | BO8: 10 | BQ8: 225 | BR8: 1695 | BS8: 120 | BT8: 944 | BU8: 1080 | BW8: 600 | BZ8: 1954 | CB8: 500 | CD8: 1444 | CE8: 412 | CF8: 532 | CG8: чертеж pdf | CH8: чертеж dwg | CI8: чертеж step | CJ8: чертеж 3d_dwg | CK8: 6.0 | CL8: 10.0 | CM8: 30.0 | CN8: 50.0 | CO8: 55.0 | CP8: 25 | CQ8: 24 | CR8: 20 | CS8: 17 | CT8: 6.2 | CV8: -0.007 | CW8: 0.153 | CX8: 23.649 | CY8: 21.5 | CZ8: CO-2 Helix V 3601 без учёта потерь напора | DA8: 6.0 | DB8: 18.3 | DC8: 30.5 | DD8: 42.8 | DE8: 55.0 | DF8: 24.3 | DG8: 23.9 | DH8: 21.3 | DI8: 16.5 | DJ8: 9.4 | EF8: -0.007 | EG8: 0.153 | EH8: 23.649 | EI8: 0.01859577189 | EJ8: -0.152720447 | EK8: -23.64921438 | EL8: 40.0 | EM8: 17.8 | EN8: да | EO8: 30.5 | EP8: 38.34 | EQ8: 22.17 | ER8: 7.8 | ET8: -0.008 | EU8: 0.152 | EV8: 23.660 | EW8: 0.01889577189 | EX8: -0.151920447 | EY8: -23.66011438 | EZ8: 39.6 | FA8: 17.5
J9: 2453634 | K9: CO 3 Helix V 1604/SK-FFS-R | L9: 6.0 | M9: 18.0 | N9: 30.0 | O9: 42.0 | P9: 52.0 | Q9: 51.6 | R9: 48.9 | S9: 42.4 | T9: 30.2 | U9: 15.0 | V9: =IFERROR(VLOOKUP(J9,Прайс!A:E,Настройки!$E$1,0)*Настройки!$E$2,"по запросу") -> по запросу | W9: -0.0 | X9: 0.3 | Y9: 50.2 | Z9: 42.3 | AA9: по запросу | AB9: 6.0 | AC9: 17.5 | AD9: 29.0 | AE9: 40.5 | AF9: 52.0 | AG9: 51.3 | AH9: 49.6 | AI9: 43.1 | AJ9: 31.6 | AK9: 15.3 | AL9: 334.1 | AM9: 405.5 | AN9: 80 | AO9: 80 | AP9: 2R | AR9: CO-3 Helix V 1604 | AS9: Helix V 1604 | AT9: Helix | AU9: EN-GJL-250 | AV9: 1.4307 [AISI304L] | AW9: EPDM | AX9: 1.4057 [AISI431] | AY9: 1.4571 [AISI316Ti ] | AZ9: вода 100% | BA9: 20° | BB9: 998.3 kg/m3 | BC9: 1.00 mm2/s | BD9: SK-FFS/3-3,0(8A)/V-3~1,0A | BE9: IP54 | BF9: нет | BG9: нет | BH9: IE2 | BI9: 3~400/50 Гц | BJ9: ±10% | BK9: 3 | BM9: 2 | BN9: 16 | BO9: 10 | BQ9: 180 | BR9: 1675 | BS9: 100 | BT9: 854 | BU9: 900 | BW9: 600 | BZ9: 1618 | CB9: 450 | CD9: 1216 | CE9: 396 | CF9: 370 | CG9: чертеж pdf | CH9: чертеж dwg | CI9: чертеж step | CJ9: чертеж 3d_dwg | CK9: 6.0 | CL9: 18.0 | CM9: 30.0 | CN9: 42.0 | CO9: 52.0 | CP9: 51.59 | CQ9: 49.31 | CR9: 43.37 | CS9: 32.13 | CT9: 17.96 | CV9: -0.017 | CW9: 0.291 | CX9: 50.237 | CY9: 43.3 | CZ9: CO-3 Helix V 1604 без учёта потерь напора | DA9: 6.0 | DB9: 17.5 | DC9: 29.0 | DD9: 40.5 | DE9: 52.0 | DF9: 51.4 | DG9: 50.0 | DH9: 44.0 | DI9: 33.4 | DJ9: 18.2 | EF9: -0.017 | EG9: 0.291 | EH9: 50.237 | EI9: 0.02854352497 | EJ9: -0.2907326962 | EK9: -50.23688551 | EL9: 47.4 | EM9: 24.9 | EN9: да | EO9: 29.0 | EP9: 36.36 | EQ9: 21.18 | ER9: 14.9 | ET9: -0.019 | EU9: 0.290 | EV9: 50.244 | EW9: 0.02961852497 | EX9: -0.2896826962 | EY9: -50.24388551 | EZ9: 46.4 | FA9: 23.9
J10: 2453278 | K10: CO 2 BL 40/210-1.5/4/SK-FFS-R | L10: 4.0 | M10: 14.0 | N10: 27.0 | O10: 32.0 | P10: 33.0 | Q10: 14.4 | R10: 13.7 | S10: 10.2 | T10: 8.0 | U10: 7.6 | V10: =IFERROR(VLOOKUP(J10,Прайс!A:E,Настройки!$E$1,0)*Настройки!$E$2,"по запросу") -> по запросу | W10: -0.0 | X10: 0.1 | Y10: 14.2 | Z10: 8.9 | AA10: по запросу | AB10: 4.0 | AC10: 11.3 | AD10: 18.5 | AE10: 25.8 | AF10: 33.0 | AG10: 14.4 | AH10: 14.0 | AI10: 12.8 | AJ10: 10.6 | AK10: 7.6 | AL10: 326.7 | AM10: 377.8 | AN10: 80 | AO10: 100 | AP10: 2R | AR10: CO-2 BL 40/210-1.5/4 | AS10: BL 40/210-1.5/4 | AT10: BL | AU10: EN-GJL-250 | AV10: EN-GJL-200 | AX10: 1.4122 | AY10: 1.4571 [AISI316Ti ] | AZ10: вода 100% | BA10: 20° | BB10: 998.3 kg/m3 | BC10: 1.00 mm2/s | BD10: SK-FFS/2-1,5(4A)/J-2,5A/V-3~1,0A | BE10: IP54 | BF10: нет | BG10: нет | BH10: IE2 | BI10: 3~400/50 Гц | BJ10: ±10% | BK10: 1.5 | BM10: 1 | BN10: 16 | BO10: 10 | BP10: 1845 | BQ10: 472 | BR10: 806 | BT10: 1054 | BW10: 600 | BX10: 1054 | BY10: 1423 | CD10: 1198 | CG10: чертеж pdf | CH10: чертеж dwg | CI10: чертеж step | CJ10: чертеж 3d_dwg | CK10: 4.0 | CL10: 14.0 | CM10: 27.0 | CN10: 32.0 | CO10: 33.0 | CP10: 14.45 | CQ10: 14.34 | CR10: 12.66 | CS10: 11.55 | CT10: 11.3 | CV10: -0.005 | CW10: 0.081 | CX10: 14.206 | CY10: 12.0 | CZ10: CO-2 BL 40/210-1.5/4 без учёта потерь напора | DA10: 4.0 | DB10: 11.3 | DC10: 18.5 | DD10: 25.8 | DE10: 33.0 | DF10: 14.5 | DG10: 14.5 | DH10: 14.0 | DI10: 12.9 | DJ10: 11.3 | EF10: -0.005 | EG10: 0.081 | EH10: 14.206 | EI10: 0.01625009686 | EJ10: -0.08147755481 | EK10: -14.20638629 | EL10: 32.2 | EM10: 11.5 | EN10: да | EO10: 18.5 | EP10: 23.14 | EQ10: 13.57 | ER10: 1.5 | ET10: -0.009 | EU10: 0.082 | EV10: 14.202 | EW10: 0.01968289367 | EX10: -0.08156400129 | EY10: -14.20187324 | EZ10: 29.0 | FA10: 9.4
J11: 2453635 | K11: CO 3 Helix V 1605/SK-FFS-R | L11: 6.0 | M11: 18.0 | N11: 30.0 | O11: 42.0 | P11: 52.0 | Q11: 64.2 | R11: 60.9 | S11: 52.7 | T11: 37.5 | U11: 18.6 | V11: =IFERROR(VLOOKUP(J11,Прайс!A:E,Настройки!$E$1,0)*Настройки!$E$2,"по запросу") -> по запросу | W11: -0.0 | X11: 0.4 | Y11: 62.6 | Z11: 52.6 | AA11: по запросу | AB11: 6.0 | AC11: 17.5 | AD11: 29.0 | AE11: 40.5 | AF11: 52.0 | AG11: 63.9 | AH11: 61.8 | AI11: 53.6 | AJ11: 39.3 | AK11: 18.9 | AL11: 291.8 | AM11: 426.5 | AN11: 80 | AO11: 80 | AP11: 2R | AR11: CO-3 Helix V 1605 | AS11: Helix V 1605 | AT11: Helix | AU11: EN-GJL-250 | AV11: 1.4307 [AISI304L] | AW11: EPDM | AX11: 1.4057 [AISI431] | AY11: 1.4571 [AISI316Ti ] | AZ11: вода 100% | BA11: 20° | BB11: 998.3 kg/m3 | BC11: 1.00 mm2/s | BD11: SK-FFS/3-4,0(10A)/V-3~1,0A | BE11: IP54 | BF11: нет | BG11: нет | BH11: IE2 | BI11: 3~400/50 Гц | BJ11: ±10% | BK11: 4 | BM11: 2 | BN11: 16 | BO11: 10 | BQ11: 180 | BR11: 1875 | BS11: 100 | BT11: 854 | BU11: 900 | BW11: 600 | BZ11: 1618 | CB11: 450 | CD11: 1216 | CE11: 396 | CF11: 370 | CG11: чертеж pdf | CH11: чертеж dwg | CI11: чертеж step | CJ11: чертеж 3d_dwg | CK11: 6.0 | CL11: 18.0 | CM11: 30.0 | CN11: 42.0 | CO11: 52.0 | CP11: 64.27 | CQ11: 61.32 | CR11: 53.81 | CS11: 39.71 | CT11: 21.97 | CV11: -0.022 | CW11: 0.353 | CX11: 62.641 | CY11: 53.7 | CZ11: CO-3 Helix V 1605 без учёта потерь напора | DA11: 6.0 | DB11: 17.5 | DC11: 29.0 | DD11: 40.5 | DE11: 52.0 | DF11: 64.0 | DG11: 62.2 | DH11: 54.6 | DI11: 41.3 | DJ11: 22.3 | EF11: -0.022 | EG11: 0.353 | EH11: 62.641 | EI11: 0.0328154684 | EJ11: -0.3526934076 | EK11: -62.64078684 | EL11: 49.4 | EM11: 27.1 | EN11: да | EO11: 29.0 | EP11: 36.36 | EQ11: 21.18 | ER11: 17.1 | ET11: -0.023 | EU11: 0.352 | EV11: 62.641 | EW11: 0.0340654684 | EX11: -0.3524934076 | EY11: -62.64068684 | EZ11: 48.4 | FA11: 26.0
J12: 2453572 | K12: CO 2 Helix V 3602/2/SK-FFS-R | L12: 6.0 | M12: 10.0 | N12: 30.0 | O12: 50.0 | P12: 55.0 | Q12: 36.8 | R12: 36.6 | S12: 29.7 | T12: 12.2 | U12: 6.6 | V12: =IFERROR(VLOOKUP(J12,Прайс!A:E,Настройки!$E$1,0)*Настройки!$E$2,"по запросу") -> по запросу | W12: -0.0 | X12: 0.2 | Y12: 36.3 | Z12: 29.6 | AA12: по запросу | AB12: 6.0 | AC12: 18.3 | AD12: 30.5 | AE12: 42.8 | AF12: 55.0 | AG12: 36.8 | AH12: 35.0 | AI12: 29.3 | AJ12: 19.8 | AK12: 6.4 | AL12: 322.1 | AM12: 424 | AN12: 125 | AO12: 125 | AP12: 2R | AR12: CO-2 Helix V 3602/2 | AS12: Helix V 3602/2 | AT12: Helix | AU12: EN-GJL-250 | AV12: 1.4307 [AISI304L] | AW12: EPDM | AX12: 1.4057 [AISI431] | AY12: 1.4571 [AISI316Ti ] | AZ12: вода 100% | BA12: 20° | BB12: 998.3 kg/m3 | BC12: 1.00 mm2/s | BD12: SK-FFS/2-4,0(10A)/J-4,0A/V-3~1,0A | BE12: IP54 | BF12: нет | BG12: нет | BH12: IE2 | BI12: 3~400/50 Гц | BJ12: ±10% | BK12: 4 | BM12: 1 | BN12: 16 | BO12: 10 | BQ12: 225 | BR12: 1695 | BS12: 120 | BT12: 944 | BU12: 1080 | BW12: 600 | BZ12: 1954 | CB12: 500 | CD12: 1444 | CE12: 412 | CF12: 532 | CG12: чертеж pdf | CH12: чертеж dwg | CI12: чертеж step | CJ12: чертеж 3d_dwg | CK12: 6.0 | CL12: 10.0 | CM12: 30.0 | CN12: 50.0 | CO12: 55.0 | CP12: 36.83 | CQ12: 36.6 | CR12: 30 | CS12: 13 | CT12: 7.495 | CV12: -0.013 | CW12: 0.166 | CX12: 36.257 | CY12: 29.9 | CZ12: CO-2 Helix V 3602/2 без учёта потерь напора | DA12: 6.0 | DB12: 18.3 | DC12: 30.5 | DD12: 42.8 | DE12: 55.0 | DF12: 36.8 | DG12: 35.1 | DH12: 29.6 | DI12: 20.4 | DJ12: 7.4 | EF12: -0.013 | EG12: 0.166 | EH12: 36.257 | EI12: 0.02366557439 | EJ12: -0.1656309975 | EK12: -36.25691059 | EL12: 42.8 | EM12: 20.4 | EN12: да | EO12: 30.5 | EP12: 38.34 | EQ12: 22.17 | ER12: 10.4 | ET12: -0.013 | EU12: 0.165 | EV12: 36.268 | EW12: 0.02396557439 | EX12: -0.1648309975 | EY12: -36.26781059 | EZ12: 42.5 | FA12: 20.1
J13: 2453636 | K13: CO 3 Helix V 1606/SK-FFS-R | L13: 6.0 | M13: 18.0 | N13: 30.0 | O13: 42.0 | P13: 52.0 | Q13: 76.7 | R13: 72.4 | S13: 62.4 | T13: 44.2 | U13: 21.8 | V13: =IFERROR(VLOOKUP(J13,Прайс!A:E,Настройки!$E$1,0)*Настройки!$E$2,"по запросу") -> по запросу | W13: -0.0 | X13: 0.4 | Y13: 75.1 | Z13: 62.2 | AA13: по запросу | AB13: 6.0 | AC13: 17.5 | AD13: 29.0 | AE13: 40.5 | AF13: 52.0 | AG13: 76.4 | AH13: 73.5 | AI13: 63.4 | AJ13: 46.3 | AK13: 22.1 | AL13: 293.7 | AM13: 429.5 | AN13: 80 | AO13: 80 | AP13: 2R | AR13: CO-3 Helix V 1606 | AS13: Helix V 1606 | AT13: Helix | AU13: EN-GJL-250 | AV13: 1.4307 [AISI304L] | AW13: EPDM | AX13: 1.4057 [AISI431] | AY13: 1.4571 [AISI316Ti ] | AZ13: вода 100% | BA13: 20° | BB13: 998.3 kg/m3 | BC13: 1.00 mm2/s | BD13: SK-FFS/3-4,0(10A)/V-3~1,0A | BE13: IP54 | BF13: нет | BG13: нет | BH13: IE2 | BI13: 3~400/50 Гц | BJ13: ±10% | BK13: 4 | BM13: 2 | BN13: 16 | BO13: 10 | BQ13: 180 | BR13: 1875 | BS13: 100 | BT13: 854 | BU13: 900 | BW13: 600 | BZ13: 1618 | CB13: 450 | CD13: 1216 | CE13: 396 | CF13: 370 | CG13: чертеж pdf | CH13: чертеж dwg | CI13: чертеж step | CJ13: чертеж 3d_dwg | CK13: 6.0 | CL13: 18.0 | CM13: 30.0 | CN13: 42.0 | CO13: 52.0 | CP13: 76.79 | CQ13: 72.84 | CR13: 63.5 | CS13: 46.43 | CT13: 25.16 | CV13: -0.026 | CW13: 0.374 | CX13: 75.124 | CY13: 63.4 | CZ13: CO-3 Helix V 1606 без учёта потерь напора | DA13: 6.0 | DB13: 17.5 | DC13: 29.0 | DD13: 40.5 | DE13: 52.0 | DF13: 76.4 | DG13: 73.8 | DH13: 64.5 | DI13: 48.4 | DJ13: 25.5 | EF13: -0.026 | EG13: 0.374 | EH13: 75.124 | EI13: 0.03663524131 | EJ13: -0.3736583032 | EK13: -75.12415779 | EL13: 50.7 | EM13: 28.5 | EN13: да | EO13: 29.0 | EP13: 36.36 | EQ13: 21.18 | ER13: 18.5 | ET13: -0.027 | EU13: 0.373 | EV13: 75.124 | EW13: 0.03788524131 | EX13: -0.3734583032 | EY13: -75.12405779 | EZ13: 49.7 | FA13: 27.5
J14: 2453583 | K14: CO 2 Helix V 5201/SK-FFS-R | L14: 9.0 | M14: 20.0 | N14: 30.0 | O14: 50.0 | P14: 80.0 | Q14: 26.9 | R14: 25.2 | S14: 23.1 | T14: 17.5 | U14: 4.3 | V14: =IFERROR(VLOOKUP(J14,Прайс!A:E,Настройки!$E$1,0)*Настройки!$E$2,"по запросу") -> по запросу | W14: -0.0 | X14: -0.1 | Y14: 27.6 | Z14: 23.2 | AA14: по запросу | AB14: 9.0 | AC14: 26.8 | AD14: 44.5 | AE14: 62.3 | AF14: 80.0 | AG14: 26.8 | AH14: 23.9 | AI14: 19.2 | AJ14: 12.7 | AK14: 4.3 | AL14: 358.2 | AM14: 512 | AN14: 150 | AO14: 150 | AP14: 2R | AR14: CO-2 Helix V 5201 | AS14: Helix V 5201 | AT14: Helix | AU14: EN-GJL-250 | AV14: 1.4307 [AISI304L] | AW14: EPDM | AX14: 1.4057 [AISI431] | AY14: 1.4571 [AISI316Ti ] | AZ14: вода 100% | BA14: 20° | BB14: 998.3 kg/m3 | BC14: 1.00 mm2/s | BD14: SK-FFS/2-4,0(10A)/J-4,0A/V-3~1,0A | BE14: IP54 | BF14: нет | BG14: нет | BH14: IE2 | BI14: 3~400/50 Гц | BJ14: ±10% | BK14: 4 | BM14: 1 | BN14: 16 | BO14: 10 | BQ14: 260 | BR14: 1695 | BS14: 120 | BT14: 944 | BU14: 1080 | BW14: 600 | BZ14: 2063 | CB14: 500 | CD14: 1527 | CE14: 438.5 | CF14: 588.5 | CG14: чертеж pdf | CH14: чертеж dwg | CI14: чертеж step | CJ14: чертеж 3d_dwg | CK14: 9.0 | CL14: 20.0 | CM14: 30.0 | CN14: 50.0 | CO14: 80.0 | CP14: 26.9 | CQ14: 25.24 | CR14: 23.17 | CS14: 17.79 | CT14: 4.899 | CV14: -0.003 | CW14: -0.058 | CX14: 27.569 | CY14: 23.3 | CZ14: CO-2 Helix V 5201 без учёта потерь напора | DA14: 9.0 | DB14: 26.8 | DC14: 44.5 | DD14: 62.3 | DE14: 80.0 | DF14: 26.8 | DG14: 24.0 | DH14: 19.4 | DI14: 13.1 | DJ14: 4.9 | EF14: -0.003 | EG14: -0.058 | EH14: 27.569 | EI14: 0.013927983 | EJ14: 0.05759009652 | EK14: -27.56875763 | EL14: 42.5 | EM14: 20.0 | EN14: да | EO14: 44.5 | EP14: 55.86 | EQ14: 32.43 | ER14: 10.0 | ET14: -0.003 | EU14: -0.058 | EV14: 27.569 | EW14: 0.014027983 | EX14: 0.05769009652 | EY14: -27.56905763 | EZ14: 42.3 | FA14: 19.9
J15: 2453571 | K15: CO 2 Helix V 3602/1/SK-FFS-R | L15: 6.0 | M15: 10.0 | N15: 30.0 | O15: 50.0 | P15: 55.0 | Q15: 44.1 | R15: 43.5 | S15: 35.7 | T15: 14.6 | U15: 7.4 | V15: =IFERROR(VLOOKUP(J15,Прайс!A:E,Настройки!$E$1,0)*Настройки!$E$2,"по запросу") -> по запросу | W15: -0.0 | X15: 0.2 | Y15: 43.1 | Z15: 35.5 | AA15: по запросу | AB15: 6.0 | AC15: 18.3 | AD15: 30.5 | AE15: 42.8 | AF15: 55.0 | AG15: 43.9 | AH15: 41.9 | AI15: 35.2 | AJ15: 23.7 | AK15: 7.4 | AL15: 328.7 | AM15: 434 | AN15: 125 | AO15: 125 | AP15: 2R | AR15: CO-2 Helix V 3602/1 | AS15: Helix V 3602/1 | AT15: Helix | AU15: EN-GJL-250 | AV15: 1.4307 [AISI304L] | AW15: EPDM | AX15: 1.4057 [AISI431] | AY15: 1.4571 [AISI316Ti ] | AZ15: вода 100% | BA15: 20° | BB15: 998.3 kg/m3 | BC15: 1.00 mm2/s | BD15: SK-FFS/2-5,5(12A)/J-6,3A/V-3~1,0A | BE15: IP54 | BF15: нет | BG15: нет | BH15: IE2 | BI15: 3~400/50 Гц | BJ15: ±10% | BK15: 5.5 | BM15: 1 | BN15: 16 | BO15: 10 | BQ15: 225 | BR15: 1695 | BS15: 120 | BT15: 944 | BU15: 1080 | BW15: 600 | BZ15: 1878 | CB15: 500 | CD15: 1368 | CE15: 412 | CF15: 456 | CG15: чертеж pdf | CH15: чертеж dwg | CI15: чертеж step | CJ15: чертеж 3d_dwg | CK15: 6.0 | CL15: 10.0 | CM15: 30.0 | CN15: 50.0 | CO15: 55.0 | CP15: 44.28 | CQ15: 43.75 | CR15: 36.71 | CS15: 16.57 | CT15: 9.698 | CV15: -0.016 | CW15: 0.252 | CX15: 43.097 | CY15: 36.6 | CZ15: CO-2 Helix V 3602/1 без учёта потерь напора | DA15: 6.0 | DB15: 18.3 | DC15: 30.5 | DD15: 42.8 | DE15: 55.0 | DF15: 44.0 | DG15: 42.5 | DH15: 36.3 | DI15: 25.3 | DJ15: 9.7 | EF15: -0.016 | EG15: 0.252 | EH15: 43.097 | EI15: 0.02674926726 | EJ15: -0.252480857 | EK15: -43.09706662 | EL15: 45.1 | EM15: 22.6 | EN15: да | EO15: 30.5 | EP15: 38.34 | EQ15: 22.17 | ER15: 12.6 | ET15: -0.016 | EU15: 0.225 | EV15: 43.097 | EW15: 0.02700926726 | EX15: -0.225230857 | EY15: -43.09706662 | EZ15: 44.3 | FA15: 21.8
J16: 2453573 | K16: CO 2 Helix V 3602/SK-FFS-R | L16: 6.0 | M16: 10.0 | N16: 30.0 | O16: 50.0 | P16: 55.0 | Q16: 50.5 | R16: 49.5 | S16: 40.7 | T16: 20.1 | U16: 12.7 | V16: =IFERROR(VLOOKUP(J16,Прайс!A:E,Настройки!$E$1,0)*Настройки!$E$2,"по запросу") -> по запросу | W16: -0.0 | X16: 0.1 | Y16: 50.0 | Z16: 40.7 | AA16: по запросу | AB16: 6.0 | AC16: 18.3 | AD16: 30.5 | AE16: 42.8 | AF16: 55.0 | AG16: 50.2 | AH16: 47.5 | AI16: 40.3 | AJ16: 28.8 | AK16: 12.9 | AL16: 300.4 | AM16: 434 | AN16: 125 | AO16: 125 | AP16: 2R | AR16: CO-2 Helix V 3602 | AS16: Helix V 3602 | AT16: Helix | AU16: EN-GJL-250 | AV16: 1.4307 [AISI304L] | AW16: EPDM | AX16: 1.4057 [AISI431] | AY16: 1.4571 [AISI316Ti ] | AZ16: вода 100% | BA16: 20° | BB16: 998.3 kg/m3 | BC16: 1.00 mm2/s | BD16: SK-FFS/2-5,5(12A)/J-6,3A/V-3~1,0A | BE16: IP54 | BF16: нет | BG16: нет | BH16: IE2 | BI16: 3~400/50 Гц | BJ16: ±10% | BK16: 5.5 | BM16: 1 | BN16: 16 | BO16: 10 | BQ16: 225 | BR16: 1695 | BS16: 120 | BT16: 944 | BU16: 1080 | BW16: 600 | BZ16: 1878 | CB16: 500 | CD16: 1368 | CE16: 412 | CF16: 456 | CG16: чертеж pdf | CH16: чертеж dwg | CI16: чертеж step | CJ16: чертеж 3d_dwg | CK16: 6.0 | CL16: 10.0 | CM16: 30.0 | CN16: 50.0 | CO16: 55.0 | CP16: 50.69 | CQ16: 49.79 | CR16: 41.8 | CS16: 22.13 | CT16: 14.97 | CV16: -0.014 | CW16: 0.158 | CX16: 49.982 | CY16: 41.8 | CZ16: CO-2 Helix V 3602 без учёта потерь напора | DA16: 6.0 | DB16: 18.3 | DC16: 30.5 | DD16: 42.8 | DE16: 55.0 | DF16: 50.4 | DG16: 48.1 | DH16: 41.4 | DI16: 30.4 | DJ16: 15.1 | EF16: -0.014 | EG16: 0.158 | EH16: 49.982 | EI16: 0.02550743339 | EJ16: -0.1584516518 | EK16: -49.98161421 | EL16: 47.5 | EM16: 25.0 | EN16: да | EO16: 30.5 | EP16: 38.34 | EQ16: 22.17 | ER16: 15.0 | ET16: -0.015 | EU16: 0.131 | EV16: 49.982 | EW16: 0.02576743339 | EX16: -0.1312016518 | EY16: -49.98161421 | EZ16: 46.7 | FA16: 24.2
J17: 2453574 | K17: CO 2 Helix V 3603/1/SK-FFS-R | L17: 6.0 | M17: 10.0 | N17: 30.0 | O17: 50.0 | P17: 55.0 | Q17: 69.6 | R17: 65.7 | S17: 54.9 | T17: 25.0 | U17: 14.6 | V17: =IFERROR(VLOOKUP(J17,Прайс!A:E,Настройки!$E$1,0)*Настройки!$E$2,"по запросу") -> по запросу | W17: -0.0 | X17: 0.2 | Y17: 67.9 | Z17: 54.4 | AA17: по запросу | AB17: 6.0 | AC17: 18.3 | AD17: 30.5 | AE17: 42.8 | AF17: 55.0 | AG17: 68.2 | AH17: 64.1 | AI17: 53.9 | AJ17: 37.5 | AK17: 14.9 | AL17: 315.8 | AM17: 494 | AN17: 125 | AO17: 125 | AP17: 2R | AR17: CO-2 Helix V 3603/1 | AS17: Helix V 3603/1 | AT17: Helix | AU17: EN-GJL-250 | AV17: 1.4307 [AISI304L] | AW17: EPDM | AX17: 1.4057 [AISI431] | AY17: 1.4571 [AISI316Ti ] | AZ17: вода 100% | BA17: 20° | BB17: 998.3 kg/m3 | BC17: 1.00 mm2/s | BD17: SK-FFS/2-7,5(18A)/J-6,3A/V-3~1,0A | BE17: IP54 | BF17: нет | BG17: нет | BH17: IE2 | BI17: 3~400/50 Гц | BJ17: ±10% | BK17: 7.5 | BM17: 1 | BN17: 16 | BO17: 10 | BQ17: 225 | BR17: 1695 | BS17: 120 | BT17: 944 | BU17: 1080 | BW17: 600 | BZ17: 1878 | CB17: 500 | CD17: 1368 | CE17: 412 | CF17: 456 | CG17: чертеж pdf | CH17: чертеж dwg | CI17: чертеж step | CJ17: чертеж 3d_dwg | CK17: 6.0 | CL17: 10.0 | CM17: 30.0 | CN17: 50.0 | CO17: 55.0 | CP17: 69.8 | CQ17: 66 | CR17: 56 | CS17: 27 | CT17: 16.9325 | CV17: -0.020 | CW17: 0.196 | CX17: 67.925 | CY17: 55.5 | CZ17: CO-2 Helix V 3603/1 без учёта потерь напора | DA17: 6.0 | DB17: 18.3 | DC17: 30.5 | DD17: 42.8 | DE17: 55.0 | DF17: 68.4 | DG17: 64.7 | DH17: 55.0 | DI17: 39.1 | DJ17: 17.2 | EF17: -0.020 | EG17: 0.196 | EH17: 67.925 | EI17: 0.0314625339 | EJ17: -0.1962324449 | EK17: -67.92541714 | EL17: 49.7 | EM17: 27.4 | EN17: да | EO17: 30.5 | EP17: 38.34 | EQ17: 22.17 | ER17: 17.4 | ET17: -0.021 | EU17: 0.169 | EV17: 67.925 | EW17: 0.0317225339 | EX17: -0.1689824449 | EY17: -67.92541714 | EZ17: 49.0 | FA17: 26.7
J18: 2453576 | K18: CO 2 Helix V 3603/SK-FFS-R | L18: 6.0 | M18: 10.0 | N18: 30.0 | O18: 50.0 | P18: 55.0 | Q18: 76.8 | R18: 75.7 | S18: 63.4 | T18: 32.5 | U18: 21.9 | V18: =IFERROR(VLOOKUP(J18,Прайс!A:E,Настройки!$E$1,0)*Настройки!$E$2,"по запросу") -> по запросу | W18: -0.0 | X18: 0.3 | Y18: 75.7 | Z18: 63.3 | AA18: по запросу | AB18: 6.0 | AC18: 18.3 | AD18: 30.5 | AE18: 42.8 | AF18: 55.0 | AG18: 76.5 | AH18: 73.0 | AI18: 62.8 | AJ18: 45.7 | AK18: 21.9 | AL18: 303.5 | AM18: 476 | AN18: 100 | AO18: 100 | AP18: 2R | AR18: CO-2 Helix V 3603 | AS18: Helix V 3603 | AT18: Helix | AU18: EN-GJL-250 | AV18: 1.4307 [AISI304L] | AW18: EPDM | AX18: 1.4057 [AISI431] | AY18: 1.4571 [AISI316Ti ] | AZ18: вода 100% | BA18: 20° | BB18: 998.3 kg/m3 | BC18: 1.00 mm2/s | BD18: SK-FFS/2-11(24A)/J-6,3A/V-3~1,0A | BE18: IP54 | BF18: нет | BG18: нет | BH18: IE2 | BI18: 3~400/50 Гц | BJ18: ±10% | BK18: 9 | BM18: 1 | BN18: 16 | BO18: 10 | BQ18: 225 | BR18: 1695 | BS18: 120 | BT18: 948 | BU18: 1080 | BW18: 600 | BZ18: 1804 | CB18: 500 | CD18: 1354 | CE18: 406 | CF18: 448 | CG18: чертеж pdf | CH18: чертеж dwg | CI18: чертеж step | CJ18: чертеж 3d_dwg | CK18: 6.0 | CL18: 10.0 | CM18: 30.0 | CN18: 50.0 | CO18: 55.0 | CP18: 77 | CQ18: 76 | CR18: 65 | CS18: 36 | CT18: 25.9375 | CV18: -0.022 | CW18: 0.292 | CX18: 75.693 | CY18: 64.9 | CZ18: CO-2 Helix V 3603 без учёта потерь напора | DA18: 6.0 | DB18: 18.3 | DC18: 30.5 | DD18: 42.8 | DE18: 55.0 | DF18: 76.7 | DG18: 73.8 | DH18: 64.4 | DI18: 48.4 | DJ18: 26.0 | EF18: -0.022 | EG18: 0.292 | EH18: 75.693 | EI18: 0.03284212627 | EJ18: -0.2917111727 | EK18: -75.69326068 | EL18: 52.7 | EM18: 30.8 | EN18: да | EO18: 30.5 | EP18: 38.34 | EQ18: 22.17 | ER18: 20.8 | ET18: -0.023 | EU18: 0.266 | EV18: 75.693 | EW18: 0.03371212627 | EX18: -0.2655511727 | EY18: -75.69326068 | EZ18: 51.5 | FA18: 29.5
J19: 2453584 | K19: CO 2 Helix V 5202/2/SK-FFS-R | L19: 9.0 | M19: 20.0 | N19: 30.0 | O19: 50.0 | P19: 80.0 | Q19: 37.8 | R19: 37.0 | S19: 35.3 | T19: 26.3 | U19: 0.8 | V19: =IFERROR(VLOOKUP(J19,Прайс!A:E,Настройки!$E$1,0)*Настройки!$E$2,"по запросу") -> по запросу | W19: -0.0 | X19: 0.2 | Y19: 36.5 | Z19: 35.2 | AA19: по запросу | AB19: 9.0 | AC19: 26.8 | AD19: 44.5 | AE19: 62.3 | AF19: 80.0 | AG19: 37.6 | AH19: 36.0 | AI19: 29.4 | AJ19: 17.6 | AK19: 0.8 | AL19: 341.8 | AM19: 532 | AN19: 150 | AO19: 150 | AP19: 2R | AR19: CO-2 Helix V 5202/2 | AS19: Helix V 5202/2 | AT19: Helix | AU19: EN-GJL-250 | AV19: 1.4307 [AISI304L] | AW19: EPDM | AX19: 1.4057 [AISI431] | AY19: 1.4571 [AISI316Ti ] | AZ19: вода 100% | BA19: 20° | BB19: 998.3 kg/m3 | BC19: 1.00 mm2/s | BD19: SK-FFS/2-5,5(12A)/J-6,3A/V-3~1,0A | BE19: IP54 | BF19: нет | BG19: нет | BH19: IE2 | BI19: 3~400/50 Гц | BJ19: ±10% | BK19: 5.5 | BM19: 1 | BN19: 16 | BO19: 10 | BQ19: 260 | BR19: 1695 | BS19: 120 | BT19: 944 | BU19: 1080 | BW19: 600 | BZ19: 2063 | CB19: 500 | CD19: 1527 | CE19: 438.5 | CF19: 588.5 | CG19: чертеж pdf | CH19: чертеж dwg | CI19: чертеж step | CJ19: чертеж 3d_dwg | CK19: 9.0 | CL19: 20.0 | CM19: 30.0 | CN19: 50.0 | CO19: 80.0 | CP19: 37.77 | CQ19: 37.06 | CR19: 35.35 | CS19: 26.6 | CT19: 1.445 | CV19: -0.008 | CW19: 0.198 | CX19: 36.516 | CY19: 35.3 | CZ19: CO-2 Helix V 5202/2 без учёта потерь напора | DA19: 9.0 | DB19: 26.8 | DC19: 44.5 | DD19: 62.3 | DE19: 80.0 | DF19: 37.6 | DG19: 36.1 | DH19: 29.6 | DI19: 18.0 | DJ19: 1.5 | EF19: -0.008 | EG19: 0.198 | EH19: 36.516 | EI19: 0.01905609163 | EJ19: -0.1975105744 | EK19: -36.51556923 | EL19: 49.3 | EM19: 27.0 | EN19: да | EO19: 44.5 | EP19: 55.86 | EQ19: 32.43 | ER19: 17.0 | ET19: -0.008 | EU19: 0.197 | EV19: 36.516 | EW19: 0.01915609163 | EX19: -0.1974105744 | EY19: -36.51586923 | EZ19: 49.1 | FA19: 26.8
J20: 2453287 | K20: CO 2 BL 50/120-3/2/SK-FFS-R | L20: 8.0 | M20: 15.0 | N20: 22.0 | O20: 36.0 | P20: 45.0 | Q20: 18.1 | R20: 18.0 | S20: 17.4 | T20: 15.2 | U20: 12.9 | V20: =IFERROR(VLOOKUP(J20,Прайс!A:E,Настройки!$E$1,0)*Настройки!$E$2,"по запросу") -> по запросу | W20: -0.0 | X20: 0.1 | Y20: 17.9 | Z20: 16.3 | AA20: по запросу | AB20: 8.0 | AC20: 17.3 | AD20: 26.5 | AE20: 35.8 | AF20: 45.0 | AG20: 18.1 | AH20: 17.8 | AI20: 16.9 | AJ20: 15.2 | AK20: 12.9 | AL20: 331.0 | AM20: 383.8 | AN20: 100 | AO20: 100 | AP20: 2R | AR20: CO-2 BL 50/120-3/2 | AS20: BL 50/120-3/2 | AT20: BL | AU20: EN-GJL-250 | AV20: EN-GJL-200 | AX20: 1.4122 | AY20: 1.4571 [AISI316Ti ] | AZ20: вода 100% | BA20: 20° | BB20: 998.3 kg/m3 | BC20: 1.00 mm2/s | BD20: SK-FFS/2-3,0(8A)/J-4,0A/V-3~1,0A | BE20: IP54 | BF20: нет | BG20: нет | BH20: IE2 | BI20: 3~400/50 Гц | BJ20: ±10% | BK20: 3 | BM20: 1 | BN20: 16 | BO20: 10 | BP20: 1845 | BQ20: 475 | BR20: 809 | BT20: 1048 | BW20: 600 | BX20: 1048 | BY20: 1401 | CD20: 1176 | CG20: чертеж pdf | CH20: чертеж dwg | CI20: чертеж step | CJ20: чертеж 3d_dwg | CK20: 8.0 | CL20: 15.0 | CM20: 22.0 | CN20: 36.0 | CO20: 45.0 | CP20: 18.28 | CQ20: 18.5 | CR20: 18.58 | CS20: 18.3 | CT20: 17.82 | CV20: -0.001 | CW20: 0.065 | CX20: 17.851 | CY20: 18.5 | CZ20: CO-2 BL 50/120-3/2 без учёта потерь напора | DA20: 8.0 | DB20: 17.3 | DC20: 26.5 | DD20: 35.8 | DE20: 45.0 | DF20: 18.3 | DG20: 18.5 | DH20: 18.6 | DI20: 18.3 | DJ20: 17.8 | EF20: -0.001 | EG20: 0.065 | EH20: 17.851 | EI20: 0.01257886297 | EJ20: -0.06534598819 | EK20: -17.85107632 | EL20: 40.4 | EM20: 18.1 | EN20: да | EO20: 26.5 | EP20: 32.42 | EQ20: 20.21 | ER20: 8.1 | ET20: -0.004 | EU20: 0.065 | EV20: 17.852 | EW20: 0.01497886297 | EX20: -0.06504598819 | EY20: -17.85157632 | EZ20: 36.8 | FA20: 15.0
J21: 2453286 | K21: CO 2 BL 40/265-4/4/SK-FFS-R | L21: 4.0 | M21: 14.0 | N21: 25.0 | O21: 32.0 | P21: 44.5 | Q21: 25.5 | R21: 24.6 | S21: 21.4 | T21: 18.2 | U21: 9.5 | V21: =IFERROR(VLOOKUP(J21,Прайс!A:E,Настройки!$E$1,0)*Настройки!$E$2,"по запросу") -> по запросу | W21: -0.0 | X21: 0.1 | Y21: 25.2 | Z21: 19.2 | AA21: по запросу | AB21: 4.0 | AC21: 14.1 | AD21: 24.3 | AE21: 34.4 | AF21: 44.5 | AG21: 25.4 | AH21: 24.7 | AI21: 21.7 | AJ21: 16.7 | AK21: 9.6 | AL21: 337.9 | AM21: 437.8 | AN21: 80 | AO21: 100 | AP21: 2R | AR21: CO-2 BL 40/265-4/4 | AS21: BL 40/265-4/4 | AT21: BL | AU21: EN-GJL-250 | AV21: EN-GJL-200 | AX21: 1.4122 | AY21: 1.4571 [AISI316Ti ] | AZ21: вода 100% | BA21: 20° | BB21: 998.3 kg/m3 | BC21: 1.00 mm2/s | BD21: SK-FFS/2-4,0(10A)/J-4,0A/V-3~1,0A | BE21: IP54 | BF21: нет | BG21: нет | BH21: IE2 | BI21: 3~400/50 Гц | BJ21: ±10% | BK21: 4 | BM21: 1 | BN21: 16 | BO21: 10 | BP21: 1845 | BQ21: 470 | BR21: 804 | BT21: 1054 | BW21: 600 | BX21: 1054 | BY21: 1488 | CD21: 1263 | CG21: чертеж pdf | CH21: чертеж dwg | CI21: чертеж step | CJ21: чертеж 3d_dwg | CK21: 4.0 | CL21: 14.0 | CM21: 25.0 | CN21: 32.0 | CO21: 44.5 | CP21: 25.55 | CQ21: 25.26 | CR21: 23.56 | CS21: 21.72 | CT21: 16.35 | CV21: -0.007 | CW21: 0.108 | CX21: 25.181 | CY21: 22.2 | CZ21: CO-2 BL 40/265-4/4 без учёта потерь напора | DA21: 4.0 | DB21: 14.1 | DC21: 24.3 | DD21: 34.4 | DE21: 44.5 | DF21: 25.5 | DG21: 25.3 | DH21: 23.8 | DI21: 20.8 | DJ21: 16.4 | EF21: -0.007 | EG21: 0.108 | EH21: 25.181 | EI21: 0.01797958436 | EJ21: -0.1081030165 | EK21: -25.18104248 | EL21: 40.6 | EM21: 18.3 | EN21: да | EO21: 24.3 | EP21: 30.73 | EQ21: 17.365 | ER21: 8.3 | ET21: -0.010 | EU21: 0.109 | EV21: 25.175 | EW21: 0.02142373257 | EX21: -0.1085719558 | EY21: -25.17457304 | EZ21: 36.9 | FA21: 15.1
J22: 2453577 | K22: CO 2 Helix V 3604/2/SK-FFS-R | L22: 6.0 | M22: 10.0 | N22: 30.0 | O22: 50.0 | P22: 55.0 | Q22: 88.8 | R22: 87.7 | S22: 74.4 | T22: 34.5 | U22: 20.7 | V22: =IFERROR(VLOOKUP(J22,Прайс!A:E,Настройки!$E$1,0)*Настройки!$E$2,"по запросу") -> по запросу | W22: -0.0 | X22: 0.6 | Y22: 86.0 | Z22: 74.2 | AA22: по запросу | AB22: 6.0 | AC22: 18.3 | AD22: 30.5 | AE22: 42.8 | AF22: 55.0 | AG22: 88.2 | AH22: 85.6 | AI22: 73.5 | AJ22: 51.9 | AK22: 20.7 | AL22: 309.9 | AM22: 546 | AN22: 100 | AO22: 100 | AP22: 2R | AR22: CO-2 Helix V 3604/2 | AS22: Helix V 3604/2 | AT22: Helix | AU22: EN-GJL-250 | AV22: 1.4307 [AISI304L] | AW22: EPDM | AX22: 1.4057 [AISI431] | AY22: 1.4571 [AISI316Ti ] | AZ22: вода 100% | BA22: 20° | BB22: 998.3 kg/m3 | BC22: 1.00 mm2/s | BD22: SK-FFS/2-11(24A)/J-6,3A/V-3~1,0A | BE22: IP54 | BF22: нет | BG22: нет | BH22: IE2 | BI22: 3~400/50 Гц | BJ22: ±10% | BK22: 11 | BM22: 1 | BN22: 16 | BO22: 10 | BQ22: 225 | BR22: 1695 | BS22: 120 | BT22: 948 | BU22: 1080 | BW22: 600 | BZ22: 1804 | CB22: 500 | CD22: 1354 | CE22: 406 | CF22: 448 | CG22: чертеж pdf | CH22: чертеж dwg | CI22: чертеж step | CJ22: чертеж 3d_dwg | CK22: 6.0 | CL22: 10.0 | CM22: 30.0 | CN22: 50.0 | CO22: 55.0 | CP22: 89 | CQ22: 88 | CR22: 76 | CS22: 38 | CT22: 24.75 | CV22: -0.031 | CW22: 0.583 | CX22: 86.026 | CY22: 75.8 | CZ22: CO-2 Helix V 3604/2 без учёта потерь напора | DA22: 6.0 | DB22: 18.3 | DC22: 30.5 | DD22: 42.8 | DE22: 55.0 | DF22: 88.4 | DG22: 86.4 | DH22: 75.1 | DI22: 54.6 | DJ22: 24.8 | EF22: -0.031 | EG22: 0.583 | EH22: 86.026 | EI22: 0.04196394236 | EJ22: -0.5830864314 | EK22: -86.02587494 | EL22: 52.8 | EM22: 30.9 | EN22: да | EO22: 30.5 | EP22: 38.34 | EQ22: 22.17 | ER22: 20.9 | ET22: -0.032 | EU22: 0.557 | EV22: 86.026 | EW22: 0.04283394236 | EX22: -0.5569264314 | EY22: -86.02587494 | EZ22: 51.8 | FA22: 29.8
J23: 2453701 | K23: CO 4 Helix V 1004/SK-FFS-R | L23: 4.5 | M23: 6.0 | N23: 24.0 | O23: 36.0 | P23: 48.0 | Q23: 40.1 | R23: 39.8 | S23: 33.7 | T23: 23.4 | U23: 6.3 | V23: =IFERROR(VLOOKUP(J23,Прайс!A:E,Настройки!$E$1,0)*Настройки!$E$2,"по запросу") -> по запросу | W23: -0.0 | X23: 0.2 | Y23: 39.2 | Z23: 29.2 | AA23: по запросу | AB23: 4.5 | AC23: 15.4 | AD23: 26.3 | AE23: 37.1 | AF23: 48.0 | AG23: 39.9 | AH23: 38.4 | AI23: 32.3 | AJ23: 21.7 | AK23: 6.4 | AL23: 374.7 | AM23: 409 | AN23: 80 | AO23: 80 | AP23: 2R | AR23: CO-4 Helix V 1004 | AS23: Helix V 1004 | AT23: Helix | AU23: EN-GJL-250 | AV23: 1.4307 [AISI304L] | AW23: EPDM | AX23: 1.4057 [AISI431] | AY23: 1.4571 [AISI316Ti ] | AZ23: вода 100% | BA23: 20° | BB23: 998.3 kg/m3 | BC23: 1.00 mm2/s | BD23: SK-FFS/4-1,5(4A) | BE23: IP54 | BF23: нет | BG23: нет | BH23: IE2 | BI23: 3~400/50 Гц | BJ23: ±10% | BK23: 1.5 | BM23: 3 | BN23: 16 | BO23: 10 | BQ23: 180 | BR23: 1875 | BS23: 100 | BT23: 1154 | BU23: 1200 | BW23: 760 | BZ23: 1618 | CB23: 450 | CD23: 1216 | CE23: 396 | CF23: 370 | CG23: чертеж pdf | CH23: чертеж dwg | CI23: чертеж step | CJ23: чертеж 3d_dwg | CK23: 4.5 | CL23: 6.0 | CM23: 24.0 | CN23: 36.0 | CO23: 48.0 | CP23: 40.12 | CQ23: 39.87 | CR23: 33.98 | CS23: 24.1 | CT23: 7.561 | CV23: -0.019 | CW23: 0.246 | CX23: 39.206 | CY23: 29.7 | CZ23: CO-4 Helix V 1004 без учёта потерь напора | DA23: 4.5 | DB23: 15.4 | DC23: 26.3 | DD23: 37.1 | DE23: 48.0 | DF23: 39.9 | DG23: 38.5 | DH23: 32.7 | DI23: 22.4 | DJ23: 7.7 | EF23: -0.019 | EG23: 0.246 | EH23: 39.206 | EI23: 0.02990603283 | EJ23: -0.2459605296 | EK23: -39.20589694 | EL23: 40.6 | EM23: 18.3 | EN23: да | EO23: 26.3 | EP23: 33.21 | EQ23: 18.855 | ER23: 8.3 | ET23: -0.019 | EU23: 0.246 | EV23: 39.206 | EW23: 0.03046158838 | EX23: -0.2458271962 | EY23: -39.20579694 | EZ23: 40.1 | FA23: 17.9
J24: 2453305 | K24: CO 2 BL 80/200-3/4/SK-FFS-R | L24: 11.0 | M24: 24.0 | N24: 34.0 | O24: 46.0 | P24: 56.0 | Q24: 13.0 | R24: 13.3 | S24: 13.4 | T24: 13.3 | U24: 12.9 | V24: =IFERROR(VLOOKUP(J24,Прайс!A:E,Настройки!$E$1,0)*Настройки!$E$2,"по запросу") -> по запросу | W24: -0.0 | X24: 0.1 | Y24: 12.5 | Z24: 13.4 | AA24: по запросу | AB24: 11.0 | AC24: 22.3 | AD24: 33.5 | AE24: 44.8 | AF24: 56.0 | AG24: 13.0 | AH24: 13.3 | AI24: 13.4 | AJ24: 13.3 | AK24: 12.9 | AL24: 378.2 | AM24: 547.4 | AN24: 150 | AO24: 150 | AP24: 2R | AR24: CO-2 BL 80/200-3/4 | AS24: BL 80/200-3/4 | AT24: BL | AU24: EN-GJL-250 | AV24: EN-GJL-200 | AX24: 1.4122 | AY24: 1.4571 [AISI316Ti ] | AZ24: вода 100% | BA24: 20° | BB24: 998.3 kg/m3 | BC24: 1.00 mm2/s | BD24: SK-FFS/2-3,0(8A)/J-4,0A/V-3~1,0A | BE24: IP54 | BF24: нет | BG24: нет | BH24: IE2 | BI24: 3~400/50 Гц | BJ24: ±10% | BK24: 3 | BM24: 1 | BN24: 16 | BO24: 10 | BP24: 1845 | BQ24: 331 | BR24: 787 | BT24: 1044 | BW24: 600 | BX24: 1060 | BY24: 1644 | CD24: 1376 | CG24: чертеж pdf | CH24: чертеж dwg | CI24: чертеж step | CJ24: чертеж 3d_dwg | CK24: 11.0 | CL24: 24.0 | CM24: 34.0 | CN24: 46.0 | CO24: 56.0 | CP24: 13.03 | CQ24: 13.45 | CR24: 13.63 | CS24: 13.68 | CT24: 13.58 | CV24: -0.001 | CW24: 0.054 | CX24: 12.507 | CY24: 13.6 | CZ24: CO-2 BL 80/200-3/4 без учёта потерь напора | DA24: 11.0 | DB24: 22.3 | DC24: 33.5 | DD24: 44.8 | DE24: 56.0 | DF24: 13.0 | DG24: 13.4 | DH24: 13.6 | DI24: 13.7 | DJ24: 13.6 | EF24: -0.001 | EG24: 0.054 | EH24: 12.507 | EI24: 0.01174128929 | EJ24: -0.05446820645 | EK24: -12.50667053 | EL24: 35.0 | EM24: 13.6 | EN24: да | EO24: 33.5 | EP24: 40.7 | EQ24: 25.85 | ER24: 3.6 | ET24: -0.001 | EU24: 0.054 | EV24: 12.507 | EW24: 0.01194128929 | EX24: -0.05439820645 | EY24: -12.50697053 | EZ24: 34.7 | FA24: 13.4
J25: 2453585 | K25: CO 2 Helix V 5202/SK-FFS-R | L25: 9.0 | M25: 20.0 | N25: 30.0 | O25: 50.0 | P25: 80.0 | Q25: 54.4 | R25: 50.7 | S25: 46.6 | T25: 36.4 | U25: 10.3 | V25: =IFERROR(VLOOKUP(J25,Прайс!A:E,Настройки!$E$1,0)*Настройки!$E$2,"по запросу") -> по запросу | W25: -0.0 | X25: -0.1 | Y25: 55.4 | Z25: 47.1 | AA25: по запросу | AB25: 9.0 | AC25: 26.8 | AD25: 44.5 | AE25: 62.3 | AF25: 80.0 | AG25: 54.0 | AH25: 48.5 | AI25: 39.4 | AJ25: 26.7 | AK25: 10.5 | AL25: 321.6 | AM25: 584 | AN25: 150 | AO25: 150 | AP25: 2R | AR25: CO-2 Helix V 5202 | AS25: Helix V 5202 | AT25: Helix | AU25: EN-GJL-250 | AV25: 1.4307 [AISI304L] | AW25: EPDM | AX25: 1.4057 [AISI431] | AY25: 1.4571 [AISI316Ti ] | AZ25: вода 100% | BA25: 20° | BB25: 998.3 kg/m3 | BC25: 1.00 mm2/s | BD25: SK-FFS/2-7,5(18A)/J-6,3A/V-3~1,0A | BE25: IP54 | BF25: нет | BG25: нет | BH25: IE2 | BI25: 3~400/50 Гц | BJ25: ±10% | BK25: 7.5 | BM25: 1 | BN25: 16 | BO25: 10 | BQ25: 260 | BR25: 1695 | BS25: 120 | BT25: 944 | BU25: 1080 | BW25: 600 | BZ25: 1965 | CB25: 500 | CD25: 1429 | CE25: 438.5 | CF25: 490.5 | CG25: чертеж pdf | CH25: чертеж dwg | CI25: чертеж step | CJ25: чертеж 3d_dwg | CK25: 9.0 | CL25: 20.0 | CM25: 30.0 | CN25: 50.0 | CO25: 80.0 | CP25: 54.59 | CQ25: 51.19 | CR25: 47.35 | CS25: 37.6 | CT25: 12.13 | CV25: -0.006 | CW25: -0.083 | CX25: 55.440 | CY25: 47.8 | CZ25: CO-2 Helix V 5202 без учёта потерь напора | DA25: 9.0 | DB25: 26.8 | DC25: 44.5 | DD25: 62.3 | DE25: 80.0 | DF25: 54.2 | DG25: 49.1 | DH25: 40.5 | DI25: 28.2 | DJ25: 12.3 | EF25: -0.006 | EG25: -0.083 | EH25: 55.440 | EI25: 0.01682419333 | EJ25: 0.08255872464 | EK25: -55.43995945 | EL25: 55.0 | EM25: 33.6 | EN25: да | EO25: 44.5 | EP25: 55.86 | EQ25: 32.43 | ER25: 23.6 | ET25: -0.006 | EU25: -0.108 | EV25: 55.440 | EW25: 0.01678419333 | EX25: 0.1084587246 | EY25: -55.43995945 | EZ25: 54.3 | FA25: 32.8
J26: 2453702 | K26: CO 4 Helix V 1005/SK-FFS-R | L26: 4.5 | M26: 6.0 | N26: 24.0 | O26: 36.0 | P26: 48.0 | Q26: 50.9 | R26: 50.6 | S26: 43.6 | T26: 31.4 | U26: 10.4 | V26: =IFERROR(VLOOKUP(J26,Прайс!A:E,Настройки!$E$1,0)*Настройки!$E$2,"по запросу") -> по запросу | W26: -0.0 | X26: 0.4 | Y26: 49.6 | Z26: 38.3 | AA26: по запросу | AB26: 4.5 | AC26: 15.4 | AD26: 26.3 | AE26: 37.1 | AF26: 48.0 | AG26: 50.7 | AH26: 49.3 | AI26: 42.1 | AJ26: 29.2 | AK26: 10.6 | AL26: 378.3 | AM26: 421 | AN26: 80 | AO26: 80 | AP26: 2R | AR26: CO-4 Helix V 1005 | AS26: Helix V 1005 | AT26: Helix | AU26: EN-GJL-250 | AV26: 1.4307 [AISI304L] | AW26: EPDM | AX26: 1.4057 [AISI431] | AY26: 1.4571 [AISI316Ti ] | AZ26: вода 100% | BA26: 20° | BB26: 998.3 kg/m3 | BC26: 1.00 mm2/s | BD26: SK-FFS/4-2,2(6A) | BE26: IP54 | BF26: нет | BG26: нет | BH26: IE2 | BI26: 3~400/50 Гц | BJ26: ±10% | BK26: 2.2 | BM26: 3 | BN26: 16 | BO26: 10 | BQ26: 180 | BR26: 1875 | BS26: 100 | BT26: 1154 | BU26: 1200 | BW26: 760 | BZ26: 1618 | CB26: 450 | CD26: 1216 | CE26: 396 | CF26: 370 | CG26: чертеж pdf | CH26: чертеж dwg | CI26: чертеж step | CJ26: чертеж 3d_dwg | CK26: 4.5 | CL26: 6.0 | CM26: 24.0 | CN26: 36.0 | CO26: 48.0 | CP26: 50.96 | CQ26: 50.67 | CR26: 43.97 | CS26: 32.13 | CT26: 11.67 | CV26: -0.024 | CW26: 0.354 | CX26: 49.587 | CY26: 38.8 | CZ26: CO-4 Helix V 1005 без учёта потерь напора | DA26: 4.5 | DB26: 15.4 | DC26: 26.3 | DD26: 37.1 | DE26: 48.0 | DF26: 50.7 | DG26: 49.4 | DH26: 42.5 | DI26: 30.0 | DJ26: 11.9 | EF26: -0.024 | EG26: 0.354 | EH26: 49.587 | EI26: 0.0348450775 | EJ26: -0.353678125 | EK26: -49.58744429 | EL26: 43.1 | EM26: 20.7 | EN26: да | EO26: 26.3 | EP26: 33.21 | EQ26: 18.855 | ER26: 10.7 | ET26: -0.024 | EU26: 0.354 | EV26: 49.587 | EW26: 0.03540063306 | EX26: -0.3535447917 | EY26: -49.58734429 | EZ26: 42.8 | FA26: 20.3
J27: 2453579 | K27: CO 2 Helix V 3605/2/SK-FFS-R | L27: 6.0 | M27: 10.0 | N27: 30.0 | O27: 50.0 | P27: 55.0 | Q27: 114.8 | R27: 109.7 | S27: 96.4 | T27: 46.5 | U27: 28.3 | V27: =IFERROR(VLOOKUP(J27,Прайс!A:E,Настройки!$E$1,0)*Настройки!$E$2,"по запросу") -> по запросу | W27: -0.0 | X27: 0.8 | Y27: 109.3 | Z27: 95.6 | AA27: по запросу | AB27: 6.0 | AC27: 18.3 | AD27: 30.5 | AE27: 42.8 | AF27: 55.0 | AG27: 112.4 | AH27: 109.6 | AI27: 94.8 | AJ27: 67.8 | AK27: 28.8 | AL27: 344.3 | AM27: 586 | AN27: 100 | AO27: 100 | AP27: 2R | AR27: CO-2 Helix V 3605/2 | AS27: Helix V 3605/2 | AT27: Helix | AU27: EN-GJL-250 | AV27: 1.4307 [AISI304L] | AW27: EPDM | AX27: 1.4057 [AISI431] | AY27: 1.4571 [AISI316Ti ] | AZ27: вода 100% | BA27: 20° | BB27: 998.3 kg/m3 | BC27: 1.00 mm2/s | BD27: SK-FFS/2-15(32A)/J-6,3A/V-3~1,0A | BE27: IP54 | BF27: нет | BG27: нет | BH27: IE2 | BI27: 3~400/50 Гц | BJ27: ±10% | BK27: 15 | BM27: 1 | BN27: 16 | BO27: 10 | BQ27: 225 | BR27: 1695 | BS27: 120 | BT27: 948 | BU27: 1080 | BW27: 600 | BZ27: 1804 | CB27: 500 | CD27: 1354 | CE27: 406 | CF27: 448 | CG27: чертеж pdf | CH27: чертеж dwg | CI27: чертеж step | CJ27: чертеж 3d_dwg | CK27: 6.0 | CL27: 10.0 | CM27: 30.0 | CN27: 50.0 | CO27: 55.0 | CP27: 115 | CQ27: 110 | CR27: 98 | CS27: 50 | CT27: 32.375 | CV27: -0.039 | CW27: 0.780 | CX27: 109.299 | CY27: 97.2 | CZ27: CO-2 Helix V 3605/2 без учёта потерь напора | DA27: 6.0 | DB27: 18.3 | DC27: 30.5 | DD27: 42.8 | DE27: 55.0 | DF27: 112.6 | DG27: 110.4 | DH27: 96.4 | DI27: 70.5 | DJ27: 32.8 | EF27: -0.039 | EG27: 0.780 | EH27: 109.299 | EI27: 0.05056801208 | EJ27: -0.7798347034 | EK27: -109.2993374 | EL27: 54.8 | EM27: 33.4 | EN27: да | EO27: 30.5 | EP27: 38.34 | EQ27: 22.17 | ER27: 23.4 | ET27: -0.040 | EU27: 0.754 | EV27: 109.299 | EW27: 0.05143801208 | EX27: -0.7536747034 | EY27: -109.2993374 | EZ27: 54.0 | FA27: 32.4
J28: 2453711 | K28: CO 4 Helix V 1602/SK-FFS-R | L28: 9.0 | M28: 27.0 | N28: 45.0 | O28: 63.0 | P28: 78.0 | Q28: 25.4 | R28: 23.7 | S28: 19.9 | T28: 13.2 | U28: 5.0 | V28: =IFERROR(VLOOKUP(J28,Прайс!A:E,Настройки!$E$1,0)*Настройки!$E$2,"по запросу") -> по запросу | W28: -0.0 | X28: 0.1 | Y28: 24.9 | Z28: 23.4 | AA28: по запросу | AB28: 9.0 | AC28: 26.3 | AD28: 43.5 | AE28: 60.8 | AF28: 78.0 | AG28: 25.3 | AH28: 24.1 | AI28: 20.3 | AJ28: 14.0 | AK28: 5.2 | AL28: 439.1 | AM28: 441 | AN28: 80 | AO28: 100 | AP28: 2R | AR28: CO-4 Helix V 1602 | AS28: Helix V 1602 | AT28: Helix | AU28: EN-GJL-250 | AV28: 1.4307 [AISI304L] | AW28: EPDM | AX28: 1.4057 [AISI431] | AY28: 1.4571 [AISI316Ti ] | AZ28: вода 100% | BA28: 20° | BB28: 998.3 kg/m3 | BC28: 1.00 mm2/s | BD28: SK-FFS/4-1,5(4A) | BE28: IP54 | BF28: нет | BG28: нет | BH28: IE2 | BI28: 3~400/50 Гц | BJ28: ±10% | BK28: 1.5 | BM28: 3 | BN28: 16 | BO28: 10 | BQ28: 180 | BR28: 1875 | BS28: 100 | BT28: 1154 | BU28: 1200 | BW28: 760 | BZ28: 1688 | CB28: 450 | CD28: 1262 | CE28: 396 | CF28: 416 | CG28: чертеж pdf | CH28: чертеж dwg | CI28: чертеж step | CJ28: чертеж 3d_dwg | CK28: 9.0 | CL28: 27.0 | CM28: 45.0 | CN28: 63.0 | CO28: 78.0 | CP28: 25.44 | CQ28: 24.08 | CR28: 20.86 | CS28: 15.11 | CT28: 8 | CV28: -0.004 | CW28: 0.078 | CX28: 24.939 | CY28: 23.9 | CZ28: CO-4 Helix V 1602 без учёта потерь напора | DA28: 9.0 | DB28: 26.3 | DC28: 43.5 | DD28: 60.8 | DE28: 78.0 | DF28: 25.3 | DG28: 24.4 | DH28: 21.2 | DI28: 15.8 | DJ28: 8.1 | EF28: -0.004 | EG28: 0.078 | EH28: 24.939 | EI28: 0.01487640517 | EJ28: -0.0780180252 | EK28: -24.93942166 | EL28: 43.7 | EM28: 21.2 | EN28: да | EO28: 43.5 | EP28: 54.54 | EQ28: 31.77 | ER28: 11.2 | ET28: -0.004 | EU28: 0.077 | EV28: 24.946 | EW28: 0.01535418295 | EX28: -0.0773180252 | EY28: -24.94642166 | EZ28: 42.9 | FA28: 20.5
J29: 2453703 | K29: CO 4 Helix V 1006/SK-FFS-R | L29: 4.5 | M29: 6.0 | N29: 24.0 | O29: 36.0 | P29: 48.0 | Q29: 60.8 | R29: 60.4 | S29: 51.7 | T29: 36.8 | U29: 11.6 | V29: =IFERROR(VLOOKUP(J29,Прайс!A:E,Настройки!$E$1,0)*Настройки!$E$2,"по запросу") -> по запросу | W29: -0.0 | X29: 0.4 | Y29: 59.3 | Z29: 45.2 | AA29: по запросу | AB29: 4.5 | AC29: 15.4 | AD29: 26.3 | AE29: 37.1 | AF29: 48.0 | AG29: 60.5 | AH29: 58.6 | AI29: 49.8 | AJ29: 34.3 | AK29: 11.9 | AL29: 380.6 | AM29: 425 | AN29: 80 | AO29: 80 | AP29: 2R | AR29: CO-4 Helix V 1006 | AS29: Helix V 1006 | AT29: Helix | AU29: EN-GJL-250 | AV29: 1.4307 [AISI304L] | AW29: EPDM | AX29: 1.4057 [AISI431] | AY29: 1.4571 [AISI316Ti ] | AZ29: вода 100% | BA29: 20° | BB29: 998.3 kg/m3 | BC29: 1.00 mm2/s | BD29: SK-FFS/4-2,2(6A) | BE29: IP54 | BF29: нет | BG29: нет | BH29: IE2 | BI29: 3~400/50 Гц | BJ29: ±10% | BK29: 2.2 | BM29: 3 | BN29: 16 | BO29: 10 | BQ29: 180 | BR29: 1675 | BS29: 100 | BT29: 1154 | BU29: 1200 | BW29: 760 | BZ29: 1618 | CB29: 450 | CD29: 1216 | CE29: 396 | CF29: 370 | CG29: чертеж pdf | CH29: чертеж dwg | CI29: чертеж step | CJ29: чертеж 3d_dwg | CK29: 4.5 | CL29: 6.0 | CM29: 24.0 | CN29: 36.0 | CO29: 48.0 | CP29: 60.78 | CQ29: 60.41 | CR29: 52.05 | CS29: 37.54 | CT29: 12.93 | CV29: -0.028 | CW29: 0.399 | CX29: 59.255 | CY29: 45.7 | CZ29: CO-4 Helix V 1006 без учёта потерь напора | DA29: 4.5 | DB29: 15.4 | DC29: 26.3 | DD29: 37.1 | DE29: 48.0 | DF29: 60.5 | DG29: 58.7 | DH29: 50.2 | DI29: 35.0 | DJ29: 13.2 | EF29: -0.028 | EG29: 0.399 | EH29: 59.255 | EI29: 0.03943352558 | EJ29: -0.3991662761 | EK29: -59.25526698 | EL29: 44.2 | EM29: 21.7 | EN29: да | EO29: 26.3 | EP29: 33.21 | EQ29: 18.855 | ER29: 11.7 | ET29: -0.029 | EU29: 0.399 | EV29: 59.255 | EW29: 0.03998908114 | EX29: -0.3990329428 | EY29: -59.25516698 | EZ29: 43.8 | FA29: 21.3
J30: 2453712 | K30: CO 4 Helix V 1603/SK-FFS-R | L30: 9.0 | M30: 27.0 | N30: 45.0 | O30: 63.0 | P30: 78.0 | Q30: 38.3 | R30: 36.1 | S30: 30.8 | T30: 21.3 | U30: 9.7 | V30: =IFERROR(VLOOKUP(J30,Прайс!A:E,Настройки!$E$1,0)*Настройки!$E$2,"по запросу") -> по запросу | W30: -0.0 | X30: 0.1 | Y30: 37.5 | Z30: 35.8 | AA30: по запросу | AB30: 9.0 | AC30: 26.3 | AD30: 43.5 | AE30: 60.8 | AF30: 78.0 | AG30: 38.2 | AH30: 36.6 | AI30: 31.3 | AJ30: 22.4 | AK30: 9.8 | AL30: 443.1 | AM30: 453 | AN30: 80 | AO30: 100 | AP30: 2R | AR30: CO-4 Helix V 1603 | AS30: Helix V 1603 | AT30: Helix | AU30: EN-GJL-250 | AV30: 1.4307 [AISI304L] | AW30: EPDM | AX30: 1.4057 [AISI431] | AY30: 1.4571 [AISI316Ti ] | AZ30: вода 100% | BA30: 20° | BB30: 998.3 kg/m3 | BC30: 1.00 mm2/s | BD30: SK-FFS/4-2,2(6A) | BE30: IP54 | BF30: нет | BG30: нет | BH30: IE2 | BI30: 3~400/50 Гц | BJ30: ±10% | BK30: 2.2 | BM30: 3 | BN30: 16 | BO30: 10 | BQ30: 180 | BR30: 1875 | BS30: 100 | BT30: 1154 | BU30: 1200 | BW30: 760 | BZ30: 1688 | CB30: 450 | CD30: 1262 | CE30: 396 | CF30: 416 | CG30: чертеж pdf | CH30: чертеж dwg | CI30: чертеж step | CJ30: чертеж 3d_dwg | CK30: 9.0 | CL30: 27.0 | CM30: 45.0 | CN30: 63.0 | CO30: 78.0 | CP30: 38.37 | CQ30: 36.45 | CR30: 31.77 | CS30: 23.21 | CT30: 12.63 | CV30: -0.006 | CW30: 0.126 | CX30: 37.540 | CY30: 36.2 | CZ30: CO-4 Helix V 1603 без учёта потерь напора | DA30: 9.0 | DB30: 26.3 | DC30: 43.5 | DD30: 60.8 | DE30: 78.0 | DF30: 38.2 | DG30: 36.9 | DH30: 32.3 | DI30: 24.2 | DJ30: 12.8 | EF30: -0.006 | EG30: 0.126 | EH30: 37.540 | EI30: 0.01678855682 | EJ30: -0.1256716429 | EK30: -37.54036311 | EL30: 51.2 | EM30: 29.1 | EN30: да | EO30: 43.5 | EP30: 54.54 | EQ30: 31.77 | ER30: 19.1 | ET30: -0.006 | EU30: 0.125 | EV30: 37.547 | EW30: 0.0172663346 | EX30: -0.1249716429 | EY30: -37.54736311 | EZ30: 50.4 | FA30: 28.2
J31: 2453586 | K31: CO 2 Helix V 5203/2/SK-FFS-R | L31: 9.0 | M31: 20.0 | N31: 30.0 | O31: 50.0 | P31: 80.0 | Q31: 65.7 | R31: 63.1 | S31: 59.6 | T31: 46.0 | U31: 9.2 | V31: =IFERROR(VLOOKUP(J31,Прайс!A:E,Настройки!$E$1,0)*Настройки!$E$2,"по запросу") -> по запросу | W31: -0.0 | X31: 0.1 | Y31: 65.0 | Z31: 59.7 | AA31: по запросу | AB31: 9.0 | AC31: 26.8 | AD31: 44.5 | AE31: 62.3 | AF31: 80.0 | AG31: 65.4 | AH31: 61.1 | AI31: 50.4 | AJ31: 33.1 | AK31: 9.3 | AL31: 336.5 | AM31: 668 | AN31: 150 | AO31: 150 | AP31: 2R | AR31: CO-2 Helix V 5203/2 | AS31: Helix V 5203/2 | AT31: Helix | AU31: EN-GJL-250 | AV31: 1.4307 [AISI304L] | AW31: EPDM | AX31: 1.4057 [AISI431] | AY31: 1.4571 [AISI316Ti ] | AZ31: вода 100% | BA31: 20° | BB31: 998.3 kg/m3 | BC31: 1.00 mm2/s | BD31: SK-FFS/2-11(24A)/J-6,3A/V-3~1,0A | BE31: IP54 | BF31: нет | BG31: нет | BH31: IE2 | BI31: 3~400/50 Гц | BJ31: ±10% | BK31: 11 | BM31: 1 | BN31: 16 | BO31: 10 | BQ31: 260 | BR31: 1695 | BS31: 120 | BT31: 944 | BU31: 1080 | BW31: 600 | BZ31: 1965 | CB31: 500 | CD31: 1429 | CE31: 438.5 | CF31: 490.5 | CG31: чертеж pdf | CH31: чертеж dwg | CI31: чертеж step | CJ31: чертеж 3d_dwg | CK31: 9.0 | CL31: 20.0 | CM31: 30.0 | CN31: 50.0 | CO31: 80.0 | CP31: 65.88 | CQ31: 63.62 | CR31: 60.31 | CS31: 47.24 | CT31: 11.04 | CV31: -0.010 | CW31: 0.159 | CX31: 65.009 | CY31: 60.4 | CZ31: CO-2 Helix V 5203/2 без учёта потерь напора | DA31: 9.0 | DB31: 26.8 | DC31: 44.5 | DD31: 62.3 | DE31: 80.0 | DF31: 65.6 | DG31: 61.8 | DH31: 51.5 | DI31: 34.6 | DJ31: 11.1 | EF31: -0.010 | EG31: 0.159 | EH31: 65.009 | EI31: 0.02151660617 | EJ31: -0.158854267 | EK31: -65.00908764 | EL31: 58.8 | EM31: 38.4 | EN31: да | EO31: 44.5 | EP31: 55.86 | EQ31: 32.43 | ER31: 28.4 | ET31: -0.010 | EU31: 0.133 | EV31: 65.009 | EW31: 0.02147660617 | EX31: -0.132954267 | EY31: -65.00908764 | EZ31: 58.2 | FA31: 37.6
J32: 2453587 | K32: CO 2 Helix V 5203/SK-FFS-R | L32: 9.0 | M32: 20.0 | N32: 30.0 | O32: 50.0 | P32: 80.0 | Q32: 82.1 | R32: 76.7 | S32: 70.8 | T32: 56.3 | U32: 17.6 | V32: =IFERROR(VLOOKUP(J32,Прайс!A:E,Настройки!$E$1,0)*Настройки!$E$2,"по запросу") -> по запросу | W32: -0.0 | X32: -0.1 | Y32: 83.3 | Z32: 71.6 | AA32: по запросу | AB32: 9.0 | AC32: 26.8 | AD32: 44.5 | AE32: 62.3 | AF32: 80.0 | AG32: 81.5 | AH32: 73.7 | AI32: 60.5 | AJ32: 41.9 | AK32: 17.9 | AL32: 336.5 | AM32: 668 | AN32: 150 | AO32: 150 | AP32: 2R | AR32: CO-2 Helix V 5203 | AS32: Helix V 5203 | AT32: Helix | AU32: EN-GJL-250 | AV32: 1.4307 [AISI304L] | AW32: EPDM | AX32: 1.4057 [AISI431] | AY32: 1.4571 [AISI316Ti ] | AZ32: вода 100% | BA32: 20° | BB32: 998.3 kg/m3 | BC32: 1.00 mm2/s | BD32: SK-FFS/2-11(24A)/J-6,3A/V-3~1,0A | BE32: IP54 | BF32: нет | BG32: нет | BH32: IE2 | BI32: 3~400/50 Гц | BJ32: ±10% | BK32: 11 | BM32: 1 | BN32: 16 | BO32: 10 | BQ32: 260 | BR32: 1695 | BS32: 120 | BT32: 944 | BU32: 1080 | BW32: 600 | BZ32: 1965 | CB32: 500 | CD32: 1429 | CE32: 438.5 | CF32: 490.5 | CG32: чертеж pdf | CH32: чертеж dwg | CI32: чертеж step | CJ32: чертеж 3d_dwg | CK32: 9.0 | CL32: 20.0 | CM32: 30.0 | CN32: 50.0 | CO32: 80.0 | CP32: 82.32 | CQ32: 77.19 | CR32: 71.57 | CS32: 57.48 | CT32: 19.44 | CV32: -0.009 | CW32: -0.107 | CX32: 83.345 | CY32: 72.4 | CZ32: CO-2 Helix V 5203 без учёта потерь напора | DA32: 9.0 | DB32: 26.8 | DC32: 44.5 | DD32: 62.3 | DE32: 80.0 | DF32: 81.7 | DG32: 74.3 | DH32: 61.5 | DI32: 43.3 | DJ32: 19.7 | EF32: -0.009 | EG32: -0.107 | EH32: 83.345 | EI32: 0.01972035139 | EJ32: 0.1069474785 | EK32: -83.34493455 | EL32: 62.4 | EM32: 43.2 | EN32: да | EO32: 44.5 | EP32: 55.86 | EQ32: 32.43 | ER32: 33.2 | ET32: -0.009 | EU32: -0.133 | EV32: 83.345 | EW32: 0.01968035139 | EX32: 0.1328474785 | EY32: -83.34493455 | EZ32: 61.8 | FA32: 42.4
J33: 2453296 | K33: CO 2 BL 65/120-4/2/SK-FFS-R | L33: 10.0 | M33: 32.0 | N33: 48.0 | O33: 68.0 | P33: 102.0 | Q33: 15.3 | R33: 15.4 | S33: 14.6 | T33: 12.4 | U33: 6.0 | V33: =IFERROR(VLOOKUP(J33,Прайс!A:E,Настройки!$E$1,0)*Настройки!$E$2,"по запросу") -> по запросу | W33: -0.0 | X33: 0.1 | Y33: 14.7 | Z33: 15.4 | AA33: по запросу | AB33: 10.0 | AC33: 33.0 | AD33: 56.0 | AE33: 79.0 | AF33: 102.0 | AG33: 15.3 | AH33: 15.4 | AI33: 13.8 | AJ33: 10.7 | AK33: 6.0 | AL33: 352.7 | AM33: 463.4 | AN33: 125 | AO33: 125 | AP33: 2R | AR33: CO-2 BL 65/120-4/2 | AS33: BL 65/120-4/2 | AT33: BL | AU33: EN-GJL-250 | AV33: EN-GJL-200 | AX33: 1.4122 | AY33: 1.4571 [AISI316Ti ] | AZ33: вода 100% | BA33: 20° | BB33: 998.3 kg/m3 | BC33: 1.00 mm2/s | BD33: SK-FFS/2-4,0(10A)/J-4,0A/V-3~1,0A | BE33: IP54 | BF33: нет | BG33: нет | BH33: IE2 | BI33: 3~400/50 Гц | BJ33: ±10% | BK33: 4 | BM33: 1 | BN33: 16 | BO33: 10 | BP33: 1845 | BQ33: 334 | BR33: 803 | BT33: 1044 | BW33: 600 | BX33: 1044 | BY33: 1459 | CD33: 1204 | CG33: чертеж pdf | CH33: чертеж dwg | CI33: чертеж step | CJ33: чертеж 3d_dwg | CK33: 10.0 | CL33: 32.0 | CM33: 48.0 | CN33: 68.0 | CO33: 102.0 | CP33: 15.33 | CQ33: 15.9 | CR33: 15.71 | CS33: 14.74 | CT33: 11.25 | CV33: -0.001 | CW33: 0.068 | CX33: 14.747 | CY33: 15.9 | CZ33: CO-2 BL 65/120-4/2 без учёта потерь напора | DA33: 10.0 | DB33: 33.0 | DC33: 56.0 | DD33: 79.0 | DE33: 102.0 | DF33: 15.3 | DG33: 15.9 | DH33: 15.4 | DI33: 13.9 | DJ33: 11.3 | EF33: -0.001 | EG33: 0.068 | EH33: 14.747 | EI33: 0.01211663218 | EJ33: -0.0682782397 | EK33: -14.74711092 | EL33: 37.8 | EM33: 15.9 | EN33: да | EO33: 56.0 | EP33: 70.72 | EQ33: 40.36 | ER33: 5.9 | ET33: -0.002 | EU33: 0.068 | EV33: 14.748 | EW33: 0.01261663218 | EX33: -0.0681782397 | EY33: -14.74761092 | EZ33: 37.0 | FA33: 15.2
J34: 2453332 | K34: CO 3 BL 32/150-3/2/SK-FFS-R | L34: 6.0 | M34: 20.0 | N34: 30.0 | O34: 40.0 | P34: 52.0 | Q34: 30.1 | R34: 29.3 | S34: 27.7 | T34: 25.1 | U34: 20.9 | V34: =IFERROR(VLOOKUP(J34,Прайс!A:E,Настройки!$E$1,0)*Настройки!$E$2,"по запросу") -> по запросу | W34: -0.0 | X34: 0.1 | Y34: 29.9 | Z34: 27.7 | AA34: по запросу | AB34: 6.0 | AC34: 17.5 | AD34: 29.0 | AE34: 40.5 | AF34: 52.0 | AG34: 30.1 | AH34: 29.6 | AI34: 27.9 | AJ34: 25.0 | AK34: 20.9 | AL34: 456.3 | AM34: 521.4 | AN34: 65 | AO34: 80 | AP34: 2R | AR34: CO-3 BL 32/150-3/2 | AS34: BL 32/150-3/2 | AT34: BL | AU34: EN-GJL-250 | AV34: EN-GJL-200 | AX34: 1.4122 | AY34: 1.4571 [AISI316Ti ] | AZ34: вода 100% | BA34: 20° | BB34: 998.3 kg/m3 | BC34: 1.00 mm2/s | BD34: SK-FFS/3-3,0(8A)/V-3~1,0A | BE34: IP54 | BF34: нет | BG34: нет | BH34: IE2 | BI34: 3~400/50 Гц | BJ34: ±10% | BK34: 3 | BM34: 2 | BN34: 16 | BO34: 10 | BP34: 1845 | BQ34: 433 | BR34: 820 | BT34: 1604 | BW34: 600 | BX34: 1604 | BY34: 1351 | CD34: 1150 | CG34: чертеж pdf | CH34: чертеж dwg | CI34: чертеж step | CJ34: чертеж 3d_dwg | CK34: 6.0 | CL34: 20.0 | CM34: 30.0 | CN34: 40.0 | CO34: 52.0 | CP34: 30.17 | CQ34: 30.16 | CR34: 29.57 | CS34: 28.5 | CT34: 26.58 | CV34: -0.002 | CW34: 0.062 | CX34: 29.886 | CY34: 29.6 | CZ34: CO-3 BL 32/150-3/2 без учёта потерь напора | DA34: 6.0 | DB34: 17.5 | DC34: 29.0 | DD34: 40.5 | DE34: 52.0 | DF34: 30.2 | DG34: 30.2 | DH34: 29.7 | DI34: 28.4 | DJ34: 26.6 | EF34: -0.002 | EG34: 0.062 | EH34: 29.886 | EI34: 0.01352366816 | EJ34: -0.06186400727 | EK34: -29.88618974 | EL34: 49.4 | EM34: 27.1 | EN34: да | EO34: 29.0 | EP34: 36.36 | EQ34: 21.18 | ER34: 17.1 | ET34: -0.005 | EU34: 0.061 | EV34: 29.893 | EW34: 0.01562366816 | EX34: -0.06111400727 | EY34: -29.89318974 | EZ34: 45.7 | FA34: 23.2
J35: 2453704 | K35: CO 4 Helix V 1007/SK-FFS-R | L35: 4.5 | M35: 6.0 | N35: 24.0 | O35: 36.0 | P35: 48.0 | Q35: 71.8 | R35: 71.4 | S35: 61.9 | T35: 45.0 | U35: 15.9 | V35: =IFERROR(VLOOKUP(J35,Прайс!A:E,Настройки!$E$1,0)*Настройки!$E$2,"по запросу") -> по запросу | W35: -0.0 | X35: 0.5 | Y35: 69.9 | Z35: 54.6 | AA35: по запросу | AB35: 4.5 | AC35: 15.4 | AD35: 26.3 | AE35: 37.1 | AF35: 48.0 | AG35: 71.5 | AH35: 69.6 | AI35: 59.8 | AJ35: 42.0 | AK35: 16.2 | AL35: 389.8 | AM35: 461 | AN35: 80 | AO35: 80 | AP35: 2R | AR35: CO-4 Helix V 1007 | AS35: Helix V 1007 | AT35: Helix | AU35: EN-GJL-250 | AV35: 1.4307 [AISI304L] | AW35: EPDM | AX35: 1.4057 [AISI431] | AY35: 1.4571 [AISI316Ti ] | AZ35: вода 100% | BA35: 20° | BB35: 998.3 kg/m3 | BC35: 1.00 mm2/s | BD35: SK-FFS/4-3,0(8A) | BE35: IP54 | BF35: нет | BG35: нет | BH35: IE2 | BI35: 3~400/50 Гц | BJ35: ±10% | BK35: 3 | BM35: 3 | BN35: 16 | BO35: 10 | BQ35: 180 | BR35: 1675 | BS35: 100 | BT35: 1154 | BU35: 1200 | BW35: 760 | BZ35: 1618 | CB35: 450 | CD35: 1216 | CE35: 396 | CF35: 370 | CG35: чертеж pdf | CH35: чертеж dwg | CI35: чертеж step | CJ35: чертеж 3d_dwg | CK35: 4.5 | CL35: 6.0 | CM35: 24.0 | CN35: 36.0 | CO35: 48.0 | CP35: 71.85 | CQ35: 71.46 | CR35: 62.23 | CS35: 45.75 | CT35: 17.22 | CV35: -0.033 | CW35: 0.503 | CX35: 69.895 | CY35: 55.1 | CZ35: CO-4 Helix V 1007 без учёта потерь напора | DA35: 4.5 | DB35: 15.4 | DC35: 26.3 | DD35: 37.1 | DE35: 48.0 | DF35: 71.5 | DG35: 69.8 | DH35: 60.2 | DI35: 42.8 | DJ35: 17.5 | EF35: -0.033 | EG35: 0.503 | EH35: 69.895 | EI35: 0.04432485134 | EJ35: -0.5029765024 | EK35: -69.89522731 | EL35: 45.8 | EM35: 23.3 | EN35: да | EO35: 26.3 | EP35: 33.21 | EQ35: 18.855 | ER35: 13.3 | ET35: -0.034 | EU35: 0.503 | EV35: 69.895 | EW35: 0.0448804069 | EX35: -0.502843169 | EY35: -69.89512731 | EZ35: 45.5 | FA35: 23.0
J36: 2453713 | K36: CO 4 Helix V 1604/SK-FFS-R | L36: 9.0 | M36: 27.0 | N36: 45.0 | O36: 63.0 | P36: 78.0 | Q36: 51.6 | R36: 48.9 | S36: 42.4 | T36: 30.2 | U36: 15.0 | V36: =IFERROR(VLOOKUP(J36,Прайс!A:E,Настройки!$E$1,0)*Настройки!$E$2,"по запросу") -> по запросу | W36: -0.0 | X36: 0.2 | Y36: 50.2 | Z36: 48.6 | AA36: по запросу | AB36: 9.0 | AC36: 26.3 | AD36: 43.5 | AE36: 60.8 | AF36: 78.0 | AG36: 51.3 | AH36: 49.6 | AI36: 43.1 | AJ36: 31.6 | AK36: 15.3 | AL36: 434.8 | AM36: 489 | AN36: 80 | AO36: 100 | AP36: 2R | AR36: CO-4 Helix V 1604 | AS36: Helix V 1604 | AT36: Helix | AU36: EN-GJL-250 | AV36: 1.4307 [AISI304L] | AW36: EPDM | AX36: 1.4057 [AISI431] | AY36: 1.4571 [AISI316Ti ] | AZ36: вода 100% | BA36: 20° | BB36: 998.3 kg/m3 | BC36: 1.00 mm2/s | BD36: SK-FFS/4-3,0(8A) | BE36: IP54 | BF36: нет | BG36: нет | BH36: IE2 | BI36: 3~400/50 Гц | BJ36: ±10% | BK36: 3 | BM36: 3 | BN36: 16 | BO36: 10 | BQ36: 180 | BR36: 1675 | BS36: 100 | BT36: 1154 | BU36: 1200 | BW36: 760 | BZ36: 1642 | CB36: 450 | CD36: 1216 | CE36: 396 | CF36: 370 | CG36: чертеж pdf | CH36: чертеж dwg | CI36: чертеж step | CJ36: чертеж 3d_dwg | CK36: 9.0 | CL36: 27.0 | CM36: 45.0 | CN36: 63.0 | CO36: 78.0 | CP36: 51.59 | CQ36: 49.31 | CR36: 43.37 | CS36: 32.13 | CT36: 17.96 | CV36: -0.008 | CW36: 0.194 | CX36: 50.237 | CY36: 49.1 | CZ36: CO-4 Helix V 1604 без учёта потерь напора | DA36: 9.0 | DB36: 26.3 | DC36: 43.5 | DD36: 60.8 | DE36: 78.0 | DF36: 51.4 | DG36: 50.0 | DH36: 44.0 | DI36: 33.4 | DJ36: 18.2 | EF36: -0.008 | EG36: 0.194 | EH36: 50.237 | EI36: 0.0188588506 | EJ36: -0.1938217974 | EK36: -50.23688551 | EL36: 57.0 | EM36: 36.1 | EN36: да | EO36: 43.5 | EP36: 54.54 | EQ36: 31.77 | ER36: 26.1 | ET36: -0.008 | EU36: 0.193 | EV36: 50.244 | EW36: 0.01933662838 | EX36: -0.1931217974 | EY36: -50.24388551 | EZ36: 56.2 | FA36: 35.1
J37: 2453705 | K37: CO 4 Helix V 1008/SK-FFS-R | L37: 4.5 | M37: 6.0 | N37: 24.0 | O37: 36.0 | P37: 48.0 | Q37: 81.8 | R37: 81.3 | S37: 70.1 | T37: 50.7 | U37: 17.5 | V37: =IFERROR(VLOOKUP(J37,Прайс!A:E,Настройки!$E$1,0)*Настройки!$E$2,"по запросу") -> по запросу | W37: -0.0 | X37: 0.5 | Y37: 79.7 | Z37: 61.7 | AA37: по запросу | AB37: 4.5 | AC37: 15.4 | AD37: 26.3 | AE37: 37.1 | AF37: 48.0 | AG37: 81.4 | AH37: 79.1 | AI37: 67.7 | AJ37: 47.3 | AK37: 17.8 | AL37: 391.8 | AM37: 465 | AN37: 80 | AO37: 80 | AP37: 2R | AR37: CO-4 Helix V 1008 | AS37: Helix V 1008 | AT37: Helix | AU37: EN-GJL-250 | AV37: 1.4307 [AISI304L] | AW37: EPDM | AX37: 1.4057 [AISI431] | AY37: 1.4571 [AISI316Ti ] | AZ37: вода 100% | BA37: 20° | BB37: 998.3 kg/m3 | BC37: 1.00 mm2/s | BD37: SK-FFS/4-3,0(8A) | BE37: IP54 | BF37: нет | BG37: нет | BH37: IE2 | BI37: 3~400/50 Гц | BJ37: ±10% | BK37: 3 | BM37: 3 | BN37: 16 | BO37: 10 | BQ37: 180 | BR37: 1675 | BS37: 100 | BT37: 1154 | BU37: 1200 | BW37: 760 | BZ37: 1618 | CB37: 450 | CD37: 1216 | CE37: 396 | CF37: 370 | CG37: чертеж pdf | CH37: чертеж dwg | CI37: чертеж step | CJ37: чертеж 3d_dwg | CK37: 4.5 | CL37: 6.0 | CM37: 24.0 | CN37: 36.0 | CO37: 48.0 | CP37: 81.81 | CQ37: 81.34 | CR37: 70.44 | CS37: 51.42 | CT37: 18.77 | CV37: -0.038 | CW37: 0.547 | CX37: 79.705 | CY37: 62.2 | CZ37: CO-4 Helix V 1008 без учёта потерь напора | DA37: 4.5 | DB37: 15.4 | DC37: 26.3 | DD37: 37.1 | DE37: 48.0 | DF37: 81.4 | DG37: 79.2 | DH37: 68.1 | DI37: 48.0 | DJ37: 19.1 | EF37: -0.038 | EG37: 0.547 | EH37: 79.705 | EI37: 0.04880972383 | EJ37: -0.5468888605 | EK37: -79.70472475 | EL37: 46.4 | EM37: 23.9 | EN37: да | EO37: 26.3 | EP37: 33.21 | EQ37: 18.855 | ER37: 13.9 | ET37: -0.038 | EU37: 0.547 | EV37: 79.705 | EW37: 0.04936527939 | EX37: -0.5467555272 | EY37: -79.70462475 | EZ37: 46.1 | FA37: 23.6
J38: 2453307 | K38: CO 2 BL 80/200-4/4/SK-FFS-R | L38: 11.0 | M38: 32.0 | N38: 52.0 | O38: 80.0 | P38: 112.0 | Q38: 13.0 | R38: 13.4 | S38: 13.1 | T38: 11.5 | U38: 8.2 | V38: =IFERROR(VLOOKUP(J38,Прайс!A:E,Настройки!$E$1,0)*Настройки!$E$2,"по запросу") -> по запросу | W38: -0.0 | X38: 0.1 | Y38: 12.5 | Z38: 13.4 | AA38: по запросу | AB38: 11.0 | AC38: 36.3 | AD38: 61.5 | AE38: 86.8 | AF38: 112.0 | AG38: 13.0 | AH38: 13.4 | AI38: 12.7 | AJ38: 11.0 | AK38: 8.2 | AL38: 379.7 | AM38: 553.4 | AN38: 150 | AO38: 150 | AP38: 2R | AR38: CO-2 BL 80/200-4/4 | AS38: BL 80/200-4/4 | AT38: BL | AU38: EN-GJL-250 | AV38: EN-GJL-200 | AX38: 1.4122 | AY38: 1.4571 [AISI316Ti ] | AZ38: вода 100% | BA38: 20° | BB38: 998.3 kg/m3 | BC38: 1.00 mm2/s | BD38: SK-FFS/2-4,0(10A)/J-4,0A/V-3~1,0A | BE38: IP54 | BF38: нет | BG38: нет | BH38: IE2 | BI38: 3~400/50 Гц | BJ38: ±10% | BK38: 4 | BM38: 1 | BN38: 16 | BO38: 10 | BP38: 1845 | BQ38: 331 | BR38: 787 | BT38: 1044 | BW38: 600 | BX38: 1060 | BY38: 1644 | CD38: 1376 | CG38: чертеж pdf | CH38: чертеж dwg | CI38: чертеж step | CJ38: чертеж 3d_dwg | CK38: 11.0 | CL38: 32.0 | CM38: 52.0 | CN38: 80.0 | CO38: 112.0 | CP38: 13.03 | CQ38: 13.6 | CR38: 13.63 | CS38: 12.82 | CT38: 10.68 | CV38: -0.001 | CW38: 0.054 | CX38: 12.507 | CY38: 13.6 | CZ38: CO-2 BL 80/200-4/4 без учёта потерь напора | DA38: 11.0 | DB38: 36.3 | DC38: 61.5 | DD38: 86.8 | DE38: 112.0 | DF38: 13.0 | DG38: 13.7 | DH38: 13.5 | DI38: 12.5 | DJ38: 10.7 | EF38: -0.001 | EG38: 0.054 | EH38: 12.507 | EI38: 0.01174273727 | EJ38: -0.0544355899 | EK38: -12.50672814 | EL38: 35.0 | EM38: 13.6 | EN38: да | EO38: 61.5 | EP38: 77.66 | EQ38: 44.33 | ER38: 3.6 | ET38: -0.001 | EU38: 0.054 | EV38: 12.507 | EW38: 0.01194273727 | EX38: -0.0543655899 | EY38: -12.50702814 | EZ38: 34.7 | FA38: 13.4
J39: 2453714 | K39: CO 4 Helix V 1605/SK-FFS-R | L39: 9.0 | M39: 27.0 | N39: 45.0 | O39: 63.0 | P39: 78.0 | Q39: 64.2 | R39: 60.9 | S39: 52.7 | T39: 37.5 | U39: 18.6 | V39: =IFERROR(VLOOKUP(J39,Прайс!A:E,Настройки!$E$1,0)*Настройки!$E$2,"по запросу") -> по запросу | W39: -0.0 | X39: 0.2 | Y39: 62.6 | Z39: 60.5 | AA39: по запросу | AB39: 9.0 | AC39: 26.3 | AD39: 43.5 | AE39: 60.8 | AF39: 78.0 | AG39: 63.9 | AH39: 61.8 | AI39: 53.6 | AJ39: 39.3 | AK39: 18.9 | AL39: 378.1 | AM39: 517 | AN39: 80 | AO39: 100 | AP39: 2R | AR39: CO-4 Helix V 1605 | AS39: Helix V 1605 | AT39: Helix | AU39: EN-GJL-250 | AV39: 1.4307 [AISI304L] | AW39: EPDM | AX39: 1.4057 [AISI431] | AY39: 1.4571 [AISI316Ti ] | AZ39: вода 100% | BA39: 20° | BB39: 998.3 kg/m3 | BC39: 1.00 mm2/s | BD39: SK-FFS/4-4,0(10A) | BE39: IP54 | BF39: нет | BG39: нет | BH39: IE2 | BI39: 3~400/50 Гц | BJ39: ±10% | BK39: 4 | BM39: 3 | BN39: 16 | BO39: 10 | BQ39: 180 | BR39: 1675 | BS39: 100 | BT39: 1154 | BU39: 1200 | BW39: 760 | BZ39: 1642 | CB39: 450 | CD39: 1216 | CE39: 396 | CF39: 370 | CG39: чертеж pdf | CH39: чертеж dwg | CI39: чертеж step | CJ39: чертеж 3d_dwg | CK39: 9.0 | CL39: 27.0 | CM39: 45.0 | CN39: 63.0 | CO39: 78.0 | CP39: 64.27 | CQ39: 61.32 | CR39: 53.81 | CS39: 39.71 | CT39: 21.97 | CV39: -0.010 | CW39: 0.235 | CX39: 62.641 | CY39: 61.0 | CZ39: CO-4 Helix V 1605 без учёта потерь напора | DA39: 9.0 | DB39: 26.3 | DC39: 43.5 | DD39: 60.8 | DE39: 78.0 | DF39: 64.0 | DG39: 62.2 | DH39: 54.6 | DI39: 41.3 | DJ39: 22.3 | EF39: -0.010 | EG39: 0.235 | EH39: 62.641 | EI39: 0.02075749213 | EJ39: -0.2351289384 | EK39: -62.64078684 | EL39: 60.9 | EM39: 41.2 | EN39: да | EO39: 43.5 | EP39: 54.54 | EQ39: 31.77 | ER39: 31.2 | ET39: -0.010 | EU39: 0.235 | EV39: 62.641 | EW39: 0.02131304768 | EX39: -0.2349956051 | EY39: -62.64068684 | EZ39: 60.0 | FA39: 40.0
J40: 2453715 | K40: CO 4 Helix V 1606/SK-FFS-R | L40: 9.0 | M40: 27.0 | N40: 45.0 | O40: 63.0 | P40: 78.0 | Q40: 76.7 | R40: 72.4 | S40: 62.4 | T40: 44.2 | U40: 21.8 | V40: =IFERROR(VLOOKUP(J40,Прайс!A:E,Настройки!$E$1,0)*Настройки!$E$2,"по запросу") -> по запросу | W40: -0.0 | X40: 0.2 | Y40: 75.1 | Z40: 71.9 | AA40: по запросу | AB40: 9.0 | AC40: 26.3 | AD40: 43.5 | AE40: 60.8 | AF40: 78.0 | AG40: 76.4 | AH40: 73.5 | AI40: 63.4 | AJ40: 46.3 | AK40: 22.1 | AL40: 380.6 | AM40: 521 | AN40: 80 | AO40: 100 | AP40: 2R | AR40: CO-4 Helix V 1606 | AS40: Helix V 1606 | AT40: Helix | AU40: EN-GJL-250 | AV40: 1.4307 [AISI304L] | AW40: EPDM | AX40: 1.4057 [AISI431] | AY40: 1.4571 [AISI316Ti ] | AZ40: вода 100% | BA40: 20° | BB40: 998.3 kg/m3 | BC40: 1.00 mm2/s | BD40: SK-FFS/4-4,0(10A) | BE40: IP54 | BF40: нет | BG40: нет | BH40: IE2 | BI40: 3~400/50 Гц | BJ40: ±10% | BK40: 4 | BM40: 3 | BN40: 16 | BO40: 10 | BQ40: 180 | BR40: 1675 | BS40: 100 | BT40: 1154 | BU40: 1200 | BW40: 760 | BZ40: 1642 | CB40: 450 | CD40: 1216 | CE40: 396 | CF40: 370 | CG40: чертеж pdf | CH40: чертеж dwg | CI40: чертеж step | CJ40: чертеж 3d_dwg | CK40: 9.0 | CL40: 27.0 | CM40: 45.0 | CN40: 63.0 | CO40: 78.0 | CP40: 76.79 | CQ40: 72.84 | CR40: 63.5 | CS40: 46.43 | CT40: 25.16 | CV40: -0.011 | CW40: 0.249 | CX40: 75.124 | CY40: 72.4 | CZ40: CO-4 Helix V 1606 без учёта потерь напора | DA40: 9.0 | DB40: 26.3 | DC40: 43.5 | DD40: 60.8 | DE40: 78.0 | DF40: 76.4 | DG40: 73.8 | DH40: 64.5 | DI40: 48.4 | DJ40: 25.5 | EF40: -0.011 | EG40: 0.249 | EH40: 75.124 | EI40: 0.02245516898 | EJ40: -0.2491055355 | EK40: -75.12415779 | EL40: 63.7 | EM40: 45.0 | EN40: да | EO40: 43.5 | EP40: 54.54 | EQ40: 31.77 | ER40: 35.0 | ET40: -0.012 | EU40: 0.249 | EV40: 75.124 | EW40: 0.02301072453 | EX40: -0.2489722021 | EY40: -75.12405779 | EZ40: 62.8 | FA40: 43.8
J41: 2453706 | K41: CO 4 Helix V 1009/SK-FFS-R | L41: 4.5 | M41: 6.0 | N41: 24.0 | O41: 36.0 | P41: 48.0 | Q41: 93.2 | R41: 92.7 | S41: 81.1 | T41: 60.0 | U41: 23.0 | V41: =IFERROR(VLOOKUP(J41,Прайс!A:E,Настройки!$E$1,0)*Настройки!$E$2,"по запросу") -> по запросу | W41: -0.0 | X41: 0.7 | Y41: 90.5 | Z41: 72.0 | AA41: по запросу | AB41: 4.5 | AC41: 15.4 | AD41: 26.3 | AE41: 37.1 | AF41: 48.0 | AG41: 92.7 | AH41: 90.8 | AI41: 78.6 | AJ41: 56.1 | AK41: 23.4 | AL41: 398.6 | AM41: 493 | AN41: 80 | AO41: 80 | AP41: 2R | AR41: CO-4 Helix V 1009 | AS41: Helix V 1009 | AT41: Helix | AU41: EN-GJL-250 | AV41: 1.4307 [AISI304L] | AW41: EPDM | AX41: 1.4057 [AISI431] | AY41: 1.4571 [AISI316Ti ] | AZ41: вода 100% | BA41: 20° | BB41: 998.3 kg/m3 | BC41: 1.00 mm2/s | BD41: SK-FFS/4-4,0(10A) | BE41: IP54 | BF41: нет | BG41: нет | BH41: IE2 | BI41: 3~400/50 Гц | BJ41: ±10% | BK41: 4 | BM41: 3 | BN41: 16 | BO41: 10 | BQ41: 180 | BR41: 1675 | BS41: 100 | BT41: 1154 | BU41: 1200 | BW41: 760 | BZ41: 1618 | CB41: 450 | CD41: 1216 | CE41: 396 | CF41: 370 | CG41: чертеж pdf | CH41: чертеж dwg | CI41: чертеж step | CJ41: чертеж 3d_dwg | CK41: 4.5 | CL41: 6.0 | CM41: 24.0 | CN41: 36.0 | CO41: 48.0 | CP41: 93.19 | CQ41: 92.72 | CR41: 81.46 | CS41: 60.74 | CT41: 24.29 | CV41: -0.043 | CW41: 0.688 | CX41: 90.477 | CY41: 72.5 | CZ41: CO-4 Helix V 1009 без учёта потерь напора | DA41: 4.5 | DB41: 15.4 | DC41: 26.3 | DD41: 37.1 | DE41: 48.0 | DF41: 92.7 | DG41: 90.9 | DH41: 79.0 | DI41: 56.9 | DJ41: 24.7 | EF41: -0.043 | EG41: 0.688 | EH41: 90.477 | EI41: 0.05399624294 | EJ41: -0.6879106392 | EK41: -90.47663769 | EL41: 47.8 | EM41: 25.4 | EN41: да | EO41: 26.3 | EP41: 33.21 | EQ41: 18.855 | ER41: 15.4 | ET41: -0.043 | EU41: 0.688 | EV41: 90.477 | EW41: 0.0545517985 | EX41: -0.6877773058 | EY41: -90.47653769 | EZ41: 47.5 | FA41: 25.1
J42: 2453588 | K42: CO 2 Helix V 5204/2/SK-FFS-R | L42: 9.0 | M42: 20.0 | N42: 30.0 | O42: 50.0 | P42: 80.0 | Q42: 93.6 | R42: 89.2 | S42: 83.8 | T42: 65.5 | U42: 14.9 | V42: =IFERROR(VLOOKUP(J42,Прайс!A:E,Настройки!$E$1,0)*Настройки!$E$2,"по запросу") -> по запросу | W42: -0.0 | X42: 0.1 | Y42: 93.1 | Z42: 84.2 | AA42: по запросу | AB42: 9.0 | AC42: 26.8 | AD42: 44.5 | AE42: 62.3 | AF42: 80.0 | AG42: 93.0 | AH42: 86.4 | AI42: 71.2 | AJ42: 47.4 | AK42: 15.1 | AL42: 366.0 | AM42: 638 | AN42: 125 | AO42: 125 | AP42: 2R | AR42: CO-2 Helix V 5204/2 | AS42: Helix V 5204/2 | AT42: Helix | AU42: EN-GJL-250 | AV42: 1.4307 [AISI304L] | AW42: EPDM | AX42: 1.4057 [AISI431] | AY42: 1.4571 [AISI316Ti ] | AZ42: вода 100% | BA42: 20° | BB42: 998.3 kg/m3 | BC42: 1.00 mm2/s | BD42: SK-FFS/2-15(32A)/J-6,3A/V-3~1,0A | BE42: IP54 | BF42: нет | BG42: нет | BH42: IE2 | BI42: 3~400/50 Гц | BJ42: ±10% | BK42: 15 | BM42: 1 | BN42: 16 | BO42: 10 | BQ42: 260 | BR42: 1695 | BS42: 120 | BT42: 944 | BU42: 1080 | BW42: 600 | BZ42: 1923 | CB42: 500 | CD42: 1413 | CE42: 434.5 | CF42: 478.5 | CG42: чертеж pdf | CH42: чертеж dwg | CI42: чертеж step | CJ42: чертеж 3d_dwg | CK42: 9.0 | CL42: 20.0 | CM42: 30.0 | CN42: 50.0 | CO42: 80.0 | CP42: 93.85 | CQ42: 89.87 | CR42: 84.82 | CS42: 67.48 | CT42: 18.75 | CV42: -0.013 | CW42: 0.138 | CX42: 93.110 | CY42: 85.3 | CZ42: CO-2 Helix V 5204/2 без учёта потерь напора | DA42: 9.0 | DB42: 26.8 | DC42: 44.5 | DD42: 62.3 | DE42: 80.0 | DF42: 93.3 | DG42: 87.3 | DH42: 72.9 | DI42: 50.1 | DJ42: 18.9 | EF42: -0.013 | EG42: 0.138 | EH42: 93.110 | EI42: 0.02442706975 | EJ42: -0.1381993508 | EK42: -93.11033869 | EL42: 64.6 | EM42: 46.4 | EN42: да | EO42: 44.5 | EP42: 55.86 | EQ42: 32.43 | ER42: 36.4 | ET42: -0.014 | EU42: 0.111 | EV42: 93.110 | EW42: 0.02468706975 | EX42: -0.1109493508 | EY42: -93.11033869 | EZ42: 63.7 | FA42: 45.1
J43: 2453589 | K43: CO 2 Helix V 5204/SK-FFS-R | L43: 9.0 | M43: 20.0 | N43: 30.0 | O43: 50.0 | P43: 80.0 | Q43: 110.1 | R43: 103.0 | S43: 95.2 | T43: 75.8 | U43: 23.5 | V43: =IFERROR(VLOOKUP(J43,Прайс!A:E,Настройки!$E$1,0)*Настройки!$E$2,"по запросу") -> по запросу | W43: -0.0 | X43: -0.2 | Y43: 111.6 | Z43: 96.3 | AA43: по запросу | AB43: 9.0 | AC43: 26.8 | AD43: 44.5 | AE43: 62.3 | AF43: 80.0 | AG43: 109.2 | AH43: 99.0 | AI43: 81.4 | AJ43: 56.3 | AK43: 23.9 | AL43: 366.0 | AM43: 638 | AN43: 125 | AO43: 125 | AP43: 2R | AR43: CO-2 Helix V 5204 | AS43: Helix V 5204 | AT43: Helix | AU43: EN-GJL-250 | AV43: 1.4307 [AISI304L] | AW43: EPDM | AX43: 1.4057 [AISI431] | AY43: 1.4571 [AISI316Ti ] | AZ43: вода 100% | BA43: 20° | BB43: 998.3 kg/m3 | BC43: 1.00 mm2/s | BD43: SK-FFS/2-15(32A)/J-6,3A/V-3~1,0A | BE43: IP54 | BF43: нет | BG43: нет | BH43: IE2 | BI43: 3~400/50 Гц | BJ43: ±10% | BK43: 15 | BM43: 1 | BN43: 16 | BO43: 10 | BQ43: 260 | BR43: 1695 | BS43: 120 | BT43: 944 | BU43: 1080 | BW43: 600 | BZ43: 1923 | CB43: 500 | CD43: 1413 | CE43: 434.5 | CF43: 478.5 | CG43: чертеж pdf | CH43: чертеж dwg | CI43: чертеж step | CJ43: чертеж 3d_dwg | CK43: 9.0 | CL43: 20.0 | CM43: 30.0 | CN43: 50.0 | CO43: 80.0 | CP43: 110.4 | CQ43: 103.6 | CR43: 96.21 | CS43: 77.86 | CT43: 27.35 | CV43: -0.012 | CW43: -0.128 | CX43: 111.573 | CY43: 97.4 | CZ43: CO-2 Helix V 5204 без учёта потерь напора | DA43: 9.0 | DB43: 26.8 | DC43: 44.5 | DD43: 62.3 | DE43: 80.0 | DF43: 109.5 | DG43: 99.9 | DH43: 83.1 | DI43: 59.0 | DJ43: 27.7 | EF43: -0.012 | EG43: -0.128 | EH43: 111.573 | EI43: 0.02261870599 | EJ43: 0.1277051261 | EK43: -111.5731704 | EL43: 67.5 | EM43: 50.6 | EN43: да | EO43: 44.5 | EP43: 55.86 | EQ43: 32.43 | ER43: 40.6 | ET43: -0.012 | EU43: -0.155 | EV43: 111.573 | EW43: 0.02287870599 | EX43: 0.1549551261 | EY43: -111.5731704 | EZ43: 66.5 | FA43: 49.2
J44: 2453642 | K44: CO 3 Helix V 2202/SK-FFS-R | L44: 8.0 | M44: 20.0 | N44: 40.0 | O44: 60.0 | P44: 70.0 | Q44: 33.9 | R44: 34.7 | S44: 30.1 | T44: 18.4 | U44: 9.9 | V44: =IFERROR(VLOOKUP(J44,Прайс!A:E,Настройки!$E$1,0)*Настройки!$E$2,"по запросу") -> по запросу | W44: -0.0 | X44: 0.3 | Y44: 32.0 | Z44: 33.3 | AA44: по запросу | AB44: 8.0 | AC44: 23.5 | AD44: 39.0 | AE44: 54.5 | AF44: 70.0 | AG44: 33.9 | AH44: 34.4 | AI44: 30.5 | AJ44: 22.4 | AK44: 9.9 | AL44: 381.7 | AM44: 543.5 | AN44: 100 | AO44: 100 | AP44: 2R | AR44: CO-3 Helix V 2202 | AS44: Helix V 2202 | AT44: Helix | AU44: EN-GJL-250 | AV44: 1.4307 [AISI304L] | AW44: EPDM | AX44: 1.4057 [AISI431] | AY44: 1.4571 [AISI316Ti ] | AZ44: вода 100% | BA44: 20° | BB44: 998.3 kg/m3 | BC44: 1.00 mm2/s | BD44: SK-FFS/3-3,0(8A)/V-3~1,0A | BE44: IP54 | BF44: нет | BG44: нет | BH44: IE2 | BI44: 3~400/50 Гц | BJ44: ±10% | BK44: 3 | BM44: 2 | BN44: 16 | BO44: 10 | BQ44: 210 | BR44: 1695 | BS44: 120 | BT44: 1448 | BU44: 1580 | BW44: 600 | BZ44: 1784 | CB44: 500 | CD44: 1334 | CE44: 396 | CF44: 438 | CG44: чертеж pdf | CH44: чертеж dwg | CI44: чертеж step | CJ44: чертеж 3d_dwg | CK44: 8.0 | CL44: 20.0 | CM44: 40.0 | CN44: 60.0 | CO44: 70.0 | CP44: 34.04 | CQ44: 35 | CR44: 31 | CS44: 20 | CT44: 11.875 | CV44: -0.009 | CW44: 0.325 | CX44: 32.000 | CY44: 33.9 | CZ44: CO-3 Helix V 2202 без учёта потерь напора | DA44: 8.0 | DB44: 23.5 | DC44: 39.0 | DD44: 54.5 | DE44: 70.0 | DF44: 34.0 | DG44: 34.8 | DH44: 31.4 | DI44: 23.7 | DJ44: 11.9 | EF44: -0.009 | EG44: 0.325 | EH44: 32.000 | EI44: 0.01986111111 | EJ44: -0.325 | EK44: -32 | EL44: 49.1 | EM44: 26.8 | EN44: да | EO44: 39.0 | EP44: 48.92 | EQ44: 28.46 | ER44: 16.8 | ET44: -0.009 | EU44: 0.312 | EV44: 32.000 | EW44: 0.02007861111 | EX44: -0.31192 | EY44: -32 | EZ44: 48.4 | FA44: 26.1
J45: 2453590 | K45: CO 2 Helix V 5205/2/SK-FFS-R | L45: 9.0 | M45: 20.0 | N45: 30.0 | O45: 50.0 | P45: 80.0 | Q45: 120.9 | R45: 114.8 | S45: 107.4 | T45: 84.7 | U45: 21.5 | V45: =IFERROR(VLOOKUP(J45,Прайс!A:E,Настройки!$E$1,0)*Настройки!$E$2,"по запросу") -> по запросу | W45: -0.0 | X45: 0.1 | Y45: 120.7 | Z45: 108.2 | AA45: по запросу | AB45: 9.0 | AC45: 26.8 | AD45: 44.5 | AE45: 62.3 | AF45: 80.0 | AG45: 120.1 | AH45: 111.0 | AI45: 91.6 | AJ45: 61.9 | AK45: 21.8 | AL45: 378.5 | AM45: 658 | AN45: 125 | AO45: 125 | AP45: 2R | AR45: CO-2 Helix V 5205/2 | AS45: Helix V 5205/2 | AT45: Helix | AU45: EN-GJL-250 | AV45: 1.4307 [AISI304L] | AW45: EPDM | AX45: 1.4057 [AISI431] | AY45: 1.4571 [AISI316Ti ] | AZ45: вода 100% | BA45: 20° | BB45: 998.3 kg/m3 | BC45: 1.00 mm2/s | BD45: SK-FFS/2-18(40A)/J-10A/V-3~1,0A | BE45: IP54 | BF45: нет | BG45: нет | BH45: IE2 | BI45: 3~400/50 Гц | BJ45: ±10% | BK45: 18.5 | BM45: 1 | BN45: 16 | BO45: 10 | BQ45: 260 | BR45: 1709 | BS45: 120 | BT45: 944 | BU45: 1080 | BW45: 600 | BZ45: 1923 | CB45: 500 | CD45: 1413 | CE45: 434.5 | CF45: 478.5 | CG45: чертеж pdf | CH45: чертеж dwg | CI45: чертеж step | CJ45: чертеж 3d_dwg | CK45: 9.0 | CL45: 20.0 | CM45: 30.0 | CN45: 50.0 | CO45: 80.0 | CP45: 121.2 | CQ45: 115.4 | CR45: 108.5 | CS45: 86.67 | CT45: 25.31 | CV45: -0.016 | CW45: 0.102 | CX45: 120.740 | CY45: 109.3 | CZ45: CO-2 Helix V 5205/2 без учёта потерь напора | DA45: 9.0 | DB45: 26.8 | DC45: 44.5 | DD45: 62.3 | DE45: 80.0 | DF45: 120.4 | DG45: 111.9 | DH45: 93.3 | DI45: 64.6 | DJ45: 25.6 | EF45: -0.016 | EG45: 0.102 | EH45: 120.740 | EI45: 0.02725637834 | EJ45: -0.1024810843 | EK45: -120.7401135 | EL45: 68.5 | EM45: 52.1 | EN45: да | EO45: 44.5 | EP45: 55.86 | EQ45: 32.43 | ER45: 42.1 | ET45: -0.016 | EU45: 0.075 | EV45: 120.740 | EW45: 0.02751637834 | EX45: -0.07523108426 | EY45: -120.7401135 | EZ45: 67.6 | FA45: 50.8
J46: 2453304 | K46: CO 2 BL 65/265-5.5/4/SK-FFS-R | L46: 10.0 | M46: 19.0 | N46: 29.0 | O46: 38.0 | P46: 52.0 | Q46: 25.5 | R46: 25.7 | S46: 25.8 | T46: 25.5 | U46: 24.5 | V46: =IFERROR(VLOOKUP(J46,Прайс!A:E,Настройки!$E$1,0)*Настройки!$E$2,"по запросу") -> по запросу | W46: -0.0 | X46: 0.1 | Y46: 24.8 | Z46: 25.8 | AA46: по запросу | AB46: 10.0 | AC46: 20.5 | AD46: 31.0 | AE46: 41.5 | AF46: 52.0 | AG46: 25.5 | AH46: 25.8 | AI46: 25.8 | AJ46: 25.3 | AK46: 24.5 | AL46: 361.3 | AM46: 563.4 | AN46: 125 | AO46: 125 | AP46: 2R | AR46: CO-2 BL 65/265-5.5/4 | AS46: BL 65/265-5.5/4 | AT46: BL | AU46: EN-GJL-250 | AV46: EN-GJL-200 | AX46: 1.4122 | AY46: 1.4571 [AISI316Ti ] | AZ46: вода 100% | BA46: 20° | BB46: 998.3 kg/m3 | BC46: 1.00 mm2/s | BD46: SK-FFS/2-5,5(12A)/J-6,3A/V-3~1,0A | BE46: IP54 | BF46: нет | BG46: нет | BH46: IE2 | BI46: 3~400/50 Гц | BJ46: ±10% | BK46: 5.5 | BM46: 1 | BN46: 16 | BO46: 10 | BP46: 1845 | BQ46: 378 | BR46: 847 | BT46: 1044 | BW46: 600 | BX46: 1044 | BY46: 1623 | CD46: 1368 | CG46: чертеж pdf | CH46: чертеж dwg | CI46: чертеж step | CJ46: чертеж 3d_dwg | CK46: 10.0 | CL46: 19.0 | CM46: 29.0 | CN46: 38.0 | CO46: 52.0 | CP46: 25.54 | CQ46: 25.93 | CR46: 26.24 | CS46: 26.27 | CT46: 25.82 | CV46: -0.001 | CW46: 0.089 | CX46: 24.758 | CY46: 26.2 | CZ46: CO-2 BL 65/265-5.5/4 без учёта потерь напора | DA46: 10.0 | DB46: 20.5 | DC46: 31.0 | DD46: 41.5 | DE46: 52.0 | DF46: 25.5 | DG46: 26.0 | DH46: 26.3 | DI46: 26.2 | DJ46: 25.8 | EF46: -0.001 | EG46: 0.089 | EH46: 24.758 | EI46: 0.01242675031 | EJ46: -0.08905627382 | EK46: -24.75798102 | EL46: 48.4 | EM46: 26.0 | EN46: да | EO46: 31.0 | EP46: 37.72 | EQ46: 23.86 | ER46: 16.0 | ET46: -0.002 | EU46: 0.089 | EV46: 24.758 | EW46: 0.01292675031 | EX46: -0.08895627382 | EY46: -24.75848102 | EZ46: 47.3 | FA46: 24.9
J47: 2453643 | K47: CO 3 Helix V 2203/SK-FFS-R | L47: 8.0 | M47: 20.0 | N47: 40.0 | O47: 60.0 | P47: 70.0 | Q47: 47.8 | R47: 47.7 | S47: 40.1 | T47: 23.4 | U47: 11.6 | V47: =IFERROR(VLOOKUP(J47,Прайс!A:E,Настройки!$E$1,0)*Настройки!$E$2,"по запросу") -> по запросу | W47: -0.0 | X47: 0.3 | Y47: 46.0 | Z47: 45.0 | AA47: по запросу | AB47: 8.0 | AC47: 23.5 | AD47: 39.0 | AE47: 54.5 | AF47: 70.0 | AG47: 47.8 | AH47: 47.0 | AI47: 40.7 | AJ47: 28.9 | AK47: 11.6 | AL47: 390.3 | AM47: 564.5 | AN47: 100 | AO47: 100 | AP47: 2R | AR47: CO-3 Helix V 2203 | AS47: Helix V 2203 | AT47: Helix | AU47: EN-GJL-250 | AV47: 1.4307 [AISI304L] | AW47: EPDM | AX47: 1.4057 [AISI431] | AY47: 1.4571 [AISI316Ti ] | AZ47: вода 100% | BA47: 20° | BB47: 998.3 kg/m3 | BC47: 1.00 mm2/s | BD47: SK-FFS/3-4,0(10A)/V-3~1,0A | BE47: IP54 | BF47: нет | BG47: нет | BH47: IE2 | BI47: 3~400/50 Гц | BJ47: ±10% | BK47: 4 | BM47: 2 | BN47: 16 | BO47: 10 | BQ47: 210 | BR47: 1695 | BS47: 120 | BT47: 1448 | BU47: 1580 | BW47: 600 | BZ47: 1784 | CB47: 500 | CD47: 1334 | CE47: 396 | CF47: 438 | CG47: чертеж pdf | CH47: чертеж dwg | CI47: чертеж step | CJ47: чертеж 3d_dwg | CK47: 8.0 | CL47: 20.0 | CM47: 40.0 | CN47: 60.0 | CO47: 70.0 | CP47: 47.88 | CQ47: 48 | CR47: 41 | CS47: 25 | CT47: 13.625 | CV47: -0.011 | CW47: 0.325 | CX47: 46.000 | CY47: 45.6 | CZ47: CO-3 Helix V 2203 без учёта потерь напора | DA47: 8.0 | DB47: 23.5 | DC47: 39.0 | DD47: 54.5 | DE47: 70.0 | DF47: 47.9 | DG47: 47.4 | DH47: 41.6 | DI47: 30.3 | DJ47: 13.6 | EF47: -0.011 | EG47: 0.325 | EH47: 46.000 | EI47: 0.02236111111 | EJ47: -0.325 | EK47: -46 | EL47: 53.2 | EM47: 31.4 | EN47: да | EO47: 39.0 | EP47: 48.92 | EQ47: 28.46 | ER47: 21.4 | ET47: -0.011 | EU47: 0.312 | EV47: 46.000 | EW47: 0.02257861111 | EX47: -0.31192 | EY47: -46 | EZ47: 52.6 | FA47: 30.7
J48: 2453591 | K48: CO 2 Helix V 5205/SK-FFS-R | L48: 9.0 | M48: 20.0 | N48: 30.0 | O48: 50.0 | P48: 80.0 | Q48: 137.2 | R48: 128.3 | S48: 118.6 | T48: 94.9 | U48: 29.8 | V48: =IFERROR(VLOOKUP(J48,Прайс!A:E,Настройки!$E$1,0)*Настройки!$E$2,"по запросу") -> по запросу | W48: -0.0 | X48: -0.2 | Y48: 138.9 | Z48: 120.2 | AA48: по запросу | AB48: 9.0 | AC48: 26.8 | AD48: 44.5 | AE48: 62.3 | AF48: 80.0 | AG48: 136.0 | AH48: 123.5 | AI48: 101.6 | AJ48: 70.6 | AK48: 30.3 | AL48: 378.5 | AM48: 658 | AN48: 125 | AO48: 125 | AP48: 2R | AR48: CO-2 Helix V 5205 | AS48: Helix V 5205 | AT48: Helix | AU48: EN-GJL-250 | AV48: 1.4307 [AISI304L] | AW48: EPDM | AX48: 1.4057 [AISI431] | AY48: 1.4571 [AISI316Ti ] | AZ48: вода 100% | BA48: 20° | BB48: 998.3 kg/m3 | BC48: 1.00 mm2/s | BD48: SK-FFS/2-18(40A)/J-10A/V-3~1,0A | BE48: IP54 | BF48: нет | BG48: нет | BH48: IE2 | BI48: 3~400/50 Гц | BJ48: ±10% | BK48: 18.5 | BM48: 1 | BN48: 16 | BO48: 10 | BQ48: 260 | BR48: 1709 | BS48: 120 | BT48: 944 | BU48: 1080 | BW48: 600 | BZ48: 1923 | CB48: 500 | CD48: 1413 | CE48: 434.5 | CF48: 478.5 | CG48: чертеж pdf | CH48: чертеж dwg | CI48: чертеж step | CJ48: чертеж 3d_dwg | CK48: 9.0 | CL48: 20.0 | CM48: 30.0 | CN48: 50.0 | CO48: 80.0 | CP48: 137.5 | CQ48: 128.9 | CR48: 119.7 | CS48: 96.87 | CT48: 33.64 | CV48: -0.014 | CW48: -0.158 | CX48: 138.901 | CY48: 121.2 | CZ48: CO-2 Helix V 5205 без учёта потерь напора | DA48: 9.0 | DB48: 26.8 | DC48: 44.5 | DD48: 62.3 | DE48: 80.0 | DF48: 136.3 | DG48: 124.4 | DH48: 103.4 | DI48: 73.3 | DJ48: 34.1 | EF48: -0.014 | EG48: -0.158 | EH48: 138.901 | EI48: 0.02551235731 | EJ48: 0.157855224 | EK48: -138.9007699 | EL48: 70.8 | EM48: 55.6 | EN48: да | EO48: 44.5 | EP48: 55.86 | EQ48: 32.43 | ER48: 45.6 | ET48: -0.015 | EU48: -0.185 | EV48: 138.901 | EW48: 0.02577235731 | EX48: 0.185105224 | EY48: -138.9007699 | EZ48: 69.9 | FA48: 54.3
J49: 2453311 | K49: CO 2 BL 80/250-5.5/4/SK-FFS-R | L49: 12.0 | M49: 26.0 | N49: 40.0 | O49: 54.0 | P49: 64.0 | Q49: 20.7 | R49: 21.2 | S49: 21.3 | T49: 20.9 | U49: 20.3 | V49: =IFERROR(VLOOKUP(J49,Прайс!A:E,Настройки!$E$1,0)*Настройки!$E$2,"по запросу") -> по запросу | W49: -0.0 | X49: 0.1 | Y49: 19.8 | Z49: 21.3 | AA49: по запросу | AB49: 12.0 | AC49: 25.0 | AD49: 38.0 | AE49: 51.0 | AF49: 64.0 | AG49: 20.7 | AH49: 21.2 | AI49: 21.3 | AJ49: 21.0 | AK49: 20.3 | AL49: 384.5 | AM49: 621.4 | AN49: 150 | AO49: 150 | AP49: 2R | AR49: CO-2 BL 80/250-5.5/4 | AS49: BL 80/250-5.5/4 | AT49: BL | AU49: EN-GJL-250 | AV49: EN-GJL-200 | AX49: 1.4122 | AY49: 1.4571 [AISI316Ti ] | AZ49: вода 100% | BA49: 20° | BB49: 998.3 kg/m3 | BC49: 1.00 mm2/s | BD49: SK-FFS/2-5,5(12A)/J-6,3A/V-3~1,0A | BE49: IP54 | BF49: нет | BG49: нет | BH49: IE2 | BI49: 3~400/50 Гц | BJ49: ±10% | BK49: 5.5 | BM49: 1 | BN49: 16 | BO49: 10 | BP49: 1845 | BQ49: 395 | BR49: 851 | BT49: 1344 | BW49: 600 | BX49: 1344 | BY49: 1728 | CD49: 1460 | CG49: чертеж pdf | CH49: чертеж dwg | CI49: чертеж step | CJ49: чертеж 3d_dwg | CK49: 12.0 | CL49: 26.0 | CM49: 40.0 | CN49: 54.0 | CO49: 64.0 | CP49: 20.68 | CQ49: 21.36 | CR49: 21.62 | CS49: 21.46 | CT49: 21.1 | CV49: -0.001 | CW49: 0.089 | CX49: 19.769 | CY49: 21.5 | CZ49: CO-2 BL 80/250-5.5/4 без учёта потерь напора | DA49: 12.0 | DB49: 25.0 | DC49: 38.0 | DD49: 51.0 | DE49: 64.0 | DF49: 20.7 | DG49: 21.3 | DH49: 21.6 | DI49: 21.5 | DJ49: 21.1 | EF49: -0.001 | EG49: 0.089 | EH49: 19.769 | EI49: 0.0121729738 | EJ49: -0.088719307 | EK49: -19.76930094 | EL49: 44.1 | EM49: 21.6 | EN49: да | EO49: 38.0 | EP49: 46.32 | EQ49: 29.16 | ER49: 11.6 | ET49: -0.001 | EU49: 0.089 | EV49: 19.770 | EW49: 0.0123729738 | EX49: -0.088649307 | EY49: -19.76960094 | EZ49: 43.7 | FA49: 21.2
J50: 2453310 | K50: CO 2 BL 80/220-5.5/4/SK-FFS-R | L50: 12.0 | M50: 40.0 | N50: 52.0 | O50: 84.0 | P50: 122.0 | Q50: 16.5 | R50: 16.6 | S50: 16.4 | T50: 14.7 | U50: 10.0 | V50: =IFERROR(VLOOKUP(J50,Прайс!A:E,Настройки!$E$1,0)*Настройки!$E$2,"по запросу") -> по запросу | W50: -0.0 | X50: 0.1 | Y50: 15.9 | Z50: 16.8 | AA50: по запросу | AB50: 12.0 | AC50: 39.5 | AD50: 67.0 | AE50: 94.5 | AF50: 122.0 | AG50: 16.4 | AH50: 16.7 | AI50: 15.7 | AJ50: 13.5 | AK50: 10.1 | AL50: 386.8 | AM50: 595.4 | AN50: 150 | AO50: 150 | AP50: 2R | AR50: CO-2 BL 80/220-5.5/4 | AS50: BL 80/220-5.5/4 | AT50: BL | AU50: EN-GJL-250 | AV50: EN-GJL-200 | AX50: 1.4122 | AY50: 1.4571 [AISI316Ti ] | AZ50: вода 100% | BA50: 20° | BB50: 998.3 kg/m3 | BC50: 1.00 mm2/s | BD50: SK-FFS/2-5,5(12A)/J-6,3A/V-3~1,0A | BE50: IP54 | BF50: нет | BG50: нет | BH50: IE2 | BI50: 3~400/50 Гц | BJ50: ±10% | BK50: 5.5 | BM50: 1 | BN50: 16 | BO50: 10 | BP50: 1845 | BQ50: 386 | BR50: 842 | BT50: 1044 | BW50: 600 | BX50: 1060 | BY50: 1698 | CD50: 1430 | CG50: чертеж pdf | CH50: чертеж dwg | CI50: чертеж step | CJ50: чертеж 3d_dwg | CK50: 12.0 | CL50: 40.0 | CM50: 52.0 | CN50: 84.0 | CO50: 122.0 | CP50: 16.54 | CQ50: 16.9 | CR50: 16.91 | CS50: 16.08 | CT50: 13 | CV50: -0.001 | CW50: 0.052 | CX50: 15.937 | CY50: 16.9 | CZ50: CO-2 BL 80/220-5.5/4 без учёта потерь напора | DA50: 12.0 | DB50: 39.5 | DC50: 67.0 | DD50: 94.5 | DE50: 122.0 | DF50: 16.5 | DG50: 17.0 | DH50: 16.6 | DI50: 15.3 | DJ50: 13.1 | EF50: -0.001 | EG50: 0.052 | EH50: 15.937 | EI50: 0.01173021721 | EJ50: -0.05187791052 | EK50: -15.9369639 | EL50: 39.1 | EM50: 17.0 | EN50: да | EO50: 67.0 | EP50: 84.6 | EQ50: 48.3 | ER50: 7.0 | ET50: -0.001 | EU50: 0.052 | EV50: 15.937 | EW50: 0.01193021721 | EX50: -0.05180791052 | EY50: -15.9372639 | EZ50: 38.8 | FA50: 16.7
J51: 2453333 | K51: CO 3 BL 32/160-4/2/SK-FFS-R | L51: 6.0 | M51: 20.0 | N51: 30.0 | O51: 40.0 | P51: 66.0 | Q51: 35.2 | R51: 34.7 | S51: 33.2 | T51: 30.8 | U51: 20.6 | V51: =IFERROR(VLOOKUP(J51,Прайс!A:E,Настройки!$E$1,0)*Настройки!$E$2,"по запросу") -> по запросу | W51: -0.0 | X51: 0.1 | Y51: 34.9 | Z51: 33.2 | AA51: по запросу | AB51: 6.0 | AC51: 21.0 | AD51: 36.0 | AE51: 51.0 | AF51: 66.0 | AG51: 35.2 | AH51: 34.5 | AI51: 31.9 | AJ51: 27.2 | AK51: 20.6 | AL51: 466.6 | AM51: 555.6 | AN51: 65 | AO51: 100 | AP51: 2R | AR51: CO-3 BL 32/160-4/2 | AS51: BL 32/160-4/2 | AT51: BL | AU51: EN-GJL-250 | AV51: EN-GJL-200 | AX51: 1.4122 | AY51: 1.4571 [AISI316Ti ] | AZ51: вода 100% | BA51: 20° | BB51: 998.3 kg/m3 | BC51: 1.00 mm2/s | BD51: SK-FFS/3-4,0(10A)/V-3~1,0A | BE51: IP54 | BF51: нет | BG51: нет | BH51: IE2 | BI51: 3~400/50 Гц | BJ51: ±10% | BK51: 4 | BM51: 2 | BN51: 16 | BO51: 10 | BP51: 1845 | BQ51: 433 | BR51: 820 | BT51: 1604 | BW51: 600 | BX51: 1604 | BY51: 1375 | CD51: 1150 | CG51: чертеж pdf | CH51: чертеж dwg | CI51: чертеж step | CJ51: чертеж 3d_dwg | CK51: 6.0 | CL51: 20.0 | CM51: 30.0 | CN51: 40.0 | CO51: 66.0 | CP51: 35.3 | CQ51: 35.5 | CR51: 35.09 | CS51: 34.22 | CT51: 29.8 | CV51: -0.002 | CW51: 0.074 | CX51: 34.938 | CY51: 35.1 | CZ51: CO-3 BL 32/160-4/2 без учёта потерь напора | DA51: 6.0 | DB51: 21.0 | DC51: 36.0 | DD51: 51.0 | DE51: 66.0 | DF51: 35.3 | DG51: 35.5 | DH51: 34.6 | DI51: 32.7 | DJ51: 29.8 | EF51: -0.002 | EG51: 0.074 | EH51: 34.938 | EI51: 0.01341467764 | EJ51: -0.0741926141 | EK51: -34.93768073 | EL51: 53.9 | EM51: 32.2 | EN51: да | EO51: 36.0 | EP51: 45.6 | EQ51: 25.8 | ER51: 22.2 | ET51: -0.004 | EU51: 0.073 | EV51: 34.945 | EW51: 0.01551467764 | EX51: -0.0734426141 | EY51: -34.94468073 | EZ51: 49.9 | FA51: 27.7
J52: 2453593 | K52: CO 2 MVI 7001/1/SK-FFS-R | L52: 15.0 | M52: 40.0 | N52: 60.0 | O52: 90.0 | P52: 110.0 | Q52: 19.8 | R52: 17.5 | S52: 15.0 | T52: 7.4 | U52: 0.1 | V52: =IFERROR(VLOOKUP(J52,Прайс!A:E,Настройки!$E$1,0)*Настройки!$E$2,"по запросу") -> по запросу | W52: -0.0 | X52: 0.0 | Y52: 19.6 | Z52: 18.9 | AA52: по запросу | AB52: 15.0 | AC52: 38.8 | AD52: 62.5 | AE52: 86.3 | AF52: 110.0 | AG52: 19.7 | AH52: 18.1 | AI52: 14.3 | AJ52: 8.3 | AK52: 0.2 | AL52: 394.7 | AM52: 616 | AN52: 200 | AO52: 200 | AP52: 2R | AR52: CO-2 MVI 7001/1 | AS52: MVI 7001/1 | AT52: Helix | AU52: EN-GJL-250 | AV52: 1.4307 [AISI304L] | AW52: EPDM | AX52: 1.4057 [AISI431] | AY52: 1.4571 [AISI316Ti ] | AZ52: вода 100% | BA52: 20° | BB52: 998.3 kg/m3 | BC52: 1.00 mm2/s | BD52: SK-FFS/2-4,0(10A)/J-4,0A/V-3~1,0A | BE52: IP54 | BF52: нет | BG52: нет | BH52: IE2 | BI52: 3~400/50 Гц | BJ52: ±10% | BK52: 4 | BM52: 1 | BN52: 16 | BO52: 10 | BQ52: 262 | BR52: 1697 | BS52: 122 | BT52: 940 | BU52: 1000 | BW52: 600 | BZ52: 2350 | CB52: 650 | CD52: 1650 | CE52: 471 | CF52: 529 | CG52: чертеж pdf | CH52: чертеж dwg | CI52: чертеж step | CJ52: чертеж 3d_dwg | CK52: 15.0 | CL52: 40.0 | CM52: 60.0 | CN52: 90.0 | CO52: 110.0 | CP52: 19.85 | CQ52: 17.64 | CR52: 15.21 | CS52: 7.97 | CT52: 0.9338 | CV52: -0.002 | CW52: 0.035 | CX52: 19.578 | CY52: 19.0 | CZ52: CO-2 MVI 7001/1 без учёта потерь напора | DA52: 15.0 | DB52: 38.8 | DC52: 62.5 | DD52: 86.3 | DE52: 110.0 | DF52: 19.7 | DG52: 18.2 | DH52: 14.6 | DI52: 8.9 | DJ52: 1.1 | EF52: -0.002 | EG52: 0.035 | EH52: 19.578 | EI52: 0.01296293683 | EJ52: -0.03545147859 | EK52: -19.57792364 | EL52: 40.3 | EM52: 18.0 | EN52: да | EO52: 62.5 | EP52: 77.7 | EQ52: 46.35 | ER52: 8.0 | ET52: -0.002 | EU52: 0.035 | EV52: 19.578 | EW52: 0.01303293683 | EX52: -0.03538147859 | EY52: -19.57792364 | EZ52: 40.1 | FA52: 17.9
J53: 2453594 | K53: CO 2 MVI 7001/SK-FFS-R | L53: 15.0 | M53: 40.0 | N53: 60.0 | O53: 90.0 | P53: 110.0 | Q53: 26.1 | R53: 22.9 | S53: 20.4 | T53: 13.9 | U53: 6.7 | V53: =IFERROR(VLOOKUP(J53,Прайс!A:E,Настройки!$E$1,0)*Настройки!$E$2,"по запросу") -> по запросу | W53: -0.0 | X53: -0.0 | Y53: 26.2 | Z53: 24.6 | AA53: по запросу | AB53: 15.0 | AC53: 38.8 | AD53: 62.5 | AE53: 86.3 | AF53: 110.0 | AG53: 25.8 | AH53: 23.6 | AI53: 19.8 | AJ53: 14.3 | AK53: 7.0 | AL53: 398.8 | AM53: 624 | AN53: 200 | AO53: 200 | AP53: 2R | AR53: CO-2 MVI 7001 | AS53: MVI 7001 | AT53: Helix | AU53: EN-GJL-250 | AV53: 1.4307 [AISI304L] | AW53: EPDM | AX53: 1.4057 [AISI431] | AY53: 1.4571 [AISI316Ti ] | AZ53: вода 100% | BA53: 20° | BB53: 998.3 kg/m3 | BC53: 1.00 mm2/s | BD53: SK-FFS/2-5,5(12A)/J-6,3A/V-3~1,0A | BE53: IP54 | BF53: нет | BG53: нет | BH53: IE2 | BI53: 3~400/50 Гц | BJ53: ±10% | BK53: 5.5 | BM53: 1 | BN53: 16 | BO53: 10 | BQ53: 262 | BR53: 1697 | BS53: 122 | BT53: 940 | BU53: 1000 | BW53: 600 | BZ53: 2350 | CB53: 650 | CD53: 1650 | CE53: 471 | CF53: 529 | CG53: чертеж pdf | CH53: чертеж dwg | CI53: чертеж step | CJ53: чертеж 3d_dwg | CK53: 15.0 | CL53: 40.0 | CM53: 60.0 | CN53: 90.0 | CO53: 110.0 | CP53: 26.09 | CQ53: 22.97 | CR53: 20.63 | CS53: 14.44 | CT53: 7.518 | CV53: -0.001 | CW53: -0.008 | CX53: 26.244 | CY53: 24.7 | CZ53: CO-2 MVI 7001 без учёта потерь напора | DA53: 15.0 | DB53: 38.8 | DC53: 62.5 | DD53: 86.3 | DE53: 110.0 | DF53: 25.8 | DG53: 23.8 | DH53: 20.1 | DI53: 14.8 | DJ53: 7.9 | EF53: -0.001 | EG53: -0.008 | EH53: 26.244 | EI53: 0.01255307875 | EJ53: 0.008321728024 | EK53: -26.24395304 | EL53: 45.4 | EM53: 22.9 | EN53: да | EO53: 62.5 | EP53: 77.7 | EQ53: 46.35 | ER53: 12.9 | ET53: -0.002 | EU53: -0.008 | EV53: 26.244 | EW53: 0.01262307875 | EX53: 0.008391728024 | EY53: -26.24395304 | EZ53: 45.3 | FA53: 22.8
J54: 2453716 | K54: CO 4 Helix V 1607/SK-FFS-R | L54: 9.0 | M54: 27.0 | N54: 45.0 | O54: 63.0 | P54: 78.0 | Q54: 90.7 | R54: 86.6 | S54: 75.9 | T54: 55.3 | U54: 29.2 | V54: =IFERROR(VLOOKUP(J54,Прайс!A:E,Настройки!$E$1,0)*Настройки!$E$2,"по запросу") -> по запросу | W54: -0.0 | X54: 0.4 | Y54: 88.0 | Z54: 86.3 | AA54: по запросу | AB54: 9.0 | AC54: 26.3 | AD54: 43.5 | AE54: 60.8 | AF54: 78.0 | AG54: 90.2 | AH54: 87.9 | AI54: 77.0 | AJ54: 57.6 | AK54: 29.7 | AL54: 394.4 | AM54: 553 | AN54: 80 | AO54: 100 | AP54: 2R | AR54: CO-4 Helix V 1607 | AS54: Helix V 1607 | AT54: Helix | AU54: EN-GJL-250 | AV54: 1.4307 [AISI304L] | AW54: EPDM | AX54: 1.4057 [AISI431] | AY54: 1.4571 [AISI316Ti ] | AZ54: вода 100% | BA54: 20° | BB54: 998.3 kg/m3 | BC54: 1.00 mm2/s | BD54: SK-FFS/4-5,5(12A) | BE54: IP54 | BF54: нет | BG54: нет | BH54: IE2 | BI54: 3~400/50 Гц | BJ54: ±10% | BK54: 5.5 | BM54: 3 | BN54: 16 | BO54: 10 | BQ54: 180 | BR54: 1675 | BS54: 100 | BT54: 1154 | BU54: 1200 | BW54: 760 | BZ54: 1642 | CB54: 450 | CD54: 1216 | CE54: 396 | CF54: 370 | CG54: чертеж pdf | CH54: чертеж dwg | CI54: чертеж step | CJ54: чертеж 3d_dwg | CK54: 9.0 | CL54: 27.0 | CM54: 45.0 | CN54: 63.0 | CO54: 78.0 | CP54: 90.72 | CQ54: 87.03 | CR54: 77 | CS54: 57.51 | CT54: 32.58 | CV54: -0.014 | CW54: 0.371 | CX54: 88.047 | CY54: 86.8 | CZ54: CO-4 Helix V 1607 без учёта потерь напора | DA54: 9.0 | DB54: 26.3 | DC54: 43.5 | DD54: 60.8 | DE54: 78.0 | DF54: 90.3 | DG54: 88.3 | DH54: 78.1 | DI54: 59.7 | DJ54: 33.1 | EF54: -0.014 | EG54: 0.371 | EH54: 88.047 | EI54: 0.02490195935 | EJ54: -0.370905981 | EK54: -88.04706486 | EL54: 67.4 | EM54: 50.4 | EN54: да | EO54: 43.5 | EP54: 54.54 | EQ54: 31.77 | ER54: 40.4 | ET54: -0.014 | EU54: 0.371 | EV54: 88.047 | EW54: 0.02545751491 | EX54: -0.3707726477 | EY54: -88.04696486 | EZ54: 66.5 | FA54: 49.2
J55: 2453717 | K55: CO 4 Helix V 1608/SK-FFS-R | L55: 9.0 | M55: 27.0 | N55: 45.0 | O55: 63.0 | P55: 78.0 | Q55: 103.4 | R55: 98.5 | S55: 86.0 | T55: 62.6 | U55: 32.9 | V55: =IFERROR(VLOOKUP(J55,Прайс!A:E,Настройки!$E$1,0)*Настройки!$E$2,"по запросу") -> по запросу | W55: -0.0 | X55: 0.4 | Y55: 100.6 | Z55: 98.0 | AA55: по запросу | AB55: 9.0 | AC55: 26.3 | AD55: 43.5 | AE55: 60.8 | AF55: 78.0 | AG55: 102.9 | AH55: 99.9 | AI55: 87.4 | AJ55: 65.2 | AK55: 33.5 | AL55: 396.8 | AM55: 557 | AN55: 80 | AO55: 100 | AP55: 2R | AR55: CO-4 Helix V 1608 | AS55: Helix V 1608 | AT55: Helix | AU55: EN-GJL-250 | AV55: 1.4307 [AISI304L] | AW55: EPDM | AX55: 1.4057 [AISI431] | AY55: 1.4571 [AISI316Ti ] | AZ55: вода 100% | BA55: 20° | BB55: 998.3 kg/m3 | BC55: 1.00 mm2/s | BD55: SK-FFS/4-5,5(12A) | BE55: IP54 | BF55: нет | BG55: нет | BH55: IE2 | BI55: 3~400/50 Гц | BJ55: ±10% | BK55: 5.5 | BM55: 3 | BN55: 16 | BO55: 10 | BQ55: 180 | BR55: 1675 | BS55: 100 | BT55: 1154 | BU55: 1200 | BW55: 760 | BZ55: 1642 | CB55: 450 | CD55: 1216 | CE55: 396 | CF55: 370 | CG55: чертеж pdf | CH55: чертеж dwg | CI55: чертеж step | CJ55: чертеж 3d_dwg | CK55: 9.0 | CL55: 27.0 | CM55: 45.0 | CN55: 63.0 | CO55: 78.0 | CP55: 103.4 | CQ55: 98.91 | CR55: 87.18 | CS55: 64.8 | CT55: 36.31 | CV55: -0.016 | CW55: 0.401 | CX55: 100.556 | CY55: 98.5 | CZ55: CO-4 Helix V 1608 без учёта потерь напора | DA55: 9.0 | DB55: 26.3 | DC55: 43.5 | DD55: 60.8 | DE55: 78.0 | DF55: 102.9 | DG55: 100.3 | DH55: 88.5 | DI55: 67.3 | DJ55: 36.9 | EF55: -0.016 | EG55: 0.401 | EH55: 100.556 | EI55: 0.02671456663 | EJ55: -0.4005341849 | EK55: -100.5557491 | EL55: 69.3 | EM55: 53.4 | EN55: да | EO55: 43.5 | EP55: 54.54 | EQ55: 31.77 | ER55: 43.4 | ET55: -0.016 | EU55: 0.400 | EV55: 100.556 | EW55: 0.02727012218 | EX55: -0.4004008515 | EY55: -100.5556491 | EZ55: 68.5 | FA55: 52.1
J56: 2453592 | K56: CO 2 Helix V 5206/2/SK-FFS-R | L56: 9.0 | M56: 20.0 | N56: 30.0 | O56: 50.0 | P56: 80.0 | Q56: 149.2 | R56: 141.4 | S56: 132.3 | T56: 105.4 | U56: 29.8 | V56: =IFERROR(VLOOKUP(J56,Прайс!A:E,Настройки!$E$1,0)*Настройки!$E$2,"по запросу") -> по запросу | W56: -0.0 | X56: 0.1 | Y56: 149.1 | Z56: 133.5 | AA56: по запросу | AB56: 9.0 | AC56: 26.8 | AD56: 44.5 | AE56: 62.3 | AF56: 80.0 | AG56: 148.1 | AH56: 136.9 | AI56: 113.5 | AJ56: 77.9 | AK56: 30.2 | AL56: 397.8 | AM56: 706 | AN56: 125 | AO56: 125 | AP56: 2R | AR56: CO-2 Helix V 5206/2 | AS56: Helix V 5206/2 | AT56: Helix | AU56: EN-GJL-250 | AV56: 1.4307 [AISI304L] | AW56: EPDM | AX56: 1.4057 [AISI431] | AY56: 1.4571 [AISI316Ti ] | AZ56: вода 100% | BA56: 20° | BB56: 998.3 kg/m3 | BC56: 1.00 mm2/s | BD56: SK-FFS/2-22(50A)/J-10A/V-3~1,0A | BE56: IP54 | BF56: нет | BG56: нет | BH56: IE2 | BI56: 3~400/50 Гц | BJ56: ±10% | BK56: 22 | BM56: 1 | BN56: 16 | BO56: 10 | BQ56: 260 | BR56: 1809 | BS56: 120 | BT56: 944 | BU56: 1080 | BW56: 600 | BZ56: 1923 | CB56: 500 | CD56: 1413 | CE56: 434.5 | CF56: 478.5 | CG56: чертеж pdf | CH56: чертеж dwg | CI56: чертеж step | CJ56: чертеж 3d_dwg | CK56: 9.0 | CL56: 20.0 | CM56: 30.0 | CN56: 50.0 | CO56: 80.0 | CP56: 149.5 | CQ56: 142 | CR56: 133.4 | CS56: 107.4 | CT56: 33.6 | CV56: -0.019 | CW56: 0.086 | CX56: 149.125 | CY56: 134.5 | CZ56: CO-2 Helix V 5206/2 без учёта потерь напора | DA56: 9.0 | DB56: 26.8 | DC56: 44.5 | DD56: 62.3 | DE56: 80.0 | DF56: 148.4 | DG56: 137.8 | DH56: 115.2 | DI56: 80.6 | DJ56: 34.0 | EF56: -0.019 | EG56: 0.086 | EH56: 149.125 | EI56: 0.03016930772 | EJ56: -0.08577240342 | EK56: -149.125267 | EL56: 71.7 | EM56: 57.2 | EN56: да | EO56: 44.5 | EP56: 55.86 | EQ56: 32.43 | ER56: 47.2 | ET56: -0.019 | EU56: 0.059 | EV56: 149.125 | EW56: 0.03042930772 | EX56: -0.05852240342 | EY56: -149.125267 | EZ56: 71.0 | FA56: 56.0
J57: 2453649 | K57: CO 3 Helix V 3601/SK-FFS-R | L57: 12.0 | M57: 20.0 | N57: 60.0 | O57: 100.0 | P57: 110.0 | Q57: 25.0 | R57: 24.0 | S57: 19.7 | T57: 16.2 | U57: 5.3 | V57: =IFERROR(VLOOKUP(J57,Прайс!A:E,Настройки!$E$1,0)*Настройки!$E$2,"по запросу") -> по запросу | W57: -0.0 | X57: 0.1 | Y57: 23.7 | Z57: 24.2 | AA57: по запросу | AB57: 12.0 | AC57: 36.5 | AD57: 61.0 | AE57: 85.5 | AF57: 110.0 | AG57: 24.3 | AH57: 23.8 | AI57: 21.1 | AJ57: 15.9 | AK57: 8.5 | AL57: 489.3 | AM57: 609.5 | AN57: 125 | AO57: 125 | AP57: 2R | AR57: CO-3 Helix V 3601 | AS57: Helix V 3601 | AT57: Helix | AU57: EN-GJL-250 | AV57: 1.4307 [AISI304L] | AW57: EPDM | AX57: 1.4057 [AISI431] | AY57: 1.4571 [AISI316Ti ] | AZ57: вода 100% | BA57: 20° | BB57: 998.3 kg/m3 | BC57: 1.00 mm2/s | BD57: SK-FFS/3-3,0(8A)/V-3~1,0A | BE57: IP54 | BF57: нет | BG57: нет | BH57: IE2 | BI57: 3~400/50 Гц | BJ57: ±10% | BK57: 3 | BM57: 2 | BN57: 16 | BO57: 10 | BQ57: 225 | BR57: 1695 | BS57: 120 | BT57: 1444 | BU57: 1580 | BW57: 600 | BZ57: 1954 | CB57: 500 | CD57: 1444 | CE57: 412 | CF57: 532 | CG57: чертеж pdf | CH57: чертеж dwg | CI57: чертеж step | CJ57: чертеж 3d_dwg | CK57: 12.0 | CL57: 20.0 | CM57: 60.0 | CN57: 100.0 | CO57: 110.0 | CP57: 25 | CQ57: 24 | CR57: 20 | CS57: 17 | CT57: 6.2 | CV57: -0.002 | CW57: 0.076 | CX57: 23.649 | CY57: 24.3 | CZ57: CO-3 Helix V 3601 без учёта потерь напора | DA57: 12.0 | DB57: 36.5 | DC57: 61.0 | DD57: 85.5 | DE57: 110.0 | DF57: 24.3 | DG57: 23.9 | DH57: 21.3 | DI57: 16.5 | DJ57: 9.4 | EF57: -0.002 | EG57: 0.076 | EH57: 23.649 | EI57: 0.01298227631 | EJ57: -0.07636022352 | EK57: -23.64921438 | EL57: 45.7 | EM57: 23.2 | EN57: да | EO57: 61.0 | EP57: 76.68 | EQ57: 44.34 | ER57: 13.2 | ET57: -0.002 | EU57: 0.076 | EV57: 23.660 | EW57: 0.01305727631 | EX57: -0.07596022352 | EY57: -23.66011438 | EZ57: 45.6 | FA57: 23.1
J58: 2453644 | K58: CO 3 Helix V 2204/SK-FFS-R | L58: 8.0 | M58: 20.0 | N58: 40.0 | O58: 60.0 | P58: 70.0 | Q58: 73.8 | R58: 70.7 | S58: 58.1 | T58: 36.4 | U58: 22.1 | V58: =IFERROR(VLOOKUP(J58,Прайс!A:E,Настройки!$E$1,0)*Настройки!$E$2,"по запросу") -> по запросу | W58: -0.0 | X58: 0.1 | Y58: 74.0 | Z58: 65.5 | AA58: по запросу | AB58: 8.0 | AC58: 23.5 | AD58: 39.0 | AE58: 54.5 | AF58: 70.0 | AG58: 73.8 | AH58: 69.1 | AI58: 59.0 | AJ58: 43.3 | AK58: 22.1 | AL58: 398.8 | AM58: 582.5 | AN58: 100 | AO58: 100 | AP58: 2R | AR58: CO-3 Helix V 2204 | AS58: Helix V 2204 | AT58: Helix | AU58: EN-GJL-250 | AV58: 1.4307 [AISI304L] | AW58: EPDM | AX58: 1.4057 [AISI431] | AY58: 1.4571 [AISI316Ti ] | AZ58: вода 100% | BA58: 20° | BB58: 998.3 kg/m3 | BC58: 1.00 mm2/s | BD58: SK-FFS/3-5,5(12A)/V-3~1,0A | BE58: IP54 | BF58: нет | BG58: нет | BH58: IE2 | BI58: 3~400/50 Гц | BJ58: ±10% | BK58: 5.5 | BM58: 2 | BN58: 16 | BO58: 10 | BQ58: 210 | BR58: 1695 | BS58: 120 | BT58: 1448 | BU58: 1580 | BW58: 600 | BZ58: 1784 | CB58: 500 | CD58: 1334 | CE58: 396 | CF58: 438 | CG58: чертеж pdf | CH58: чертеж dwg | CI58: чертеж step | CJ58: чертеж 3d_dwg | CK58: 8.0 | CL58: 20.0 | CM58: 40.0 | CN58: 60.0 | CO58: 70.0 | CP58: 73.88 | CQ58: 71 | CR58: 59 | CS58: 38 | CT58: 24.125 | CV58: -0.011 | CW58: 0.075 | CX58: 74.000 | CY58: 66.1 | CZ58: CO-3 Helix V 2204 без учёта потерь напора | DA58: 8.0 | DB58: 23.5 | DC58: 39.0 | DD58: 54.5 | DE58: 70.0 | DF58: 73.9 | DG58: 69.5 | DH58: 59.8 | DI58: 44.7 | DJ58: 24.1 | EF58: -0.011 | EG58: 0.075 | EH58: 74.000 | EI58: 0.02236111111 | EJ58: -0.075 | EK58: -74 | EL58: 59.2 | EM58: 39.0 | EN58: да | EO58: 39.0 | EP58: 48.92 | EQ58: 28.46 | ER58: 29.0 | ET58: -0.011 | EU58: 0.062 | EV58: 74.000 | EW58: 0.02257861111 | EX58: -0.06192 | EY58: -74 | EZ58: 58.6 | FA58: 38.2
J59: 2453609 | K59: CO 2 MVI 9501/SK-FFS-R | L59: 20.0 | M59: 55.0 | N59: 85.0 | O59: 110.0 | P59: 145.0 | Q59: 29.9 | R59: 26.3 | S59: 22.9 | T59: 18.5 | U59: 8.3 | V59: =IFERROR(VLOOKUP(J59,Прайс!A:E,Настройки!$E$1,0)*Настройки!$E$2,"по запросу") -> по запросу | W59: -0.0 | X59: 0.0 | Y59: 29.8 | Z59: 29.1 | AA59: по запросу | AB59: 20.0 | AC59: 51.3 | AD59: 82.5 | AE59: 113.8 | AF59: 145.0 | AG59: 29.5 | AH59: 27.4 | AI59: 23.3 | AJ59: 17.0 | AK59: 8.6 | AL59: 423.0 | AM59: 684 | AN59: 200 | AO59: 200 | AP59: 2R | AR59: CO-2 MVI 9501 | AS59: MVI 9501 | AT59: Helix | AU59: EN-GJL-250 | AV59: 1.4307 [AISI304L] | AW59: EPDM | AX59: 1.4057 [AISI431] | AY59: 1.4571 [AISI316Ti ] | AZ59: вода 100% | BA59: 20° | BB59: 998.3 kg/m3 | BC59: 1.00 mm2/s | BD59: SK-FFS/2-11(24A)/J-6,3A/V-3~1,0A | BE59: IP54 | BF59: нет | BG59: нет | BH59: IE2 | BI59: 3~400/50 Гц | BJ59: ±10% | BK59: 9 | BM59: 1 | BN59: 16 | BO59: 10 | BQ59: 262 | BR59: 1697 | BS59: 122 | BT59: 940 | BU59: 1000 | BW59: 600 | BZ59: 2350 | CB59: 650 | CD59: 1650 | CE59: 471 | CF59: 529 | CG59: чертеж pdf | CH59: чертеж dwg | CI59: чертеж step | CJ59: чертеж 3d_dwg | CK59: 20.0 | CL59: 55.0 | CM59: 85.0 | CN59: 110.0 | CO59: 145.0 | CP59: 29.88 | CQ59: 26.5 | CR59: 23.42 | CS59: 19.36 | CT59: 9.8 | CV59: -0.001 | CW59: 0.009 | CX59: 29.770 | CY59: 29.2 | CZ59: CO-2 MVI 9501 без учёта потерь напора | DA59: 20.0 | DB59: 51.3 | DC59: 82.5 | DD59: 113.8 | DE59: 145.0 | DF59: 29.6 | DG59: 27.6 | DH59: 23.7 | DI59: 17.9 | DJ59: 10.1 | EF59: -0.001 | EG59: 0.009 | EH59: 29.770 | EI59: 0.0121107763 | EJ59: -0.009325415898 | EK59: -29.7700592 | EL59: 50.0 | EM59: 27.7 | EN59: да | EO59: 82.5 | EP59: 102.5 | EQ59: 61.25 | ER59: 17.7 | ET59: -0.001 | EU59: 0.009 | EV59: 29.770 | EW59: 0.0121807763 | EX59: -0.009255415898 | EY59: -29.7700592 | EZ59: 49.8 | FA59: 27.6
J60: 2453338 | K60: CO 3 BL 40/210-1.5/4/SK-FFS-R | L60: 8.0 | M60: 28.0 | N60: 54.0 | O60: 64.0 | P60: 66.0 | Q60: 14.4 | R60: 13.7 | S60: 10.2 | T60: 8.0 | U60: 7.6 | V60: =IFERROR(VLOOKUP(J60,Прайс!A:E,Настройки!$E$1,0)*Настройки!$E$2,"по запросу") -> по запросу | W60: -0.0 | X60: 0.0 | Y60: 14.2 | Z60: 13.5 | AA60: по запросу | AB60: 8.0 | AC60: 22.5 | AD60: 37.0 | AE60: 51.5 | AF60: 66.0 | AG60: 14.4 | AH60: 14.0 | AI60: 12.8 | AJ60: 10.6 | AK60: 7.6 | AL60: 471.1 | AM60: 550.2 | AN60: 80 | AO60: 100 | AP60: 2R | AR60: CO-3 BL 40/210-1.5/4 | AS60: BL 40/210-1.5/4 | AT60: BL | AU60: EN-GJL-250 | AV60: EN-GJL-200 | AX60: 1.4122 | AY60: 1.4571 [AISI316Ti ] | AZ60: вода 100% | BA60: 20° | BB60: 998.3 kg/m3 | BC60: 1.00 mm2/s | BD60: SK-FFS/3-1,5(4A)/V-3~1,0A | BE60: IP54 | BF60: нет | BG60: нет | BH60: IE2 | BI60: 3~400/50 Гц | BJ60: ±10% | BK60: 1.5 | BM60: 2 | BN60: 16 | BO60: 10 | BP60: 1845 | BQ60: 472 | BR60: 806 | BT60: 1604 | BW60: 600 | BX60: 1604 | BY60: 1423 | CD60: 1198 | CG60: чертеж pdf | CH60: чертеж dwg | CI60: чертеж step | CJ60: чертеж 3d_dwg | CK60: 8.0 | CL60: 28.0 | CM60: 54.0 | CN60: 64.0 | CO60: 66.0 | CP60: 14.45 | CQ60: 14.34 | CR60: 12.66 | CS60: 11.55 | CT60: 11.3 | CV60: -0.001 | CW60: 0.041 | CX60: 14.206 | CY60: 14.3 | CZ60: CO-3 BL 40/210-1.5/4 без учёта потерь напора | DA60: 8.0 | DB60: 22.5 | DC60: 37.0 | DD60: 51.5 | DE60: 66.0 | DF60: 14.5 | DG60: 14.5 | DH60: 14.0 | DI60: 12.9 | DJ60: 11.3 | EF60: -0.001 | EG60: 0.041 | EH60: 14.206 | EI60: 0.01239585755 | EJ60: -0.0407387774 | EK60: -14.20638629 | EL60: 35.5 | EM60: 14.0 | EN60: да | EO60: 37.0 | EP60: 46.28 | EQ60: 27.14 | ER60: 4.0 | ET60: -0.002 | EU60: 0.041 | EV60: 14.202 | EW60: 0.01325405675 | EX60: -0.04078200064 | EY60: -14.20187324 | EZ60: 34.3 | FA60: 13.1
J61: 2453298 | K61: CO 2 BL 65/170-11/2/SK-FFS-R | L61: 15.0 | M61: 26.0 | N61: 40.0 | O61: 52.0 | P61: 80.0 | Q61: 40.7 | R61: 40.8 | S61: 40.5 | T61: 39.8 | U61: 36.7 | V61: =IFERROR(VLOOKUP(J61,Прайс!A:E,Настройки!$E$1,0)*Настройки!$E$2,"по запросу") -> по запросу | W61: -0.0 | X61: 0.1 | Y61: 40.1 | Z61: 40.8 | AA61: по запросу | AB61: 15.0 | AC61: 31.3 | AD61: 47.5 | AE61: 63.8 | AF61: 80.0 | AG61: 40.7 | AH61: 40.7 | AI61: 40.1 | AJ61: 38.7 | AK61: 36.7 | AL61: 387.8 | AM61: 611.4 | AN61: 125 | AO61: 125 | AP61: 2R | AR61: CO-2 BL 65/170-11/2 | AS61: BL 65/170-11/2 | AT61: BL | AU61: EN-GJL-250 | AV61: EN-GJL-200 | AX61: 1.4122 | AY61: 1.4571 [AISI316Ti ] | AZ61: вода 100% | BA61: 20° | BB61: 998.3 kg/m3 | BC61: 1.00 mm2/s | BD61: SK-FFS/2-11(24A)/J-6,3A/V-3~1,0A | BE61: IP54 | BF61: нет | BG61: нет | BH61: IE2 | BI61: 3~400/50 Гц | BJ61: ±10% | BK61: 11 | BM61: 1 | BN61: 16 | BO61: 10 | BP61: 1845 | BQ61: 341.5 | BR61: 810.5 | BT61: 1044 | BW61: 600 | BX61: 1044 | BY61: 1611 | CD61: 1356 | CG61: чертеж pdf | CH61: чертеж dwg | CI61: чертеж step | CJ61: чертеж 3d_dwg | CK61: 15.0 | CL61: 26.0 | CM61: 40.0 | CN61: 52.0 | CO61: 80.0 | CP61: 40.82 | CQ61: 41.15 | CR61: 41.27 | CS61: 41.13 | CT61: 39.9 | CV61: -0.001 | CW61: 0.062 | CX61: 40.070 | CY61: 41.2 | CZ61: CO-2 BL 65/170-11/2 без учёта потерь напора | DA61: 15.0 | DB61: 31.3 | DC61: 47.5 | DD61: 63.8 | DE61: 80.0 | DF61: 40.8 | DG61: 41.2 | DH61: 41.2 | DI61: 40.8 | DJ61: 39.9 | EF61: -0.001 | EG61: 0.062 | EH61: 40.070 | EI61: 0.01191580712 | EJ61: -0.06224273246 | EK61: -40.07015904 | EL61: 60.7 | EM61: 40.9 | EN61: да | EO61: 47.5 | EP61: 57.9 | EQ61: 36.45 | ER61: 30.9 | ET61: -0.001 | EU61: 0.062 | EV61: 40.071 | EW61: 0.01241580712 | EX61: -0.06214273246 | EY61: -40.07065904 | EZ61: 59.4 | FA61: 39.2
J62: 2453651 | K62: CO 3 Helix V 3602/2/SK-FFS-R | L62: 12.0 | M62: 20.0 | N62: 60.0 | O62: 100.0 | P62: 110.0 | Q62: 36.8 | R62: 36.6 | S62: 29.7 | T62: 12.2 | U62: 6.6 | V62: =IFERROR(VLOOKUP(J62,Прайс!A:E,Настройки!$E$1,0)*Настройки!$E$2,"по запросу") -> по запросу | W62: -0.0 | X62: 0.1 | Y62: 36.3 | Z62: 35.8 | AA62: по запросу | AB62: 12.0 | AC62: 36.5 | AD62: 61.0 | AE62: 85.5 | AF62: 110.0 | AG62: 36.8 | AH62: 35.0 | AI62: 29.3 | AJ62: 19.8 | AK62: 6.4 | AL62: 462.8 | AM62: 633.5 | AN62: 125 | AO62: 125 | AP62: 2R | AR62: CO-3 Helix V 3602/2 | AS62: Helix V 3602/2 | AT62: Helix | AU62: EN-GJL-250 | AV62: 1.4307 [AISI304L] | AW62: EPDM | AX62: 1.4057 [AISI431] | AY62: 1.4571 [AISI316Ti ] | AZ62: вода 100% | BA62: 20° | BB62: 998.3 kg/m3 | BC62: 1.00 mm2/s | BD62: SK-FFS/3-4,0(10A)/V-3~1,0A | BE62: IP54 | BF62: нет | BG62: нет | BH62: IE2 | BI62: 3~400/50 Гц | BJ62: ±10% | BK62: 4 | BM62: 2 | BN62: 16 | BO62: 10 | BQ62: 225 | BR62: 1695 | BS62: 120 | BT62: 1444 | BU62: 1580 | BW62: 600 | BZ62: 1954 | CB62: 500 | CD62: 1444 | CE62: 412 | CF62: 532 | CG62: чертеж pdf | CH62: чертеж dwg | CI62: чертеж step | CJ62: чертеж 3d_dwg | CK62: 12.0 | CL62: 20.0 | CM62: 60.0 | CN62: 100.0 | CO62: 110.0 | CP62: 36.83 | CQ62: 36.6 | CR62: 30 | CS62: 13 | CT62: 7.495 | CV62: -0.003 | CW62: 0.083 | CX62: 36.257 | CY62: 35.9 | CZ62: CO-3 Helix V 3602/2 без учёта потерь напора | DA62: 12.0 | DB62: 36.5 | DC62: 61.0 | DD62: 85.5 | DE62: 110.0 | DF62: 36.8 | DG62: 35.1 | DH62: 29.6 | DI62: 20.4 | DJ62: 7.4 | EF62: -0.003 | EG62: 0.083 | EH62: 36.257 | EI62: 0.01424972693 | EJ62: -0.08281549876 | EK62: -36.25691059 | EL62: 53.4 | EM62: 31.7 | EN62: да | EO62: 61.0 | EP62: 76.68 | EQ62: 44.34 | ER62: 21.7 | ET62: -0.003 | EU62: 0.082 | EV62: 36.268 | EW62: 0.01432472693 | EX62: -0.08241549876 | EY62: -36.26781059 | EZ62: 53.3 | FA62: 31.5
J63: 2453391 | K63: CO 4 BL 32/140-2.2/2/SK-FFS-R | L63: 6.0 | M63: 30.0 | N63: 36.0 | O63: 45.0 | P63: 60.0 | Q63: 26.7 | R63: 25.4 | S63: 24.7 | T63: 23.4 | U63: 20.7 | V63: =IFERROR(VLOOKUP(J63,Прайс!A:E,Настройки!$E$1,0)*Настройки!$E$2,"по запросу") -> по запросу | W63: -0.0 | X63: 0.0 | Y63: 26.6 | Z63: 25.4 | AA63: по запросу | AB63: 6.0 | AC63: 19.5 | AD63: 33.0 | AE63: 46.5 | AF63: 60.0 | AG63: 26.7 | AH63: 26.2 | AI63: 25.0 | AJ63: 23.2 | AK63: 20.7 | AL63: 573.4 | AM63: 682.2 | AN63: 65 | AO63: 80 | AP63: 2R | AR63: CO-4 BL 32/140-2.2/2 | AS63: BL 32/140-2.2/2 | AT63: BL | AU63: EN-GJL-250 | AV63: EN-GJL-200 | AX63: 1.4122 | AY63: 1.4571 [AISI316Ti ] | AZ63: вода 100% | BA63: 20° | BB63: 998.3 kg/m3 | BC63: 1.00 mm2/s | BD63: SK-FFS/4-2,2(6A) | BE63: IP54 | BF63: нет | BG63: нет | BH63: IE2 | BI63: 3~400/50 Гц | BJ63: ±10% | BK63: 2.2 | BM63: 3 | BN63: 16 | BO63: 10 | BP63: 1845 | BQ63: 433 | BR63: 820 | BT63: 2154 | BW63: 760 | BX63: 2154 | BY63: 1351 | CD63: 1150 | CG63: чертеж pdf | CH63: чертеж dwg | CI63: чертеж step | CJ63: чертеж 3d_dwg | CK63: 6.0 | CL63: 30.0 | CM63: 36.0 | CN63: 45.0 | CO63: 60.0 | CP63: 26.68 | CQ63: 26.21 | CR63: 25.92 | CS63: 25.35 | CT63: 24.07 | CV63: -0.001 | CW63: 0.015 | CX63: 26.626 | CY63: 26.2 | CZ63: CO-4 BL 32/140-2.2/2 без учёта потерь напора | DA63: 6.0 | DB63: 19.5 | DC63: 33.0 | DD63: 46.5 | DE63: 60.0 | DF63: 26.7 | DG63: 26.6 | DH63: 26.1 | DI63: 25.2 | DJ63: 24.1 | EF63: -0.001 | EG63: 0.015 | EH63: 26.626 | EI63: 0.01206775514 | EJ63: -0.01477352935 | EK63: -26.62628749 | EL63: 47.6 | EM63: 25.2 | EN63: да | EO63: 33.0 | EP63: 41.64 | EQ63: 23.82 | ER63: 15.2 | ET63: -0.002 | EU63: 0.014 | EV63: 26.633 | EW63: 0.01300108848 | EX63: -0.01427352935 | EY63: -26.63328749 | EZ63: 45.8 | FA63: 23.3
J64: 2453645 | K64: CO 3 Helix V 2205/SK-FFS-R | L64: 8.0 | M64: 20.0 | N64: 40.0 | O64: 60.0 | P64: 70.0 | Q64: 92.6 | R64: 86.5 | S64: 69.4 | T64: 43.7 | U64: 25.7 | V64: =IFERROR(VLOOKUP(J64,Прайс!A:E,Настройки!$E$1,0)*Настройки!$E$2,"по запросу") -> по запросу | W64: -0.0 | X64: -0.1 | Y64: 94.3 | Z64: 79.3 | AA64: по запросу | AB64: 8.0 | AC64: 23.5 | AD64: 39.0 | AE64: 54.5 | AF64: 70.0 | AG64: 92.4 | AH64: 84.4 | AI64: 70.7 | AJ64: 51.3 | AK64: 26.2 | AL64: 403.2 | AM64: 642.5 | AN64: 80 | AO64: 100 | AP64: 2R | AR64: CO-3 Helix V 2205 | AS64: Helix V 2205 | AT64: Helix | AU64: EN-GJL-250 | AV64: 1.4307 [AISI304L] | AW64: EPDM | AX64: 1.4057 [AISI431] | AY64: 1.4571 [AISI316Ti ] | AZ64: вода 100% | BA64: 20° | BB64: 998.3 kg/m3 | BC64: 1.00 mm2/s | BD64: SK-FFS/3-7,5(18A)/V-3~1,0A | BE64: IP54 | BF64: нет | BG64: нет | BH64: IE2 | BI64: 3~400/50 Гц | BJ64: ±10% | BK64: 7.5 | BM64: 2 | BN64: 16 | BO64: 10 | BQ64: 210 | BR64: 1695 | BS64: 120 | BT64: 1454 | BU64: 1580 | BW64: 600 | BZ64: 1742 | CB64: 500 | CD64: 1316 | CE64: 396 | CF64: 420 | CG64: чертеж pdf | CH64: чертеж dwg | CI64: чертеж step | CJ64: чертеж 3d_dwg | CK64: 8.0 | CL64: 20.0 | CM64: 40.0 | CN64: 60.0 | CO64: 70.0 | CP64: 92.76 | CQ64: 87 | CR64: 71 | CS64: 47 | CT64: 30 | CV64: -0.011 | CW64: -0.129 | CX64: 94.312 | CY64: 80.4 | CZ64: CO-3 Helix V 2205 без учёта потерь напора | DA64: 8.0 | DB64: 23.5 | DC64: 39.0 | DD64: 54.5 | DE64: 70.0 | DF64: 92.6 | DG64: 85.1 | DH64: 72.3 | DI64: 54.0 | DJ64: 30.4 | EF64: -0.011 | EG64: -0.129 | EH64: 94.312 | EI64: 0.02229807261 | EJ64: 0.1294089293 | EK64: -94.31240586 | EL64: 62.2 | EM64: 43.0 | EN64: да | EO64: 39.0 | EP64: 48.92 | EQ64: 28.46 | ER64: 33.0 | ET64: -0.012 | EU64: -0.143 | EV64: 94.312 | EW64: 0.02297307261 | EX64: 0.1434089293 | EY64: -94.31240586 | EZ64: 61.0 | FA64: 41.4
J65: 2453349 | K65: CO 3 BL 50/170-1.1/4/SK-FFS-R | L65: 12.0 | M65: 18.0 | N65: 30.0 | O65: 38.0 | P65: 60.0 | Q65: 10.7 | R65: 10.5 | S65: 10.1 | T65: 9.7 | U65: 7.8 | V65: =IFERROR(VLOOKUP(J65,Прайс!A:E,Настройки!$E$1,0)*Настройки!$E$2,"по запросу") -> по запросу | W65: -0.0 | X65: 0.0 | Y65: 10.6 | Z65: 10.1 | AA65: по запросу | AB65: 12.0 | AC65: 24.0 | AD65: 36.0 | AE65: 48.0 | AF65: 60.0 | AG65: 10.7 | AH65: 10.4 | AI65: 9.8 | AJ65: 8.9 | AK65: 7.8 | AL65: 475.2 | AM65: 544.2 | AN65: 100 | AO65: 100 | AP65: 2R | AR65: CO-3 BL 50/170-1.1/4 | AS65: BL 50/170-1.1/4 | AT65: BL | AU65: EN-GJL-250 | AV65: EN-GJL-200 | AX65: 1.4122 | AY65: 1.4571 [AISI316Ti ] | AZ65: вода 100% | BA65: 20° | BB65: 998.3 kg/m3 | BC65: 1.00 mm2/s | BD65: SK-FFS/3-1,5(4A)/V-3~1,0A | BE65: IP54 | BF65: нет | BG65: нет | BH65: IE2 | BI65: 3~400/50 Гц | BJ65: ±10% | BK65: 1.1 | BM65: 2 | BN65: 16 | BO65: 10 | BP65: 1845 | BQ65: 474 | BR65: 808 | BT65: 1598 | BW65: 600 | BX65: 1598 | BY65: 1421 | CD65: 1196 | CG65: чертеж pdf | CH65: чертеж dwg | CI65: чертеж step | CJ65: чертеж 3d_dwg | CK65: 12.0 | CL65: 18.0 | CM65: 30.0 | CN65: 38.0 | CO65: 60.0 | CP65: 10.74 | CQ65: 10.74 | CR65: 10.66 | CS65: 10.55 | CT65: 9.965 | CV65: -0.000 | CW65: 0.012 | CX65: 10.646 | CY65: 10.7 | CZ65: CO-3 BL 50/170-1.1/4 без учёта потерь напора | DA65: 12.0 | DB65: 24.0 | DC65: 36.0 | DD65: 48.0 | DE65: 60.0 | DF65: 10.7 | DG65: 10.7 | DH65: 10.6 | DI65: 10.3 | DJ65: 10.0 | EF65: -0.000 | EG65: 0.012 | EH65: 10.646 | EI65: 0.01150779561 | EJ65: -0.01246212232 | EK65: -10.64590514 | EL65: 31.0 | EM65: 10.7 | EN65: да | EO65: 36.0 | EP65: 43.68 | EQ65: 27.84 | ER65: 0.7 | ET65: -0.001 | EU65: 0.012 | EV65: 10.646 | EW65: 0.01210779561 | EX65: -0.01231212232 | EY65: -10.64640514 | EZ65: 30.2 | FA65: 10.1
J66: 2453646 | K66: CO 3 Helix V 2206/SK-FFS-R | L66: 8.0 | M66: 20.0 | N66: 40.0 | O66: 60.0 | P66: 70.0 | Q66: 106.8 | R66: 99.5 | S66: 85.4 | T66: 51.7 | U66: 27.6 | V66: =IFERROR(VLOOKUP(J66,Прайс!A:E,Настройки!$E$1,0)*Настройки!$E$2,"по запросу") -> по запросу | W66: -0.0 | X66: 0.3 | Y66: 104.6 | Z66: 95.1 | AA66: по запросу | AB66: 8.0 | AC66: 23.5 | AD66: 39.0 | AE66: 54.5 | AF66: 70.0 | AG66: 105.4 | AH66: 100.1 | AI66: 85.4 | AJ66: 61.6 | AK66: 28.4 | AL66: 407.8 | AM66: 648.5 | AN66: 80 | AO66: 100 | AP66: 2R | AR66: CO-3 Helix V 2206 | AS66: Helix V 2206 | AT66: Helix | AU66: EN-GJL-250 | AV66: 1.4307 [AISI304L] | AW66: EPDM | AX66: 1.4057 [AISI431] | AY66: 1.4571 [AISI316Ti ] | AZ66: вода 100% | BA66: 20° | BB66: 998.3 kg/m3 | BC66: 1.00 mm2/s | BD66: SK-FFS/3-7,5(18A)/V-3~1,0A | BE66: IP54 | BF66: нет | BG66: нет | BH66: IE2 | BI66: 3~400/50 Гц | BJ66: ±10% | BK66: 7.5 | BM66: 2 | BN66: 16 | BO66: 10 | BQ66: 210 | BR66: 1695 | BS66: 120 | BT66: 1454 | BU66: 1580 | BW66: 600 | BZ66: 1742 | CB66: 500 | CD66: 1316 | CE66: 396 | CF66: 420 | CG66: чертеж pdf | CH66: чертеж dwg | CI66: чертеж step | CJ66: чертеж 3d_dwg | CK66: 8.0 | CL66: 20.0 | CM66: 40.0 | CN66: 60.0 | CO66: 70.0 | CP66: 107 | CQ66: 100 | CR66: 87 | CS66: 55 | CT66: 31.875 | CV66: -0.019 | CW66: 0.275 | CX66: 104.571 | CY66: 96.1 | CZ66: CO-3 Helix V 2206 без учёта потерь напора | DA66: 8.0 | DB66: 23.5 | DC66: 39.0 | DD66: 54.5 | DE66: 70.0 | DF66: 105.6 | DG66: 100.8 | DH66: 87.0 | DI66: 64.3 | DJ66: 32.7 | EF66: -0.019 | EG66: 0.275 | EH66: 104.571 | EI66: 0.02971144003 | EJ66: -0.2753280987 | EK66: -104.5707822 | EL66: 64.1 | EM66: 45.7 | EN66: да | EO66: 39.0 | EP66: 48.92 | EQ66: 28.46 | ER66: 35.7 | ET66: -0.019 | EU66: 0.261 | EV66: 104.571 | EW66: 0.03038644003 | EX66: -0.2613280987 | EY66: -104.5707822 | EZ66: 63.1 | FA66: 44.3
J67: 2453312 | K67: CO 2 BL 80/250-7.5/4/SK-FFS-R | L67: 12.0 | M67: 32.0 | N67: 44.0 | O67: 76.0 | P67: 120.0 | Q67: 20.7 | R67: 21.3 | S67: 21.2 | T67: 19.2 | U67: 12.3 | V67: =IFERROR(VLOOKUP(J67,Прайс!A:E,Настройки!$E$1,0)*Настройки!$E$2,"по запросу") -> по запросу | W67: -0.0 | X67: 0.1 | Y67: 19.8 | Z67: 21.3 | AA67: по запросу | AB67: 12.0 | AC67: 39.0 | AD67: 66.0 | AE67: 93.0 | AF67: 120.0 | AG67: 20.7 | AH67: 21.3 | AI67: 20.1 | AJ67: 17.1 | AK67: 12.3 | AL67: 391.2 | AM67: 683.4 | AN67: 150 | AO67: 150 | AP67: 2R | AR67: CO-2 BL 80/250-7.5/4 | AS67: BL 80/250-7.5/4 | AT67: BL | AU67: EN-GJL-250 | AV67: EN-GJL-200 | AX67: 1.4122 | AY67: 1.4571 [AISI316Ti ] | AZ67: вода 100% | BA67: 20° | BB67: 998.3 kg/m3 | BC67: 1.00 mm2/s | BD67: SK-FFS/2-7,5(18A)/J-6,3A/V-3~1,0A | BE67: IP54 | BF67: нет | BG67: нет | BH67: IE2 | BI67: 3~400/50 Гц | BJ67: ±10% | BK67: 7.5 | BM67: 1 | BN67: 16 | BO67: 10 | BP67: 1845 | BQ67: 395 | BR67: 851 | BT67: 1344 | BW67: 600 | BX67: 1344 | BY67: 1728 | CD67: 1460 | CG67: чертеж pdf | CH67: чертеж dwg | CI67: чертеж step | CJ67: чертеж 3d_dwg | CK67: 12.0 | CL67: 32.0 | CM67: 44.0 | CN67: 76.0 | CO67: 120.0 | CP67: 20.68 | CQ67: 21.52 | CR67: 21.62 | CS67: 20.38 | CT67: 15.15 | CV67: -0.001 | CW67: 0.088 | CX67: 19.772 | CY67: 21.5 | CZ67: CO-2 BL 80/250-7.5/4 без учёта потерь напора | DA67: 12.0 | DB67: 39.0 | DC67: 66.0 | DD67: 93.0 | DE67: 120.0 | DF67: 20.7 | DG67: 21.6 | DH67: 21.0 | DI67: 18.8 | DJ67: 15.1 | EF67: -0.001 | EG67: 0.088 | EH67: 19.772 | EI67: 0.0121694836 | EJ67: -0.08847969276 | EK67: -19.77213577 | EL67: 44.1 | EM67: 21.6 | EN67: да | EO67: 66.0 | EP67: 83.28 | EQ67: 47.64 | ER67: 11.6 | ET67: -0.001 | EU67: 0.088 | EV67: 19.772 | EW67: 0.0123694836 | EX67: -0.08840969276 | EY67: -19.77243577 | EZ67: 43.7 | FA67: 21.2
J68: 2453597 | K68: CO 2 MVI 7002/SK-FFS-R | L68: 15.0 | M68: 40.0 | N68: 60.0 | O68: 90.0 | P68: 110.0 | Q68: 50.9 | R68: 46.1 | S68: 41.6 | T68: 29.5 | U68: 16.7 | V68: =IFERROR(VLOOKUP(J68,Прайс!A:E,Настройки!$E$1,0)*Настройки!$E$2,"по запросу") -> по запросу | W68: -0.0 | X68: 0.0 | Y68: 50.8 | Z68: =$K$1^2*W68+$K$1*X68+Y68 -> 48.8 | AA68: =IF($K$1=0,V68,IF(OR($K$1<CK68,$K$1>CO68,EL68>CO68,CY68<$P$1),"не подходит",V68)) -> по запросу | AB68: 15.0 | AC68: 38.8 | AD68: 62.5 | AE68: 86.3 | AF68: 110.0 | AG68: 50.5 | AH68: 47.2 | AI68: 40.6 | AJ68: 30.6 | AK68: 17.2 | AL68: 414.7 | AM68: 596 | AN68: 150 | AO68: 150 | AP68: 2R | AR68: CO-2 MVI 7002 | AS68: MVI 7002 | AT68: Helix | AU68: EN-GJL-250 | AV68: 1.4307 [AISI304L] | AW68: EPDM | AX68: 1.4057 [AISI431] | AY68: 1.4571 [AISI316Ti ] | AZ68: вода 100% | BA68: 20° | BB68: 998.3 kg/m3 | BC68: 1.00 mm2/s | BD68: SK-FFS/2-11(24A)/J-6,3A/V-3~1,0A | BE68: IP54 | BF68: нет | BG68: нет | BH68: IE2 | BI68: 3~400/50 Гц | BJ68: ±10% | BK68: 11 | BM68: 1 | BN68: 16 | BO68: 10 | BQ68: 262 | BR68: 1697 | BS68: 122 | BT68: 944 | BU68: 1000 | BW68: 600 | BZ68: 1980 | CB68: 650 | CD68: 1444 | CE68: 371 | CF68: 423 | CG68: чертеж pdf | CH68: чертеж dwg | CI68: чертеж step | CJ68: чертеж 3d_dwg | CK68: 15.0 | CL68: 40.0 | CM68: 60.0 | CN68: 90.0 | CO68: 110.0 | CP68: 51.3 | CQ68: 47.05 | CR68: 43.02 | CS68: 31.5 | CT68: 19.08 | CV68: -0.003 | CW68: 0.049 | CX68: 50.847 | CY68: =$K$1^2*CV68+$K$1*CW68+CX68 -> 49.6 | CZ68: CO-2 MVI 7002 без учёта потерь напора | DA68: 15.0 | DB68: 38.8 | DC68: 62.5 | DD68: 86.3 | DE68: 110.0 | DF68: 50.9 | DG68: 48.2 | DH68: 42.1 | DI68: 32.5 | DJ68: 19.6 | EF68: =CV68 -> -0.003 | EG68: =CW68 -> 0.049 | EH68: =CX68 -> 50.847 | EI68: =$EC$1-EF68 -> 0.01413846799 | EJ68: =$ED$1-EG68 -> -0.04854552968 | EK68: =$EE$1-EH68 -> -50.84683561 | EL68: =(-EJ68+SQRT(EJ68^2-4*EI68*EK68))/(2*EI68) -> 61.7 | EM68: =$EC$1*EL68^2+$EE$1 -> 42.3 | EN68: да | EO68: =(P68-L68)*0.5+L68 -> 62.5 | EP68: =(P68-L68)*0.66+L68 -> 77.7 | EQ68: =(P68-L68)*0.33+L68 -> 46.35 | ER68: =EM68-$P$1 -> 32.3 | ET68: =W68 -> -0.003 | EU68: =X68 -> 0.023 | EV68: =Y68 -> 50.847 | EW68: =$EC$1-ET68 -> 0.01409846799 | EX68: =$ED$1-EU68 -> -0.02264552968 | EY68: =$EE$1-EV68 -> -50.84683561 | EZ68: =(-EX68+SQRT(EX68^2-4*EW68*EY68))/(2*EW68) -> 60.9 | FA68: =$EC$1*EZ68^2+$EE$1 -> 41.2
J69: 2453596 | K69: CO 2 MVI 7002/2/SK-FFS-R | L69: 15.0 | M69: 40.0 | N69: 60.0 | O69: 90.0 | P69: 110.0 | Q69: 39.1 | R69: 35.9 | S69: 30.7 | T69: 16.1 | U69: 2.3 | V69: =IFERROR(VLOOKUP(J69,Прайс!A:E,Настройки!$E$1,0)*Настройки!$E$2,"по запросу") -> по запросу | W69: -0.0 | X69: 0.1 | Y69: 38.3 | Z69: 37.9 | AA69: по запросу | AB69: 15.0 | AC69: 38.8 | AD69: 62.5 | AE69: 86.3 | AF69: 110.0 | AG69: 39.0 | AH69: 36.5 | AI69: 29.5 | AJ69: 18.2 | AK69: 2.4 | AL69: 445.1 | AM69: 672 | AN69: 200 | AO69: 200 | AP69: 2R | AR69: CO-2 MVI 7002/2 | AS69: MVI 7002/2 | AT69: Helix | AU69: EN-GJL-250 | AV69: 1.4307 [AISI304L] | AW69: EPDM | AX69: 1.4057 [AISI431] | AY69: 1.4571 [AISI316Ti ] | AZ69: вода 100% | BA69: 20° | BB69: 998.3 kg/m3 | BC69: 1.00 mm2/s | BD69: SK-FFS/2-7,5(18A)/J-6,3A/V-3~1,0A | BE69: IP54 | BF69: нет | BG69: нет | BH69: IE2 | BI69: 3~400/50 Гц | BJ69: ±10% | BK69: 7.5 | BM69: 1 | BN69: 16 | BO69: 10 | BQ69: 262 | BR69: 1697 | BS69: 122 | BT69: 940 | BU69: 1000 | BW69: 600 | BZ69: 2350 | CB69: 650 | CD69: 1650 | CE69: 471 | CF69: 529 | CG69: чертеж pdf | CH69: чертеж dwg | CI69: чертеж step | CJ69: чертеж 3d_dwg | CK69: 15.0 | CL69: 40.0 | CM69: 60.0 | CN69: 90.0 | CO69: 110.0 | CP69: 39.12 | CQ69: 36.04 | CR69: 30.91 | CS69: 16.63 | CT69: 3.189 | CV69: -0.004 | CW69: 0.104 | CX69: 38.311 | CY69: 38.0 | CZ69: CO-2 MVI 7002/2 без учёта потерь напора | DA69: 15.0 | DB69: 38.8 | DC69: 62.5 | DD69: 86.3 | DE69: 110.0 | DF69: 39.0 | DG69: 36.6 | DH69: 29.8 | DI69: 18.7 | DJ69: 3.3 | EF69: -0.004 | EG69: 0.104 | EH69: 38.311 | EI69: 0.01495806839 | EJ69: -0.1044835387 | EK69: -38.3109931 | EL69: 54.2 | EM69: 32.7 | EN69: да | EO69: 62.5 | EP69: 77.7 | EQ69: 46.35 | ER69: 22.7 | ET69: -0.004 | EU69: 0.104 | EV69: 38.311 | EW69: 0.01502806839 | EX69: -0.1044135387 | EY69: -38.3109931 | EZ69: 54.1 | FA69: 32.5
J70: 2453292 | K70: CO 2 BL 50/220-18.5/2/SK-FFS-R | L70: 11.0 | M70: 28.0 | N70: 38.0 | O70: 58.0 | P70: 76.0 | Q70: 65.4 | R70: 67.4 | S70: 66.4 | T70: 59.3 | U70: 48.3 | V70: =IFERROR(VLOOKUP(J70,Прайс!A:E,Настройки!$E$1,0)*Настройки!$E$2,"по запросу") -> по запросу | W70: -0.0 | X70: 0.4 | Y70: 61.9 | Z70: 67.2 | AA70: по запросу | AB70: 11.0 | AC70: 27.3 | AD70: 43.5 | AE70: 59.8 | AF70: 76.0 | AG70: 65.5 | AH70: 67.3 | AI70: 65.0 | AJ70: 58.7 | AK70: 48.2 | AL70: 385.9 | AM70: 603.8 | AN70: 100 | AO70: 100 | AP70: 2R | AR70: CO-2 BL 50/220-18.5/2 | AS70: BL 50/220-18.5/2 | AT70: BL | AU70: EN-GJL-250 | AV70: EN-GJL-200 | AX70: 1.4122 | AY70: 1.4571 [AISI316Ti ] | AZ70: вода 100% | BA70: 20° | BB70: 998.3 kg/m3 | BC70: 1.00 mm2/s | BD70: SK-FFS/2-18(40A)/J-10A/V-3~1,0A | BE70: IP54 | BF70: нет | BG70: нет | BH70: IE2 | BI70: 3~400/50 Гц | BJ70: ±10% | BK70: 18.5 | BM70: 1 | BN70: 16 | BO70: 10 | BP70: 1845 | BQ70: 362 | BR70: 696 | BT70: 1048 | BW70: 600 | BX70: 1048 | BY70: 1583 | CD70: 1358 | CG70: чертеж pdf | CH70: чертеж dwg | CI70: чертеж step | CJ70: чертеж 3d_dwg | CK70: 11.0 | CL70: 28.0 | CM70: 38.0 | CN70: 58.0 | CO70: 76.0 | CP70: 65.66 | CQ70: 69.31 | CR70: 69.87 | CS70: 67.39 | CT70: 62.23 | CV70: -0.005 | CW70: 0.411 | CX70: 61.880 | CY70: 69.4 | CZ70: CO-2 BL 50/220-18.5/2 без учёта потерь напора | DA70: 11.0 | DB70: 27.3 | DC70: 43.5 | DD70: 59.8 | DE70: 76.0 | DF70: 65.8 | DG70: 69.1 | DH70: 69.6 | DI70: 67.3 | DJ70: 62.1 | EF70: -0.005 | EG70: 0.411 | EH70: 61.880 | EI70: 0.01647755395 | EJ70: -0.4109624495 | EK70: -61.88039698 | EL70: 75.0 | EM70: 62.5 | EN70: да | EO70: 43.5 | EP70: 53.9 | EQ70: 32.45 | ER70: 52.5 | ET70: -0.008 | EU70: 0.411 | EV70: 61.881 | EW70: 0.01887755395 | EX70: -0.4106624495 | EY70: -61.88089698 | EZ70: 69.2 | FA70: 53.1
J71: 2453595 | K71: CO 2 MVI 7002/1/SK-FFS-R | L71: 15.0 | M71: 40.0 | N71: 60.0 | O71: 90.0 | P71: 110.0 | Q71: 45.5 | R71: 40.9 | S71: 35.5 | T71: 21.9 | U71: 8.3 | V71: =IFERROR(VLOOKUP(J71,Прайс!A:E,Настройки!$E$1,0)*Настройки!$E$2,"по запросу") -> по запросу | W71: -0.0 | X71: 0.0 | Y71: 45.4 | Z71: 43.5 | AA71: по запросу | AB71: 15.0 | AC71: 38.8 | AD71: 62.5 | AE71: 86.3 | AF71: 110.0 | AG71: 45.2 | AH71: 41.8 | AI71: 34.5 | AJ71: 23.4 | AK71: 8.6 | AL71: 416.9 | AM71: 596 | AN71: 150 | AO71: 150 | AP71: 2R | AR71: CO-2 MVI 7002/1 | AS71: MVI 7002/1 | AT71: Helix | AU71: EN-GJL-250 | AV71: 1.4307 [AISI304L] | AW71: EPDM | AX71: 1.4057 [AISI431] | AY71: 1.4571 [AISI316Ti ] | AZ71: вода 100% | BA71: 20° | BB71: 998.3 kg/m3 | BC71: 1.00 mm2/s | BD71: SK-FFS/2-11(24A)/J-6,3A/V-3~1,0A | BE71: IP54 | BF71: нет | BG71: нет | BH71: IE2 | BI71: 3~400/50 Гц | BJ71: ±10% | BK71: 9 | BM71: 1 | BN71: 16 | BO71: 10 | BQ71: 262 | BR71: 1697 | BS71: 122 | BT71: 944 | BU71: 1000 | BW71: 600 | BZ71: 1980 | CB71: 650 | CD71: 1444 | CE71: 371 | CF71: 423 | CG71: чертеж pdf | CH71: чертеж dwg | CI71: чертеж step | CJ71: чертеж 3d_dwg | CK71: 15.0 | CL71: 40.0 | CM71: 60.0 | CN71: 90.0 | CO71: 110.0 | CP71: 45.85 | CQ71: 41.86 | CR71: 36.93 | CS71: 23.9 | CT71: 10.62 | CV71: -0.003 | CW71: 0.062 | CX71: 45.426 | CY71: 44.2 | CZ71: CO-2 MVI 7002/1 без учёта потерь напора | DA71: 15.0 | DB71: 38.8 | DC71: 62.5 | DD71: 86.3 | DE71: 110.0 | DF71: 45.6 | DG71: 42.7 | DH71: 36.0 | DI71: 25.4 | DJ71: 10.9 | EF71: -0.003 | EG71: 0.062 | EH71: 45.426 | EI71: 0.0145217888 | EJ71: -0.06167024793 | EK71: -45.42649752 | EL71: 58.1 | EM71: 37.5 | EN71: да | EO71: 62.5 | EP71: 77.7 | EQ71: 46.35 | ER71: 27.5 | ET71: -0.003 | EU71: 0.036 | EV71: 45.426 | EW71: 0.0144817888 | EX71: -0.03577024793 | EY71: -45.42649752 | EZ71: 57.3 | FA71: 36.4
J72: 2453647 | K72: CO 3 Helix V 2207/SK-FFS-R | L72: 8.0 | M72: 20.0 | N72: 40.0 | O72: 60.0 | P72: 70.0 | Q72: 122.8 | R72: 118.5 | S72: 103.4 | T72: 61.7 | U72: 31.3 | V72: =IFERROR(VLOOKUP(J72,Прайс!A:E,Настройки!$E$1,0)*Настройки!$E$2,"по запросу") -> по запросу | W72: -0.0 | X72: 0.7 | Y72: 117.4 | Z72: 114.4 | AA72: по запросу | AB72: 8.0 | AC72: 23.5 | AD72: 39.0 | AE72: 54.5 | AF72: 70.0 | AG72: 121.5 | AH72: 119.3 | AI72: 103.6 | AJ72: 74.6 | AK72: 32.1 | AL72: 423.4 | AM72: 669.5 | AN72: 80 | AO72: 100 | AP72: 2R | AR72: CO-3 Helix V 2207 | AS72: Helix V 2207 | AT72: Helix | AU72: EN-GJL-250 | AV72: 1.4307 [AISI304L] | AW72: EPDM | AX72: 1.4057 [AISI431] | AY72: 1.4571 [AISI316Ti ] | AZ72: вода 100% | BA72: 20° | BB72: 998.3 kg/m3 | BC72: 1.00 mm2/s | BD72: SK-FFS/3-11(24A)/V-3~1,0A | BE72: IP54 | BF72: нет | BG72: нет | BH72: IE2 | BI72: 3~400/50 Гц | BJ72: ±10% | BK72: 9 | BM72: 2 | BN72: 16 | BO72: 10 | BQ72: 210 | BR72: 1695 | BS72: 120 | BT72: 1454 | BU72: 1580 | BW72: 600 | BZ72: 1742 | CB72: 500 | CD72: 1316 | CE72: 396 | CF72: 420 | CG72: чертеж pdf | CH72: чертеж dwg | CI72: чертеж step | CJ72: чертеж 3d_dwg | CK72: 8.0 | CL72: 20.0 | CM72: 40.0 | CN72: 60.0 | CO72: 70.0 | CP72: 123 | CQ72: 119 | CR72: 105 | CS72: 65 | CT72: 35.625 | CV72: -0.027 | CW72: 0.752 | CX72: 117.395 | CY72: 115.4 | CZ72: CO-3 Helix V 2207 без учёта потерь напора | DA72: 8.0 | DB72: 23.5 | DC72: 39.0 | DD72: 54.5 | DE72: 70.0 | DF72: 121.7 | DG72: 120.0 | DH72: 105.2 | DI72: 77.3 | DJ72: 36.3 | EF72: -0.027 | EG72: 0.752 | EH72: 117.395 | EI72: 0.03838743295 | EJ72: -0.7515058855 | EK72: -117.3947797 | EL72: 65.9 | EM72: 48.3 | EN72: да | EO72: 39.0 | EP72: 48.92 | EQ72: 28.46 | ER72: 38.3 | ET72: -0.028 | EU72: 0.738 | EV72: 117.395 | EW72: 0.03906243295 | EX72: -0.7375058855 | EY72: -117.3947797 | EZ72: 65.1 | FA72: 47.0
J73: 2453299 | K73: CO 2 BL 65/190-15/2/SK-FFS-R | L73: 13.0 | M73: 28.0 | N73: 40.0 | O73: 52.0 | P73: 70.0 | Q73: 50.7 | R73: 50.8 | S73: 50.3 | T73: 49.4 | U73: 47.1 | V73: =IFERROR(VLOOKUP(J73,Прайс!A:E,Настройки!$E$1,0)*Настройки!$E$2,"по запросу") -> по запросу | W73: -0.0 | X73: 0.1 | Y73: 50.1 | Z73: 50.7 | AA73: по запросу | AB73: 13.0 | AC73: 27.3 | AD73: 41.5 | AE73: 55.8 | AF73: 70.0 | AG73: 50.7 | AH73: 50.8 | AI73: 50.2 | AJ73: 49.0 | AK73: 47.1 | AL73: 399.4 | AM73: 659.4 | AN73: 125 | AO73: 125 | AP73: 2R | AR73: CO-2 BL 65/190-15/2 | AS73: BL 65/190-15/2 | AT73: BL | AU73: EN-GJL-250 | AV73: EN-GJL-200 | AX73: 1.4122 | AY73: 1.4571 [AISI316Ti ] | AZ73: вода 100% | BA73: 20° | BB73: 998.3 kg/m3 | BC73: 1.00 mm2/s | BD73: SK-FFS/2-15(32A)/J-6,3A/V-3~1,0A | BE73: IP54 | BF73: нет | BG73: нет | BH73: IE2 | BI73: 3~400/50 Гц | BJ73: ±10% | BK73: 15 | BM73: 1 | BN73: 16 | BO73: 10 | BP73: 1845 | BQ73: 337 | BR73: 806 | BT73: 1044 | BW73: 600 | BX73: 1044 | BY73: 1636 | CD73: 1381 | CG73: чертеж pdf | CH73: чертеж dwg | CI73: чертеж step | CJ73: чертеж 3d_dwg | CK73: 13.0 | CL73: 28.0 | CM73: 40.0 | CN73: 52.0 | CO73: 70.0 | CP73: 50.79 | CQ73: 51.17 | CR73: 51.11 | CS73: 50.71 | CT73: 49.52 | CV73: -0.001 | CW73: 0.072 | CX73: 50.050 | CY73: 51.2 | CZ73: CO-2 BL 65/190-15/2 без учёта потерь напора | DA73: 13.0 | DB73: 27.3 | DC73: 41.5 | DD73: 55.8 | DE73: 70.0 | DF73: 50.8 | DG73: 51.2 | DH73: 51.1 | DI73: 50.5 | DJ73: 49.5 | EF73: -0.001 | EG73: 0.072 | EH73: 50.050 | EI73: 0.01224376025 | EJ73: -0.07168692124 | EK73: -50.05037446 | EL73: 66.9 | EM73: 49.8 | EN73: да | EO73: 41.5 | EP73: 50.62 | EQ73: 31.81 | ER73: 39.8 | ET73: -0.002 | EU73: 0.072 | EV73: 50.051 | EW73: 0.01274376025 | EX73: -0.07158692124 | EY73: -50.05087446 | EZ73: 65.5 | FA73: 47.7
J74: 2453652 | K74: CO 3 Helix V 3602/SK-FFS-R | L74: 12.0 | M74: 20.0 | N74: 60.0 | O74: 100.0 | P74: 110.0 | Q74: 50.5 | R74: 49.5 | S74: 40.7 | T74: 20.1 | U74: 12.7 | V74: =IFERROR(VLOOKUP(J74,Прайс!A:E,Настройки!$E$1,0)*Настройки!$E$2,"по запросу") -> по запросу | W74: -0.0 | X74: 0.1 | Y74: 50.0 | Z74: 48.7 | AA74: по запросу | AB74: 12.0 | AC74: 36.5 | AD74: 61.0 | AE74: 85.5 | AF74: 110.0 | AG74: 50.2 | AH74: 47.5 | AI74: 40.3 | AJ74: 28.8 | AK74: 12.9 | AL74: 430.2 | AM74: 648.5 | AN74: 125 | AO74: 125 | AP74: 2R | AR74: CO-3 Helix V 3602 | AS74: Helix V 3602 | AT74: Helix | AU74: EN-GJL-250 | AV74: 1.4307 [AISI304L] | AW74: EPDM | AX74: 1.4057 [AISI431] | AY74: 1.4571 [AISI316Ti ] | AZ74: вода 100% | BA74: 20° | BB74: 998.3 kg/m3 | BC74: 1.00 mm2/s | BD74: SK-FFS/3-5,5(12A)/V-3~1,0A | BE74: IP54 | BF74: нет | BG74: нет | BH74: IE2 | BI74: 3~400/50 Гц | BJ74: ±10% | BK74: 5.5 | BM74: 2 | BN74: 16 | BO74: 10 | BQ74: 225 | BR74: 1695 | BS74: 120 | BT74: 1444 | BU74: 1580 | BW74: 600 | BZ74: 1878 | CB74: 500 | CD74: 1368 | CE74: 412 | CF74: 456 | CG74: чертеж pdf | CH74: чертеж dwg | CI74: чертеж step | CJ74: чертеж 3d_dwg | CK74: 12.0 | CL74: 20.0 | CM74: 60.0 | CN74: 100.0 | CO74: 110.0 | CP74: 50.69 | CQ74: 49.79 | CR74: 41.8 | CS74: 22.13 | CT74: 14.97 | CV74: -0.004 | CW74: 0.079 | CX74: 49.982 | CY74: 49.1 | CZ74: CO-3 Helix V 3602 без учёта потерь напора | DA74: 12.0 | DB74: 36.5 | DC74: 61.0 | DD74: 85.5 | DE74: 110.0 | DF74: 50.4 | DG74: 48.1 | DH74: 41.4 | DI74: 30.4 | DJ74: 15.1 | EF74: -0.004 | EG74: 0.079 | EH74: 49.982 | EI74: 0.01471019168 | EJ74: -0.0792258259 | EK74: -49.98161421 | EL74: 61.0 | EM74: 41.4 | EN74: да | EO74: 61.0 | EP74: 76.68 | EQ74: 44.34 | ER74: 31.4 | ET74: -0.004 | EU74: 0.066 | EV74: 49.982 | EW74: 0.01477519168 | EX74: -0.0656008259 | EY74: -49.98161421 | EZ74: 60.4 | FA74: 40.6
J75: 2453650 | K75: CO 3 Helix V 3602/1/SK-FFS-R | L75: 12.0 | M75: 20.0 | N75: 60.0 | O75: 100.0 | P75: 110.0 | Q75: 44.1 | R75: 43.5 | S75: 35.7 | T75: 14.6 | U75: 7.4 | V75: =IFERROR(VLOOKUP(J75,Прайс!A:E,Настройки!$E$1,0)*Настройки!$E$2,"по запросу") -> по запросу | W75: -0.0 | X75: 0.1 | Y75: 43.1 | Z75: 42.9 | AA75: по запросу | AB75: 12.0 | AC75: 36.5 | AD75: 61.0 | AE75: 85.5 | AF75: 110.0 | AG75: 43.9 | AH75: 41.9 | AI75: 35.2 | AJ75: 23.7 | AK75: 7.4 | AL75: 472.7 | AM75: 648.5 | AN75: 125 | AO75: 125 | AP75: 2R | AR75: CO-3 Helix V 3602/1 | AS75: Helix V 3602/1 | AT75: Helix | AU75: EN-GJL-250 | AV75: 1.4307 [AISI304L] | AW75: EPDM | AX75: 1.4057 [AISI431] | AY75: 1.4571 [AISI316Ti ] | AZ75: вода 100% | BA75: 20° | BB75: 998.3 kg/m3 | BC75: 1.00 mm2/s | BD75: SK-FFS/3-5,5(12A)/V-3~1,0A | BE75: IP54 | BF75: нет | BG75: нет | BH75: IE2 | BI75: 3~400/50 Гц | BJ75: ±10% | BK75: 5.5 | BM75: 2 | BN75: 16 | BO75: 10 | BQ75: 225 | BR75: 1695 | BS75: 120 | BT75: 1444 | BU75: 1580 | BW75: 600 | BZ75: 1878 | CB75: 500 | CD75: 1368 | CE75: 412 | CF75: 456 | CG75: чертеж pdf | CH75: чертеж dwg | CI75: чертеж step | CJ75: чертеж 3d_dwg | CK75: 12.0 | CL75: 20.0 | CM75: 60.0 | CN75: 100.0 | CO75: 110.0 | CP75: 44.28 | CQ75: 43.75 | CR75: 36.71 | CS75: 16.57 | CT75: 9.698 | CV75: -0.004 | CW75: 0.126 | CX75: 43.097 | CY75: 43.4 | CZ75: CO-3 Helix V 3602/1 без учёта потерь напора | DA75: 12.0 | DB75: 36.5 | DC75: 61.0 | DD75: 85.5 | DE75: 110.0 | DF75: 44.0 | DG75: 42.5 | DH75: 36.3 | DI75: 25.3 | DJ75: 9.7 | EF75: -0.004 | EG75: 0.126 | EH75: 43.097 | EI75: 0.01502065015 | EJ75: -0.1262404285 | EK75: -43.09706662 | EL75: 57.9 | EM75: 37.3 | EN75: да | EO75: 61.0 | EP75: 76.68 | EQ75: 44.34 | ER75: 27.3 | ET75: -0.004 | EU75: 0.113 | EV75: 43.097 | EW75: 0.01508565015 | EX75: -0.1126154285 | EY75: -43.09706662 | EZ75: 57.3 | FA75: 36.5
J76: 2453662 | K76: CO 3 Helix V 5201/SK-FFS-R | L76: 18.0 | M76: 40.0 | N76: 60.0 | O76: 100.0 | P76: 160.0 | Q76: 26.9 | R76: 25.2 | S76: 23.1 | T76: 17.5 | U76: 4.3 | V76: =IFERROR(VLOOKUP(J76,Прайс!A:E,Настройки!$E$1,0)*Настройки!$E$2,"по запросу") -> по запросу | W76: -0.0 | X76: -0.0 | Y76: 27.6 | Z76: 26.0 | AA76: по запросу | AB76: 18.0 | AC76: 53.5 | AD76: 89.0 | AE76: 124.5 | AF76: 160.0 | AG76: 26.8 | AH76: 23.9 | AI76: 19.2 | AJ76: 12.7 | AK76: 4.3 | AL76: 517.4 | AM76: 765.5 | AN76: 150 | AO76: 150 | AP76: 2R | AR76: CO-3 Helix V 5201 | AS76: Helix V 5201 | AT76: Helix | AU76: EN-GJL-250 | AV76: 1.4307 [AISI304L] | AW76: EPDM | AX76: 1.4057 [AISI431] | AY76: 1.4571 [AISI316Ti ] | AZ76: вода 100% | BA76: 20° | BB76: 998.3 kg/m3 | BC76: 1.00 mm2/s | BD76: SK-FFS/3-4,0(10A)/V-3~1,0A | BE76: IP54 | BF76: нет | BG76: нет | BH76: IE2 | BI76: 3~400/50 Гц | BJ76: ±10% | BK76: 4 | BM76: 2 | BN76: 16 | BO76: 10 | BQ76: 260 | BR76: 1695 | BS76: 120 | BT76: 1444 | BU76: 1580 | BW76: 600 | BZ76: 2063 | CB76: 500 | CD76: 1527 | CE76: 438.5 | CF76: 588.5 | CG76: чертеж pdf | CH76: чертеж dwg | CI76: чертеж step | CJ76: чертеж 3d_dwg | CK76: 18.0 | CL76: 40.0 | CM76: 60.0 | CN76: 100.0 | CO76: 160.0 | CP76: 26.9 | CQ76: 25.24 | CR76: 23.17 | CS76: 17.79 | CT76: 4.899 | CV76: -0.001 | CW76: -0.029 | CX76: 27.569 | CY76: 26.1 | CZ76: CO-3 Helix V 5201 без учёта потерь напора | DA76: 18.0 | DB76: 53.5 | DC76: 89.0 | DD76: 124.5 | DE76: 160.0 | DF76: 26.8 | DG76: 24.0 | DH76: 19.4 | DI76: 13.1 | DJ76: 4.9 | EF76: -0.001 | EG76: -0.029 | EH76: 27.569 | EI76: 0.01181532908 | EJ76: 0.02879504826 | EK76: -27.56875763 | EL76: 47.1 | EM76: 24.7 | EN76: да | EO76: 89.0 | EP76: 111.72 | EQ76: 64.86 | ER76: 14.7 | ET76: -0.001 | EU76: -0.029 | EV76: 27.569 | EW76: 0.01184032908 | EX76: 0.02884504826 | EY76: -27.56905763 | EZ76: 47.1 | FA76: 24.6
J77: 2453353 | K77: CO 3 BL 50/220-2.2/4/SK-FFS-R | L77: 14.0 | M77: 28.0 | N77: 38.0 | O77: 52.0 | P77: 68.0 | Q77: 16.7 | R77: 16.8 | S77: 16.4 | T77: 15.3 | U77: 13.1 | V77: =IFERROR(VLOOKUP(J77,Прайс!A:E,Настройки!$E$1,0)*Настройки!$E$2,"по запросу") -> по запросу | W77: -0.0 | X77: 0.1 | Y77: 15.8 | Z77: 16.8 | AA77: по запросу | AB77: 14.0 | AC77: 27.5 | AD77: 41.0 | AE77: 54.5 | AF77: 68.0 | AG77: 16.7 | AH77: 16.8 | AI77: 16.3 | AJ77: 15.0 | AK77: 13.1 | AL77: 488.8 | AM77: 592.2 | AN77: 100 | AO77: 100 | AP77: 2R | AR77: CO-3 BL 50/220-2.2/4 | AS77: BL 50/220-2.2/4 | AT77: BL | AU77: EN-GJL-250 | AV77: EN-GJL-200 | AX77: 1.4122 | AY77: 1.4571 [AISI316Ti ] | AZ77: вода 100% | BA77: 20° | BB77: 998.3 kg/m3 | BC77: 1.00 mm2/s | BD77: SK-FFS/3-2,2(6A)/V-3~1,0A | BE77: IP54 | BF77: нет | BG77: нет | BH77: IE2 | BI77: 3~400/50 Гц | BJ77: ±10% | BK77: 2.2 | BM77: 2 | BN77: 16 | BO77: 10 | BP77: 1845 | BQ77: 472 | BR77: 806 | BT77: 1598 | BW77: 600 | BX77: 1598 | BY77: 1461 | CD77: 1236 | CG77: чертеж pdf | CH77: чертеж dwg | CI77: чертеж step | CJ77: чертеж 3d_dwg | CK77: 14.0 | CL77: 28.0 | CM77: 38.0 | CN77: 52.0 | CO77: 68.0 | CP77: 16.79 | CQ77: 17.27 | CR77: 17.32 | CS77: 16.92 | CT77: 15.88 | CV77: -0.001 | CW77: 0.088 | CX77: 15.804 | CY77: 17.3 | CZ77: CO-3 BL 50/220-2.2/4 без учёта потерь напора | DA77: 14.0 | DB77: 27.5 | DC77: 41.0 | DD77: 54.5 | DE77: 68.0 | DF77: 16.8 | DG77: 17.3 | DH77: 17.3 | DI77: 16.8 | DJ77: 15.9 | EF77: -0.001 | EG77: 0.088 | EH77: 15.804 | EI77: 0.01239596701 | EJ77: -0.08844614923 | EK77: -15.80413698 | EL77: 39.5 | EM77: 17.3 | EN77: да | EO77: 41.0 | EP77: 49.64 | EQ77: 31.82 | ER77: 7.3 | ET77: -0.002 | EU77: 0.088 | EV77: 15.805 | EW77: 0.01299596701 | EX77: -0.08829614923 | EY77: -15.80463698 | EZ77: 38.4 | FA77: 16.4
J78: 2453655 | K78: CO 3 Helix V 3603/SK-FFS-R | L78: 12.0 | M78: 20.0 | N78: 60.0 | O78: 100.0 | P78: 110.0 | Q78: 76.8 | R78: 75.7 | S78: 63.4 | T78: 32.5 | U78: 21.9 | V78: =IFERROR(VLOOKUP(J78,Прайс!A:E,Настройки!$E$1,0)*Настройки!$E$2,"по запросу") -> по запросу | W78: -0.0 | X78: 0.1 | Y78: 75.7 | Z78: 74.6 | AA78: по запросу | AB78: 12.0 | AC78: 36.5 | AD78: 61.0 | AE78: 85.5 | AF78: 110.0 | AG78: 76.5 | AH78: 73.0 | AI78: 62.8 | AJ78: 45.7 | AK78: 21.9 | AL78: 441.5 | AM78: 732.5 | AN78: 100 | AO78: 125 | AP78: 2R | AR78: CO-3 Helix V 3603 | AS78: Helix V 3603 | AT78: Helix | AU78: EN-GJL-250 | AV78: 1.4307 [AISI304L] | AW78: EPDM | AX78: 1.4057 [AISI431] | AY78: 1.4571 [AISI316Ti ] | AZ78: вода 100% | BA78: 20° | BB78: 998.3 kg/m3 | BC78: 1.00 mm2/s | BD78: SK-FFS/3-11(24A)/V-3~1,0A | BE78: IP54 | BF78: нет | BG78: нет | BH78: IE2 | BI78: 3~400/50 Гц | BJ78: ±10% | BK78: 9 | BM78: 2 | BN78: 16 | BO78: 10 | BQ78: 225 | BR78: 1695 | BS78: 120 | BT78: 1448 | BU78: 1580 | BW78: 600 | BZ78: 1834 | CB78: 500 | CD78: 1354 | CE78: 406 | CF78: 448 | CG78: чертеж pdf | CH78: чертеж dwg | CI78: чертеж step | CJ78: чертеж 3d_dwg | CK78: 12.0 | CL78: 20.0 | CM78: 60.0 | CN78: 100.0 | CO78: 110.0 | CP78: 77 | CQ78: 76 | CR78: 65 | CS78: 36 | CT78: 25.9375 | CV78: -0.005 | CW78: 0.146 | CX78: 75.693 | CY78: 75.2 | CZ78: CO-3 Helix V 3603 без учёта потерь напора | DA78: 12.0 | DB78: 36.5 | DC78: 61.0 | DD78: 85.5 | DE78: 110.0 | DF78: 76.7 | DG78: 73.8 | DH78: 64.4 | DI78: 48.4 | DJ78: 26.0 | EF78: -0.005 | EG78: 0.146 | EH78: 75.693 | EI78: 0.0165438649 | EJ78: -0.1458555864 | EK78: -75.69326068 | EL78: 72.2 | EM78: 57.9 | EN78: да | EO78: 61.0 | EP78: 76.68 | EQ78: 44.34 | ER78: 47.9 | ET78: -0.006 | EU78: 0.133 | EV78: 75.693 | EW78: 0.0167613649 | EX78: -0.1327755864 | EY78: -75.69326068 | EZ78: 71.3 | FA78: 56.5
J79: 2453718 | K79: CO 4 Helix V 1609/SK-FFS-R | L79: 9.0 | M79: 27.0 | N79: 45.0 | O79: 63.0 | P79: 78.0 | Q79: 116.9 | R79: 112.0 | S79: 98.6 | T79: 72.6 | U79: 39.3 | V79: =IFERROR(VLOOKUP(J79,Прайс!A:E,Настройки!$E$1,0)*Настройки!$E$2,"по запросу") -> по запросу | W79: -0.0 | X79: 0.5 | Y79: 113.3 | Z79: 111.6 | AA79: по запросу | AB79: 9.0 | AC79: 26.3 | AD79: 43.5 | AE79: 60.8 | AF79: 78.0 | AG79: 116.3 | AH79: 113.6 | AI79: 100.1 | AJ79: 75.5 | AK79: 40.0 | AL79: 483.6 | AM79: 633 | AN79: 80 | AO79: 100 | AP79: 2R | AR79: CO-4 Helix V 1609 | AS79: Helix V 1609 | AT79: Helix | AU79: EN-GJL-250 | AV79: 1.4307 [AISI304L] | AW79: EPDM | AX79: 1.4057 [AISI431] | AY79: 1.4571 [AISI316Ti ] | AZ79: вода 100% | BA79: 20° | BB79: 998.3 kg/m3 | BC79: 1.00 mm2/s | BD79: SK-FFS/4-7,5(18A) | BE79: IP54 | BF79: нет | BG79: нет | BH79: IE2 | BI79: 3~400/50 Гц | BJ79: ±10% | BK79: 7.5 | BM79: 3 | BN79: 16 | BO79: 10 | BQ79: 180 | BR79: 1675 | BS79: 100 | BT79: 1154 | BU79: 1200 | BW79: 760 | BZ79: 1642 | CB79: 450 | CD79: 1216 | CE79: 396 | CF79: 370 | CG79: чертеж pdf | CH79: чертеж dwg | CI79: чертеж step | CJ79: чертеж 3d_dwg | CK79: 9.0 | CL79: 27.0 | CM79: 45.0 | CN79: 63.0 | CO79: 78.0 | CP79: 116.9 | CQ79: 112.4 | CR79: 99.73 | CS79: 74.8 | CT79: 42.69 | CV79: -0.018 | CW79: 0.499 | CX79: 113.263 | CY79: 112.1 | CZ79: CO-4 Helix V 1609 без учёта потерь напора | DA79: 9.0 | DB79: 26.3 | DC79: 43.5 | DD79: 60.8 | DE79: 78.0 | DF79: 116.3 | DG79: 114.0 | DH79: 101.1 | DI79: 77.6 | DJ79: 43.3 | EF79: -0.018 | EG79: 0.499 | EH79: 113.263 | EI79: 0.02899735429 | EJ79: -0.4987526302 | EK79: -113.2629636 | EL79: 71.7 | EM79: 57.1 | EN79: да | EO79: 43.5 | EP79: 54.54 | EQ79: 31.77 | ER79: 47.1 | ET79: -0.018 | EU79: 0.499 | EV79: 113.263 | EW79: 0.02955290984 | EX79: -0.4986192968 | EY79: -113.2628636 | EZ79: 70.9 | FA79: 55.9
J80: 2453653 | K80: CO 3 Helix V 3603/1/SK-FFS-R | L80: 12.0 | M80: 20.0 | N80: 60.0 | O80: 100.0 | P80: 110.0 | Q80: 69.6 | R80: 65.7 | S80: 54.9 | T80: 25.0 | U80: 14.6 | V80: =IFERROR(VLOOKUP(J80,Прайс!A:E,Настройки!$E$1,0)*Настройки!$E$2,"по запросу") -> по запросу | W80: -0.0 | X80: 0.1 | Y80: 67.9 | Z80: 65.8 | AA80: по запросу | AB80: 12.0 | AC80: 36.5 | AD80: 61.0 | AE80: 85.5 | AF80: 110.0 | AG80: 68.2 | AH80: 64.1 | AI80: 53.9 | AJ80: 37.5 | AK80: 14.9 | AL80: 454.5 | AM80: 738.5 | AN80: 125 | AO80: 125 | AP80: 2R | AR80: CO-3 Helix V 3603/1 | AS80: Helix V 3603/1 | AT80: Helix | AU80: EN-GJL-250 | AV80: 1.4307 [AISI304L] | AW80: EPDM | AX80: 1.4057 [AISI431] | AY80: 1.4571 [AISI316Ti ] | AZ80: вода 100% | BA80: 20° | BB80: 998.3 kg/m3 | BC80: 1.00 mm2/s | BD80: SK-FFS/3-7,5(18A)/V-3~1,0A | BE80: IP54 | BF80: нет | BG80: нет | BH80: IE2 | BI80: 3~400/50 Гц | BJ80: ±10% | BK80: 7.5 | BM80: 2 | BN80: 16 | BO80: 10 | BQ80: 225 | BR80: 1695 | BS80: 120 | BT80: 1444 | BU80: 1580 | BW80: 600 | BZ80: 1878 | CB80: 500 | CD80: 1368 | CE80: 412 | CF80: 456 | CG80: чертеж pdf | CH80: чертеж dwg | CI80: чертеж step | CJ80: чертеж 3d_dwg | CK80: 12.0 | CL80: 20.0 | CM80: 60.0 | CN80: 100.0 | CO80: 110.0 | CP80: 69.8 | CQ80: 66 | CR80: 56 | CS80: 27 | CT80: 16.9325 | CV80: -0.005 | CW80: 0.098 | CX80: 67.925 | CY80: 66.3 | CZ80: CO-3 Helix V 3603/1 без учёта потерь напора | DA80: 12.0 | DB80: 36.5 | DC80: 61.0 | DD80: 85.5 | DE80: 110.0 | DF80: 68.4 | DG80: 64.7 | DH80: 55.0 | DI80: 39.1 | DJ80: 17.2 | EF80: -0.005 | EG80: 0.098 | EH80: 67.925 | EI80: 0.01619896681 | EJ80: -0.09811622245 | EK80: -67.92541714 | EL80: 67.9 | EM80: 51.2 | EN80: да | EO80: 61.0 | EP80: 76.68 | EQ80: 44.34 | ER80: 41.2 | ET80: -0.005 | EU80: 0.084 | EV80: 67.925 | EW80: 0.01626396681 | EX80: -0.08449122245 | EY80: -67.92541714 | EZ80: 67.3 | FA80: 50.3
J81: 2453336 | K81: CO 3 BL 40/140-3/2/SK-FFS-R | L81: 14.0 | M81: 20.0 | N81: 30.0 | O81: 50.0 | P81: 66.0 | Q81: 27.0 | R81: 26.9 | S81: 26.3 | T81: 24.1 | U81: 21.3 | V81: =IFERROR(VLOOKUP(J81,Прайс!A:E,Настройки!$E$1,0)*Настройки!$E$2,"по запросу") -> по запросу | W81: -0.0 | X81: 0.0 | Y81: 27.0 | Z81: 26.3 | AA81: по запросу | AB81: 14.0 | AC81: 27.0 | AD81: 40.0 | AE81: 53.0 | AF81: 66.0 | AG81: 27.0 | AH81: 26.5 | AI81: 25.4 | AJ81: 23.7 | AK81: 21.3 | AL81: 465.9 | AM81: 532.2 | AN81: 80 | AO81: 100 | AP81: 2R | AR81: CO-3 BL 40/140-3/2 | AS81: BL 40/140-3/2 | AT81: BL | AU81: EN-GJL-250 | AV81: EN-GJL-200 | AX81: 1.4122 | AY81: 1.4571 [AISI316Ti ] | AZ81: вода 100% | BA81: 20° | BB81: 998.3 kg/m3 | BC81: 1.00 mm2/s | BD81: SK-FFS/3-3,0(8A)/V-3~1,0A | BE81: IP54 | BF81: нет | BG81: нет | BH81: IE2 | BI81: 3~400/50 Гц | BJ81: ±10% | BK81: 3 | BM81: 2 | BN81: 16 | BO81: 10 | BP81: 1845 | BQ81: 422 | BR81: 816 | BT81: 1604 | BW81: 600 | BX81: 1604 | BY81: 1363 | CD81: 1138 | CG81: чертеж pdf | CH81: чертеж dwg | CI81: чертеж step | CJ81: чертеж 3d_dwg | CK81: 14.0 | CL81: 20.0 | CM81: 30.0 | CN81: 50.0 | CO81: 66.0 | CP81: 27.22 | CQ81: 27.22 | CR81: 27.08 | CS81: 26.26 | CT81: 25.09 | CV81: -0.001 | CW81: 0.031 | CX81: 26.967 | CY81: 27.1 | CZ81: CO-3 BL 40/140-3/2 без учёта потерь напора | DA81: 14.0 | DB81: 27.0 | DC81: 40.0 | DD81: 53.0 | DE81: 66.0 | DF81: 27.2 | DG81: 27.1 | DH81: 26.8 | DI81: 26.1 | DJ81: 25.1 | EF81: -0.001 | EG81: 0.031 | EH81: 26.967 | EI81: 0.01200523473 | EJ81: -0.0305728 | EK81: -26.96692329 | EL81: 48.7 | EM81: 26.3 | EN81: да | EO81: 40.0 | EP81: 48.32 | EQ81: 31.16 | ER81: 16.3 | ET81: -0.002 | EU81: 0.031 | EV81: 26.961 | EW81: 0.01286424199 | EX81: -0.03069083378 | EY81: -26.9608662 | EZ81: 47.0 | FA81: 24.5
J82: 2453345 | K82: CO 3 BL 40/265-3/4/SK-FFS-R | L82: 8.0 | M82: 20.0 | N82: 30.0 | O82: 40.0 | P82: 60.0 | Q82: 25.5 | R82: 25.2 | S82: 24.4 | T82: 23.2 | U82: 19.2 | V82: =IFERROR(VLOOKUP(J82,Прайс!A:E,Настройки!$E$1,0)*Настройки!$E$2,"по запросу") -> по запросу | W82: -0.0 | X82: 0.0 | Y82: 25.3 | Z82: 24.4 | AA82: по запросу | AB82: 8.0 | AC82: 21.0 | AD82: 34.0 | AE82: 47.0 | AF82: 60.0 | AG82: 25.5 | AH82: 25.1 | AI82: 24.0 | AJ82: 22.0 | AK82: 19.2 | AL82: 485.6 | AM82: 631.2 | AN82: 80 | AO82: 100 | AP82: 2R | AR82: CO-3 BL 40/265-3/4 | AS82: BL 40/265-3/4 | AT82: BL | AU82: EN-GJL-250 | AV82: EN-GJL-200 | AX82: 1.4122 | AY82: 1.4571 [AISI316Ti ] | AZ82: вода 100% | BA82: 20° | BB82: 998.3 kg/m3 | BC82: 1.00 mm2/s | BD82: SK-FFS/3-3,0(8A)/V-3~1,0A | BE82: IP54 | BF82: нет | BG82: нет | BH82: IE2 | BI82: 3~400/50 Гц | BJ82: ±10% | BK82: 3 | BM82: 2 | BN82: 16 | BO82: 10 | BP82: 1845 | BQ82: 470 | BR82: 804 | BT82: 1604 | BW82: 600 | BX82: 1604 | BY82: 1488 | CD82: 1263 | CG82: чертеж pdf | CH82: чертеж dwg | CI82: чертеж step | CJ82: чертеж 3d_dwg | CK82: 8.0 | CL82: 20.0 | CM82: 30.0 | CN82: 40.0 | CO82: 60.0 | CP82: 25.52 | CQ82: 25.53 | CR82: 25.19 | CS82: 24.53 | CT82: 22.28 | CV82: -0.002 | CW82: 0.045 | CX82: 25.265 | CY82: 25.2 | CZ82: CO-3 BL 40/265-3/4 без учёта потерь напора | DA82: 8.0 | DB82: 21.0 | DC82: 34.0 | DD82: 47.0 | DE82: 60.0 | DF82: 25.5 | DG82: 25.5 | DH82: 25.0 | DI82: 23.9 | DJ82: 22.3 | EF82: -0.002 | EG82: 0.045 | EH82: 25.265 | EI82: 0.01268468476 | EJ82: -0.0446581886 | EK82: -25.26458872 | EL82: 46.4 | EM82: 23.9 | EN82: да | EO82: 34.0 | EP82: 42.32 | EQ82: 25.16 | ER82: 13.9 | ET82: -0.002 | EU82: 0.045 | EV82: 25.260 | EW82: 0.01354225747 | EX82: -0.04466773387 | EY82: -25.26027587 | EZ82: 44.9 | FA82: 22.4
J83: 2453301 | K83: CO 2 BL 65/210-18.5/2/SK-FFS-R | L83: 13.0 | M83: 26.0 | N83: 46.0 | O83: 60.0 | P83: 88.0 | Q83: 57.2 | R83: 57.0 | S83: 56.0 | T83: 54.5 | U83: 50.0 | V83: =IFERROR(VLOOKUP(J83,Прайс!A:E,Настройки!$E$1,0)*Настройки!$E$2,"по запросу") -> по запросу | W83: -0.0 | X83: 0.0 | Y83: 56.8 | Z83: 56.9 | AA83: по запросу | AB83: 13.0 | AC83: 31.8 | AD83: 50.5 | AE83: 69.3 | AF83: 88.0 | AG83: 57.2 | AH83: 56.9 | AI83: 55.6 | AJ83: 53.3 | AK83: 50.0 | AL83: 407.0 | AM83: 707.4 | AN83: 125 | AO83: 125 | AP83: 2R | AR83: CO-2 BL 65/210-18.5/2 | AS83: BL 65/210-18.5/2 | AT83: BL | AU83: EN-GJL-250 | AV83: EN-GJL-200 | AX83: 1.4122 | AY83: 1.4571 [AISI316Ti ] | AZ83: вода 100% | BA83: 20° | BB83: 998.3 kg/m3 | BC83: 1.00 mm2/s | BD83: SK-FFS/2-18(40A)/J-10A/V-3~1,0A | BE83: IP54 | BF83: нет | BG83: нет | BH83: IE2 | BI83: 3~400/50 Гц | BJ83: ±10% | BK83: 18.5 | BM83: 1 | BN83: 16 | BO83: 10 | BP83: 1845 | BQ83: 312 | BR83: 781 | BT83: 1044 | BW83: 600 | BX83: 1044 | BY83: 1646 | CD83: 1391 | CG83: чертеж pdf | CH83: чертеж dwg | CI83: чертеж step | CJ83: чертеж 3d_dwg | CK83: 13.0 | CL83: 26.0 | CM83: 46.0 | CN83: 60.0 | CO83: 88.0 | CP83: 57.25 | CQ83: 57.39 | CR83: 57.02 | CS83: 56.34 | CT83: 53.92 | CV83: -0.001 | CW83: 0.046 | CX83: 56.805 | CY83: 57.4 | CZ83: CO-2 BL 65/210-18.5/2 без учёта потерь напора | DA83: 13.0 | DB83: 31.8 | DC83: 50.5 | DD83: 69.3 | DE83: 88.0 | DF83: 57.2 | DG83: 57.4 | DH83: 56.8 | DI83: 55.7 | DJ83: 53.9 | EF83: -0.001 | EG83: 0.046 | EH83: 56.805 | EI83: 0.01200357308 | EJ83: -0.04576067739 | EK83: -56.80488613 | EL83: 70.7 | EM83: 55.6 | EN83: да | EO83: 50.5 | EP83: 62.5 | EQ83: 37.75 | ER83: 45.6 | ET83: -0.001 | EU83: 0.046 | EV83: 56.805 | EW83: 0.01250357308 | EX83: -0.04566067739 | EY83: -56.80538613 | EZ83: 69.3 | FA83: 53.3
J84: 2453721 | K84: CO 4 Helix V 2202/SK-FFS-R | L84: 12.0 | M84: 30.0 | N84: 60.0 | O84: 90.0 | P84: 105.0 | Q84: 33.9 | R84: 34.7 | S84: 30.1 | T84: 18.4 | U84: 9.9 | V84: =IFERROR(VLOOKUP(J84,Прайс!A:E,Настройки!$E$1,0)*Настройки!$E$2,"по запросу") -> по запросу | W84: -0.0 | X84: 0.2 | Y84: 32.0 | Z84: 34.7 | AA84: по запросу | AB84: 12.0 | AC84: 35.3 | AD84: 58.5 | AE84: 81.8 | AF84: 105.0 | AG84: 33.9 | AH84: 34.4 | AI84: 30.5 | AJ84: 22.4 | AK84: 9.9 | AL84: 493.3 | AM84: 673 | AN84: 100 | AO84: 125 | AP84: 2R | AR84: CO-4 Helix V 2202 | AS84: Helix V 2202 | AT84: Helix | AU84: EN-GJL-250 | AV84: 1.4307 [AISI304L] | AW84: EPDM | AX84: 1.4057 [AISI431] | AY84: 1.4571 [AISI316Ti ] | AZ84: вода 100% | BA84: 20° | BB84: 998.3 kg/m3 | BC84: 1.00 mm2/s | BD84: SK-FFS/4-3,0(8A) | BE84: IP54 | BF84: нет | BG84: нет | BH84: IE2 | BI84: 3~400/50 Гц | BJ84: ±10% | BK84: 3 | BM84: 3 | BN84: 16 | BO84: 10 | BQ84: 210 | BR84: 1695 | BS84: 120 | BT84: 1948 | BU84: 2080 | BW84: 760 | BZ84: 1814 | CB84: 500 | CD84: 1334 | CE84: 396 | CF84: 438 | CG84: чертеж pdf | CH84: чертеж dwg | CI84: чертеж step | CJ84: чертеж 3d_dwg | CK84: 12.0 | CL84: 30.0 | CM84: 60.0 | CN84: 90.0 | CO84: 105.0 | CP84: 34.04 | CQ84: 35 | CR84: 31 | CS84: 20 | CT84: 11.875 | CV84: -0.004 | CW84: 0.217 | CX84: 32.000 | CY84: 35.0 | CZ84: CO-4 Helix V 2202 без учёта потерь напора | DA84: 12.0 | DB84: 35.3 | DC84: 58.5 | DD84: 81.8 | DE84: 105.0 | DF84: 34.0 | DG84: 34.8 | DH84: 31.4 | DI84: 23.7 | DJ84: 11.9 | EF84: -0.004 | EG84: 0.217 | EH84: 32.000 | EI84: 0.015 | EJ84: -0.2166666667 | EK84: -32 | EL84: 54.0 | EM84: 32.4 | EN84: да | EO84: 58.5 | EP84: 73.38 | EQ84: 42.69 | ER84: 22.4 | ET84: -0.004 | EU84: 0.208 | EV84: 32.000 | EW84: 0.01509666667 | EX84: -0.2079466667 | EY84: -32 | EZ84: 53.4 | FA84: 31.7
J85: 2453392 | K85: CO 4 BL 32/150-3/2/SK-FFS-R | L85: 9.0 | M85: 30.0 | N85: 45.0 | O85: 60.0 | P85: 78.0 | Q85: 30.1 | R85: 29.3 | S85: 27.7 | T85: 25.1 | U85: 20.9 | V85: =IFERROR(VLOOKUP(J85,Прайс!A:E,Настройки!$E$1,0)*Настройки!$E$2,"по запросу") -> по запросу | W85: -0.0 | X85: 0.0 | Y85: 29.9 | Z85: 29.3 | AA85: по запросу | AB85: 9.0 | AC85: 26.3 | AD85: 43.5 | AE85: 60.8 | AF85: 78.0 | AG85: 30.1 | AH85: 29.6 | AI85: 27.9 | AJ85: 25.0 | AK85: 20.9 | AL85: 587.1 | AM85: 730.2 | AN85: 80 | AO85: 100 | AP85: 2R | AR85: CO-4 BL 32/150-3/2 | AS85: BL 32/150-3/2 | AT85: BL | AU85: EN-GJL-250 | AV85: EN-GJL-200 | AX85: 1.4122 | AY85: 1.4571 [AISI316Ti ] | AZ85: вода 100% | BA85: 20° | BB85: 998.3 kg/m3 | BC85: 1.00 mm2/s | BD85: SK-FFS/4-3,0(8A) | BE85: IP54 | BF85: нет | BG85: нет | BH85: IE2 | BI85: 3~400/50 Гц | BJ85: ±10% | BK85: 3 | BM85: 3 | BN85: 16 | BO85: 10 | BP85: 1845 | BQ85: 433 | BR85: 820 | BT85: 2154 | BW85: 760 | BX85: 2154 | BY85: 1375 | CD85: 1150 | CG85: чертеж pdf | CH85: чертеж dwg | CI85: чертеж step | CJ85: чертеж 3d_dwg | CK85: 9.0 | CL85: 30.0 | CM85: 45.0 | CN85: 60.0 | CO85: 78.0 | CP85: 30.17 | CQ85: 30.16 | CR85: 29.57 | CS85: 28.5 | CT85: 26.58 | CV85: -0.001 | CW85: 0.041 | CX85: 29.886 | CY85: 30.2 | CZ85: CO-4 BL 32/150-3/2 без учёта потерь напора | DA85: 9.0 | DB85: 26.3 | DC85: 43.5 | DD85: 60.8 | DE85: 78.0 | DF85: 30.2 | DG85: 30.2 | DH85: 29.7 | DI85: 28.4 | DJ85: 26.6 | EF85: -0.001 | EG85: 0.041 | EH85: 29.886 | EI85: 0.01218335869 | EJ85: -0.04124267151 | EK85: -29.88618974 | EL85: 51.2 | EM85: 29.2 | EN85: да | EO85: 43.5 | EP85: 54.54 | EQ85: 31.77 | ER85: 19.2 | ET85: -0.002 | EU85: 0.041 | EV85: 29.893 | EW85: 0.01311669202 | EX85: -0.04074267151 | EY85: -29.89318974 | EZ85: 49.3 | FA85: 27.0
J86: 2453648 | K86: CO 3 Helix V 2208/SK-FFS-R | L86: 8.0 | M86: 20.0 | N86: 40.0 | O86: 60.0 | P86: 70.0 | Q86: 140.8 | R86: 137.5 | S86: 115.4 | T86: 72.7 | U86: 43.7 | V86: =IFERROR(VLOOKUP(J86,Прайс!A:E,Настройки!$E$1,0)*Настройки!$E$2,"по запросу") -> по запросу | W86: -0.0 | X86: 0.4 | Y86: 139.0 | Z86: 129.0 | AA86: по запросу | AB86: 8.0 | AC86: 23.5 | AD86: 39.0 | AE86: 54.5 | AF86: 70.0 | AG86: 140.8 | AH86: 135.1 | AI86: 117.0 | AJ86: 86.5 | AK86: 43.7 | AL86: 425.5 | AM86: 774.5 | AN86: 80 | AO86: 100 | AP86: 2R | AR86: CO-3 Helix V 2208 | AS86: Helix V 2208 | AT86: Helix | AU86: EN-GJL-250 | AV86: 1.4307 [AISI304L] | AW86: EPDM | AX86: 1.4057 [AISI431] | AY86: 1.4571 [AISI316Ti ] | AZ86: вода 100% | BA86: 20° | BB86: 998.3 kg/m3 | BC86: 1.00 mm2/s | BD86: SK-FFS/3-11(24A)/V-3~1,0A | BE86: IP54 | BF86: нет | BG86: нет | BH86: IE2 | BI86: 3~400/50 Гц | BJ86: ±10% | BK86: 11 | BM86: 2 | BN86: 16 | BO86: 10 | BQ86: 210 | BR86: 1695 | BS86: 120 | BT86: 1454 | BU86: 1580 | BW86: 600 | BZ86: 1742 | CB86: 500 | CD86: 1316 | CE86: 396 | CF86: 420 | CG86: чертеж pdf | CH86: чертеж dwg | CI86: чертеж step | CJ86: чертеж 3d_dwg | CK86: 8.0 | CL86: 20.0 | CM86: 40.0 | CN86: 60.0 | CO86: 70.0 | CP86: 141 | CQ86: 138 | CR86: 117 | CS86: 76 | CT86: 48 | CV86: -0.025 | CW86: 0.450 | CX86: 139.000 | CY86: 130.0 | CZ86: CO-3 Helix V 2208 без учёта потерь напора | DA86: 8.0 | DB86: 23.5 | DC86: 39.0 | DD86: 54.5 | DE86: 70.0 | DF86: 141.0 | DG86: 135.8 | DH86: 118.5 | DI86: 89.3 | DJ86: 48.0 | EF86: -0.025 | EG86: 0.450 | EH86: 139.000 | EI86: 0.03611111111 | EJ86: -0.45 | EK86: -139 | EL86: 68.6 | EM86: 52.3 | EN86: да | EO86: 39.0 | EP86: 48.92 | EQ86: 28.46 | ER86: 42.3 | ET86: -0.026 | EU86: 0.436 | EV86: 139.000 | EW86: 0.03678611111 | EX86: -0.436 | EY86: -139 | EZ86: 67.7 | FA86: 50.9
J87: 2453611 | K87: CO 2 MVI 9502/2/SK-FFS-R | L87: 20.0 | M87: 55.0 | N87: 85.0 | O87: 110.0 | P87: 145.0 | Q87: 47.3 | R87: 42.2 | S87: 35.5 | T87: 26.5 | U87: 7.0 | V87: =IFERROR(VLOOKUP(J87,Прайс!A:E,Настройки!$E$1,0)*Настройки!$E$2,"по запросу") -> по запросу | W87: -0.0 | X87: 0.1 | Y87: 46.6 | Z87: 46.4 | AA87: по запросу | AB87: 20.0 | AC87: 51.3 | AD87: 82.5 | AE87: 113.8 | AF87: 145.0 | AG87: 46.9 | AH87: 43.8 | AI87: 36.2 | AJ87: 24.0 | AK87: 7.4 | AL87: 496.4 | AM87: 752 | AN87: 200 | AO87: 200 | AP87: 2R | AR87: CO-2 MVI 9502/2 | AS87: MVI 9502/2 | AT87: Helix | AU87: EN-GJL-250 | AV87: 1.4307 [AISI304L] | AW87: EPDM | AX87: 1.4057 [AISI431] | AY87: 1.4571 [AISI316Ti ] | AZ87: вода 100% | BA87: 20° | BB87: 998.3 kg/m3 | BC87: 1.00 mm2/s | BD87: SK-FFS/2-15(32A)/J-6,3A/V-3~1,0A | BE87: IP54 | BF87: нет | BG87: нет | BH87: IE2 | BI87: 3~400/50 Гц | BJ87: ±10% | BK87: 15 | BM87: 1 | BN87: 16 | BO87: 10 | BQ87: 262 | BR87: 1697 | BS87: 122 | BT87: 940 | BU87: 1000 | BW87: 600 | BZ87: 2350 | CB87: 650 | CD87: 1650 | CE87: 471 | CF87: 529 | CG87: чертеж pdf | CH87: чертеж dwg | CI87: чертеж step | CJ87: чертеж 3d_dwg | CK87: 20.0 | CL87: 55.0 | CM87: 85.0 | CN87: 110.0 | CO87: 145.0 | CP87: 47.37 | CQ87: 42.41 | CR87: 35.98 | CS87: 27.39 | CT87: 8.493 | CV87: -0.002 | CW87: 0.064 | CX87: 46.584 | CY87: 46.5 | CZ87: CO-2 MVI 9502/2 без учёта потерь напора | DA87: 20.0 | DB87: 51.3 | DC87: 82.5 | DD87: 113.8 | DE87: 145.0 | DF87: 47.0 | DG87: 44.0 | DH87: 36.7 | DI87: 24.9 | DJ87: 8.9 | EF87: -0.002 | EG87: 0.064 | EH87: 46.584 | EI87: 0.01334721509 | EJ87: -0.06411986991 | EK87: -46.58374113 | EL87: 61.5 | EM87: 42.1 | EN87: да | EO87: 82.5 | EP87: 102.5 | EQ87: 61.25 | ER87: 32.1 | ET87: -0.002 | EU87: 0.064 | EV87: 46.584 | EW87: 0.01341721509 | EX87: -0.06404986991 | EY87: -46.58374113 | EZ87: 61.4 | FA87: 41.8
J88: 2453313 | K88: CO 2 BL 80/270-11/4/SK-FFS-R | L88: 16.0 | M88: 35.0 | N88: 50.0 | O88: 105.0 | P88: 159.0 | Q88: 25.8 | R88: 26.7 | S88: 26.7 | T88: 22.0 | U88: 10.4 | V88: =IFERROR(VLOOKUP(J88,Прайс!A:E,Настройки!$E$1,0)*Настройки!$E$2,"по запросу") -> по запросу | W88: -0.0 | X88: 0.1 | Y88: 24.5 | Z88: 26.5 | AA88: по запросу | AB88: 16.0 | AC88: 51.8 | AD88: 87.5 | AE88: 123.3 | AF88: 159.0 | AG88: 25.9 | AH88: 26.7 | AI88: 24.4 | AJ88: 18.9 | AK88: 10.4 | AL88: 411.3 | AM88: 763.4 | AN88: 150 | AO88: 150 | AP88: 2R | AR88: CO-2 BL 80/270-11/4 | AS88: BL 80/270-11/4 | AT88: BL | AU88: EN-GJL-250 | AV88: EN-GJL-200 | AX88: 1.4122 | AY88: 1.4571 [AISI316Ti ] | AZ88: вода 100% | BA88: 20° | BB88: 998.3 kg/m3 | BC88: 1.00 mm2/s | BD88: SK-FFS/2-11(24A)/J-6,3A/V-3~1,0A | BE88: IP54 | BF88: нет | BG88: нет | BH88: IE2 | BI88: 3~400/50 Гц | BJ88: ±10% | BK88: 11 | BM88: 1 | BN88: 16 | BO88: 10 | BP88: 1845 | BQ88: 355 | BR88: 811 | BT88: 1344 | BW88: 600 | BX88: 1344 | BY88: 1766 | CD88: 1498 | CG88: чертеж pdf | CH88: чертеж dwg | CI88: чертеж step | CJ88: чертеж 3d_dwg | CK88: 16.0 | CL88: 35.0 | CM88: 50.0 | CN88: 105.0 | CO88: 159.0 | CP88: 25.86 | CQ88: 26.98 | CR88: 27.24 | CS88: 24.25 | CT88: 15.49 | CV88: -0.001 | CW88: 0.105 | CX88: 24.495 | CY88: 26.7 | CZ88: CO-2 BL 80/270-11/4 без учёта потерь напора | DA88: 16.0 | DB88: 51.8 | DC88: 87.5 | DD88: 123.3 | DE88: 159.0 | DF88: 25.9 | DG88: 27.2 | DH88: 25.9 | DI88: 22.0 | DJ88: 15.5 | EF88: -0.001 | EG88: 0.105 | EH88: 24.495 | EI88: 0.01212865783 | EJ88: -0.1050390112 | EK88: -24.49493314 | EL88: 49.5 | EM88: 27.2 | EN88: да | EO88: 87.5 | EP88: 110.38 | EQ88: 63.19 | ER88: 17.2 | ET88: -0.001 | EU88: 0.105 | EV88: 24.495 | EW88: 0.01232865783 | EX88: -0.1049690112 | EY88: -24.49523314 | EZ88: 49.0 | FA88: 26.7
J89: 2453610 | K89: CO 2 MVI 9502/1/SK-FFS-R | L89: 20.0 | M89: 55.0 | N89: 85.0 | O89: 110.0 | P89: 145.0 | Q89: 53.0 | R89: 47.1 | S89: 40.9 | T89: 32.1 | U89: 14.7 | V89: =IFERROR(VLOOKUP(J89,Прайс!A:E,Настройки!$E$1,0)*Настройки!$E$2,"по запросу") -> по запросу | W89: -0.0 | X89: 0.0 | Y89: 53.0 | Z89: 51.8 | AA89: по запросу | AB89: 20.0 | AC89: 51.3 | AD89: 82.5 | AE89: 113.8 | AF89: 145.0 | AG89: 52.6 | AH89: 48.8 | AI89: 41.3 | AJ89: 30.0 | AK89: 15.0 | AL89: 495.1 | AM89: 752 | AN89: 200 | AO89: 200 | AP89: 2R | AR89: CO-2 MVI 9502/1 | AS89: MVI 9502/1 | AT89: Helix | AU89: EN-GJL-250 | AV89: 1.4307 [AISI304L] | AW89: EPDM | AX89: 1.4057 [AISI431] | AY89: 1.4571 [AISI316Ti ] | AZ89: вода 100% | BA89: 20° | BB89: 998.3 kg/m3 | BC89: 1.00 mm2/s | BD89: SK-FFS/2-15(32A)/J-6,3A/V-3~1,0A | BE89: IP54 | BF89: нет | BG89: нет | BH89: IE2 | BI89: 3~400/50 Гц | BJ89: ±10% | BK89: 15 | BM89: 1 | BN89: 16 | BO89: 10 | BQ89: 262 | BR89: 1697 | BS89: 122 | BT89: 940 | BU89: 1000 | BW89: 600 | BZ89: 2350 | CB89: 650 | CD89: 1650 | CE89: 471 | CF89: 529 | CG89: чертеж pdf | CH89: чертеж dwg | CI89: чертеж step | CJ89: чертеж 3d_dwg | CK89: 20.0 | CL89: 55.0 | CM89: 85.0 | CN89: 110.0 | CO89: 145.0 | CP89: 52.99 | CQ89: 47.35 | CR89: 41.46 | CS89: 33 | CT89: 16.16 | CV89: -0.002 | CW89: 0.019 | CX89: 52.968 | CY89: 51.9 | CZ89: CO-2 MVI 9502/1 без учёта потерь напора | DA89: 20.0 | DB89: 51.3 | DC89: 82.5 | DD89: 113.8 | DE89: 145.0 | DF89: 52.6 | DG89: 49.0 | DH89: 41.8 | DI89: 31.0 | DJ89: 16.5 | EF89: -0.002 | EG89: 0.019 | EH89: 52.968 | EI89: 0.01297692616 | EJ89: -0.01879131153 | EK89: -52.96753189 | EL89: 64.6 | EM89: 46.4 | EN89: да | EO89: 82.5 | EP89: 102.5 | EQ89: 61.25 | ER89: 36.4 | ET89: -0.002 | EU89: 0.019 | EV89: 52.968 | EW89: 0.01304692616 | EX89: -0.01872131153 | EY89: -52.96753189 | EZ89: 64.4 | FA89: 46.1
J90: 2453300 | K90: CO 2 BL 65/190-18.5/2/SK-FFS-R | L90: 13.0 | M90: 32.0 | N90: 64.0 | O90: 92.0 | P90: 131.0 | Q90: 50.7 | R90: 50.7 | S90: 47.9 | T90: 42.8 | U90: 31.4 | V90: =IFERROR(VLOOKUP(J90,Прайс!A:E,Настройки!$E$1,0)*Настройки!$E$2,"по запросу") -> по запросу | W90: -0.0 | X90: 0.1 | Y90: 50.1 | Z90: 50.7 | AA90: по запросу | AB90: 13.0 | AC90: 42.5 | AD90: 72.0 | AE90: 101.5 | AF90: 131.0 | AG90: 50.7 | AH90: 50.1 | AI90: 46.7 | AJ90: 40.5 | AK90: 31.4 | AL90: 407.0 | AM90: 667.4 | AN90: 125 | AO90: 125 | AP90: 2R | AR90: CO-2 BL 65/190-18.5/2 | AS90: BL 65/190-18.5/2 | AT90: BL | AU90: EN-GJL-250 | AV90: EN-GJL-200 | AX90: 1.4122 | AY90: 1.4571 [AISI316Ti ] | AZ90: вода 100% | BA90: 20° | BB90: 998.3 kg/m3 | BC90: 1.00 mm2/s | BD90: SK-FFS/2-18(40A)/J-10A/V-3~1,0A | BE90: IP54 | BF90: нет | BG90: нет | BH90: IE2 | BI90: 3~400/50 Гц | BJ90: ±10% | BK90: 18.5 | BM90: 1 | BN90: 16 | BO90: 10 | BP90: 1845 | BQ90: 312 | BR90: 781 | BT90: 1044 | BW90: 600 | BX90: 1044 | BY90: 1646 | CD90: 1391 | CG90: чертеж pdf | CH90: чертеж dwg | CI90: чертеж step | CJ90: чертеж 3d_dwg | CK90: 13.0 | CL90: 32.0 | CM90: 64.0 | CN90: 92.0 | CO90: 131.0 | CP90: 50.79 | CQ90: 51.19 | CR90: 50 | CS90: 47.05 | CT90: 39.99 | CV90: -0.001 | CW90: 0.072 | CX90: 50.051 | CY90: 51.2 | CZ90: CO-2 BL 65/190-18.5/2 без учёта потерь напора | DA90: 13.0 | DB90: 42.5 | DC90: 72.0 | DD90: 101.5 | DE90: 131.0 | DF90: 50.8 | DG90: 51.1 | DH90: 49.3 | DI90: 45.7 | DJ90: 40.0 | EF90: -0.001 | EG90: 0.072 | EH90: 50.051 | EI90: 0.01224527966 | EJ90: -0.07176129147 | EK90: -50.05138756 | EL90: 66.9 | EM90: 49.8 | EN90: да | EO90: 72.0 | EP90: 90.88 | EQ90: 51.94 | ER90: 39.8 | ET90: -0.002 | EU90: 0.072 | EV90: 50.052 | EW90: 0.01274527966 | EX90: -0.07166129147 | EY90: -50.05188756 | EZ90: 65.5 | FA90: 47.7
J91: 2453599 | K91: CO 2 MVI 7003/2/SK-FFS-R | L91: 15.0 | M91: 40.0 | N91: 60.0 | O91: 90.0 | P91: 110.0 | Q91: 64.8 | R91: 59.4 | S91: 51.5 | T91: 30.7 | U91: 10.7 | V91: =IFERROR(VLOOKUP(J91,Прайс!A:E,Настройки!$E$1,0)*Настройки!$E$2,"по запросу") -> по запросу | W91: -0.0 | X91: 0.1 | Y91: 64.1 | Z91: 62.6 | AA91: по запросу | AB91: 15.0 | AC91: 38.8 | AD91: 62.5 | AE91: 86.3 | AF91: 110.0 | AG91: 64.5 | AH91: 60.3 | AI91: 49.9 | AJ91: 33.5 | AK91: 11.0 | AL91: 485.2 | AM91: 660 | AN91: 150 | AO91: 150 | AP91: 2R | AR91: CO-2 MVI 7003/2 | AS91: MVI 7003/2 | AT91: Helix | AU91: EN-GJL-250 | AV91: 1.4307 [AISI304L] | AW91: EPDM | AX91: 1.4057 [AISI431] | AY91: 1.4571 [AISI316Ti ] | AZ91: вода 100% | BA91: 20° | BB91: 998.3 kg/m3 | BC91: 1.00 mm2/s | BD91: SK-FFS/2-15(32A)/J-6,3A/V-3~1,0A | BE91: IP54 | BF91: нет | BG91: нет | BH91: IE2 | BI91: 3~400/50 Гц | BJ91: ±10% | BK91: 15 | BM91: 1 | BN91: 16 | BO91: 10 | BQ91: 262 | BR91: 1697 | BS91: 122 | BT91: 944 | BU91: 1000 | BW91: 600 | BZ91: 1980 | CB91: 650 | CD91: 1444 | CE91: 371 | CF91: 423 | CG91: чертеж pdf | CH91: чертеж dwg | CI91: чертеж step | CJ91: чертеж 3d_dwg | CK91: 15.0 | CL91: 40.0 | CM91: 60.0 | CN91: 90.0 | CO91: 110.0 | CP91: 65.13 | CQ91: 60.35 | CR91: 52.86 | CS91: 32.75 | CT91: 13.1 | CV91: -0.005 | CW91: 0.137 | CX91: 64.072 | CY91: 63.3 | CZ91: CO-2 MVI 7003/2 без учёта потерь напора | DA91: 15.0 | DB91: 38.8 | DC91: 62.5 | DD91: 86.3 | DE91: 110.0 | DF91: 64.9 | DG91: 61.2 | DH91: 51.4 | DI91: 35.4 | DJ91: 13.3 | EF91: -0.005 | EG91: 0.137 | EH91: 64.072 | EI91: 0.01655275599 | EJ91: -0.1373770098 | EK91: -64.07167839 | EL91: 66.5 | EM91: 49.1 | EN91: да | EO91: 62.5 | EP91: 77.7 | EQ91: 46.35 | ER91: 39.1 | ET91: -0.005 | EU91: 0.111 | EV91: 64.072 | EW91: 0.01651275599 | EX91: -0.1114770098 | EY91: -64.07167839 | EZ91: 65.8 | FA91: 48.0
J92: 2453719 | K92: CO 4 Helix V 1610/SK-FFS-R | L92: 9.0 | M92: 27.0 | N92: 45.0 | O92: 63.0 | P92: 78.0 | Q92: 129.7 | R92: 124.0 | S92: 109.0 | T92: 80.0 | U92: 43.2 | V92: =IFERROR(VLOOKUP(J92,Прайс!A:E,Настройки!$E$1,0)*Настройки!$E$2,"по запросу") -> по запросу | W92: -0.0 | X92: 0.5 | Y92: 125.9 | Z92: 123.5 | AA92: по запросу | AB92: 9.0 | AC92: 26.3 | AD92: 43.5 | AE92: 60.8 | AF92: 78.0 | AG92: 129.0 | AH92: 125.8 | AI92: 110.6 | AJ92: 83.3 | AK92: 43.9 | AL92: 515.8 | AM92: 641 | AN92: 80 | AO92: 100 | AP92: 2R | AR92: CO-4 Helix V 1610 | AS92: Helix V 1610 | AT92: Helix | AU92: EN-GJL-250 | AV92: 1.4307 [AISI304L] | AW92: EPDM | AX92: 1.4057 [AISI431] | AY92: 1.4571 [AISI316Ti ] | AZ92: вода 100% | BA92: 20° | BB92: 998.3 kg/m3 | BC92: 1.00 mm2/s | BD92: SK-FFS/4-7,5(18A) | BE92: IP54 | BF92: нет | BG92: нет | BH92: IE2 | BI92: 3~400/50 Гц | BJ92: ±10% | BK92: 7.5 | BM92: 3 | BN92: 16 | BO92: 10 | BQ92: 180 | BR92: 1675 | BS92: 100 | BT92: 1154 | BU92: 1200 | BW92: 760 | BZ92: 1642 | CB92: 450 | CD92: 1216 | CE92: 396 | CF92: 370 | CG92: чертеж pdf | CH92: чертеж dwg | CI92: чертеж step | CJ92: чертеж 3d_dwg | CK92: 9.0 | CL92: 27.0 | CM92: 45.0 | CN92: 63.0 | CO92: 78.0 | CP92: 129.7 | CQ92: 124.4 | CR92: 110.1 | CS92: 82.25 | CT92: 46.58 | CV92: -0.020 | CW92: 0.531 | CX92: 125.860 | CY92: 124.0 | CZ92: CO-4 Helix V 1610 без учёта потерь напора | DA92: 9.0 | DB92: 26.3 | DC92: 43.5 | DD92: 60.8 | DE92: 78.0 | DF92: 129.0 | DG92: 126.2 | DH92: 111.6 | DI92: 85.3 | DJ92: 47.3 | EF92: -0.020 | EG92: 0.531 | EH92: 125.860 | EI92: 0.03083328985 | EJ92: -0.5311145836 | EK92: -125.8604004 | EL92: 73.1 | EM92: 59.3 | EN92: да | EO92: 43.5 | EP92: 54.54 | EQ92: 31.77 | ER92: 49.3 | ET92: -0.020 | EU92: 0.531 | EV92: 125.860 | EW92: 0.03138884541 | EX92: -0.5309812502 | EY92: -125.8603004 | EZ92: 72.3 | FA92: 58.1
J93: 2453612 | K93: CO 2 MVI 9502/SK-FFS-R | L93: 20.0 | M93: 55.0 | N93: 85.0 | O93: 110.0 | P93: 145.0 | Q93: 58.3 | R93: 51.4 | S93: 45.7 | T93: 37.7 | U93: 19.4 | V93: =IFERROR(VLOOKUP(J93,Прайс!A:E,Настройки!$E$1,0)*Настройки!$E$2,"по запросу") -> по запросу | W93: -0.0 | X93: 0.0 | Y93: 58.2 | Z93: 56.8 | AA93: по запросу | AB93: 20.0 | AC93: 51.3 | AD93: 82.5 | AE93: 113.8 | AF93: 145.0 | AG93: 57.7 | AH93: 53.8 | AI93: 46.2 | AJ93: 34.9 | AK93: 20.0 | AL93: 469.0 | AM93: 686 | AN93: 150 | AO93: 150 | AP93: 2R | AR93: CO-2 MVI 9502 | AS93: MVI 9502 | AT93: Helix | AU93: EN-GJL-250 | AV93: 1.4307 [AISI304L] | AW93: EPDM | AX93: 1.4057 [AISI431] | AY93: 1.4571 [AISI316Ti ] | AZ93: вода 100% | BA93: 20° | BB93: 998.3 kg/m3 | BC93: 1.00 mm2/s | BD93: SK-FFS/2-18(40A)/J-10A/V-3~1,0A | BE93: IP54 | BF93: нет | BG93: нет | BH93: IE2 | BI93: 3~400/50 Гц | BJ93: ±10% | BK93: 18.5 | BM93: 1 | BN93: 16 | BO93: 10 | BQ93: 262 | BR93: 1697 | BS93: 122 | BT93: 944 | BU93: 1000 | BW93: 600 | BZ93: 1980 | CB93: 650 | CD93: 1444 | CE93: 371 | CF93: 423 | CG93: чертеж pdf | CH93: чертеж dwg | CI93: чертеж step | CJ93: чертеж 3d_dwg | CK93: 20.0 | CL93: 55.0 | CM93: 85.0 | CN93: 110.0 | CO93: 145.0 | CP93: 58.84 | CQ93: 52.75 | CR93: 47.66 | CS93: 40.08 | CT93: 22.28 | CV93: -0.002 | CW93: 0.036 | CX93: 58.213 | CY93: 57.6 | CZ93: CO-2 MVI 9502 без учёта потерь напора | DA93: 20.0 | DB93: 51.3 | DC93: 82.5 | DD93: 113.8 | DE93: 145.0 | DF93: 58.2 | DG93: 55.0 | DH93: 48.1 | DI93: 37.4 | DJ93: 22.9 | EF93: -0.002 | EG93: 0.036 | EH93: 58.213 | EI93: 0.01304252795 | EJ93: -0.03636211854 | EK93: -58.21349859 | EL93: 68.2 | EM93: 51.7 | EN93: да | EO93: 82.5 | EP93: 102.5 | EQ93: 61.25 | ER93: 41.7 | ET93: -0.002 | EU93: 0.010 | EV93: 58.213 | EW93: 0.01300252795 | EX93: -0.01046211854 | EY93: -58.21349859 | EZ93: 67.3 | FA93: 50.3
J94: 2453720 | K94: CO 4 Helix V 1611/SK-FFS-R | L94: 9.0 | M94: 27.0 | N94: 45.0 | O94: 63.0 | P94: 78.0 | Q94: 142.4 | R94: 135.8 | S94: 119.1 | T94: 87.3 | U94: 46.9 | V94: =IFERROR(VLOOKUP(J94,Прайс!A:E,Настройки!$E$1,0)*Настройки!$E$2,"по запросу") -> по запросу | W94: -0.0 | X94: 0.6 | Y94: 138.4 | Z94: 135.2 | AA94: по запросу | AB94: 9.0 | AC94: 26.3 | AD94: 43.5 | AE94: 60.8 | AF94: 78.0 | AG94: 141.6 | AH94: 137.8 | AI94: 120.9 | AJ94: 90.8 | AK94: 47.7 | AL94: 494.3 | AM94: 645 | AN94: 80 | AO94: 100 | AP94: 2R | AR94: CO-4 Helix V 1611 | AS94: Helix V 1611 | AT94: Helix | AU94: EN-GJL-250 | AV94: 1.4307 [AISI304L] | AW94: EPDM | AX94: 1.4057 [AISI431] | AY94: 1.4571 [AISI316Ti ] | AZ94: вода 100% | BA94: 20° | BB94: 998.3 kg/m3 | BC94: 1.00 mm2/s | BD94: SK-FFS/4-7,5(18A) | BE94: IP54 | BF94: нет | BG94: нет | BH94: IE2 | BI94: 3~400/50 Гц | BJ94: ±10% | BK94: 7.5 | BM94: 3 | BN94: 16 | BO94: 10 | BQ94: 180 | BR94: 1675 | BS94: 100 | BT94: 1154 | BU94: 1200 | BW94: 760 | BZ94: 1642 | CB94: 450 | CD94: 1216 | CE94: 396 | CF94: 370 | CG94: чертеж pdf | CH94: чертеж dwg | CI94: чертеж step | CJ94: чертеж 3d_dwg | CK94: 9.0 | CL94: 27.0 | CM94: 45.0 | CN94: 63.0 | CO94: 78.0 | CP94: 142.4 | CQ94: 136.2 | CR94: 120.2 | CS94: 89.48 | CT94: 50.26 | CV94: -0.021 | CW94: 0.555 | CX94: 138.427 | CY94: 135.7 | CZ94: CO-4 Helix V 1611 без учёта потерь напора | DA94: 9.0 | DB94: 26.3 | DC94: 43.5 | DD94: 60.8 | DE94: 78.0 | DF94: 141.7 | DG94: 138.2 | DH94: 121.9 | DI94: 92.9 | DJ94: 51.0 | EF94: -0.021 | EG94: 0.555 | EH94: 138.427 | EI94: 0.03258685132 | EJ94: -0.5548894259 | EK94: -138.4267775 | EL94: 74.2 | EM94: 61.2 | EN94: да | EO94: 43.5 | EP94: 54.54 | EQ94: 31.77 | ER94: 51.2 | ET94: -0.022 | EU94: 0.555 | EV94: 138.427 | EW94: 0.03314240688 | EX94: -0.5547560926 | EY94: -138.4266775 | EZ94: 73.5 | FA94: 60.1
J95: 2453722 | K95: CO 4 Helix V 2203/SK-FFS-R | L95: 12.0 | M95: 30.0 | N95: 60.0 | O95: 90.0 | P95: 105.0 | Q95: 47.8 | R95: 47.7 | S95: 40.1 | T95: 23.4 | U95: 11.6 | V95: =IFERROR(VLOOKUP(J95,Прайс!A:E,Настройки!$E$1,0)*Настройки!$E$2,"по запросу") -> по запросу | W95: -0.0 | X95: 0.2 | Y95: 46.0 | Z95: 47.7 | AA95: по запросу | AB95: 12.0 | AC95: 35.3 | AD95: 58.5 | AE95: 81.8 | AF95: 105.0 | AG95: 47.8 | AH95: 47.0 | AI95: 40.7 | AJ95: 28.9 | AK95: 11.6 | AL95: 504.8 | AM95: 701 | AN95: 100 | AO95: 125 | AP95: 2R | AR95: CO-4 Helix V 2203 | AS95: Helix V 2203 | AT95: Helix | AU95: EN-GJL-250 | AV95: 1.4307 [AISI304L] | AW95: EPDM | AX95: 1.4057 [AISI431] | AY95: 1.4571 [AISI316Ti ] | AZ95: вода 100% | BA95: 20° | BB95: 998.3 kg/m3 | BC95: 1.00 mm2/s | BD95: SK-FFS/4-4,0(10A) | BE95: IP54 | BF95: нет | BG95: нет | BH95: IE2 | BI95: 3~400/50 Гц | BJ95: ±10% | BK95: 4 | BM95: 3 | BN95: 16 | BO95: 10 | BQ95: 210 | BR95: 1695 | BS95: 120 | BT95: 1948 | BU95: 2080 | BW95: 760 | BZ95: 1814 | CB95: 500 | CD95: 1334 | CE95: 396 | CF95: 438 | CG95: чертеж pdf | CH95: чертеж dwg | CI95: чертеж step | CJ95: чертеж 3d_dwg | CK95: 12.0 | CL95: 30.0 | CM95: 60.0 | CN95: 90.0 | CO95: 105.0 | CP95: 47.88 | CQ95: 48 | CR95: 41 | CS95: 25 | CT95: 13.625 | CV95: -0.005 | CW95: 0.217 | CX95: 46.000 | CY95: 48.0 | CZ95: CO-4 Helix V 2203 без учёта потерь напора | DA95: 12.0 | DB95: 35.3 | DC95: 58.5 | DD95: 81.8 | DE95: 105.0 | DF95: 47.9 | DG95: 47.4 | DH95: 41.6 | DI95: 30.3 | DJ95: 13.6 | EF95: -0.005 | EG95: 0.217 | EH95: 46.000 | EI95: 0.01611111111 | EJ95: -0.2166666667 | EK95: -46 | EL95: 60.6 | EM95: 40.8 | EN95: да | EO95: 58.5 | EP95: 73.38 | EQ95: 42.69 | ER95: 30.8 | ET95: -0.005 | EU95: 0.208 | EV95: 46.000 | EW95: 0.01620777778 | EX95: -0.2079466667 | EY95: -46 | EZ95: 60.1 | FA95: 40.1
J96: 2453302 | K96: CO 2 BL 65/210-22/2/SK-FFS-R | L96: 13.0 | M96: 40.0 | N96: 76.0 | O96: 100.0 | P96: 132.0 | Q96: 57.2 | R96: 56.4 | S96: 52.2 | T96: 47.4 | U96: 38.6 | V96: =IFERROR(VLOOKUP(J96,Прайс!A:E,Настройки!$E$1,0)*Настройки!$E$2,"по запросу") -> по запросу | W96: -0.0 | X96: 0.0 | Y96: 56.8 | Z96: 56.9 | AA96: по запросу | AB96: 13.0 | AC96: 42.8 | AD96: 72.5 | AE96: 102.3 | AF96: 132.0 | AG96: 57.2 | AH96: 56.2 | AI96: 52.8 | AJ96: 46.9 | AK96: 38.6 | AL96: 416.3 | AM96: 733.4 | AN96: 125 | AO96: 125 | AP96: 2R | AR96: CO-2 BL 65/210-22/2 | AS96: BL 65/210-22/2 | AT96: BL | AU96: EN-GJL-250 | AV96: EN-GJL-200 | AX96: 1.4122 | AY96: 1.4571 [AISI316Ti ] | AZ96: вода 100% | BA96: 20° | BB96: 998.3 kg/m3 | BC96: 1.00 mm2/s | BD96: SK-FFS/2-22(50A)/J-10A/V-3~1,0A | BE96: IP54 | BF96: нет | BG96: нет | BH96: IE2 | BI96: 3~400/50 Гц | BJ96: ±10% | BK96: 22 | BM96: 1 | BN96: 16 | BO96: 10 | BP96: 1845 | BQ96: 399 | BR96: 868 | BT96: 1044 | BW96: 600 | BX96: 1044 | BY96: 1666 | CD96: 1411 | CG96: чертеж pdf | CH96: чертеж dwg | CI96: чертеж step | CJ96: чертеж 3d_dwg | CK96: 13.0 | CL96: 40.0 | CM96: 76.0 | CN96: 100.0 | CO96: 132.0 | CP96: 57.25 | CQ96: 57.21 | CR96: 55.13 | CS96: 52.45 | CT96: 47.28 | CV96: -0.001 | CW96: 0.046 | CX96: 56.804 | CY96: 57.4 | CZ96: CO-2 BL 65/210-22/2 без учёта потерь напора | DA96: 13.0 | DB96: 42.8 | DC96: 72.5 | DD96: 102.3 | DE96: 132.0 | DF96: 57.2 | DG96: 57.1 | DH96: 55.4 | DI96: 52.1 | DJ96: 47.3 | EF96: -0.001 | EG96: 0.046 | EH96: 56.804 | EI96: 0.01200589997 | EJ96: -0.04595892611 | EK96: -56.80373987 | EL96: 70.7 | EM96: 55.6 | EN96: да | EO96: 72.5 | EP96: 91.54 | EQ96: 52.27 | ER96: 45.6 | ET96: -0.001 | EU96: 0.046 | EV96: 56.804 | EW96: 0.01250589997 | EX96: -0.04585892611 | EY96: -56.80423987 | EZ96: 69.3 | FA96: 53.3
J97: 2453656 | K97: CO 3 Helix V 3604/2/SK-FFS-R | L97: 12.0 | M97: 20.0 | N97: 60.0 | O97: 100.0 | P97: 110.0 | Q97: 88.8 | R97: 87.7 | S97: 74.4 | T97: 34.5 | U97: 20.7 | V97: =IFERROR(VLOOKUP(J97,Прайс!A:E,Настройки!$E$1,0)*Настройки!$E$2,"по запросу") -> по запросу | W97: -0.0 | X97: 0.3 | Y97: 86.0 | Z97: 87.2 | AA97: по запросу | AB97: 12.0 | AC97: 36.5 | AD97: 61.0 | AE97: 85.5 | AF97: 110.0 | AG97: 88.2 | AH97: 85.6 | AI97: 73.5 | AJ97: 51.9 | AK97: 20.7 | AL97: 451.2 | AM97: 837.5 | AN97: 100 | AO97: 125 | AP97: 2R | AR97: CO-3 Helix V 3604/2 | AS97: Helix V 3604/2 | AT97: Helix | AU97: EN-GJL-250 | AV97: 1.4307 [AISI304L] | AW97: EPDM | AX97: 1.4057 [AISI431] | AY97: 1.4571 [AISI316Ti ] | AZ97: вода 100% | BA97: 20° | BB97: 998.3 kg/m3 | BC97: 1.00 mm2/s | BD97: SK-FFS/3-11(24A)/V-3~1,0A | BE97: IP54 | BF97: нет | BG97: нет | BH97: IE2 | BI97: 3~400/50 Гц | BJ97: ±10% | BK97: 11 | BM97: 2 | BN97: 16 | BO97: 10 | BQ97: 225 | BR97: 1695 | BS97: 120 | BT97: 1448 | BU97: 1580 | BW97: 600 | BZ97: 1834 | CB97: 500 | CD97: 1354 | CE97: 406 | CF97: 448 | CG97: чертеж pdf | CH97: чертеж dwg | CI97: чертеж step | CJ97: чертеж 3d_dwg | CK97: 12.0 | CL97: 20.0 | CM97: 60.0 | CN97: 100.0 | CO97: 110.0 | CP97: 89 | CQ97: 88 | CR97: 76 | CS97: 38 | CT97: 24.75 | CV97: -0.008 | CW97: 0.292 | CX97: 86.026 | CY97: 87.8 | CZ97: CO-3 Helix V 3604/2 без учёта потерь напора | DA97: 12.0 | DB97: 36.5 | DC97: 61.0 | DD97: 85.5 | DE97: 110.0 | DF97: 88.4 | DG97: 86.4 | DH97: 75.1 | DI97: 54.6 | DJ97: 24.8 | EF97: -0.008 | EG97: 0.292 | EH97: 86.026 | EI97: 0.01882431892 | EJ97: -0.2915432157 | EK97: -86.02587494 | EL97: 75.8 | EM97: 63.8 | EN97: да | EO97: 61.0 | EP97: 76.68 | EQ97: 44.34 | ER97: 53.8 | ET97: -0.008 | EU97: 0.278 | EV97: 86.026 | EW97: 0.01904181892 | EX97: -0.2784632157 | EY97: -86.02587494 | EZ97: 74.9 | FA97: 62.4
J98: 2453657 | K98: CO 3 Helix V 3604/SK-FFS-R | L98: 12.0 | M98: 20.0 | N98: 60.0 | O98: 100.0 | P98: 110.0 | Q98: 101.8 | R98: 99.7 | S98: 81.4 | T98: 43.5 | U98: 31.1 | V98: =IFERROR(VLOOKUP(J98,Прайс!A:E,Настройки!$E$1,0)*Настройки!$E$2,"по запросу") -> по запросу | W98: -0.0 | X98: 0.0 | Y98: 102.3 | Z98: 97.1 | AA98: по запросу | AB98: 12.0 | AC98: 36.5 | AD98: 61.0 | AE98: 85.5 | AF98: 110.0 | AG98: 101.5 | AH98: 94.6 | AI98: 80.6 | AJ98: 59.4 | AK98: 31.1 | AL98: 451.2 | AM98: 837.5 | AN98: 100 | AO98: 125 | AP98: 2R | AR98: CO-3 Helix V 3604 | AS98: Helix V 3604 | AT98: Helix | AU98: EN-GJL-250 | AV98: 1.4307 [AISI304L] | AW98: EPDM | AX98: 1.4057 [AISI431] | AY98: 1.4571 [AISI316Ti ] | AZ98: вода 100% | BA98: 20° | BB98: 998.3 kg/m3 | BC98: 1.00 mm2/s | BD98: SK-FFS/3-11(24A)/V-3~1,0A | BE98: IP54 | BF98: нет | BG98: нет | BH98: IE2 | BI98: 3~400/50 Гц | BJ98: ±10% | BK98: 11 | BM98: 2 | BN98: 16 | BO98: 10 | BQ98: 225 | BR98: 1695 | BS98: 120 | BT98: 1448 | BU98: 1580 | BW98: 600 | BZ98: 1834 | CB98: 500 | CD98: 1354 | CE98: 406 | CF98: 448 | CG98: чертеж pdf | CH98: чертеж dwg | CI98: чертеж step | CJ98: чертеж 3d_dwg | CK98: 12.0 | CL98: 20.0 | CM98: 60.0 | CN98: 100.0 | CO98: 110.0 | CP98: 102 | CQ98: 100 | CR98: 83 | CS98: 47 | CT98: 35.1875 | CV98: -0.006 | CW98: 0.020 | CX98: 102.283 | CY98: 97.7 | CZ98: CO-3 Helix V 3604 без учёта потерь напора | DA98: 12.0 | DB98: 36.5 | DC98: 61.0 | DD98: 85.5 | DE98: 110.0 | DF98: 101.7 | DG98: 95.4 | DH98: 82.2 | DI98: 62.1 | DJ98: 35.2 | EF98: -0.006 | EG98: 0.020 | EH98: 102.283 | EI98: 0.01683870989 | EJ98: -0.02016443256 | EK98: -102.2825887 | EL98: 78.5 | EM98: 68.5 | EN98: да | EO98: 61.0 | EP98: 76.68 | EQ98: 44.34 | ER98: 58.5 | ET98: -0.006 | EU98: 0.007 | EV98: 102.283 | EW98: 0.01705620989 | EX98: -0.007084432557 | EY98: -102.2825887 | EZ98: 77.6 | FA98: 67.0
J99: 2453354 | K99: CO 3 BL 50/250-3/4/SK-FFS-R | L99: 12.0 | M99: 30.0 | N99: 40.0 | O99: 48.0 | P99: 62.0 | Q99: 22.9 | R99: 23.0 | S99: 22.4 | T99: 21.6 | U99: 19.8 | V99: =IFERROR(VLOOKUP(J99,Прайс!A:E,Настройки!$E$1,0)*Настройки!$E$2,"по запросу") -> по запросу | W99: -0.0 | X99: 0.1 | Y99: 22.2 | Z99: 22.9 | AA99: по запросу | AB99: 12.0 | AC99: 24.5 | AD99: 37.0 | AE99: 49.5 | AF99: 62.0 | AG99: 22.9 | AH99: 23.1 | AI99: 22.6 | AJ99: 21.5 | AK99: 19.8 | AL99: 501.7 | AM99: 634.2 | AN99: 100 | AO99: 100 | AP99: 2R | AR99: CO-3 BL 50/250-3/4 | AS99: BL 50/250-3/4 | AT99: BL | AU99: EN-GJL-250 | AV99: EN-GJL-200 | AX99: 1.4122 | AY99: 1.4571 [AISI316Ti ] | AZ99: вода 100% | BA99: 20° | BB99: 998.3 kg/m3 | BC99: 1.00 mm2/s | BD99: SK-FFS/3-3,0(8A)/V-3~1,0A | BE99: IP54 | BF99: нет | BG99: нет | BH99: IE2 | BI99: 3~400/50 Гц | BJ99: ±10% | BK99: 3 | BM99: 2 | BN99: 16 | BO99: 10 | BP99: 1845 | BQ99: 465 | BR99: 799 | BT99: 1598 | BW99: 600 | BX99: 1598 | BY99: 1506 | CD99: 1281 | CG99: чертеж pdf | CH99: чертеж dwg | CI99: чертеж step | CJ99: чертеж 3d_dwg | CK99: 12.0 | CL99: 30.0 | CM99: 40.0 | CN99: 48.0 | CO99: 62.0 | CP99: 22.98 | CQ99: 23.51 | CR99: 23.36 | CS99: 23.03 | CT99: 22.16 | CV99: -0.001 | CW99: 0.084 | CX99: 22.176 | CY99: 23.5 | CZ99: CO-3 BL 50/250-3/4 без учёта потерь напора | DA99: 12.0 | DB99: 24.5 | DC99: 37.0 | DD99: 49.5 | DE99: 62.0 | DF99: 23.0 | DG99: 23.4 | DH99: 23.4 | DI99: 23.0 | DJ99: 22.1 | EF99: -0.001 | EG99: 0.084 | EH99: 22.176 | EI99: 0.01247991317 | EJ99: -0.08433455211 | EK99: -22.17645475 | EL99: 45.7 | EM99: 23.2 | EN99: да | EO99: 37.0 | EP99: 45 | EQ99: 28.5 | ER99: 13.2 | ET99: -0.002 | EU99: 0.084 | EV99: 22.177 | EW99: 0.01307991317 | EX99: -0.08418455211 | EY99: -22.17695475 | EZ99: 44.5 | FA99: 22.0
J100: 2453347 | K100: CO 3 BL 50/120-3/2/SK-FFS-R | L100: 16.0 | M100: 30.0 | N100: 44.0 | O100: 72.0 | P100: 90.0 | Q100: 18.1 | R100: 18.0 | S100: 17.4 | T100: 15.2 | U100: 12.9 | V100: =IFERROR(VLOOKUP(J100,Прайс!A:E,Настройки!$E$1,0)*Настройки!$E$2,"по запросу") -> по запросу | W100: -0.0 | X100: 0.0 | Y100: 17.9 | Z100: 18.0 | AA100: по запросу | AB100: 16.0 | AC100: 34.5 | AD100: 53.0 | AE100: 71.5 | AF100: 90.0 | AG100: 18.1 | AH100: 17.8 | AI100: 16.9 | AJ100: 15.2 | AK100: 12.9 | AL100: 477.5 | AM100: 559.2 | AN100: 100 | AO100: 100 | AP100: 2R | AR100: CO-3 BL 50/120-3/2 | AS100: BL 50/120-3/2 | AT100: BL | AU100: EN-GJL-250 | AV100: EN-GJL-200 | AX100: 1.4122 | AY100: 1.4571 [AISI316Ti ] | AZ100: вода 100% | BA100: 20° | BB100: 998.3 kg/m3 | BC100: 1.00 mm2/s | BD100: SK-FFS/3-3,0(8A)/V-3~1,0A | BE100: IP54 | BF100: нет | BG100: нет | BH100: IE2 | BI100: 3~400/50 Гц | BJ100: ±10% | BK100: 3 | BM100: 2 | BN100: 16 | BO100: 10 | BP100: 1845 | BQ100: 475 | BR100: 809 | BT100: 1598 | BW100: 600 | BX100: 1598 | BY100: 1401 | CD100: 1176 | CG100: чертеж pdf | CH100: чертеж dwg | CI100: чертеж step | CJ100: чертеж 3d_dwg | CK100: 16.0 | CL100: 30.0 | CM100: 44.0 | CN100: 72.0 | CO100: 90.0 | CP100: 18.28 | CQ100: 18.5 | CR100: 18.58 | CS100: 18.3 | CT100: 17.82 | CV100: -0.000 | CW100: 0.033 | CX100: 17.851 | CY100: 18.5 | CZ100: CO-3 BL 50/120-3/2 без учёта потерь напора | DA100: 16.0 | DB100: 34.5 | DC100: 53.0 | DD100: 71.5 | DE100: 90.0 | DF100: 18.3 | DG100: 18.5 | DH100: 18.6 | DI100: 18.3 | DJ100: 17.8 | EF100: -0.000 | EG100: 0.033 | EH100: 17.851 | EI100: 0.01147804907 | EJ100: -0.03267299409 | EK100: -17.85107632 | EL100: 40.9 | EM100: 18.6 | EN100: да | EO100: 53.0 | EP100: 64.84 | EQ100: 40.42 | ER100: 8.6 | ET100: -0.001 | EU100: 0.033 | EV100: 17.852 | EW100: 0.01207804907 | EX100: -0.03252299409 | EY100: -17.85157632 | EZ100: 39.8 | FA100: 17.6
J101: 2453663 | K101: CO 3 Helix V 5202/2/SK-FFS-R | L101: 18.0 | M101: 40.0 | N101: 60.0 | O101: 100.0 | P101: 160.0 | Q101: 37.8 | R101: 37.0 | S101: 35.3 | T101: 26.3 | U101: 0.8 | V101: =IFERROR(VLOOKUP(J101,Прайс!A:E,Настройки!$E$1,0)*Настройки!$E$2,"по запросу") -> по запросу | W101: -0.0 | X101: 0.1 | Y101: 36.5 | Z101: 37.7 | AA101: по запросу | AB101: 18.0 | AC101: 53.5 | AD101: 89.0 | AE101: 124.5 | AF101: 160.0 | AG101: 37.6 | AH101: 36.0 | AI101: 29.4 | AJ101: 17.6 | AK101: 0.8 | AL101: 492.9 | AM101: 795.5 | AN101: 150 | AO101: 150 | AP101: 2R | AR101: CO-3 Helix V 5202/2 | AS101: Helix V 5202/2 | AT101: Helix | AU101: EN-GJL-250 | AV101: 1.4307 [AISI304L] | AW101: EPDM | AX101: 1.4057 [AISI431] | AY101: 1.4571 [AISI316Ti ] | AZ101: вода 100% | BA101: 20° | BB101: 998.3 kg/m3 | BC101: 1.00 mm2/s | BD101: SK-FFS/3-5,5(12A)/V-3~1,0A | BE101: IP54 | BF101: нет | BG101: нет | BH101: IE2 | BI101: 3~400/50 Гц | BJ101: ±10% | BK101: 5.5 | BM101: 2 | BN101: 16 | BO101: 10 | BQ101: 260 | BR101: 1695 | BS101: 120 | BT101: 1444 | BU101: 1580 | BW101: 600 | BZ101: 2063 | CB101: 500 | CD101: 1527 | CE101: 438.5 | CF101: 588.5 | CG101: чертеж pdf | CH101: чертеж dwg | CI101: чертеж step | CJ101: чертеж 3d_dwg | CK101: 18.0 | CL101: 40.0 | CM101: 60.0 | CN101: 100.0 | CO101: 160.0 | CP101: 37.77 | CQ101: 37.06 | CR101: 35.35 | CS101: 26.6 | CT101: 1.445 | CV101: -0.002 | CW101: 0.099 | CX101: 36.516 | CY101: 37.7 | CZ101: CO-3 Helix V 5202/2 без учёта потерь напора | DA101: 18.0 | DB101: 53.5 | DC101: 89.0 | DD101: 124.5 | DE101: 160.0 | DF101: 37.6 | DG101: 36.1 | DH101: 29.6 | DI101: 18.0 | DJ101: 1.5 | EF101: -0.002 | EG101: 0.099 | EH101: 36.516 | EI101: 0.01309735624 | EJ101: -0.09875528722 | EK101: -36.51556923 | EL101: 56.7 | EM101: 35.7 | EN101: да | EO101: 89.0 | EP101: 111.72 | EQ101: 64.86 | ER101: 25.7 | ET101: -0.002 | EU101: 0.099 | EV101: 36.516 | EW101: 0.01312235624 | EX101: -0.09870528722 | EY101: -36.51586923 | EZ101: 56.6 | FA101: 35.7
J102: 2453346 | K102: CO 3 BL 40/265-4/4/SK-FFS-R | L102: 8.0 | M102: 28.0 | N102: 50.0 | O102: 64.0 | P102: 89.0 | Q102: 25.5 | R102: 24.6 | S102: 21.4 | T102: 18.2 | U102: 9.5 | V102: =IFERROR(VLOOKUP(J102,Прайс!A:E,Настройки!$E$1,0)*Настройки!$E$2,"по запросу") -> по запросу | W102: -0.0 | X102: 0.1 | Y102: 25.2 | Z102: 24.5 | AA102: по запросу | AB102: 8.0 | AC102: 28.3 | AD102: 48.5 | AE102: 68.8 | AF102: 89.0 | AG102: 25.4 | AH102: 24.7 | AI102: 21.7 | AJ102: 16.7 | AK102: 9.6 | AL102: 487.9 | AM102: 640.2 | AN102: 80 | AO102: 100 | AP102: 2R | AR102: CO-3 BL 40/265-4/4 | AS102: BL 40/265-4/4 | AT102: BL | AU102: EN-GJL-250 | AV102: EN-GJL-200 | AX102: 1.4122 | AY102: 1.4571 [AISI316Ti ] | AZ102: вода 100% | BA102: 20° | BB102: 998.3 kg/m3 | BC102: 1.00 mm2/s | BD102: SK-FFS/3-4,0(10A)/V-3~1,0A | BE102: IP54 | BF102: нет | BG102: нет | BH102: IE2 | BI102: 3~400/50 Гц | BJ102: ±10% | BK102: 4 | BM102: 2 | BN102: 16 | BO102: 10 | BP102: 1845 | BQ102: 470 | BR102: 804 | BT102: 1604 | BW102: 600 | BX102: 1604 | BY102: 1488 | CD102: 1263 | CG102: чертеж pdf | CH102: чертеж dwg | CI102: чертеж step | CJ102: чертеж 3d_dwg | CK102: 8.0 | CL102: 28.0 | CM102: 50.0 | CN102: 64.0 | CO102: 89.0 | CP102: 25.55 | CQ102: 25.26 | CR102: 23.56 | CS102: 21.72 | CT102: 16.35 | CV102: -0.002 | CW102: 0.054 | CX102: 25.181 | CY102: 25.3 | CZ102: CO-3 BL 40/265-4/4 без учёта потерь напора | DA102: 8.0 | DB102: 28.3 | DC102: 48.5 | DD102: 68.8 | DE102: 89.0 | DF102: 25.5 | DG102: 25.3 | DH102: 23.8 | DI102: 20.8 | DJ102: 16.4 | EF102: -0.002 | EG102: 0.054 | EH102: 25.181 | EI102: 0.01282822942 | EJ102: -0.05405150827 | EK102: -25.18104248 | EL102: 46.5 | EM102: 24.0 | EN102: да | EO102: 48.5 | EP102: 61.46 | EQ102: 34.73 | ER102: 14.0 | ET102: -0.003 | EU102: 0.054 | EV102: 25.175 | EW102: 0.01368926648 | EX102: -0.05428597789 | EY102: -25.17457304 | EZ102: 44.9 | FA102: 22.4
J103: 2453598 | K103: CO 2 MVI 7003/1/SK-FFS-R | L103: 15.0 | M103: 40.0 | N103: 60.0 | O103: 90.0 | P103: 110.0 | Q103: 70.4 | R103: 64.7 | S103: 57.6 | T103: 38.4 | U103: 19.2 | V103: =IFERROR(VLOOKUP(J103,Прайс!A:E,Настройки!$E$1,0)*Настройки!$E$2,"по запросу") -> по запросу | W103: -0.0 | X103: 0.1 | Y103: 69.8 | Z103: 68.1 | AA103: по запросу | AB103: 15.0 | AC103: 38.8 | AD103: 62.5 | AE103: 86.3 | AF103: 110.0 | AG103: 70.1 | AH103: 65.9 | AI103: 56.1 | AJ103: 40.7 | AK103: 19.6 | AL103: 483.9 | AM103: 660 | AN103: 150 | AO103: 150 | AP103: 2R | AR103: CO-2 MVI 7003/1 | AS103: MVI 7003/1 | AT103: Helix | AU103: EN-GJL-250 | AV103: 1.4307 [AISI304L] | AW103: EPDM | AX103: 1.4057 [AISI431] | AY103: 1.4571 [AISI316Ti ] | AZ103: вода 100% | BA103: 20° | BB103: 998.3 kg/m3 | BC103: 1.00 mm2/s | BD103: SK-FFS/2-15(32A)/J-6,3A/V-3~1,0A | BE103: IP54 | BF103: нет | BG103: нет | BH103: IE2 | BI103: 3~400/50 Гц | BJ103: ±10% | BK103: 15 | BM103: 1 | BN103: 16 | BO103: 10 | BQ103: 262 | BR103: 1697 | BS103: 122 | BT103: 944 | BU103: 1000 | BW103: 600 | BZ103: 1980 | CB103: 650 | CD103: 1444 | CE103: 371 | CF103: 423 | CG103: чертеж pdf | CH103: чертеж dwg | CI103: чертеж step | CJ103: чертеж 3d_dwg | CK103: 15.0 | CL103: 40.0 | CM103: 60.0 | CN103: 90.0 | CO103: 110.0 | CP103: 70.82 | CQ103: 65.7 | CR103: 59 | CS103: 40.36 | CT103: 21.6 | CV103: -0.005 | CW103: 0.117 | CX103: 69.839 | CY103: 68.8 | CZ103: CO-2 MVI 7003/1 без учёта потерь напора | DA103: 15.0 | DB103: 38.8 | DC103: 62.5 | DD103: 86.3 | DE103: 110.0 | DF103: 70.5 | DG103: 66.8 | DH103: 57.6 | DI103: 42.6 | DJ103: 22.0 | EF103: -0.005 | EG103: 0.117 | EH103: 69.839 | EI103: 0.01613299341 | EJ103: -0.1173723516 | EK103: -69.83868861 | EL103: 69.5 | EM103: 53.7 | EN103: да | EO103: 62.5 | EP103: 77.7 | EQ103: 46.35 | ER103: 43.7 | ET103: -0.005 | EU103: 0.091 | EV103: 69.839 | EW103: 0.01609299341 | EX103: -0.09147235162 | EY103: -69.83868861 | EZ103: 68.8 | FA103: 52.6
J104: 2453308 | K104: CO 2 BL 80/210-30/2/SK-FFS-R | L104: 24.0 | M104: 72.0 | N104: 108.0 | O104: 136.0 | P104: 152.0 | Q104: 54.8 | R104: 54.7 | S104: 53.1 | T104: 51.0 | U104: 49.4 | V104: =IFERROR(VLOOKUP(J104,Прайс!A:E,Настройки!$E$1,0)*Настройки!$E$2,"по запросу") -> по запросу | W104: -0.0 | X104: 0.0 | Y104: 53.9 | Z104: 54.9 | AA104: по запросу | AB104: 24.0 | AC104: 56.0 | AD104: 88.0 | AE104: 120.0 | AF104: 152.0 | AG104: 54.8 | AH104: 55.0 | AI104: 54.2 | AJ104: 52.3 | AK104: 49.4 | AL104: 462.5 | AM104: 893.4 | AN104: 150 | AO104: 150 | AP104: 2R | AR104: CO-2 BL 80/210-30/2 | AS104: BL 80/210-30/2 | AT104: BL | AU104: EN-GJL-250 | AV104: EN-GJL-200 | AX104: 1.4122 | AY104: 1.4571 [AISI316Ti ] | AZ104: вода 100% | BA104: 20° | BB104: 998.3 kg/m3 | BC104: 1.00 mm2/s | BD104: SK-FFS/2-30(65A)/J-10A/V-3~1,0A | BE104: IP54 | BF104: нет | BG104: нет | BH104: IE2 | BI104: 3~400/50 Гц | BJ104: ±10% | BK104: 30 | BM104: 1 | BN104: 16 | BO104: 10 | BP104: 1845 | BQ104: 358.5 | BR104: 814.5 | BT104: 1044 | BW104: 600 | BX104: 1060 | BY104: 1746 | CD104: 1478 | CG104: чертеж pdf | CH104: чертеж dwg | CI104: чертеж step | CJ104: чертеж 3d_dwg | CK104: 24.0 | CL104: 72.0 | CM104: 108.0 | CN104: 136.0 | CO104: 152.0 | CP104: 54.89 | CQ104: 55.76 | CR104: 55.48 | CS104: 54.71 | CT104: 54.04 | CV104: -0.000 | CW104: 0.048 | CX104: 53.917 | CY104: 55.1 | CZ104: CO-2 BL 80/210-30/2 без учёта потерь напора | DA104: 24.0 | DB104: 56.0 | DC104: 88.0 | DD104: 120.0 | DE104: 152.0 | DF104: 54.9 | DG104: 55.6 | DH104: 55.7 | DI104: 55.2 | DJ104: 54.0 | EF104: -0.000 | EG104: 0.048 | EH104: 53.917 | EI104: 0.01142109994 | EJ104: -0.04795253546 | EK104: -53.91682668 | EL104: 70.8 | EM104: 55.8 | EN104: да | EO104: 88.0 | EP104: 108.48 | EQ104: 66.24 | ER104: 45.8 | ET104: -0.001 | EU104: 0.048 | EV104: 53.917 | EW104: 0.01162109994 | EX104: -0.04788253546 | EY104: -53.91712668 | EZ104: 70.2 | FA104: 54.8
J105: 2453306 | K105: CO 2 BL 80/200-30/2/SK-FFS-R | L105: 22.0 | M105: 55.0 | N105: 75.0 | O105: 135.0 | P105: 216.0 | Q105: 48.3 | R105: 48.9 | S105: 48.6 | T105: 44.4 | U105: 31.1 | V105: =IFERROR(VLOOKUP(J105,Прайс!A:E,Настройки!$E$1,0)*Настройки!$E$2,"по запросу") -> по запросу | W105: -0.0 | X105: 0.1 | Y105: 47.1 | Z105: 48.6 | AA105: по запросу | AB105: 22.0 | AC105: 70.5 | AD105: 119.0 | AE105: 167.5 | AF105: 216.0 | AG105: 48.3 | AH105: 48.7 | AI105: 45.9 | AJ105: 40.1 | AK105: 31.1 | AL105: 462.5 | AM105: 893.4 | AN105: 150 | AO105: 150 | AP105: 2R | AR105: CO-2 BL 80/200-30/2 | AS105: BL 80/200-30/2 | AT105: BL | AU105: EN-GJL-250 | AV105: EN-GJL-200 | AX105: 1.4122 | AY105: 1.4571 [AISI316Ti ] | AZ105: вода 100% | BA105: 20° | BB105: 998.3 kg/m3 | BC105: 1.00 mm2/s | BD105: SK-FFS/2-30(65A)/J-10A/V-3~1,0A | BE105: IP54 | BF105: нет | BG105: нет | BH105: IE2 | BI105: 3~400/50 Гц | BJ105: ±10% | BK105: 30 | BM105: 1 | BN105: 16 | BO105: 10 | BP105: 1845 | BQ105: 359.5 | BR105: 815.5 | BT105: 1044 | BW105: 600 | BX105: 1060 | BY105: 1721 | CD105: 1453 | CG105: чертеж pdf | CH105: чертеж dwg | CI105: чертеж step | CJ105: чертеж 3d_dwg | CK105: 22.0 | CL105: 55.0 | CM105: 75.0 | CN105: 135.0 | CO105: 216.0 | CP105: 48.43 | CQ105: 49.53 | CR105: 49.7 | CS105: 48.01 | CT105: 40.42 | CV105: -0.000 | CW105: 0.069 | CX105: 47.134 | CY105: 48.8 | CZ105: CO-2 BL 80/200-30/2 без учёта потерь напора | DA105: 22.0 | DB105: 70.5 | DC105: 119.0 | DD105: 167.5 | DE105: 216.0 | DF105: 48.4 | DG105: 49.7 | DH105: 48.8 | DI105: 45.7 | DJ105: 40.4 | EF105: -0.000 | EG105: 0.069 | EH105: 47.134 | EI105: 0.01157460717 | EJ105: -0.06903412975 | EK105: -47.13429872 | EL105: 66.9 | EM105: 49.7 | EN105: да | EO105: 119.0 | EP105: 150.04 | EQ105: 86.02 | ER105: 39.7 | ET105: -0.001 | EU105: 0.069 | EV105: 47.135 | EW105: 0.01177460717 | EX105: -0.06896412975 | EY105: -47.13459872 | EZ105: 66.3 | FA105: 48.8
J106: 2453303 | K106: CO 2 BL 65/220-30/2/SK-FFS-R | L106: 17.5 | M106: 40.0 | N106: 70.0 | O106: 100.0 | P106: 167.0 | Q106: 68.7 | R106: 68.6 | S106: 65.9 | T106: 60.3 | U106: 37.1 | V106: =IFERROR(VLOOKUP(J106,Прайс!A:E,Настройки!$E$1,0)*Настройки!$E$2,"по запросу") -> по запросу | W106: -0.0 | X106: 0.1 | Y106: 67.6 | Z106: 68.8 | AA106: по запросу | AB106: 17.5 | AC106: 54.9 | AD106: 92.3 | AE106: 129.6 | AF106: 167.0 | AG106: 68.7 | AH106: 67.6 | AI106: 62.0 | AJ106: 51.8 | AK106: 37.1 | AL106: 446.9 | AM106: 835.4 | AN106: 125 | AO106: 150 | AP106: 2R | AR106: CO-2 BL 65/220-30/2 | AS106: BL 65/220-30/2 | AT106: BL | AU106: EN-GJL-250 | AV106: EN-GJL-200 | AX106: 1.4122 | AY106: 1.4571 [AISI316Ti ] | AZ106: вода 100% | BA106: 20° | BB106: 998.3 kg/m3 | BC106: 1.00 mm2/s | BD106: SK-FFS/2-30(65A)/J-10A/V-3~1,0A | BE106: IP54 | BF106: нет | BG106: нет | BH106: IE2 | BI106: 3~400/50 Гц | BJ106: ±10% | BK106: 30 | BM106: 1 | BN106: 16 | BO106: 10 | BP106: 1845 | BQ106: 349.5 | BR106: 818.5 | BT106: 1044 | BW106: 600 | BX106: 1044 | BY106: 1659 | CD106: 1391 | CG106: чертеж pdf | CH106: чертеж dwg | CI106: чертеж step | CJ106: чертеж 3d_dwg | CK106: 17.5 | CL106: 40.0 | CM106: 70.0 | CN106: 100.0 | CO106: 167.0 | CP106: 68.81 | CQ106: 69.37 | CR106: 68.33 | CS106: 65.27 | CT106: 51.07 | CV106: -0.001 | CW106: 0.090 | CX106: 67.584 | CY106: 69.3 | CZ106: CO-2 BL 65/220-30/2 без учёта потерь напора | DA106: 17.5 | DB106: 54.9 | DC106: 92.3 | DD106: 129.6 | DE106: 167.0 | DF106: 68.8 | DG106: 69.1 | DH106: 66.3 | DI106: 60.2 | DJ106: 51.1 | EF106: -0.001 | EG106: 0.090 | EH106: 67.584 | EI106: 0.01224107761 | EJ106: -0.08982251559 | EK106: -67.58383057 | EL106: 78.1 | EM106: 67.7 | EN106: да | EO106: 92.3 | EP106: 116.17 | EQ106: 66.835 | ER106: 57.7 | ET106: -0.002 | EU106: 0.090 | EV106: 67.584 | EW106: 0.01274107761 | EX106: -0.08972251559 | EY106: -67.58433057 | EZ106: 76.4 | FA106: 64.9
J107: 2453600 | K107: CO 2 MVI 7003/SK-FFS-R | L107: 15.0 | M107: 40.0 | N107: 60.0 | O107: 90.0 | P107: 110.0 | Q107: 76.4 | R107: 70.6 | S107: 64.6 | T107: 47.1 | U107: 28.9 | V107: =IFERROR(VLOOKUP(J107,Прайс!A:E,Настройки!$E$1,0)*Настройки!$E$2,"по запросу") -> по запросу | W107: -0.0 | X107: 0.1 | Y107: 75.5 | Z107: 74.1 | AA107: по запросу | AB107: 15.0 | AC107: 38.8 | AD107: 62.5 | AE107: 86.3 | AF107: 110.0 | AG107: 75.8 | AH107: 72.1 | AI107: 63.1 | AJ107: 48.9 | AK107: 29.5 | AL107: 492.7 | AM107: 690 | AN107: 150 | AO107: 150 | AP107: 2R | AR107: CO-2 MVI 7003 | AS107: MVI 7003 | AT107: Helix | AU107: EN-GJL-250 | AV107: 1.4307 [AISI304L] | AW107: EPDM | AX107: 1.4057 [AISI431] | AY107: 1.4571 [AISI316Ti ] | AZ107: вода 100% | BA107: 20° | BB107: 998.3 kg/m3 | BC107: 1.00 mm2/s | BD107: SK-FFS/2-18(40A)/J-10A/V-3~1,0A | BE107: IP54 | BF107: нет | BG107: нет | BH107: IE2 | BI107: 3~400/50 Гц | BJ107: ±10% | BK107: 18.5 | BM107: 1 | BN107: 16 | BO107: 10 | BQ107: 262 | BR107: 1697 | BS107: 122 | BT107: 944 | BU107: 1000 | BW107: 600 | BZ107: 1980 | CB107: 650 | CD107: 1444 | CE107: 371 | CF107: 423 | CG107: чертеж pdf | CH107: чертеж dwg | CI107: чертеж step | CJ107: чертеж 3d_dwg | CK107: 15.0 | CL107: 40.0 | CM107: 60.0 | CN107: 90.0 | CO107: 110.0 | CP107: 76.73 | CQ107: 71.55 | CR107: 65.96 | CS107: 49.15 | CT107: 31.24 | CV107: -0.005 | CW107: 0.117 | CX107: 75.510 | CY107: 74.8 | CZ107: CO-2 MVI 7003 без учёта потерь напора | DA107: 15.0 | DB107: 38.8 | DC107: 62.5 | DD107: 86.3 | DE107: 110.0 | DF107: 76.2 | DG107: 73.0 | DH107: 64.6 | DI107: 50.8 | DJ107: 31.8 | EF107: -0.005 | EG107: 0.117 | EH107: 75.510 | EI107: 0.01578560948 | EJ107: -0.1170362134 | EK107: -75.50952271 | EL107: 73.0 | EM107: 59.2 | EN107: да | EO107: 62.5 | EP107: 77.7 | EQ107: 46.35 | ER107: 49.2 | ET107: -0.005 | EU107: 0.091 | EV107: 75.510 | EW107: 0.01574560948 | EX107: -0.09113621337 | EY107: -75.50952271 | EZ107: 72.2 | FA107: 57.9
J108: 2453393 | K108: CO 4 BL 32/160-4/2/SK-FFS-R | L108: 9.0 | M108: 30.0 | N108: 45.0 | O108: 60.0 | P108: 99.0 | Q108: 35.2 | R108: 34.7 | S108: 33.2 | T108: 30.8 | U108: 20.6 | V108: =IFERROR(VLOOKUP(J108,Прайс!A:E,Настройки!$E$1,0)*Настройки!$E$2,"по запросу") -> по запросу | W108: -0.0 | X108: 0.0 | Y108: 34.9 | Z108: 34.7 | AA108: по запросу | AB108: 9.0 | AC108: 31.5 | AD108: 54.0 | AE108: 76.5 | AF108: 99.0 | AG108: 35.2 | AH108: 34.5 | AI108: 31.9 | AJ108: 27.2 | AK108: 20.6 | AL108: 590.8 | AM108: 758.2 | AN108: 80 | AO108: 100 | AP108: 2R | AR108: CO-4 BL 32/160-4/2 | AS108: BL 32/160-4/2 | AT108: BL | AU108: EN-GJL-250 | AV108: EN-GJL-200 | AX108: 1.4122 | AY108: 1.4571 [AISI316Ti ] | AZ108: вода 100% | BA108: 20° | BB108: 998.3 kg/m3 | BC108: 1.00 mm2/s | BD108: SK-FFS/4-4,0(10A) | BE108: IP54 | BF108: нет | BG108: нет | BH108: IE2 | BI108: 3~400/50 Гц | BJ108: ±10% | BK108: 4 | BM108: 3 | BN108: 16 | BO108: 10 | BP108: 1845 | BQ108: 433 | BR108: 820 | BT108: 2154 | BW108: 760 | BX108: 2154 | BY108: 1375 | CD108: 1150 | CG108: чертеж pdf | CH108: чертеж dwg | CI108: чертеж step | CJ108: чертеж 3d_dwg | CK108: 9.0 | CL108: 30.0 | CM108: 45.0 | CN108: 60.0 | CO108: 99.0 | CP108: 35.3 | CQ108: 35.5 | CR108: 35.09 | CS108: 34.22 | CT108: 29.8 | CV108: -0.001 | CW108: 0.049 | CX108: 34.938 | CY108: 35.5 | CZ108: CO-4 BL 32/160-4/2 без учёта потерь напора | DA108: 9.0 | DB108: 31.5 | DC108: 54.0 | DD108: 76.5 | DE108: 99.0 | DF108: 35.3 | DG108: 35.5 | DH108: 34.6 | DI108: 32.7 | DJ108: 29.8 | EF108: -0.001 | EG108: 0.049 | EH108: 34.938 | EI108: 0.01213491846 | EJ108: -0.04946174273 | EK108: -34.93768073 | EL108: 55.7 | EM108: 34.5 | EN108: да | EO108: 54.0 | EP108: 68.4 | EQ108: 38.7 | ER108: 24.5 | ET108: -0.002 | EU108: 0.049 | EV108: 34.945 | EW108: 0.01306825179 | EX108: -0.04896174273 | EY108: -34.94468073 | EZ108: 53.6 | FA108: 31.9
J109: 2453664 | K109: CO 3 Helix V 5202/SK-FFS-R | L109: 18.0 | M109: 40.0 | N109: 60.0 | O109: 100.0 | P109: 160.0 | Q109: 54.4 | R109: 50.7 | S109: 46.6 | T109: 36.4 | U109: 10.3 | V109: =IFERROR(VLOOKUP(J109,Прайс!A:E,Настройки!$E$1,0)*Настройки!$E$2,"по запросу") -> по запросу | W109: -0.0 | X109: -0.1 | Y109: 55.4 | Z109: 52.5 | AA109: по запросу | AB109: 18.0 | AC109: 53.5 | AD109: 89.0 | AE109: 124.5 | AF109: 160.0 | AG109: 54.0 | AH109: 48.5 | AI109: 39.4 | AJ109: 26.7 | AK109: 10.5 | AL109: 463.7 | AM109: 873.5 | AN109: 150 | AO109: 150 | AP109: 2R | AR109: CO-3 Helix V 5202 | AS109: Helix V 5202 | AT109: Helix | AU109: EN-GJL-250 | AV109: 1.4307 [AISI304L] | AW109: EPDM | AX109: 1.4057 [AISI431] | AY109: 1.4571 [AISI316Ti ] | AZ109: вода 100% | BA109: 20° | BB109: 998.3 kg/m3 | BC109: 1.00 mm2/s | BD109: SK-FFS/3-7,5(18A)/V-3~1,0A | BE109: IP54 | BF109: нет | BG109: нет | BH109: IE2 | BI109: 3~400/50 Гц | BJ109: ±10% | BK109: 7.5 | BM109: 2 | BN109: 16 | BO109: 10 | BQ109: 260 | BR109: 1695 | BS109: 120 | BT109: 1444 | BU109: 1580 | BW109: 600 | BZ109: 1965 | CB109: 500 | CD109: 1429 | CE109: 438.5 | CF109: 490.5 | CG109: чертеж pdf | CH109: чертеж dwg | CI109: чертеж step | CJ109: чертеж 3d_dwg | CK109: 18.0 | CL109: 40.0 | CM109: 60.0 | CN109: 100.0 | CO109: 160.0 | CP109: 54.59 | CQ109: 51.19 | CR109: 47.35 | CS109: 37.6 | CT109: 12.13 | CV109: -0.001 | CW109: -0.041 | CX109: 55.440 | CY109: 52.9 | CZ109: CO-3 Helix V 5202 без учёта потерь напора | DA109: 18.0 | DB109: 53.5 | DC109: 89.0 | DD109: 124.5 | DE109: 160.0 | DF109: 54.2 | DG109: 49.1 | DH109: 40.5 | DI109: 28.2 | DJ109: 12.3 | EF109: -0.001 | EG109: -0.041 | EH109: 55.440 | EI109: 0.01253938167 | EJ109: 0.04127936232 | EK109: -55.43995945 | EL109: 64.9 | EM109: 46.8 | EN109: да | EO109: 89.0 | EP109: 111.72 | EQ109: 64.86 | ER109: 36.8 | ET109: -0.001 | EU109: -0.054 | EV109: 55.440 | EW109: 0.01252938167 | EX109: 0.05422936232 | EY109: -55.43995945 | EZ109: 64.4 | FA109: 46.1
J110: 2453337 | K110: CO 3 BL 40/170-5.5/2/SK-FFS-R | L110: 12.0 | M110: 30.0 | N110: 38.0 | O110: 50.0 | P110: 64.0 | Q110: 41.2 | R110: 41.0 | S110: 40.5 | T110: 39.4 | U110: 37.4 | V110: =IFERROR(VLOOKUP(J110,Прайс!A:E,Настройки!$E$1,0)*Настройки!$E$2,"по запросу") -> по запросу | W110: -0.0 | X110: 0.1 | Y110: 40.7 | Z110: 41.0 | AA110: по запросу | AB110: 12.0 | AC110: 25.0 | AD110: 38.0 | AE110: 51.0 | AF110: 64.0 | AG110: 41.2 | AH110: 41.2 | AI110: 40.5 | AJ110: 39.3 | AK110: 37.4 | AL110: 488.1 | AM110: 628.2 | AN110: 80 | AO110: 100 | AP110: 2R | AR110: CO-3 BL 40/170-5.5/2 | AS110: BL 40/170-5.5/2 | AT110: BL | AU110: EN-GJL-250 | AV110: EN-GJL-200 | AX110: 1.4122 | AY110: 1.4571 [AISI316Ti ] | AZ110: вода 100% | BA110: 20° | BB110: 998.3 kg/m3 | BC110: 1.00 mm2/s | BD110: SK-FFS/3-5,5(12A)/V-3~1,0A | BE110: IP54 | BF110: нет | BG110: нет | BH110: IE2 | BI110: 3~400/50 Гц | BJ110: ±10% | BK110: 5.5 | BM110: 2 | BN110: 16 | BO110: 10 | BP110: 1845 | BQ110: 280.86 | BR110: 674.86 | BT110: 1604 | BW110: 600 | BX110: 1604 | BY110: 1477 | CD110: 1252 | CG110: чертеж pdf | CH110: чертеж dwg | CI110: чертеж step | CJ110: чертеж 3d_dwg | CK110: 12.0 | CL110: 30.0 | CM110: 38.0 | CN110: 50.0 | CO110: 64.0 | CP110: 41.36 | CQ110: 41.79 | CR110: 41.78 | CS110: 41.53 | CT110: 40.89 | CV110: -0.001 | CW110: 0.065 | CX110: 40.725 | CY110: 41.8 | CZ110: CO-3 BL 40/170-5.5/2 без учёта потерь напора | DA110: 12.0 | DB110: 25.0 | DC110: 38.0 | DD110: 51.0 | DE110: 64.0 | DF110: 41.4 | DG110: 41.7 | DH110: 41.8 | DI110: 41.5 | DJ110: 40.9 | EF110: -0.001 | EG110: 0.065 | EH110: 40.725 | EI110: 0.01207913697 | EJ110: -0.06451872082 | EK110: -40.725383 | EL110: 60.8 | EM110: 41.1 | EN110: да | EO110: 38.0 | EP110: 46.32 | EQ110: 29.16 | ER110: 31.1 | ET110: -0.002 | EU110: 0.065 | EV110: 40.720 | EW110: 0.01293766307 | EX110: -0.06459662524 | EY110: -40.72012937 | EZ110: 58.7 | FA110: 38.2
J111: 2453658 | K111: CO 3 Helix V 3605/2/SK-FFS-R | L111: 12.0 | M111: 20.0 | N111: 60.0 | O111: 100.0 | P111: 110.0 | Q111: 114.8 | R111: 109.7 | S111: 96.4 | T111: 46.5 | U111: 28.3 | V111: =IFERROR(VLOOKUP(J111,Прайс!A:E,Настройки!$E$1,0)*Настройки!$E$2,"по запросу") -> по запросу | W111: -0.0 | X111: 0.4 | Y111: 109.3 | Z111: 111.5 | AA111: по запросу | AB111: 12.0 | AC111: 36.5 | AD111: 61.0 | AE111: 85.5 | AF111: 110.0 | AG111: 112.4 | AH111: 109.6 | AI111: 94.8 | AJ111: 67.8 | AK111: 28.8 | AL111: 510.7 | AM111: 897.5 | AN111: 100 | AO111: 125 | AP111: 2R | AR111: CO-3 Helix V 3605/2 | AS111: Helix V 3605/2 | AT111: Helix | AU111: EN-GJL-250 | AV111: 1.4307 [AISI304L] | AW111: EPDM | AX111: 1.4057 [AISI431] | AY111: 1.4571 [AISI316Ti ] | AZ111: вода 100% | BA111: 20° | BB111: 998.3 kg/m3 | BC111: 1.00 mm2/s | BD111: SK-FFS/3-15(32A)/V-3~1,0A | BE111: IP54 | BF111: нет | BG111: нет | BH111: IE2 | BI111: 3~400/50 Гц | BJ111: ±10% | BK111: 15 | BM111: 2 | BN111: 16 | BO111: 10 | BQ111: 225 | BR111: 1695 | BS111: 120 | BT111: 1448 | BU111: 1580 | BW111: 600 | BZ111: 1834 | CB111: 500 | CD111: 1354 | CE111: 406 | CF111: 448 | CG111: чертеж pdf | CH111: чертеж dwg | CI111: чертеж step | CJ111: чертеж 3d_dwg | CK111: 12.0 | CL111: 20.0 | CM111: 60.0 | CN111: 100.0 | CO111: 110.0 | CP111: 115 | CQ111: 110 | CR111: 98 | CS111: 50 | CT111: 32.375 | CV111: -0.010 | CW111: 0.390 | CX111: 109.299 | CY111: 112.1 | CZ111: CO-3 Helix V 3605/2 без учёта потерь напора | DA111: 12.0 | DB111: 36.5 | DC111: 61.0 | DD111: 85.5 | DE111: 110.0 | DF111: 112.6 | DG111: 110.4 | DH111: 96.4 | DI111: 70.5 | DJ111: 32.8 | EF111: -0.010 | EG111: 0.390 | EH111: 109.299 | EI111: 0.02097533635 | EJ111: -0.3899173517 | EK111: -109.2993374 | EL111: 82.1 | EM111: 74.9 | EN111: да | EO111: 61.0 | EP111: 76.68 | EQ111: 44.34 | ER111: 64.9 | ET111: -0.010 | EU111: 0.377 | EV111: 109.299 | EW111: 0.02119283635 | EX111: -0.3768373517 | EY111: -109.2993374 | EZ111: 81.3 | FA111: 73.4
J112: 2453659 | K112: CO 3 Helix V 3605/SK-FFS-R | L112: 12.0 | M112: 20.0 | N112: 60.0 | O112: 100.0 | P112: 110.0 | Q112: 128.6 | R112: 124.7 | S112: 108.4 | T112: 56.5 | U112: 38.1 | V112: =IFERROR(VLOOKUP(J112,Прайс!A:E,Настройки!$E$1,0)*Настройки!$E$2,"по запросу") -> по запросу | W112: -0.0 | X112: 0.3 | Y112: 124.3 | Z112: 125.2 | AA112: по запросу | AB112: 12.0 | AC112: 36.5 | AD112: 61.0 | AE112: 85.5 | AF112: 110.0 | AG112: 126.9 | AH112: 123.0 | AI112: 106.9 | AJ112: 78.7 | AK112: 38.4 | AL112: 510.7 | AM112: 897.5 | AN112: 100 | AO112: 125 | AP112: 2R | AR112: CO-3 Helix V 3605 | AS112: Helix V 3605 | AT112: Helix | AU112: EN-GJL-250 | AV112: 1.4307 [AISI304L] | AW112: EPDM | AX112: 1.4057 [AISI431] | AY112: 1.4571 [AISI316Ti ] | AZ112: вода 100% | BA112: 20° | BB112: 998.3 kg/m3 | BC112: 1.00 mm2/s | BD112: SK-FFS/3-15(32A)/V-3~1,0A | BE112: IP54 | BF112: нет | BG112: нет | BH112: IE2 | BI112: 3~400/50 Гц | BJ112: ±10% | BK112: 15 | BM112: 2 | BN112: 16 | BO112: 10 | BQ112: 225 | BR112: 1695 | BS112: 120 | BT112: 1448 | BU112: 1580 | BW112: 600 | BZ112: 1834 | CB112: 500 | CD112: 1354 | CE112: 406 | CF112: 448 | CG112: чертеж pdf | CH112: чертеж dwg | CI112: чертеж step | CJ112: чертеж 3d_dwg | CK112: 12.0 | CL112: 20.0 | CM112: 60.0 | CN112: 100.0 | CO112: 110.0 | CP112: 128.8 | CQ112: 125 | CR112: 110 | CS112: 60 | CT112: 42.1875 | CV112: -0.010 | CW112: 0.345 | CX112: 124.331 | CY112: 125.8 | CZ112: CO-3 Helix V 3605 без учёта потерь напора | DA112: 12.0 | DB112: 36.5 | DC112: 61.0 | DD112: 85.5 | DE112: 110.0 | DF112: 127.0 | DG112: 123.7 | DH112: 108.5 | DI112: 81.4 | DJ112: 42.5 | EF112: -0.010 | EG112: 0.345 | EH112: 124.331 | EI112: 0.02101365324 | EJ112: -0.345086324 | EK112: -124.3307492 | EL112: 85.6 | EM112: 81.4 | EN112: да | EO112: 61.0 | EP112: 76.68 | EQ112: 44.34 | ER112: 71.4 | ET112: -0.010 | EU112: 0.332 | EV112: 124.331 | EW112: 0.02123115324 | EX112: -0.332006324 | EY112: -124.3307492 | EZ112: 84.7 | FA112: 79.8
J113: 2453365 | K113: CO 3 BL 80/200-3/4/SK-FFS-R | L113: 22.0 | M113: 48.0 | N113: 68.0 | O113: 92.0 | P113: 112.0 | Q113: 13.0 | R113: 13.3 | S113: 13.4 | T113: 13.3 | U113: 12.9 | V113: =IFERROR(VLOOKUP(J113,Прайс!A:E,Настройки!$E$1,0)*Настройки!$E$2,"по запросу") -> по запросу | W113: -0.0 | X113: 0.0 | Y113: 12.5 | Z113: 13.1 | AA113: по запросу | AB113: 22.0 | AC113: 44.5 | AD113: 67.0 | AE113: 89.5 | AF113: 112.0 | AG113: 13.0 | AH113: 13.3 | AI113: 13.4 | AJ113: 13.3 | AK113: 12.9 | AL113: 548.3 | AM113: 804.6 | AN113: 150 | AO113: 150 | AP113: 2R | AR113: CO-3 BL 80/200-3/4 | AS113: BL 80/200-3/4 | AT113: BL | AU113: EN-GJL-250 | AV113: EN-GJL-200 | AX113: 1.4122 | AY113: 1.4571 [AISI316Ti ] | AZ113: вода 100% | BA113: 20° | BB113: 998.3 kg/m3 | BC113: 1.00 mm2/s | BD113: SK-FFS/3-3,0(8A)/V-3~1,0A | BE113: IP54 | BF113: нет | BG113: нет | BH113: IE2 | BI113: 3~400/50 Гц | BJ113: ±10% | BK113: 3 | BM113: 2 | BN113: 16 | BO113: 10 | BP113: 1845 | BQ113: 331 | BR113: 787 | BT113: 1594 | BW113: 600 | BX113: 1610 | BY113: 1644 | CD113: 1376 | CG113: чертеж pdf | CH113: чертеж dwg | CI113: чертеж step | CJ113: чертеж 3d_dwg | CK113: 22.0 | CL113: 48.0 | CM113: 68.0 | CN113: 92.0 | CO113: 112.0 | CP113: 13.03 | CQ113: 13.45 | CR113: 13.63 | CS113: 13.68 | CT113: 13.58 | CV113: -0.000 | CW113: 0.027 | CX113: 12.507 | CY113: 13.2 | CZ113: CO-3 BL 80/200-3/4 без учёта потерь напора | DA113: 22.0 | DB113: 44.5 | DC113: 67.0 | DD113: 89.5 | DE113: 112.0 | DF113: 13.0 | DG113: 13.4 | DH113: 13.6 | DI113: 13.7 | DJ113: 13.6 | EF113: -0.000 | EG113: 0.027 | EH113: 12.507 | EI113: 0.01126865566 | EJ113: -0.02723410323 | EK113: -12.50667053 | EL113: 34.5 | EM113: 13.3 | EN113: да | EO113: 67.0 | EP113: 81.4 | EQ113: 51.7 | ER113: 3.3 | ET113: -0.000 | EU113: 0.027 | EV113: 12.507 | EW113: 0.01131865566 | EX113: -0.02719910323 | EY113: -12.50697053 | EZ113: 34.5 | FA113: 13.2
J114: 2453614 | K114: CO 2 MVI 9503/2/SK-FFS-R | L114: 20.0 | M114: 55.0 | N114: 85.0 | O114: 110.0 | P114: 145.0 | Q114: 76.8 | R114: 68.4 | S114: 59.3 | T114: 47.2 | U114: 21.6 | V114: =IFERROR(VLOOKUP(J114,Прайс!A:E,Настройки!$E$1,0)*Настройки!$E$2,"по запросу") -> по запросу | W114: -0.0 | X114: 0.0 | Y114: 76.7 | Z114: 75.1 | AA114: по запросу | AB114: 20.0 | AC114: 51.3 | AD114: 82.5 | AE114: 113.8 | AF114: 145.0 | AG114: 76.2 | AH114: 70.9 | AI114: 60.1 | AJ114: 43.9 | AK114: 22.1 | AL114: 515.4 | AM114: 741 | AN114: 150 | AO114: 150 | AP114: 2R | AR114: CO-2 MVI 9503/2 | AS114: MVI 9503/2 | AT114: Helix | AU114: EN-GJL-250 | AV114: 1.4307 [AISI304L] | AW114: EPDM | AX114: 1.4057 [AISI431] | AY114: 1.4571 [AISI316Ti ] | AZ114: вода 100% | BA114: 20° | BB114: 998.3 kg/m3 | BC114: 1.00 mm2/s | BD114: SK-FFS/2-22(50A)/J-10A/V-3~1,0A | BE114: IP54 | BF114: нет | BG114: нет | BH114: IE2 | BI114: 3~400/50 Гц | BJ114: ±10% | BK114: 22 | BM114: 1 | BN114: 16 | BO114: 10 | BQ114: 262 | BR114: 1697 | BS114: 122 | BT114: 944 | BU114: 1000 | BW114: 600 | BZ114: 1980 | CB114: 650 | CD114: 1444 | CE114: 371 | CF114: 423 | CG114: чертеж pdf | CH114: чертеж dwg | CI114: чертеж step | CJ114: чертеж 3d_dwg | CK114: 20.0 | CL114: 55.0 | CM114: 85.0 | CN114: 110.0 | CO114: 145.0 | CP114: 77.28 | CQ114: 69.67 | CR114: 61.26 | CS114: 49.54 | CT114: 24.5 | CV114: -0.003 | CW114: 0.057 | CX114: 76.669 | CY114: 75.8 | CZ114: CO-2 MVI 9503/2 без учёта потерь напора | DA114: 20.0 | DB114: 51.3 | DC114: 82.5 | DD114: 113.8 | DE114: 145.0 | DF114: 76.7 | DG114: 72.1 | DH114: 62.0 | DI114: 46.3 | DJ114: 25.0 | EF114: -0.003 | EG114: 0.057 | EH114: 76.669 | EI114: 0.01395775062 | EJ114: -0.05666905826 | EK114: -76.66879704 | EL114: 76.2 | EM114: 64.5 | EN114: да | EO114: 82.5 | EP114: 102.5 | EQ114: 61.25 | ER114: 54.5 | ET114: -0.003 | EU114: 0.031 | EV114: 76.669 | EW114: 0.01391775062 | EX114: -0.03076905826 | EY114: -76.66879704 | EZ114: 75.3 | FA114: 63.1
J115: 2453602 | K115: CO 2 MVI 7004/2/SK-FFS-R | L115: 15.0 | M115: 40.0 | N115: 60.0 | O115: 90.0 | P115: 110.0 | Q115: 89.5 | R115: 82.9 | S115: 73.2 | T115: 47.0 | U115: 21.3 | V115: =IFERROR(VLOOKUP(J115,Прайс!A:E,Настройки!$E$1,0)*Настройки!$E$2,"по запросу") -> по запросу | W115: -0.0 | X115: 0.2 | Y115: 88.2 | Z115: 86.9 | AA115: по запросу | AB115: 15.0 | AC115: 38.8 | AD115: 62.5 | AE115: 86.3 | AF115: 110.0 | AG115: 89.1 | AH115: 84.2 | AI115: 71.3 | AJ115: 50.4 | AK115: 21.7 | AL115: 524.9 | AM115: 698 | AN115: 150 | AO115: 150 | AP115: 2R | AR115: CO-2 MVI 7004/2 | AS115: MVI 7004/2 | AT115: Helix | AU115: EN-GJL-250 | AV115: 1.4307 [AISI304L] | AW115: EPDM | AX115: 1.4057 [AISI431] | AY115: 1.4571 [AISI316Ti ] | AZ115: вода 100% | BA115: 20° | BB115: 998.3 kg/m3 | BC115: 1.00 mm2/s | BD115: SK-FFS/2-18(40A)/J-10A/V-3~1,0A | BE115: IP54 | BF115: нет | BG115: нет | BH115: IE2 | BI115: 3~400/50 Гц | BJ115: ±10% | BK115: 18.5 | BM115: 1 | BN115: 16 | BO115: 10 | BQ115: 262 | BR115: 1697 | BS115: 122 | BT115: 944 | BU115: 1000 | BW115: 600 | BZ115: 1980 | CB115: 650 | CD115: 1444 | CE115: 371 | CF115: 423 | CG115: чертеж pdf | CH115: чертеж dwg | CI115: чертеж step | CJ115: чертеж 3d_dwg | CK115: 15.0 | CL115: 40.0 | CM115: 60.0 | CN115: 90.0 | CO115: 110.0 | CP115: 89.85 | CQ115: 83.86 | CR115: 74.62 | CS115: 48.99 | CT115: 23.66 | CV115: -0.007 | CW115: 0.194 | CX115: 88.187 | CY115: 87.7 | CZ115: CO-2 MVI 7004/2 без учёта потерь напора | DA115: 15.0 | DB115: 38.8 | DC115: 62.5 | DD115: 86.3 | DE115: 110.0 | DF115: 89.5 | DG115: 85.1 | DH115: 72.7 | DI115: 52.4 | DJ115: 24.0 | EF115: -0.007 | EG115: 0.194 | EH115: 88.187 | EI115: 0.01818068186 | EJ115: -0.1942953418 | EK115: -88.18694355 | EL115: 75.2 | EM115: 62.8 | EN115: да | EO115: 62.5 | EP115: 77.7 | EQ115: 46.35 | ER115: 52.8 | ET115: -0.007 | EU115: 0.168 | EV115: 88.187 | EW115: 0.01814068186 | EX115: -0.1683953418 | EY115: -88.18694355 | EZ115: 74.5 | FA115: 61.7
J116: 2453666 | K116: CO 3 Helix V 5203/SK-FFS-R | L116: 18.0 | M116: 40.0 | N116: 60.0 | O116: 100.0 | P116: 160.0 | Q116: 82.1 | R116: 76.7 | S116: 70.8 | T116: 56.3 | U116: 17.6 | V116: =IFERROR(VLOOKUP(J116,Прайс!A:E,Настройки!$E$1,0)*Настройки!$E$2,"по запросу") -> по запросу | W116: -0.0 | X116: -0.1 | Y116: 83.3 | Z116: 79.4 | AA116: по запросу | AB116: 18.0 | AC116: 53.5 | AD116: 89.0 | AE116: 124.5 | AF116: 160.0 | AG116: 81.5 | AH116: 73.7 | AI116: 60.5 | AJ116: 41.9 | AK116: 17.9 | AL116: 486.3 | AM116: 999.5 | AN116: 150 | AO116: 150 | AP116: 2R | AR116: CO-3 Helix V 5203 | AS116: Helix V 5203 | AT116: Helix | AU116: EN-GJL-250 | AV116: 1.4307 [AISI304L] | AW116: EPDM | AX116: 1.4057 [AISI431] | AY116: 1.4571 [AISI316Ti ] | AZ116: вода 100% | BA116: 20° | BB116: 998.3 kg/m3 | BC116: 1.00 mm2/s | BD116: SK-FFS/3-11(24A)/V-3~1,0A | BE116: IP54 | BF116: нет | BG116: нет | BH116: IE2 | BI116: 3~400/50 Гц | BJ116: ±10% | BK116: 11 | BM116: 2 | BN116: 16 | BO116: 10 | BQ116: 260 | BR116: 1695 | BS116: 120 | BT116: 1444 | BU116: 1580 | BW116: 600 | BZ116: 1965 | CB116: 500 | CD116: 1429 | CE116: 438.5 | CF116: 490.5 | CG116: чертеж pdf | CH116: чертеж dwg | CI116: чертеж step | CJ116: чертеж 3d_dwg | CK116: 18.0 | CL116: 40.0 | CM116: 60.0 | CN116: 100.0 | CO116: 160.0 | CP116: 82.32 | CQ116: 77.19 | CR116: 71.57 | CS116: 57.48 | CT116: 19.44 | CV116: -0.002 | CW116: -0.053 | CX116: 83.345 | CY116: 79.8 | CZ116: CO-3 Helix V 5203 без учёта потерь напора | DA116: 18.0 | DB116: 53.5 | DC116: 89.0 | DD116: 124.5 | DE116: 160.0 | DF116: 81.7 | DG116: 74.3 | DH116: 61.5 | DI116: 43.3 | DJ116: 19.7 | EF116: -0.002 | EG116: -0.053 | EH116: 83.345 | EI116: 0.01326342118 | EJ116: 0.05347373925 | EK116: -83.34493455 | EL116: 77.3 | EM116: 66.4 | EN116: да | EO116: 89.0 | EP116: 111.72 | EQ116: 64.86 | ER116: 56.4 | ET116: -0.002 | EU116: -0.066 | EV116: 83.345 | EW116: 0.01325342118 | EX116: 0.06642373925 | EY116: -83.34493455 | EZ116: 76.8 | FA116: 65.6
J117: 2453665 | K117: CO 3 Helix V 5203/2/SK-FFS-R | L117: 18.0 | M117: 40.0 | N117: 60.0 | O117: 100.0 | P117: 160.0 | Q117: 65.7 | R117: 63.1 | S117: 59.6 | T117: 46.0 | U117: 9.2 | V117: =IFERROR(VLOOKUP(J117,Прайс!A:E,Настройки!$E$1,0)*Настройки!$E$2,"по запросу") -> по запросу | W117: -0.0 | X117: 0.1 | Y117: 65.0 | Z117: 64.7 | AA117: по запросу | AB117: 18.0 | AC117: 53.5 | AD117: 89.0 | AE117: 124.5 | AF117: 160.0 | AG117: 65.4 | AH117: 61.1 | AI117: 50.4 | AJ117: 33.1 | AK117: 9.3 | AL117: 486.3 | AM117: 999.5 | AN117: 150 | AO117: 150 | AP117: 2R | AR117: CO-3 Helix V 5203/2 | AS117: Helix V 5203/2 | AT117: Helix | AU117: EN-GJL-250 | AV117: 1.4307 [AISI304L] | AW117: EPDM | AX117: 1.4057 [AISI431] | AY117: 1.4571 [AISI316Ti ] | AZ117: вода 100% | BA117: 20° | BB117: 998.3 kg/m3 | BC117: 1.00 mm2/s | BD117: SK-FFS/3-11(24A)/V-3~1,0A | BE117: IP54 | BF117: нет | BG117: нет | BH117: IE2 | BI117: 3~400/50 Гц | BJ117: ±10% | BK117: 11 | BM117: 2 | BN117: 16 | BO117: 10 | BQ117: 260 | BR117: 1695 | BS117: 120 | BT117: 1444 | BU117: 1580 | BW117: 600 | BZ117: 1965 | CB117: 500 | CD117: 1429 | CE117: 438.5 | CF117: 490.5 | CG117: чертеж pdf | CH117: чертеж dwg | CI117: чертеж step | CJ117: чертеж 3d_dwg | CK117: 18.0 | CL117: 40.0 | CM117: 60.0 | CN117: 100.0 | CO117: 160.0 | CP117: 65.88 | CQ117: 63.62 | CR117: 60.31 | CS117: 47.24 | CT117: 11.04 | CV117: -0.003 | CW117: 0.079 | CX117: 65.009 | CY117: 65.1 | CZ117: CO-3 Helix V 5203/2 без учёта потерь напора | DA117: 18.0 | DB117: 53.5 | DC117: 89.0 | DD117: 124.5 | DE117: 160.0 | DF117: 65.6 | DG117: 61.8 | DH117: 51.5 | DI117: 34.6 | DJ117: 11.1 | EF117: -0.003 | EG117: 0.079 | EH117: 65.009 | EI117: 0.01371248487 | EJ117: -0.0794271335 | EK117: -65.00908764 | EL117: 71.8 | EM117: 57.3 | EN117: да | EO117: 89.0 | EP117: 111.72 | EQ117: 64.86 | ER117: 47.3 | ET117: -0.003 | EU117: 0.066 | EV117: 65.009 | EW117: 0.01370248487 | EX117: -0.0664771335 | EY117: -65.00908764 | EZ117: 71.3 | FA117: 56.6
J118: 2453728 | K118: CO 4 Helix V 3601/SK-FFS-R | L118: 18.0 | M118: 30.0 | N118: 90.0 | O118: 150.0 | P118: 165.0 | Q118: 25.0 | R118: 24.0 | S118: 19.7 | T118: 16.2 | U118: 5.3 | V118: =IFERROR(VLOOKUP(J118,Прайс!A:E,Настройки!$E$1,0)*Настройки!$E$2,"по запросу") -> по запросу | W118: -0.0 | X118: 0.1 | Y118: 23.7 | Z118: 24.4 | AA118: по запросу | AB118: 18.0 | AC118: 54.8 | AD118: 91.5 | AE118: 128.3 | AF118: 165.0 | AG118: 24.3 | AH118: 23.8 | AI118: 21.1 | AJ118: 15.9 | AK118: 8.5 | AL118: 637.5 | AM118: 805 | AN118: 125 | AO118: 150 | AP118: 2R | AR118: CO-4 Helix V 3601 | AS118: Helix V 3601 | AT118: Helix | AU118: EN-GJL-250 | AV118: 1.4307 [AISI304L] | AW118: EPDM | AX118: 1.4057 [AISI431] | AY118: 1.4571 [AISI316Ti ] | AZ118: вода 100% | BA118: 20° | BB118: 998.3 kg/m3 | BC118: 1.00 mm2/s | BD118: SK-FFS/4-3,0(8A) | BE118: IP54 | BF118: нет | BG118: нет | BH118: IE2 | BI118: 3~400/50 Гц | BJ118: ±10% | BK118: 3 | BM118: 3 | BN118: 16 | BO118: 10 | BQ118: 225 | BR118: 1695 | BS118: 120 | BT118: 1944 | BU118: 2080 | BW118: 760 | BZ118: 1967 | CB118: 500 | CD118: 1444 | CE118: 412 | CF118: 532 | CG118: чертеж pdf | CH118: чертеж dwg | CI118: чертеж step | CJ118: чертеж 3d_dwg | CK118: 18.0 | CL118: 30.0 | CM118: 90.0 | CN118: 150.0 | CO118: 165.0 | CP118: 25 | CQ118: 24 | CR118: 20 | CS118: 17 | CT118: 6.2 | CV118: -0.001 | CW118: 0.051 | CX118: 23.649 | CY118: 24.4 | CZ118: CO-4 Helix V 3601 без учёта потерь напора | DA118: 18.0 | DB118: 54.8 | DC118: 91.5 | DD118: 128.3 | DE118: 165.0 | DF118: 24.3 | DG118: 23.9 | DH118: 21.3 | DI118: 16.5 | DJ118: 9.4 | EF118: -0.001 | EG118: 0.051 | EH118: 23.649 | EI118: 0.01194274009 | EJ118: -0.05090681568 | EK118: -23.64921438 | EL118: 46.7 | EM118: 24.2 | EN118: да | EO118: 91.5 | EP118: 115.02 | EQ118: 66.51 | ER118: 14.2 | ET118: -0.001 | EU118: 0.051 | EV118: 23.660 | EW118: 0.01197607342 | EX118: -0.05064014901 | EY118: -23.66011438 | EZ118: 46.6 | FA118: 24.1
J119: 2453660 | K119: CO 3 Helix V 3606/2/SK-FFS-R | L119: 12.0 | M119: 20.0 | N119: 60.0 | O119: 100.0 | P119: 110.0 | Q119: 140.8 | R119: 139.7 | S119: 116.4 | T119: 56.5 | U119: 35.8 | V119: =IFERROR(VLOOKUP(J119,Прайс!A:E,Настройки!$E$1,0)*Настройки!$E$2,"по запросу") -> по запросу | W119: -0.0 | X119: 0.3 | Y119: 138.4 | Z119: 137.5 | AA119: по запросу | AB119: 12.0 | AC119: 36.5 | AD119: 61.0 | AE119: 85.5 | AF119: 110.0 | AG119: 140.5 | AH119: 134.6 | AI119: 115.3 | AJ119: 82.3 | AK119: 35.9 | AL119: 519.5 | AM119: 909.5 | AN119: 100 | AO119: 125 | AP119: 2R | AR119: CO-3 Helix V 3606/2 | AS119: Helix V 3606/2 | AT119: Helix | AU119: EN-GJL-250 | AV119: 1.4307 [AISI304L] | AW119: EPDM | AX119: 1.4057 [AISI431] | AY119: 1.4571 [AISI316Ti ] | AZ119: вода 100% | BA119: 20° | BB119: 998.3 kg/m3 | BC119: 1.00 mm2/s | BD119: SK-FFS/3-15(32A)/V-3~1,0A | BE119: IP54 | BF119: нет | BG119: нет | BH119: IE2 | BI119: 3~400/50 Гц | BJ119: ±10% | BK119: 15 | BM119: 2 | BN119: 16 | BO119: 10 | BQ119: 225 | BR119: 1695 | BS119: 120 | BT119: 1448 | BU119: 1580 | BW119: 600 | BZ119: 1834 | CB119: 500 | CD119: 1354 | CE119: 406 | CF119: 448 | CG119: чертеж pdf | CH119: чертеж dwg | CI119: чертеж step | CJ119: чертеж 3d_dwg | CK119: 12.0 | CL119: 20.0 | CM119: 60.0 | CN119: 100.0 | CO119: 110.0 | CP119: 141 | CQ119: 140 | CR119: 118 | CS119: 60 | CT119: 39.875 | CV119: -0.011 | CW119: 0.322 | CX119: 138.404 | CY119: 138.1 | CZ119: CO-3 Helix V 3606/2 без учёта потерь напора | DA119: 12.0 | DB119: 36.5 | DC119: 61.0 | DD119: 85.5 | DE119: 110.0 | DF119: 140.7 | DG119: 135.4 | DH119: 116.9 | DI119: 85.0 | DJ119: 39.9 | EF119: -0.011 | EG119: 0.322 | EH119: 138.404 | EI119: 0.02217687516 | EJ119: -0.3220699369 | EK119: -138.4039582 | EL119: 86.6 | EM119: 83.3 | EN119: да | EO119: 61.0 | EP119: 76.68 | EQ119: 44.34 | ER119: 73.3 | ET119: -0.011 | EU119: 0.309 | EV119: 138.404 | EW119: 0.02239437516 | EX119: -0.3089899369 | EY119: -138.4039582 | EZ119: 85.8 | FA119: 81.8
J120: 2453348 | K120: CO 3 BL 50/150-5.5/2/SK-FFS-R | L120: 17.0 | M120: 32.0 | N120: 60.0 | O120: 80.0 | P120: 92.0 | Q120: 32.6 | R120: 32.3 | S120: 30.4 | T120: 28.1 | U120: 26.3 | V120: =IFERROR(VLOOKUP(J120,Прайс!A:E,Настройки!$E$1,0)*Настройки!$E$2,"по запросу") -> по запросу | W120: -0.0 | X120: 0.0 | Y120: 32.5 | Z120: 32.3 | AA120: по запросу | AB120: 17.0 | AC120: 35.8 | AD120: 54.5 | AE120: 73.3 | AF120: 92.0 | AG120: 32.6 | AH120: 32.1 | AI120: 30.9 | AJ120: 28.9 | AK120: 26.3 | AL120: 499.8 | AM120: 655.2 | AN120: 100 | AO120: 100 | AP120: 2R | AR120: CO-3 BL 50/150-5.5/2 | AS120: BL 50/150-5.5/2 | AT120: BL | AU120: EN-GJL-250 | AV120: EN-GJL-200 | AX120: 1.4122 | AY120: 1.4571 [AISI316Ti ] | AZ120: вода 100% | BA120: 20° | BB120: 998.3 kg/m3 | BC120: 1.00 mm2/s | BD120: SK-FFS/3-5,5(12A)/V-3~1,0A | BE120: IP54 | BF120: нет | BG120: нет | BH120: IE2 | BI120: 3~400/50 Гц | BJ120: ±10% | BK120: 5.5 | BM120: 2 | BN120: 16 | BO120: 10 | BP120: 1845 | BQ120: 333 | BR120: 667 | BT120: 1598 | BW120: 600 | BX120: 1598 | BY120: 1515 | CD120: 1290 | CG120: чертеж pdf | CH120: чертеж dwg | CI120: чертеж step | CJ120: чертеж 3d_dwg | CK120: 17.0 | CL120: 32.0 | CM120: 60.0 | CN120: 80.0 | CO120: 92.0 | CP120: 32.8 | CQ120: 32.89 | CR120: 32.55 | CS120: 31.92 | CT120: 31.38 | CV120: -0.000 | CW120: 0.026 | CX120: 32.480 | CY120: 32.9 | CZ120: CO-3 BL 50/150-5.5/2 без учёта потерь напора | DA120: 17.0 | DB120: 35.8 | DC120: 54.5 | DD120: 73.3 | DE120: 92.0 | DF120: 32.8 | DG120: 32.9 | DH120: 32.7 | DI120: 32.2 | DJ120: 31.4 | EF120: -0.000 | EG120: 0.026 | EH120: 32.480 | EI120: 0.01152242865 | EJ120: -0.02588637311 | EK120: -32.48011121 | EL120: 54.2 | EM120: 32.7 | EN120: да | EO120: 54.5 | EP120: 66.5 | EQ120: 41.75 | ER120: 22.7 | ET120: -0.001 | EU120: 0.026 | EV120: 32.481 | EW120: 0.01212242865 | EX120: -0.02573637311 | EY120: -32.48061121 | EZ120: 52.8 | FA120: 31.0
J121: 2453730 | K121: CO 4 Helix V 3602/2/SK-FFS-R | L121: 18.0 | M121: 30.0 | N121: 90.0 | O121: 150.0 | P121: 165.0 | Q121: 36.8 | R121: 36.6 | S121: 29.7 | T121: 12.2 | U121: 6.6 | V121: =IFERROR(VLOOKUP(J121,Прайс!A:E,Настройки!$E$1,0)*Настройки!$E$2,"по запросу") -> по запросу | W121: -0.0 | X121: 0.1 | Y121: 36.3 | Z121: 36.6 | AA121: по запросу | AB121: 18.0 | AC121: 54.8 | AD121: 91.5 | AE121: 128.3 | AF121: 165.0 | AG121: 36.8 | AH121: 35.0 | AI121: 29.3 | AJ121: 19.8 | AK121: 6.4 | AL121: 602.2 | AM121: 837 | AN121: 125 | AO121: 150 | AP121: 2R | AR121: CO-4 Helix V 3602/2 | AS121: Helix V 3602/2 | AT121: Helix | AU121: EN-GJL-250 | AV121: 1.4307 [AISI304L] | AW121: EPDM | AX121: 1.4057 [AISI431] | AY121: 1.4571 [AISI316Ti ] | AZ121: вода 100% | BA121: 20° | BB121: 998.3 kg/m3 | BC121: 1.00 mm2/s | BD121: SK-FFS/4-4,0(10A) | BE121: IP54 | BF121: нет | BG121: нет | BH121: IE2 | BI121: 3~400/50 Гц | BJ121: ±10% | BK121: 4 | BM121: 3 | BN121: 16 | BO121: 10 | BQ121: 225 | BR121: 1695 | BS121: 120 | BT121: 1944 | BU121: 2080 | BW121: 760 | BZ121: 1967 | CB121: 500 | CD121: 1444 | CE121: 412 | CF121: 532 | CG121: чертеж pdf | CH121: чертеж dwg | CI121: чертеж step | CJ121: чертеж 3d_dwg | CK121: 18.0 | CL121: 30.0 | CM121: 90.0 | CN121: 150.0 | CO121: 165.0 | CP121: 36.83 | CQ121: 36.6 | CR121: 30 | CS121: 13 | CT121: 7.495 | CV121: -0.001 | CW121: 0.055 | CX121: 36.257 | CY121: 36.7 | CZ121: CO-4 Helix V 3602/2 без учёта потерь напора | DA121: 18.0 | DB121: 54.8 | DC121: 91.5 | DD121: 128.3 | DE121: 165.0 | DF121: 36.8 | DG121: 35.1 | DH121: 29.6 | DI121: 20.4 | DJ121: 7.4 | EF121: -0.001 | EG121: 0.055 | EH121: 36.257 | EI121: 0.01250605148 | EJ121: -0.05521033251 | EK121: -36.25691059 | EL121: 56.1 | EM121: 35.0 | EN121: да | EO121: 91.5 | EP121: 115.02 | EQ121: 66.51 | ER121: 25.0 | ET121: -0.001 | EU121: 0.055 | EV121: 36.268 | EW121: 0.01253938481 | EX121: -0.05494366584 | EY121: -36.26781059 | EZ121: 56.0 | FA121: 34.9
J122: 2453309 | K122: CO 2 BL 80/210-37/2/SK-FFS-R | L122: 27.0 | M122: 70.0 | N122: 110.0 | O122: 170.0 | P122: 268.0 | Q122: 54.3 | R122: 54.6 | S122: 53.4 | T122: 47.2 | U122: 25.5 | V122: =IFERROR(VLOOKUP(J122,Прайс!A:E,Настройки!$E$1,0)*Настройки!$E$2,"по запросу") -> по запросу | W122: -0.0 | X122: 0.1 | Y122: 52.3 | Z122: 54.3 | AA122: по запросу | AB122: 27.0 | AC122: 87.3 | AD122: 147.5 | AE122: 207.8 | AF122: 268.0 | AG122: 54.1 | AH122: 54.6 | AI122: 50.0 | AJ122: 40.3 | AK122: 25.6 | AL122: 487.3 | AM122: 936.4 | AN122: 150 | AO122: 200 | AP122: 2R | AR122: CO-2 BL 80/210-37/2 | AS122: BL 80/210-37/2 | AT122: BL | AU122: EN-GJL-250 | AV122: EN-GJL-200 | AX122: 1.4122 | AY122: 1.4571 [AISI316Ti ] | AZ122: вода 100% | BA122: 20° | BB122: 998.3 kg/m3 | BC122: 1.00 mm2/s | BD122: SK-FFS/2-37(80A)/J-10A/V-3~1,0A | BE122: IP54 | BF122: нет | BG122: нет | BH122: IE2 | BI122: 3~400/50 Гц | BJ122: ±10% | BK122: 37 | BM122: 1 | BN122: 16 | BO122: 10 | BP122: 1845 | BQ122: 458.5 | BR122: 914.5 | BT122: 1044 | BW122: 760 | BX122: 1060 | BY122: 1818 | CD122: 1478 | CG122: чертеж pdf | CH122: чертеж dwg | CI122: чертеж step | CJ122: чертеж 3d_dwg | CK122: 27.0 | CL122: 70.0 | CM122: 110.0 | CN122: 170.0 | CO122: 268.0 | CP122: 54.48 | CQ122: 55.59 | CR122: 55.81 | CS122: 53.03 | CT122: 39.93 | CV122: -0.000 | CW122: 0.087 | CX122: 52.264 | CY122: 54.4 | CZ122: CO-2 BL 80/210-37/2 без учёта потерь напора | DA122: 27.0 | DB122: 87.3 | DC122: 147.5 | DD122: 207.8 | DE122: 268.0 | DF122: 54.3 | DG122: 56.1 | DH122: 54.3 | DI122: 49.0 | DJ122: 40.0 | EF122: -0.000 | EG122: 0.087 | EH122: 52.264 | EI122: 0.01160776731 | EJ122: -0.08736717206 | EK122: -52.26371824 | EL122: 71.0 | EM122: 56.0 | EN122: да | EO122: 147.5 | EP122: 186.06 | EQ122: 106.53 | ER122: 46.0 | ET122: -0.001 | EU122: 0.087 | EV122: 52.264 | EW122: 0.01180776731 | EX122: -0.08729717206 | EY122: -52.26401824 | EZ122: 70.3 | FA122: 55.0
J123: 2453601 | K123: CO 2 MVI 7004/1/SK-FFS-R | L123: 15.0 | M123: 40.0 | N123: 60.0 | O123: 90.0 | P123: 110.0 | Q123: 96.3 | R123: 89.6 | S123: 81.1 | T123: 56.9 | U123: 31.9 | V123: =IFERROR(VLOOKUP(J123,Прайс!A:E,Настройки!$E$1,0)*Настройки!$E$2,"по запросу") -> по запросу | W123: -0.0 | X123: 0.2 | Y123: 94.7 | Z123: 93.8 | AA123: по запросу | AB123: 15.0 | AC123: 38.8 | AD123: 62.5 | AE123: 86.3 | AF123: 110.0 | AG123: 95.8 | AH123: 91.3 | AI123: 79.2 | AJ123: 59.6 | AK123: 32.5 | AL123: 538.9 | AM123: 744 | AN123: 150 | AO123: 150 | AP123: 2R | AR123: CO-2 MVI 7004/1 | AS123: MVI 7004/1 | AT123: Helix | AU123: EN-GJL-250 | AV123: 1.4307 [AISI304L] | AW123: EPDM | AX123: 1.4057 [AISI431] | AY123: 1.4571 [AISI316Ti ] | AZ123: вода 100% | BA123: 20° | BB123: 998.3 kg/m3 | BC123: 1.00 mm2/s | BD123: SK-FFS/2-22(50A)/J-10A/V-3~1,0A | BE123: IP54 | BF123: нет | BG123: нет | BH123: IE2 | BI123: 3~400/50 Гц | BJ123: ±10% | BK123: 22 | BM123: 1 | BN123: 16 | BO123: 10 | BQ123: 262 | BR123: 1697 | BS123: 122 | BT123: 944 | BU123: 1000 | BW123: 600 | BZ123: 1980 | CB123: 650 | CD123: 1444 | CE123: 371 | CF123: 423 | CG123: чертеж pdf | CH123: чертеж dwg | CI123: чертеж step | CJ123: чертеж 3d_dwg | CK123: 15.0 | CL123: 40.0 | CM123: 60.0 | CN123: 90.0 | CO123: 110.0 | CP123: 96.68 | CQ123: 90.59 | CR123: 82.54 | CS123: 58.86 | CT123: 34.22 | CV123: -0.007 | CW123: 0.197 | CX123: 94.695 | CY123: 94.6 | CZ123: CO-2 MVI 7004/1 без учёта потерь напора | DA123: 15.0 | DB123: 38.8 | DC123: 62.5 | DD123: 86.3 | DE123: 110.0 | DF123: 96.1 | DG123: 92.2 | DH123: 80.7 | DI123: 61.6 | DJ123: 34.8 | EF123: -0.007 | EG123: 0.197 | EH123: 94.695 | EI123: 0.01785408632 | EJ123: -0.1974669421 | EK123: -94.69533058 | EL123: 78.6 | EM123: 68.6 | EN123: да | EO123: 62.5 | EP123: 77.7 | EQ123: 46.35 | ER123: 58.6 | ET123: -0.007 | EU123: 0.172 | EV123: 94.695 | EW123: 0.01781408632 | EX123: -0.1715669421 | EY123: -94.69533058 | EZ123: 77.9 | FA123: 67.4
J124: 2453723 | K124: CO 4 Helix V 2204/SK-FFS-R | L124: 12.0 | M124: 30.0 | N124: 60.0 | O124: 90.0 | P124: 105.0 | Q124: 73.8 | R124: 70.7 | S124: 58.1 | T124: 36.4 | U124: 22.1 | V124: =IFERROR(VLOOKUP(J124,Прайс!A:E,Настройки!$E$1,0)*Настройки!$E$2,"по запросу") -> по запросу | W124: -0.0 | X124: 0.0 | Y124: 74.0 | Z124: 70.7 | AA124: по запросу | AB124: 12.0 | AC124: 35.3 | AD124: 58.5 | AE124: 81.8 | AF124: 105.0 | AG124: 73.8 | AH124: 69.1 | AI124: 59.0 | AJ124: 43.3 | AK124: 22.1 | AL124: 519.0 | AM124: 725 | AN124: 100 | AO124: 125 | AP124: 2R | AR124: CO-4 Helix V 2204 | AS124: Helix V 2204 | AT124: Helix | AU124: EN-GJL-250 | AV124: 1.4307 [AISI304L] | AW124: EPDM | AX124: 1.4057 [AISI431] | AY124: 1.4571 [AISI316Ti ] | AZ124: вода 100% | BA124: 20° | BB124: 998.3 kg/m3 | BC124: 1.00 mm2/s | BD124: SK-FFS/4-5,5(12A) | BE124: IP54 | BF124: нет | BG124: нет | BH124: IE2 | BI124: 3~400/50 Гц | BJ124: ±10% | BK124: 5.5 | BM124: 3 | BN124: 16 | BO124: 10 | BQ124: 210 | BR124: 1695 | BS124: 120 | BT124: 1948 | BU124: 2080 | BW124: 760 | BZ124: 1814 | CB124: 500 | CD124: 1334 | CE124: 396 | CF124: 438 | CG124: чертеж pdf | CH124: чертеж dwg | CI124: чертеж step | CJ124: чертеж 3d_dwg | CK124: 12.0 | CL124: 30.0 | CM124: 60.0 | CN124: 90.0 | CO124: 105.0 | CP124: 73.88 | CQ124: 71 | CR124: 59 | CS124: 38 | CT124: 24.125 | CV124: -0.005 | CW124: 0.050 | CX124: 74.000 | CY124: 71.0 | CZ124: CO-4 Helix V 2204 без учёта потерь напора | DA124: 12.0 | DB124: 35.3 | DC124: 58.5 | DD124: 81.8 | DE124: 105.0 | DF124: 73.9 | DG124: 69.5 | DH124: 59.8 | DI124: 44.7 | DJ124: 24.1 | EF124: -0.005 | EG124: 0.050 | EH124: 74.000 | EI124: 0.01611111111 | EJ124: -0.05 | EK124: -74 | EL124: 69.3 | EM124: 53.4 | EN124: да | EO124: 58.5 | EP124: 73.38 | EQ124: 42.69 | ER124: 43.4 | ET124: -0.005 | EU124: 0.041 | EV124: 74.000 | EW124: 0.01620777778 | EX124: -0.04128 | EY124: -74 | EZ124: 68.9 | FA124: 52.7
J125: 2453661 | K125: CO 3 Helix V 3606/SK-FFS-R | L125: 12.0 | M125: 20.0 | N125: 60.0 | O125: 100.0 | P125: 110.0 | Q125: 153.8 | R125: 152.7 | S125: 128.4 | T125: 72.5 | U125: 53.7 | V125: =IFERROR(VLOOKUP(J125,Прайс!A:E,Настройки!$E$1,0)*Настройки!$E$2,"по запросу") -> по запросу | W125: -0.0 | X125: 0.2 | Y125: 153.0 | Z125: 149.6 | AA125: по запросу | AB125: 12.0 | AC125: 36.5 | AD125: 61.0 | AE125: 85.5 | AF125: 110.0 | AG125: 153.8 | AH125: 146.5 | AI125: 127.4 | AJ125: 96.5 | AK125: 53.7 | AL125: 528.4 | AM125: 918.5 | AN125: 100 | AO125: 125 | AP125: 2R | AR125: CO-3 Helix V 3606 | AS125: Helix V 3606 | AT125: Helix | AU125: EN-GJL-250 | AV125: 1.4307 [AISI304L] | AW125: EPDM | AX125: 1.4057 [AISI431] | AY125: 1.4571 [AISI316Ti ] | AZ125: вода 100% | BA125: 20° | BB125: 998.3 kg/m3 | BC125: 1.00 mm2/s | BD125: SK-FFS/3-18(40A)/V-3~1,0A | BE125: IP54 | BF125: нет | BG125: нет | BH125: IE2 | BI125: 3~400/50 Гц | BJ125: ±10% | BK125: 18.5 | BM125: 2 | BN125: 16 | BO125: 10 | BQ125: 225 | BR125: 1695 | BS125: 120 | BT125: 1448 | BU125: 1580 | BW125: 760 | BZ125: 1834 | CB125: 500 | CD125: 1354 | CE125: 406 | CF125: 448 | CG125: чертеж pdf | CH125: чертеж dwg | CI125: чертеж step | CJ125: чертеж 3d_dwg | CK125: 12.0 | CL125: 20.0 | CM125: 60.0 | CN125: 100.0 | CO125: 110.0 | CP125: 154 | CQ125: 153 | CR125: 130 | CS125: 76 | CT125: 57.8125 | CV125: -0.010 | CW125: 0.193 | CX125: 153.036 | CY125: 150.2 | CZ125: CO-3 Helix V 3606 без учёта потерь напора | DA125: 12.0 | DB125: 36.5 | DC125: 61.0 | DD125: 85.5 | DE125: 110.0 | DF125: 154.0 | DG125: 147.3 | DH125: 129.0 | DI125: 99.2 | DJ125: 57.8 | EF125: -0.010 | EG125: 0.193 | EH125: 153.036 | EI125: 0.0207409048 | EJ125: -0.1932370934 | EK125: -153.0358407 | EL125: 90.7 | EM125: 91.4 | EN125: да | EO125: 61.0 | EP125: 76.68 | EQ125: 44.34 | ER125: 81.4 | ET125: -0.010 | EU125: 0.180 | EV125: 153.036 | EW125: 0.0209584048 | EX125: -0.1801570934 | EY125: -153.0358407 | EZ125: 89.9 | FA125: 89.7
J126: 2453356 | K126: CO 3 BL 65/120-4/2/SK-FFS-R | L126: 20.0 | M126: 64.0 | N126: 96.0 | O126: 136.0 | P126: 204.0 | Q126: 15.3 | R126: 15.4 | S126: 14.6 | T126: 12.4 | U126: 6.0 | V126: =IFERROR(VLOOKUP(J126,Прайс!A:E,Настройки!$E$1,0)*Настройки!$E$2,"по запросу") -> по запросу | W126: -0.0 | X126: 0.0 | Y126: 14.7 | Z126: 15.4 | AA126: по запросу | AB126: 20.0 | AC126: 66.0 | AD126: 112.0 | AE126: 158.0 | AF126: 204.0 | AG126: 15.3 | AH126: 15.4 | AI126: 13.8 | AJ126: 10.7 | AK126: 6.0 | AL126: 515.0 | AM126: 693.6 | AN126: 125 | AO126: 150 | AP126: 2R | AR126: CO-3 BL 65/120-4/2 | AS126: BL 65/120-4/2 | AT126: BL | AU126: EN-GJL-250 | AV126: EN-GJL-200 | AX126: 1.4122 | AY126: 1.4571 [AISI316Ti ] | AZ126: вода 100% | BA126: 20° | BB126: 998.3 kg/m3 | BC126: 1.00 mm2/s | BD126: SK-FFS/3-4,0(10A)/V-3~1,0A | BE126: IP54 | BF126: нет | BG126: нет | BH126: IE2 | BI126: 3~400/50 Гц | BJ126: ±10% | BK126: 4 | BM126: 2 | BN126: 16 | BO126: 10 | BP126: 1845 | BQ126: 334 | BR126: 803 | BT126: 1594 | BW126: 600 | BX126: 1594 | BY126: 1472 | CD126: 1204 | CG126: чертеж pdf | CH126: чертеж dwg | CI126: чертеж step | CJ126: чертеж 3d_dwg | CK126: 20.0 | CL126: 64.0 | CM126: 96.0 | CN126: 136.0 | CO126: 204.0 | CP126: 15.33 | CQ126: 15.9 | CR126: 15.71 | CS126: 14.74 | CT126: 11.25 | CV126: -0.000 | CW126: 0.034 | CX126: 14.747 | CY126: 15.5 | CZ126: CO-3 BL 65/120-4/2 без учёта потерь напора | DA126: 20.0 | DB126: 66.0 | DC126: 112.0 | DD126: 158.0 | DE126: 204.0 | DF126: 15.3 | DG126: 15.9 | DH126: 15.4 | DI126: 13.9 | DJ126: 11.3 | EF126: -0.000 | EG126: 0.034 | EH126: 14.747 | EI126: 0.01136249138 | EJ126: -0.03413911985 | EK126: -14.74711092 | EL126: 37.6 | EM126: 15.7 | EN126: да | EO126: 112.0 | EP126: 141.44 | EQ126: 80.72 | ER126: 5.7 | ET126: -0.000 | EU126: 0.034 | EV126: 14.748 | EW126: 0.01148749138 | EX126: -0.03408911985 | EY126: -14.74761092 | EZ126: 37.3 | FA126: 15.5
J127: 2453613 | K127: CO 2 MVI 9503/1/SK-FFS-R | L127: 20.0 | M127: 55.0 | N127: 85.0 | O127: 110.0 | P127: 145.0 | Q127: 83.5 | R127: 74.7 | S127: 66.7 | T127: 55.1 | U127: 29.1 | V127: =IFERROR(VLOOKUP(J127,Прайс!A:E,Настройки!$E$1,0)*Настройки!$E$2,"по запросу") -> по запросу | W127: -0.0 | X127: 0.0 | Y127: 82.9 | Z127: 81.7 | AA127: по запросу | AB127: 20.0 | AC127: 51.3 | AD127: 82.5 | AE127: 113.8 | AF127: 145.0 | AG127: 82.7 | AH127: 77.8 | AI127: 67.3 | AJ127: 51.4 | AK127: 29.9 | AL127: 549.2 | AM127: 835 | AN127: 150 | AO127: 150 | AP127: 2R | AR127: CO-2 MVI 9503/1 | AS127: MVI 9503/1 | AT127: Helix | AU127: EN-GJL-250 | AV127: 1.4307 [AISI304L] | AW127: EPDM | AX127: 1.4057 [AISI431] | AY127: 1.4571 [AISI316Ti ] | AZ127: вода 100% | BA127: 20° | BB127: 998.3 kg/m3 | BC127: 1.00 mm2/s | BD127: SK-FFS/2-30(65A)/J-10A/V-3~1,0A | BE127: IP54 | BF127: нет | BG127: нет | BH127: IE2 | BI127: 3~400/50 Гц | BJ127: ±10% | BK127: 30 | BM127: 1 | BN127: 16 | BO127: 10 | BQ127: 262 | BR127: 1697 | BS127: 122 | BT127: 944 | BU127: 1000 | BW127: 600 | BZ127: 1980 | CB127: 650 | CD127: 1444 | CE127: 371 | CF127: 423 | CG127: чертеж pdf | CH127: чертеж dwg | CI127: чертеж step | CJ127: чертеж 3d_dwg | CK127: 20.0 | CL127: 55.0 | CM127: 85.0 | CN127: 110.0 | CO127: 145.0 | CP127: 84.01 | CQ127: 76.03 | CR127: 68.59 | CS127: 57.51 | CT127: 32.06 | CV127: -0.003 | CW127: 0.071 | CX127: 82.883 | CY127: 82.4 | CZ127: CO-2 MVI 9503/1 без учёта потерь напора | DA127: 20.0 | DB127: 51.3 | DC127: 82.5 | DD127: 113.8 | DE127: 145.0 | DF127: 83.2 | DG127: 79.0 | DH127: 69.2 | DI127: 53.8 | DJ127: 32.8 | EF127: -0.003 | EG127: 0.071 | EH127: 82.883 | EI127: 0.01398164761 | EJ127: -0.07094313244 | EK127: -82.8832671 | EL127: 79.6 | EM127: 70.4 | EN127: да | EO127: 82.5 | EP127: 102.5 | EQ127: 61.25 | ER127: 60.4 | ET127: -0.003 | EU127: 0.045 | EV127: 82.883 | EW127: 0.01394164761 | EX127: -0.04504313244 | EY127: -82.8832671 | EZ127: 78.7 | FA127: 68.9
J128: 2453335 | K128: CO 3 BL 32/220-11/2/SK-FFS-R | L128: 10.0 | M128: 20.0 | N128: 30.0 | O128: 60.0 | P128: 86.0 | Q128: 72.9 | R128: 73.0 | S128: 71.8 | T128: 57.8 | U128: 35.1 | V128: =IFERROR(VLOOKUP(J128,Прайс!A:E,Настройки!$E$1,0)*Настройки!$E$2,"по запросу") -> по запросу | W128: -0.0 | X128: 0.2 | Y128: 71.4 | Z128: 71.6 | AA128: по запросу | AB128: 10.0 | AC128: 29.0 | AD128: 48.0 | AE128: 67.0 | AF128: 86.0 | AG128: 73.0 | AH128: 71.8 | AI128: 65.0 | AJ128: 52.8 | AK128: 35.0 | AL128: 526.7 | AM128: 819.6 | AN128: 65 | AO128: 100 | AP128: 2R | AR128: CO-3 BL 32/220-11/2 | AS128: BL 32/220-11/2 | AT128: BL | AU128: EN-GJL-250 | AV128: EN-GJL-200 | AX128: 1.4122 | AY128: 1.4571 [AISI316Ti ] | AZ128: вода 100% | BA128: 20° | BB128: 998.3 kg/m3 | BC128: 1.00 mm2/s | BD128: SK-FFS/3-11(24A)/V-3~1,0A | BE128: IP54 | BF128: нет | BG128: нет | BH128: IE2 | BI128: 3~400/50 Гц | BJ128: ±10% | BK128: 11 | BM128: 2 | BN128: 16 | BO128: 10 | BP128: 1845 | BQ128: 341 | BR128: 728 | BT128: 1604 | BW128: 600 | BX128: 1604 | BY128: 1527 | CD128: 1302 | CG128: чертеж pdf | CH128: чертеж dwg | CI128: чертеж step | CJ128: чертеж 3d_dwg | CK128: 10.0 | CL128: 20.0 | CM128: 30.0 | CN128: 60.0 | CO128: 86.0 | CP128: 73.11 | CQ128: 73.86 | CR128: 73.7 | CS128: 65.36 | CT128: 50.7 | CV128: -0.006 | CW128: 0.235 | CX128: 71.404 | CY128: 73.5 | CZ128: CO-3 BL 32/220-11/2 без учёта потерь напора | DA128: 10.0 | DB128: 29.0 | DC128: 48.0 | DD128: 67.0 | DE128: 86.0 | DF128: 73.2 | DG128: 73.6 | DH128: 69.9 | DI128: 62.3 | DJ128: 50.6 | EF128: -0.006 | EG128: 0.235 | EH128: 71.404 | EI128: 0.01664930669 | EJ128: -0.2347552064 | EK128: -71.40437998 | EL128: 72.9 | EM128: 59.1 | EN128: да | EO128: 48.0 | EP128: 60.16 | EQ128: 35.08 | ER128: 49.1 | ET128: -0.008 | EU128: 0.234 | EV128: 71.411 | EW128: 0.01874930669 | EX128: -0.2340052064 | EY128: -71.41137998 | EZ128: 68.3 | FA128: 51.8
J129: 2453409 | K129: CO 4 BL 50/170-1.1/4/SK-FFS-R | L129: 18.0 | M129: 27.0 | N129: 45.0 | O129: 57.0 | P129: 90.0 | Q129: 10.7 | R129: 10.5 | S129: 10.1 | T129: 9.7 | U129: 7.8 | V129: =IFERROR(VLOOKUP(J129,Прайс!A:E,Настройки!$E$1,0)*Настройки!$E$2,"по запросу") -> по запросу | W129: -0.0 | X129: 0.0 | Y129: 10.6 | Z129: 10.5 | AA129: по запросу | AB129: 18.0 | AC129: 36.0 | AD129: 54.0 | AE129: 72.0 | AF129: 90.0 | AG129: 10.7 | AH129: 10.4 | AI129: 9.8 | AJ129: 8.9 | AK129: 7.8 | AL129: 601.9 | AM129: 740.6 | AN129: 100 | AO129: 100 | AP129: 2R | AR129: CO-4 BL 50/170-1.1/4 | AS129: BL 50/170-1.1/4 | AT129: BL | AU129: EN-GJL-250 | AV129: EN-GJL-200 | AX129: 1.4122 | AY129: 1.4571 [AISI316Ti ] | AZ129: вода 100% | BA129: 20° | BB129: 998.3 kg/m3 | BC129: 1.00 mm2/s | BD129: SK-FFS/4-1,5(4A) | BE129: IP54 | BF129: нет | BG129: нет | BH129: IE2 | BI129: 3~400/50 Гц | BJ129: ±10% | BK129: 1.1 | BM129: 3 | BN129: 16 | BO129: 10 | BP129: 1845 | BQ129: 474 | BR129: 808 | BT129: 2148 | BW129: 760 | BX129: 2148 | BY129: 1421 | CD129: 1196 | CG129: чертеж pdf | CH129: чертеж dwg | CI129: чертеж step | CJ129: чертеж 3d_dwg | CK129: 18.0 | CL129: 27.0 | CM129: 45.0 | CN129: 57.0 | CO129: 90.0 | CP129: 10.74 | CQ129: 10.74 | CR129: 10.66 | CS129: 10.55 | CT129: 9.965 | CV129: -0.000 | CW129: 0.008 | CX129: 10.646 | CY129: 10.7 | CZ129: CO-4 BL 50/170-1.1/4 без учёта потерь напора | DA129: 18.0 | DB129: 36.0 | DC129: 54.0 | DD129: 72.0 | DE129: 90.0 | DF129: 10.7 | DG129: 10.7 | DH129: 10.6 | DI129: 10.3 | DJ129: 10.0 | EF129: -0.000 | EG129: 0.008 | EH129: 10.646 | EI129: 0.01128741533 | EJ129: -0.008308081549 | EK129: -10.64590514 | EL129: 31.1 | EM129: 10.7 | EN129: да | EO129: 54.0 | EP129: 65.52 | EQ129: 41.76 | ER129: 0.7 | ET129: -0.000 | EU129: 0.008 | EV129: 10.646 | EW129: 0.011554082 | EX129: -0.008208081549 | EY129: -10.64640514 | EZ129: 30.7 | FA129: 10.5
J130: 2453724 | K130: CO 4 Helix V 2205/SK-FFS-R | L130: 12.0 | M130: 30.0 | N130: 60.0 | O130: 90.0 | P130: 105.0 | Q130: 92.6 | R130: 86.5 | S130: 69.4 | T130: 43.7 | U130: 25.7 | V130: =IFERROR(VLOOKUP(J130,Прайс!A:E,Настройки!$E$1,0)*Настройки!$E$2,"по запросу") -> по запросу | W130: -0.0 | X130: -0.1 | Y130: 94.3 | Z130: 86.7 | AA130: по запросу | AB130: 12.0 | AC130: 35.3 | AD130: 58.5 | AE130: 81.8 | AF130: 105.0 | AG130: 92.4 | AH130: 84.4 | AI130: 70.7 | AJ130: 51.3 | AK130: 26.2 | AL130: 534.4 | AM130: 833 | AN130: 100 | AO130: 125 | AP130: 2R | AR130: CO-4 Helix V 2205 | AS130: Helix V 2205 | AT130: Helix | AU130: EN-GJL-250 | AV130: 1.4307 [AISI304L] | AW130: EPDM | AX130: 1.4057 [AISI431] | AY130: 1.4571 [AISI316Ti ] | AZ130: вода 100% | BA130: 20° | BB130: 998.3 kg/m3 | BC130: 1.00 mm2/s | BD130: SK-FFS/4-7,5(18A) | BE130: IP54 | BF130: нет | BG130: нет | BH130: IE2 | BI130: 3~400/50 Гц | BJ130: ±10% | BK130: 7.5 | BM130: 3 | BN130: 16 | BO130: 10 | BQ130: 210 | BR130: 1695 | BS130: 120 | BT130: 1948 | BU130: 2080 | BW130: 760 | BZ130: 1796 | CB130: 500 | CD130: 1316 | CE130: 396 | CF130: 420 | CG130: чертеж pdf | CH130: чертеж dwg | CI130: чертеж step | CJ130: чертеж 3d_dwg | CK130: 12.0 | CL130: 30.0 | CM130: 60.0 | CN130: 90.0 | CO130: 105.0 | CP130: 92.76 | CQ130: 87 | CR130: 71 | CS130: 47 | CT130: 30 | CV130: -0.005 | CW130: -0.086 | CX130: 94.312 | CY130: 87.2 | CZ130: CO-4 Helix V 2205 без учёта потерь напора | DA130: 12.0 | DB130: 35.3 | DC130: 58.5 | DD130: 81.8 | DE130: 105.0 | DF130: 92.6 | DG130: 85.1 | DH130: 72.3 | DI130: 54.0 | DJ130: 30.4 | EF130: -0.005 | EG130: -0.086 | EH130: 94.312 | EI130: 0.016083094 | EJ130: 0.08627261955 | EK130: -94.31240586 | EL130: 73.9 | EM130: 60.7 | EN130: да | EO130: 58.5 | EP130: 73.38 | EQ130: 42.69 | ER130: 50.7 | ET130: -0.005 | EU130: -0.096 | EV130: 94.312 | EW130: 0.016383094 | EX130: 0.09560595288 | EY130: -94.31240586 | EZ130: 73.0 | FA130: 59.2
J131: 2453402 | K131: CO 4 BL 40/240-2.2/4/SK-FFS-R | L131: 12.0 | M131: 30.0 | N131: 45.0 | O131: 51.0 | P131: 58.5 | Q131: 20.8 | R131: 20.7 | S131: 20.0 | T131: 19.5 | U131: 18.8 | V131: =IFERROR(VLOOKUP(J131,Прайс!A:E,Настройки!$E$1,0)*Настройки!$E$2,"по запросу") -> по запросу | W131: -0.0 | X131: 0.0 | Y131: 20.4 | Z131: 20.7 | AA131: по запросу | AB131: 12.0 | AC131: 23.6 | AD131: 35.3 | AE131: 46.9 | AF131: 58.5 | AG131: 20.8 | AH131: 20.8 | AI131: 20.5 | AJ131: 19.8 | AK131: 18.8 | AL131: 614.3 | AM131: 824.6 | AN131: 80 | AO131: 100 | AP131: 2R | AR131: CO-4 BL 40/240-2.2/4 | AS131: BL 40/240-2.2/4 | AT131: BL | AU131: EN-GJL-250 | AV131: EN-GJL-200 | AX131: 1.4122 | AY131: 1.4571 [AISI316Ti ] | AZ131: вода 100% | BA131: 20° | BB131: 998.3 kg/m3 | BC131: 1.00 mm2/s | BD131: SK-FFS/4-2,2(6A) | BE131: IP54 | BF131: нет | BG131: нет | BH131: IE2 | BI131: 3~400/50 Гц | BJ131: ±10% | BK131: 2.2 | BM131: 3 | BN131: 16 | BO131: 10 | BP131: 1845 | BQ131: 470 | BR131: 804 | BT131: 2154 | BW131: 760 | BX131: 2154 | BY131: 1488 | CD131: 1263 | CG131: чертеж pdf | CH131: чертеж dwg | CI131: чертеж step | CJ131: чертеж 3d_dwg | CK131: 12.0 | CL131: 30.0 | CM131: 45.0 | CN131: 51.0 | CO131: 58.5 | CP131: 20.84 | CQ131: 21.01 | CR131: 20.75 | CS131: 20.51 | CT131: 20.11 | CV131: -0.001 | CW131: 0.049 | CX131: 20.378 | CY131: 21.0 | CZ131: CO-4 BL 40/240-2.2/4 без учёта потерь напора | DA131: 12.0 | DB131: 23.6 | DC131: 35.3 | DD131: 46.9 | DE131: 58.5 | DF131: 20.8 | DG131: 21.0 | DH131: 21.0 | DI131: 20.7 | DJ131: 20.1 | EF131: -0.001 | EG131: 0.049 | EH131: 20.378 | EI131: 0.01202527114 | EJ131: -0.04907414703 | EK131: -20.37774033 | EL131: 43.3 | EM131: 20.8 | EN131: да | EO131: 35.3 | EP131: 42.69 | EQ131: 27.345 | ER131: 10.8 | ET131: -0.001 | EU131: 0.049 | EV131: 20.374 | EW131: 0.01240542229 | EX131: -0.04901494869 | EY131: -20.37423066 | EZ131: 42.5 | FA131: 20.1
J132: 2453398 | K132: CO 4 BL 40/210-1.5/4/SK-FFS-R | L132: 12.0 | M132: 42.0 | N132: 81.0 | O132: 96.0 | P132: 99.0 | Q132: 14.4 | R132: 13.7 | S132: 10.2 | T132: 8.0 | U132: 7.6 | V132: =IFERROR(VLOOKUP(J132,Прайс!A:E,Настройки!$E$1,0)*Настройки!$E$2,"по запросу") -> по запросу | W132: -0.0 | X132: 0.0 | Y132: 14.2 | Z132: =$K$1^2*W132+$K$1*X132+Y132 -> 14.2 | AA132: =IF($K$1=0,V132,IF(OR($K$1<CK132,$K$1>CO132,EL132>CO132,CY132<$P$1),"не подходит",V132)) -> по запросу | AB132: 12.0 | AC132: 33.8 | AD132: 55.5 | AE132: 77.3 | AF132: 99.0 | AG132: 14.4 | AH132: 14.0 | AI132: 12.8 | AJ132: 10.6 | AK132: 7.6 | AL132: 603.0 | AM132: 776.6 | AN132: 80 | AO132: 125 | AP132: 2R | AR132: CO-4 BL 40/210-1.5/4 | AS132: BL 40/210-1.5/4 | AT132: BL | AU132: EN-GJL-250 | AV132: EN-GJL-200 | AX132: 1.4122 | AY132: 1.4571 [AISI316Ti ] | AZ132: вода 100% | BA132: 20° | BB132: 998.3 kg/m3 | BC132: 1.00 mm2/s | BD132: SK-FFS/4-1,5(4A) | BE132: IP54 | BF132: нет | BG132: нет | BH132: IE2 | BI132: 3~400/50 Гц | BJ132: ±10% | BK132: 1.5 | BM132: 3 | BN132: 16 | BO132: 10 | BP132: 1845 | BQ132: 392 | BR132: 806 | BT132: 2154 | BW132: 760 | BX132: 2154 | BY132: 1453 | CD132: 1198 | CG132: чертеж pdf | CH132: чертеж dwg | CI132: чертеж step | CJ132: чертеж 3d_dwg | CK132: 12.0 | CL132: 42.0 | CM132: 81.0 | CN132: 96.0 | CO132: 99.0 | CP132: 14.45 | CQ132: 14.34 | CR132: 12.66 | CS132: 11.55 | CT132: 11.3 | CV132: -0.001 | CW132: 0.027 | CX132: 14.206 | CY132: =$K$1^2*CV132+$K$1*CW132+CX132 -> 14.5 | CZ132: CO-4 BL 40/210-1.5/4 без учёта потерь напора | DA132: 12.0 | DB132: 33.8 | DC132: 55.5 | DD132: 77.3 | DE132: 99.0 | DF132: 14.5 | DG132: 14.5 | DH132: 14.0 | DI132: 12.9 | DJ132: 11.3 | EF132: =CV132 -> -0.001 | EG132: =CW132 -> 0.027 | EH132: =CX132 -> 14.206 | EI132: =$EC$1-EF132 -> 0.01168210953 | EJ132: =$ED$1-EG132 -> -0.02715918494 | EK132: =$EE$1-EH132 -> -14.20638629 | EL132: =(-EJ132+SQRT(EJ132^2-4*EI132*EK132))/(2*EI132) -> 36.1 | EM132: =$EC$1*EL132^2+$EE$1 -> 14.4 | EN132: да | EO132: =(P132-L132)*0.5+L132 -> 55.5 | EP132: =(P132-L132)*0.66+L132 -> 69.42 | EQ132: =(P132-L132)*0.33+L132 -> 40.71 | ER132: =EM132-$P$1 -> 4.4 | ET132: =W132 -> -0.001 | EU132: =X132 -> 0.027 | EV132: =Y132 -> 14.202 | EW132: =$EC$1-ET132 -> 0.0120635314 | EX132: =$ED$1-EU132 -> -0.02718800043 | EY132: =$EE$1-EV132 -> -14.20187324 | EZ132: =(-EX132+SQRT(EX132^2-4*EW132*EY132))/(2*EW132) -> 35.5 | FA132: =$EC$1*EZ132^2+$EE$1 -> 14.0
J133: 2453605 | K133: CO 2 MVI 7005/2/SK-FFS-R | L133: 15.0 | M133: 40.0 | N133: 60.0 | O133: 90.0 | P133: 110.0 | Q133: 116.1 | R133: 108.5 | S133: 97.6 | T133: 66.5 | U133: 34.7 | V133: =IFERROR(VLOOKUP(J133,Прайс!A:E,Настройки!$E$1,0)*Настройки!$E$2,"по запросу") -> по запросу | W133: -0.0 | X133: 0.3 | Y133: 113.7 | Z133: 113.4 | AA133: по запросу | AB133: 15.0 | AC133: 38.8 | AD133: 62.5 | AE133: 86.3 | AF133: 110.0 | AG133: 115.5 | AH133: 110.4 | AI133: 95.3 | AJ133: 70.3 | AK133: 35.3 | AL133: 601.2 | AM133: 846 | AN133: 150 | AO133: 150 | AP133: 2R | AR133: CO-2 MVI 7005/2 | AS133: MVI 7005/2 | AT133: Helix | AU133: EN-GJL-250 | AV133: 1.4307 [AISI304L] | AW133: EPDM | AX133: 1.4057 [AISI431] | AY133: 1.4571 [AISI316Ti ] | AZ133: вода 100% | BA133: 20° | BB133: 998.3 kg/m3 | BC133: 1.00 mm2/s | BD133: SK-FFS/2-30(65A)/J-10A/V-3~1,0A | BE133: IP54 | BF133: нет | BG133: нет | BH133: IE2 | BI133: 3~400/50 Гц | BJ133: ±10% | BK133: 30 | BM133: 1 | BN133: 16 | BO133: 10 | BQ133: 262 | BR133: 1697 | BS133: 122 | BT133: 944 | BU133: 1000 | BW133: 600 | BZ133: 1980 | CB133: 650 | CD133: 1444 | CE133: 371 | CF133: 423 | CG133: чертеж pdf | CH133: чертеж dwg | CI133: чертеж step | CJ133: чертеж 3d_dwg | CK133: 15.0 | CL133: 40.0 | CM133: 60.0 | CN133: 90.0 | CO133: 110.0 | CP133: 116.5 | CQ133: 109.5 | CR133: 99.04 | CS133: 68.49 | CT133: 37.07 | CV133: -0.009 | CW133: 0.280 | CX133: 113.707 | CY133: 114.2 | CZ133: CO-2 MVI 7005/2 без учёта потерь напора | DA133: 15.0 | DB133: 38.8 | DC133: 62.5 | DD133: 86.3 | DE133: 110.0 | DF133: 115.9 | DG133: 111.3 | DH133: 96.7 | DI133: 72.2 | DJ133: 37.7 | EF133: -0.009 | EG133: 0.280 | EH133: 113.707 | EI133: 0.01994082511 | EJ133: -0.280408565 | EK133: -113.7065447 | EL133: 82.9 | EM133: 76.3 | EN133: да | EO133: 62.5 | EP133: 77.7 | EQ133: 46.35 | ER133: 66.3 | ET133: -0.009 | EU133: 0.255 | EV133: 113.707 | EW133: 0.01990082511 | EX133: -0.254508565 | EY133: -113.7065447 | EZ133: 82.3 | FA133: 75.2
J134: 2453725 | K134: CO 4 Helix V 2206/SK-FFS-R | L134: 12.0 | M134: 30.0 | N134: 60.0 | O134: 90.0 | P134: 105.0 | Q134: 106.8 | R134: 99.5 | S134: 85.4 | T134: 51.7 | U134: 27.6 | V134: =IFERROR(VLOOKUP(J134,Прайс!A:E,Настройки!$E$1,0)*Настройки!$E$2,"по запросу") -> по запросу | W134: -0.0 | X134: 0.2 | Y134: 104.6 | Z134: 102.1 | AA134: по запросу | AB134: 12.0 | AC134: 35.3 | AD134: 58.5 | AE134: 81.8 | AF134: 105.0 | AG134: 105.4 | AH134: 100.1 | AI134: 85.4 | AJ134: 61.6 | AK134: 28.4 | AL134: 540.5 | AM134: 841 | AN134: 100 | AO134: 125 | AP134: 2R | AR134: CO-4 Helix V 2206 | AS134: Helix V 2206 | AT134: Helix | AU134: EN-GJL-250 | AV134: 1.4307 [AISI304L] | AW134: EPDM | AX134: 1.4057 [AISI431] | AY134: 1.4571 [AISI316Ti ] | AZ134: вода 100% | BA134: 20° | BB134: 998.3 kg/m3 | BC134: 1.00 mm2/s | BD134: SK-FFS/4-7,5(18A) | BE134: IP54 | BF134: нет | BG134: нет | BH134: IE2 | BI134: 3~400/50 Гц | BJ134: ±10% | BK134: 7.5 | BM134: 3 | BN134: 16 | BO134: 10 | BQ134: 210 | BR134: 1695 | BS134: 120 | BT134: 1948 | BU134: 2080 | BW134: 760 | BZ134: 1796 | CB134: 500 | CD134: 1316 | CE134: 396 | CF134: 420 | CG134: чертеж pdf | CH134: чертеж dwg | CI134: чертеж step | CJ134: чертеж 3d_dwg | CK134: 12.0 | CL134: 30.0 | CM134: 60.0 | CN134: 90.0 | CO134: 105.0 | CP134: 107 | CQ134: 100 | CR134: 87 | CS134: 55 | CT134: 31.875 | CV134: -0.008 | CW134: 0.184 | CX134: 104.571 | CY134: 102.6 | CZ134: CO-4 Helix V 2206 без учёта потерь напора | DA134: 12.0 | DB134: 35.3 | DC134: 58.5 | DD134: 81.8 | DE134: 105.0 | DF134: 105.6 | DG134: 100.8 | DH134: 87.0 | DI134: 64.3 | DJ134: 32.7 | EF134: -0.008 | EG134: 0.184 | EH134: 104.571 | EI134: 0.01937792396 | EJ134: -0.1835520658 | EK134: -104.5707822 | EL134: 78.3 | EM134: 68.2 | EN134: да | EO134: 58.5 | EP134: 73.38 | EQ134: 42.69 | ER134: 58.2 | ET134: -0.009 | EU134: 0.174 | EV134: 104.571 | EW134: 0.01967792396 | EX134: -0.1742187325 | EY134: -104.5707822 | EZ134: 77.5 | FA134: 66.7
J135: 2453668 | K135: CO 3 Helix V 5204/SK-FFS-R | L135: 18.0 | M135: 40.0 | N135: 60.0 | O135: 100.0 | P135: 160.0 | Q135: 110.1 | R135: 103.0 | S135: 95.2 | T135: 75.8 | U135: 23.5 | V135: =IFERROR(VLOOKUP(J135,Прайс!A:E,Настройки!$E$1,0)*Настройки!$E$2,"по запросу") -> по запросу | W135: -0.0 | X135: -0.1 | Y135: 111.6 | Z135: 106.6 | AA135: по запросу | AB135: 18.0 | AC135: 53.5 | AD135: 89.0 | AE135: 124.5 | AF135: 160.0 | AG135: 109.2 | AH135: 99.0 | AI135: 81.4 | AJ135: 56.3 | AK135: 23.9 | AL135: 543.9 | AM135: 1008.5 | AN135: 125 | AO135: 150 | AP135: 2R | AR135: CO-3 Helix V 5204 | AS135: Helix V 5204 | AT135: Helix | AU135: EN-GJL-250 | AV135: 1.4307 [AISI304L] | AW135: EPDM | AX135: 1.4057 [AISI431] | AY135: 1.4571 [AISI316Ti ] | AZ135: вода 100% | BA135: 20° | BB135: 998.3 kg/m3 | BC135: 1.00 mm2/s | BD135: SK-FFS/3-15(32A)/V-3~1,0A | BE135: IP54 | BF135: нет | BG135: нет | BH135: IE2 | BI135: 3~400/50 Гц | BJ135: ±10% | BK135: 15 | BM135: 2 | BN135: 16 | BO135: 10 | BQ135: 260 | BR135: 1695 | BS135: 120 | BT135: 1444 | BU135: 1580 | BW135: 600 | BZ135: 1936 | CB135: 500 | CD135: 1413 | CE135: 434.5 | CF135: 478.5 | CG135: чертеж pdf | CH135: чертеж dwg | CI135: чертеж step | CJ135: чертеж 3d_dwg | CK135: 18.0 | CL135: 40.0 | CM135: 60.0 | CN135: 100.0 | CO135: 160.0 | CP135: 110.4 | CQ135: 103.6 | CR135: 96.21 | CS135: 77.86 | CT135: 27.35 | CV135: -0.003 | CW135: -0.064 | CX135: 111.573 | CY135: 107.1 | CZ135: CO-3 Helix V 5204 без учёта потерь напора | DA135: 18.0 | DB135: 53.5 | DC135: 89.0 | DD135: 124.5 | DE135: 160.0 | DF135: 109.5 | DG135: 99.9 | DH135: 83.1 | DI135: 59.0 | DJ135: 27.7 | EF135: -0.003 | EG135: -0.064 | EH135: 111.573 | EI135: 0.01398800983 | EJ135: 0.06385256303 | EK135: -111.5731704 | EL135: 87.1 | EM135: 84.2 | EN135: да | EO135: 89.0 | EP135: 111.72 | EQ135: 64.86 | ER135: 74.2 | ET135: -0.003 | EU135: -0.077 | EV135: 111.573 | EW135: 0.01405300983 | EX135: 0.07747756303 | EY135: -111.5731704 | EZ135: 86.4 | FA135: 82.9
J136: 2453667 | K136: CO 3 Helix V 5204/2/SK-FFS-R | L136: 18.0 | M136: 40.0 | N136: 60.0 | O136: 100.0 | P136: 160.0 | Q136: 93.6 | R136: 89.2 | S136: 83.8 | T136: 65.5 | U136: 14.9 | V136: =IFERROR(VLOOKUP(J136,Прайс!A:E,Настройки!$E$1,0)*Настройки!$E$2,"по запросу") -> по запросу | W136: -0.0 | X136: 0.1 | Y136: 93.1 | Z136: 91.7 | AA136: по запросу | AB136: 18.0 | AC136: 53.5 | AD136: 89.0 | AE136: 124.5 | AF136: 160.0 | AG136: 93.0 | AH136: 86.4 | AI136: 71.2 | AJ136: 47.4 | AK136: 15.1 | AL136: 543.9 | AM136: 1008.5 | AN136: 125 | AO136: 150 | AP136: 2R | AR136: CO-3 Helix V 5204/2 | AS136: Helix V 5204/2 | AT136: Helix | AU136: EN-GJL-250 | AV136: 1.4307 [AISI304L] | AW136: EPDM | AX136: 1.4057 [AISI431] | AY136: 1.4571 [AISI316Ti ] | AZ136: вода 100% | BA136: 20° | BB136: 998.3 kg/m3 | BC136: 1.00 mm2/s | BD136: SK-FFS/3-15(32A)/V-3~1,0A | BE136: IP54 | BF136: нет | BG136: нет | BH136: IE2 | BI136: 3~400/50 Гц | BJ136: ±10% | BK136: 15 | BM136: 2 | BN136: 16 | BO136: 10 | BQ136: 260 | BR136: 1695 | BS136: 120 | BT136: 1444 | BU136: 1580 | BW136: 600 | BZ136: 1936 | CB136: 500 | CD136: 1413 | CE136: 434.5 | CF136: 478.5 | CG136: чертеж pdf | CH136: чертеж dwg | CI136: чертеж step | CJ136: чертеж 3d_dwg | CK136: 18.0 | CL136: 40.0 | CM136: 60.0 | CN136: 100.0 | CO136: 160.0 | CP136: 93.85 | CQ136: 89.87 | CR136: 84.82 | CS136: 67.48 | CT136: 18.75 | CV136: -0.003 | CW136: 0.069 | CX136: 93.110 | CY136: 92.2 | CZ136: CO-3 Helix V 5204/2 без учёта потерь напора | DA136: 18.0 | DB136: 53.5 | DC136: 89.0 | DD136: 124.5 | DE136: 160.0 | DF136: 93.3 | DG136: 87.3 | DH136: 72.9 | DI136: 50.1 | DJ136: 18.9 | EF136: -0.003 | EG136: 0.069 | EH136: 93.110 | EI136: 0.01444010077 | EJ136: -0.06909967541 | EK136: -93.11033869 | EL136: 82.7 | EM136: 76.0 | EN136: да | EO136: 89.0 | EP136: 111.72 | EQ136: 64.86 | ER136: 66.0 | ET136: -0.003 | EU136: 0.055 | EV136: 93.110 | EW136: 0.01450510077 | EX136: -0.05547467541 | EY136: -93.11033869 | EZ136: 82.1 | FA136: 74.8
J137: 2453603 | K137: CO 2 MVI 7004/SK-FFS-R | L137: 15.0 | M137: 40.0 | N137: 60.0 | O137: 90.0 | P137: 110.0 | Q137: 102.0 | R137: 94.9 | S137: 87.4 | T137: 64.7 | U137: 40.5 | V137: =IFERROR(VLOOKUP(J137,Прайс!A:E,Настройки!$E$1,0)*Настройки!$E$2,"по запросу") -> по запросу | W137: -0.0 | X137: 0.2 | Y137: 100.4 | Z137: 99.4 | AA137: по запросу | AB137: 15.0 | AC137: 38.8 | AD137: 62.5 | AE137: 86.3 | AF137: 110.0 | AG137: 101.3 | AH137: 96.9 | AI137: 85.5 | AJ137: 66.9 | AK137: 41.3 | AL137: 537.5 | AM137: 744 | AN137: 150 | AO137: 150 | AP137: 2R | AR137: CO-2 MVI 7004 | AS137: MVI 7004 | AT137: Helix | AU137: EN-GJL-250 | AV137: 1.4307 [AISI304L] | AW137: EPDM | AX137: 1.4057 [AISI431] | AY137: 1.4571 [AISI316Ti ] | AZ137: вода 100% | BA137: 20° | BB137: 998.3 kg/m3 | BC137: 1.00 mm2/s | BD137: SK-FFS/2-22(50A)/J-10A/V-3~1,0A | BE137: IP54 | BF137: нет | BG137: нет | BH137: IE2 | BI137: 3~400/50 Гц | BJ137: ±10% | BK137: 22 | BM137: 1 | BN137: 16 | BO137: 10 | BQ137: 262 | BR137: 1697 | BS137: 122 | BT137: 944 | BU137: 1000 | BW137: 600 | BZ137: 1980 | CB137: 650 | CD137: 1444 | CE137: 371 | CF137: 423 | CG137: чертеж pdf | CH137: чертеж dwg | CI137: чертеж step | CJ137: чертеж 3d_dwg | CK137: 15.0 | CL137: 40.0 | CM137: 60.0 | CN137: 90.0 | CO137: 110.0 | CP137: 102.4 | CQ137: 95.89 | CR137: 88.78 | CS137: 66.68 | CT137: 42.82 | CV137: -0.006 | CW137: 0.180 | CX137: 100.411 | CY137: 100.1 | CZ137: CO-2 MVI 7004 без учёта потерь напора | DA137: 15.0 | DB137: 38.8 | DC137: 62.5 | DD137: 86.3 | DE137: 110.0 | DF137: 101.7 | DG137: 97.9 | DH137: 86.9 | DI137: 68.9 | DJ137: 43.6 | EF137: -0.006 | EG137: 0.180 | EH137: 100.411 | EI137: 0.01744231372 | EJ137: -0.1801620586 | EK137: -100.4112037 | EL137: 81.2 | EM137: 73.3 | EN137: да | EO137: 62.5 | EP137: 77.7 | EQ137: 46.35 | ER137: 63.3 | ET137: -0.006 | EU137: 0.154 | EV137: 100.411 | EW137: 0.01740231372 | EX137: -0.1542620586 | EY137: -100.4112037 | EZ137: 80.5 | FA137: 72.0
J138: 2453615 | K138: CO 2 MVI 9503/SK-FFS-R | L138: 20.0 | M138: 55.0 | N138: 85.0 | O138: 110.0 | P138: 145.0 | Q138: 89.7 | R138: 80.4 | S138: 73.2 | T138: 62.3 | U138: 35.8 | V138: =IFERROR(VLOOKUP(J138,Прайс!A:E,Настройки!$E$1,0)*Настройки!$E$2,"по запросу") -> по запросу | W138: -0.0 | X138: 0.1 | Y138: 88.7 | Z138: 87.7 | AA138: по запросу | AB138: 20.0 | AC138: 51.3 | AD138: 82.5 | AE138: 113.8 | AF138: 145.0 | AG138: 88.6 | AH138: 84.0 | AI138: 73.8 | AJ138: 58.1 | AK138: 36.8 | AL138: 547.8 | AM138: 835 | AN138: 150 | AO138: 150 | AP138: 2R | AR138: CO-2 MVI 9503 | AS138: MVI 9503 | AT138: Helix | AU138: EN-GJL-250 | AV138: 1.4307 [AISI304L] | AW138: EPDM | AX138: 1.4057 [AISI431] | AY138: 1.4571 [AISI316Ti ] | AZ138: вода 100% | BA138: 20° | BB138: 998.3 kg/m3 | BC138: 1.00 mm2/s | BD138: SK-FFS/2-30(65A)/J-10A/V-3~1,0A | BE138: IP54 | BF138: нет | BG138: нет | BH138: IE2 | BI138: 3~400/50 Гц | BJ138: ±10% | BK138: 30 | BM138: 1 | BN138: 16 | BO138: 10 | BQ138: 262 | BR138: 1697 | BS138: 122 | BT138: 944 | BU138: 1000 | BW138: 600 | BZ138: 1980 | CB138: 650 | CD138: 1444 | CE138: 371 | CF138: 423 | CG138: чертеж pdf | CH138: чертеж dwg | CI138: чертеж step | CJ138: чертеж 3d_dwg | CK138: 20.0 | CL138: 55.0 | CM138: 85.0 | CN138: 110.0 | CO138: 145.0 | CP138: 90.2 | CQ138: 81.71 | CR138: 75.15 | CS138: 64.62 | CT138: 38.71 | CV138: -0.003 | CW138: 0.080 | CX138: 88.654 | CY138: 88.5 | CZ138: CO-2 MVI 9503 без учёта потерь напора | DA138: 20.0 | DB138: 51.3 | DC138: 82.5 | DD138: 113.8 | DE138: 145.0 | DF138: 89.1 | DG138: 85.2 | DH138: 75.7 | DI138: 60.5 | DJ138: 39.7 | EF138: -0.003 | EG138: 0.080 | EH138: 88.654 | EI138: 0.01399363945 | EJ138: -0.08024485529 | EK138: -88.65421265 | EL138: 82.5 | EM138: 75.6 | EN138: да | EO138: 82.5 | EP138: 102.5 | EQ138: 61.25 | ER138: 65.6 | ET138: -0.003 | EU138: 0.054 | EV138: 88.654 | EW138: 0.01395363945 | EX138: -0.05434485529 | EY138: -88.65421265 | EZ138: 81.7 | FA138: 74.1
J139: 2453367 | K139: CO 3 BL 80/200-4/4/SK-FFS-R | L139: 22.0 | M139: 64.0 | N139: 104.0 | O139: 160.0 | P139: 224.0 | Q139: 13.0 | R139: 13.4 | S139: 13.1 | T139: 11.5 | U139: 8.2 | V139: =IFERROR(VLOOKUP(J139,Прайс!A:E,Настройки!$E$1,0)*Настройки!$E$2,"по запросу") -> по запросу | W139: -0.0 | X139: 0.0 | Y139: 12.5 | Z139: 13.1 | AA139: по запросу | AB139: 22.0 | AC139: 72.5 | AD139: 123.0 | AE139: 173.5 | AF139: 224.0 | AG139: 13.0 | AH139: 13.4 | AI139: 12.7 | AJ139: 11.0 | AK139: 8.2 | AL139: 550.6 | AM139: 813.6 | AN139: 150 | AO139: 150 | AP139: 2R | AR139: CO-3 BL 80/200-4/4 | AS139: BL 80/200-4/4 | AT139: BL | AU139: EN-GJL-250 | AV139: EN-GJL-200 | AX139: 1.4122 | AY139: 1.4571 [AISI316Ti ] | AZ139: вода 100% | BA139: 20° | BB139: 998.3 kg/m3 | BC139: 1.00 mm2/s | BD139: SK-FFS/3-4,0(10A)/V-3~1,0A | BE139: IP54 | BF139: нет | BG139: нет | BH139: IE2 | BI139: 3~400/50 Гц | BJ139: ±10% | BK139: 4 | BM139: 2 | BN139: 16 | BO139: 10 | BP139: 1845 | BQ139: 331 | BR139: 787 | BT139: 1594 | BW139: 600 | BX139: 1610 | BY139: 1644 | CD139: 1376 | CG139: чертеж pdf | CH139: чертеж dwg | CI139: чертеж step | CJ139: чертеж 3d_dwg | CK139: 22.0 | CL139: 64.0 | CM139: 104.0 | CN139: 160.0 | CO139: 224.0 | CP139: 13.03 | CQ139: 13.6 | CR139: 13.63 | CS139: 12.82 | CT139: 10.68 | CV139: -0.000 | CW139: 0.027 | CX139: 12.507 | CY139: 13.2 | CZ139: CO-3 BL 80/200-4/4 без учёта потерь напора | DA139: 22.0 | DB139: 72.5 | DC139: 123.0 | DD139: 173.5 | DE139: 224.0 | DF139: 13.0 | DG139: 13.7 | DH139: 13.5 | DI139: 12.5 | DJ139: 10.7 | EF139: -0.000 | EG139: 0.027 | EH139: 12.507 | EI139: 0.01126901765 | EJ139: -0.02721779495 | EK139: -12.50672814 | EL139: 34.5 | EM139: 13.3 | EN139: да | EO139: 123.0 | EP139: 155.32 | EQ139: 88.66 | ER139: 3.3 | ET139: -0.000 | EU139: 0.027 | EV139: 12.507 | EW139: 0.01131901765 | EX139: -0.02718279495 | EY139: -12.50702814 | EZ139: 34.5 | FA139: 13.2
J140: 2453726 | K140: CO 4 Helix V 2207/SK-FFS-R | L140: 12.0 | M140: 30.0 | N140: 60.0 | O140: 90.0 | P140: 105.0 | Q140: 122.8 | R140: 118.5 | S140: 103.4 | T140: 61.7 | U140: 31.3 | V140: =IFERROR(VLOOKUP(J140,Прайс!A:E,Настройки!$E$1,0)*Настройки!$E$2,"по запросу") -> по запросу | W140: -0.0 | X140: 0.5 | Y140: 117.4 | Z140: 121.0 | AA140: по запросу | AB140: 12.0 | AC140: 35.3 | AD140: 58.5 | AE140: 81.8 | AF140: 105.0 | AG140: 121.5 | AH140: 119.3 | AI140: 103.6 | AJ140: 74.6 | AK140: 32.1 | AL140: 564.9 | AM140: 869 | AN140: 100 | AO140: 125 | AP140: 2R | AR140: CO-4 Helix V 2207 | AS140: Helix V 2207 | AT140: Helix | AU140: EN-GJL-250 | AV140: 1.4307 [AISI304L] | AW140: EPDM | AX140: 1.4057 [AISI431] | AY140: 1.4571 [AISI316Ti ] | AZ140: вода 100% | BA140: 20° | BB140: 998.3 kg/m3 | BC140: 1.00 mm2/s | BD140: SK-FFS/4-11(24A) | BE140: IP54 | BF140: нет | BG140: нет | BH140: IE2 | BI140: 3~400/50 Гц | BJ140: ±10% | BK140: 9 | BM140: 3 | BN140: 16 | BO140: 10 | BQ140: 210 | BR140: 1695 | BS140: 120 | BT140: 1948 | BU140: 2080 | BW140: 760 | BZ140: 1796 | CB140: 500 | CD140: 1316 | CE140: 396 | CF140: 420 | CG140: чертеж pdf | CH140: чертеж dwg | CI140: чертеж step | CJ140: чертеж 3d_dwg | CK140: 12.0 | CL140: 30.0 | CM140: 60.0 | CN140: 90.0 | CO140: 105.0 | CP140: 123 | CQ140: 119 | CR140: 105 | CS140: 65 | CT140: 35.625 | CV140: -0.012 | CW140: 0.501 | CX140: 117.395 | CY140: 121.5 | CZ140: CO-4 Helix V 2207 без учёта потерь напора | DA140: 12.0 | DB140: 35.3 | DC140: 58.5 | DD140: 81.8 | DE140: 105.0 | DF140: 121.7 | DG140: 120.0 | DH140: 105.2 | DI140: 77.3 | DJ140: 36.3 | EF140: -0.012 | EG140: 0.501 | EH140: 117.395 | EI140: 0.02323392082 | EJ140: -0.5010039237 | EK140: -117.3947797 | EL140: 82.7 | EM140: 76.0 | EN140: да | EO140: 58.5 | EP140: 73.38 | EQ140: 42.69 | ER140: 66.0 | ET140: -0.012 | EU140: 0.492 | EV140: 117.395 | EW140: 0.02353392082 | EX140: -0.4916705903 | EY140: -117.3947797 | EZ140: 81.8 | FA140: 74.4
J141: 2453364 | K141: CO 3 BL 65/265-5.5/4/SK-FFS-R | L141: 20.0 | M141: 38.0 | N141: 58.0 | O141: 76.0 | P141: 104.0 | Q141: 25.5 | R141: 25.7 | S141: 25.8 | T141: 25.5 | U141: 24.5 | V141: =IFERROR(VLOOKUP(J141,Прайс!A:E,Настройки!$E$1,0)*Настройки!$E$2,"по запросу") -> по запросу | W141: -0.0 | X141: 0.0 | Y141: 24.8 | Z141: 25.7 | AA141: по запросу | AB141: 20.0 | AC141: 41.0 | AD141: 62.0 | AE141: 83.0 | AF141: 104.0 | AG141: 25.5 | AH141: 25.8 | AI141: 25.8 | AJ141: 25.3 | AK141: 24.5 | AL141: 523.0 | AM141: 828.6 | AN141: 125 | AO141: 125 | AP141: 2R | AR141: CO-3 BL 65/265-5.5/4 | AS141: BL 65/265-5.5/4 | AT141: BL | AU141: EN-GJL-250 | AV141: EN-GJL-200 | AX141: 1.4122 | AY141: 1.4571 [AISI316Ti ] | AZ141: вода 100% | BA141: 20° | BB141: 998.3 kg/m3 | BC141: 1.00 mm2/s | BD141: SK-FFS/3-5,5(12A)/V-3~1,0A | BE141: IP54 | BF141: нет | BG141: нет | BH141: IE2 | BI141: 3~400/50 Гц | BJ141: ±10% | BK141: 5.5 | BM141: 2 | BN141: 16 | BO141: 10 | BP141: 1845 | BQ141: 378 | BR141: 847 | BT141: 1594 | BW141: 600 | BX141: 1594 | BY141: 1623 | CD141: 1368 | CG141: чертеж pdf | CH141: чертеж dwg | CI141: чертеж step | CJ141: чертеж 3d_dwg | CK141: 20.0 | CL141: 38.0 | CM141: 58.0 | CN141: 76.0 | CO141: 104.0 | CP141: 25.54 | CQ141: 25.93 | CR141: 26.24 | CS141: 26.27 | CT141: 25.82 | CV141: -0.000 | CW141: 0.045 | CX141: 24.758 | CY141: 25.8 | CZ141: CO-3 BL 65/265-5.5/4 без учёта потерь напора | DA141: 20.0 | DB141: 41.0 | DC141: 62.0 | DD141: 83.0 | DE141: 104.0 | DF141: 25.5 | DG141: 26.0 | DH141: 26.3 | DI141: 26.2 | DJ141: 25.8 | EF141: -0.000 | EG141: 0.045 | EH141: 24.758 | EI141: 0.01144002091 | EJ141: -0.04452813691 | EK141: -24.75798102 | EL141: 48.5 | EM141: 26.1 | EN141: да | EO141: 62.0 | EP141: 75.44 | EQ141: 47.72 | ER141: 16.1 | ET141: -0.000 | EU141: 0.044 | EV141: 24.758 | EW141: 0.01156502091 | EX141: -0.04447813691 | EY141: -24.75848102 | EZ141: 48.2 | FA141: 25.8
J142: 2453669 | K142: CO 3 Helix V 5205/2/SK-FFS-R | L142: 18.0 | M142: 40.0 | N142: 60.0 | O142: 100.0 | P142: 160.0 | Q142: 120.9 | R142: 114.8 | S142: 107.4 | T142: 84.7 | U142: 21.5 | V142: =IFERROR(VLOOKUP(J142,Прайс!A:E,Настройки!$E$1,0)*Настройки!$E$2,"по запросу") -> по запросу | W142: -0.0 | X142: 0.0 | Y142: 120.7 | Z142: 118.2 | AA142: по запросу | AB142: 18.0 | AC142: 53.5 | AD142: 89.0 | AE142: 124.5 | AF142: 160.0 | AG142: 120.1 | AH142: 111.0 | AI142: 91.6 | AJ142: 61.9 | AK142: 21.8 | AL142: 564.0 | AM142: 1038.5 | AN142: 125 | AO142: 150 | AP142: 2R | AR142: CO-3 Helix V 5205/2 | AS142: Helix V 5205/2 | AT142: Helix | AU142: EN-GJL-250 | AV142: 1.4307 [AISI304L] | AW142: EPDM | AX142: 1.4057 [AISI431] | AY142: 1.4571 [AISI316Ti ] | AZ142: вода 100% | BA142: 20° | BB142: 998.3 kg/m3 | BC142: 1.00 mm2/s | BD142: SK-FFS/3-18(40A)/V-3~1,0A | BE142: IP54 | BF142: нет | BG142: нет | BH142: IE2 | BI142: 3~400/50 Гц | BJ142: ±10% | BK142: 18.5 | BM142: 2 | BN142: 16 | BO142: 10 | BQ142: 260 | BR142: 1709 | BS142: 120 | BT142: 1444 | BU142: 1580 | BW142: 760 | BZ142: 1936 | CB142: 500 | CD142: 1413 | CE142: 434.5 | CF142: 478.5 | CG142: чертеж pdf | CH142: чертеж dwg | CI142: чертеж step | CJ142: чертеж 3d_dwg | CK142: 18.0 | CL142: 40.0 | CM142: 60.0 | CN142: 100.0 | CO142: 160.0 | CP142: 121.2 | CQ142: 115.4 | CR142: 108.5 | CS142: 86.67 | CT142: 25.31 | CV142: -0.004 | CW142: 0.051 | CX142: 120.740 | CY142: 118.6 | CZ142: CO-3 Helix V 5205/2 без учёта потерь напора | DA142: 18.0 | DB142: 53.5 | DC142: 89.0 | DD142: 124.5 | DE142: 160.0 | DF142: 120.4 | DG142: 111.9 | DH142: 93.3 | DI142: 64.6 | DJ142: 25.6 | EF142: -0.004 | EG142: 0.051 | EH142: 120.740 | EI142: 0.01514742792 | EJ142: -0.05124054213 | EK142: -120.7401135 | EL142: 91.0 | EM142: 92.0 | EN142: да | EO142: 89.0 | EP142: 111.72 | EQ142: 64.86 | ER142: 82.0 | ET142: -0.004 | EU142: 0.038 | EV142: 120.740 | EW142: 0.01521242792 | EX142: -0.03761554213 | EY142: -120.7401135 | EZ142: 90.3 | FA142: 90.7
J143: 2453315 | K143: CO 2 BL 100/220-5.5/4/SK-FFS-R | L143: 20.0 | M143: 36.0 | N143: 48.0 | O143: 72.0 | P143: 92.0 | Q143: 14.3 | R143: 14.4 | S143: 14.3 | T143: 14.0 | U143: 13.6 | V143: =IFERROR(VLOOKUP(J143,Прайс!A:E,Настройки!$E$1,0)*Настройки!$E$2,"по запросу") -> по запросу | W143: -0.0 | X143: 0.0 | Y143: 14.2 | Z143: 14.4 | AA143: по запросу | AB143: 20.0 | AC143: 38.0 | AD143: 56.0 | AE143: 74.0 | AF143: 92.0 | AG143: 14.4 | AH143: 14.3 | AI143: 14.2 | AJ143: 14.0 | AK143: 13.6 | AL143: 413.6 | AM143: 681.4 | AN143: 200 | AO143: 200 | AP143: 2R | AR143: CO-2 BL 100/220-5.5/4 | AS143: BL 100/220-5.5/4 | AT143: BL | AU143: EN-GJL-250 | AV143: EN-GJL-200 | AX143: 1.4122 | AY143: 1.4571 [AISI316Ti ] | AZ143: вода 100% | BA143: 20° | BB143: 998.3 kg/m3 | BC143: 1.00 mm2/s | BD143: SK-FFS/2-5,5(12A)/J-6,3A/V-3~1,0A | BE143: IP54 | BF143: нет | BG143: нет | BH143: IE2 | BI143: 3~400/50 Гц | BJ143: ±10% | BK143: 5.5 | BM143: 1 | BN143: 16 | BO143: 10 | BP143: 1845 | BQ143: 406 | BR143: 929 | BT143: 1040 | BW143: 600 | BX143: 1086 | BY143: 1806 | CD143: 1466 | CG143: чертеж pdf | CH143: чертеж dwg | CI143: чертеж step | CJ143: чертеж 3d_dwg | CK143: 20.0 | CL143: 36.0 | CM143: 48.0 | CN143: 72.0 | CO143: 92.0 | CP143: 14.39 | CQ143: 14.46 | CR143: 14.47 | CS143: 14.39 | CT143: 14.25 | CV143: -0.000 | CW143: 0.010 | CX143: 14.239 | CY143: 14.4 | CZ143: CO-2 BL 100/220-5.5/4 без учёта потерь напора | DA143: 20.0 | DB143: 38.0 | DC143: 56.0 | DD143: 74.0 | DE143: 92.0 | DF143: 14.4 | DG143: 14.5 | DH143: 14.5 | DI143: 14.4 | DJ143: 14.2 | EF143: -0.000 | EG143: 0.010 | EH143: 14.239 | EI143: 0.01121702847 | EJ143: -0.009827591216 | EK143: -14.23908703 | EL143: 36.1 | EM143: 14.5 | EN143: да | EO143: 56.0 | EP143: 67.52 | EQ143: 43.76 | ER143: 4.5 | ET143: -0.000 | EU143: 0.010 | EV143: 14.226 | EW143: 0.01128702847 | EX143: -0.009847591216 | EY143: -14.22638703 | EZ143: 35.9 | FA143: 14.4
J144: 2453617 | K144: CO 2 MVI 9504/2/SK-FFS-R | L144: 20.0 | M144: 55.0 | N144: 85.0 | O144: 110.0 | P144: 145.0 | Q144: 106.9 | R144: 95.9 | S144: 85.2 | T144: 69.8 | U144: 36.0 | V144: =IFERROR(VLOOKUP(J144,Прайс!A:E,Настройки!$E$1,0)*Настройки!$E$2,"по запросу") -> по запросу | W144: -0.0 | X144: 0.1 | Y144: 106.1 | Z144: 104.7 | AA144: по запросу | AB144: 20.0 | AC144: 51.3 | AD144: 82.5 | AE144: 113.8 | AF144: 145.0 | AG144: 105.9 | AH144: 99.6 | AI144: 86.0 | AJ144: 65.1 | AK144: 36.8 | AL144: 583.3 | AM144: 864 | AN144: 150 | AO144: 150 | AP144: 2R | AR144: CO-2 MVI 9504/2 | AS144: MVI 9504/2 | AT144: Helix | AU144: EN-GJL-250 | AV144: 1.4307 [AISI304L] | AW144: EPDM | AX144: 1.4057 [AISI431] | AY144: 1.4571 [AISI316Ti ] | AZ144: вода 100% | BA144: 20° | BB144: 998.3 kg/m3 | BC144: 1.00 mm2/s | BD144: SK-FFS/2-30(65A)/J-10A/V-3~1,0A | BE144: IP54 | BF144: нет | BG144: нет | BH144: IE2 | BI144: 3~400/50 Гц | BJ144: ±10% | BK144: 30 | BM144: 1 | BN144: 16 | BO144: 10 | BQ144: 262 | BR144: 1697 | BS144: 122 | BT144: 944 | BU144: 1000 | BW144: 600 | BZ144: 1980 | CB144: 650 | CD144: 1444 | CE144: 371 | CF144: 423 | CG144: чертеж pdf | CH144: чертеж dwg | CI144: чертеж step | CJ144: чертеж 3d_dwg | CK144: 20.0 | CL144: 55.0 | CM144: 85.0 | CN144: 110.0 | CO144: 145.0 | CP144: 107.4 | CQ144: 97.25 | CR144: 87.08 | CS144: 72.14 | CT144: 38.89 | CV144: -0.004 | CW144: 0.093 | CX144: 106.061 | CY144: 105.4 | CZ144: CO-2 MVI 9504/2 без учёта потерь напора | DA144: 20.0 | DB144: 51.3 | DC144: 82.5 | DD144: 113.8 | DE144: 145.0 | DF144: 106.4 | DG144: 100.9 | DH144: 87.9 | DI144: 67.5 | DJ144: 39.8 | EF144: -0.004 | EG144: 0.093 | EH144: 106.061 | EI144: 0.01490411753 | EJ144: -0.09275736842 | EK144: -106.0609096 | EL144: 87.5 | EM144: 85.1 | EN144: да | EO144: 82.5 | EP144: 102.5 | EQ144: 61.25 | ER144: 75.1 | ET144: -0.004 | EU144: 0.067 | EV144: 106.061 | EW144: 0.01486411753 | EX144: -0.06685736842 | EY144: -106.0609096 | EZ144: 86.7 | FA144: 83.6
J145: 2453413 | K145: CO 4 BL 50/220-2.2/4/SK-FFS-R | L145: 21.0 | M145: 42.0 | N145: 57.0 | O145: 78.0 | P145: 102.0 | Q145: 16.7 | R145: 16.8 | S145: 16.4 | T145: 15.3 | U145: 13.1 | V145: =IFERROR(VLOOKUP(J145,Прайс!A:E,Настройки!$E$1,0)*Настройки!$E$2,"по запросу") -> по запросу | W145: -0.0 | X145: 0.1 | Y145: 15.8 | Z145: 16.8 | AA145: по запросу | AB145: 21.0 | AC145: 41.3 | AD145: 61.5 | AE145: 81.8 | AF145: 102.0 | AG145: 16.7 | AH145: 16.8 | AI145: 16.3 | AJ145: 15.0 | AK145: 13.1 | AL145: 620.1 | AM145: 804.6 | AN145: 100 | AO145: 100 | AP145: 2R | AR145: CO-4 BL 50/220-2.2/4 | AS145: BL 50/220-2.2/4 | AT145: BL | AU145: EN-GJL-250 | AV145: EN-GJL-200 | AX145: 1.4122 | AY145: 1.4571 [AISI316Ti ] | AZ145: вода 100% | BA145: 20° | BB145: 998.3 kg/m3 | BC145: 1.00 mm2/s | BD145: SK-FFS/4-2,2(6A) | BE145: IP54 | BF145: нет | BG145: нет | BH145: IE2 | BI145: 3~400/50 Гц | BJ145: ±10% | BK145: 2.2 | BM145: 3 | BN145: 16 | BO145: 10 | BP145: 1845 | BQ145: 472 | BR145: 806 | BT145: 2148 | BW145: 760 | BX145: 2148 | BY145: 1461 | CD145: 1236 | CG145: чертеж pdf | CH145: чертеж dwg | CI145: чертеж step | CJ145: чертеж 3d_dwg | CK145: 21.0 | CL145: 42.0 | CM145: 57.0 | CN145: 78.0 | CO145: 102.0 | CP145: 16.79 | CQ145: 17.27 | CR145: 17.32 | CS145: 16.92 | CT145: 15.88 | CV145: -0.001 | CW145: 0.059 | CX145: 15.804 | CY145: 17.1 | CZ145: CO-4 BL 50/220-2.2/4 без учёта потерь напора | DA145: 21.0 | DB145: 41.3 | DC145: 61.5 | DD145: 81.8 | DE145: 102.0 | DF145: 16.8 | DG145: 17.3 | DH145: 17.3 | DI145: 16.8 | DJ145: 15.9 | EF145: -0.001 | EG145: 0.059 | EH145: 15.804 | EI145: 0.01168215818 | EJ145: -0.05896409949 | EK145: -15.80413698 | EL145: 39.4 | EM145: 17.2 | EN145: да | EO145: 61.5 | EP145: 74.46 | EQ145: 47.73 | ER145: 7.2 | ET145: -0.001 | EU145: 0.059 | EV145: 15.805 | EW145: 0.01194882484 | EX145: -0.05886409949 | EY145: -15.80463698 | EZ145: 38.9 | FA145: 16.8
J146: 2453673 | K146: CO 3 MVI 7001/SK-FFS-R | L146: 30.0 | M146: 80.0 | N146: 120.0 | O146: 180.0 | P146: 220.0 | Q146: 26.1 | R146: 22.9 | S146: 20.4 | T146: 13.9 | U146: 6.7 | V146: =IFERROR(VLOOKUP(J146,Прайс!A:E,Настройки!$E$1,0)*Настройки!$E$2,"по запросу") -> по запросу | W146: -0.0 | X146: -0.0 | Y146: 26.2 | Z146: 25.8 | AA146: по запросу | AB146: 30.0 | AC146: 77.5 | AD146: 125.0 | AE146: 172.5 | AF146: 220.0 | AG146: 25.8 | AH146: 23.6 | AI146: 19.8 | AJ146: 14.3 | AK146: 7.0 | AL146: 582.6 | AM146: 933.5 | AN146: 200 | AO146: 200 | AP146: 2R | AR146: CO-3 MVI 7001 | AS146: MVI 7001 | AT146: Helix | AU146: EN-GJL-250 | AV146: 1.4307 [AISI304L] | AW146: EPDM | AX146: 1.4057 [AISI431] | AY146: 1.4571 [AISI316Ti ] | AZ146: вода 100% | BA146: 20° | BB146: 998.3 kg/m3 | BC146: 1.00 mm2/s | BD146: SK-FFS/3-5,5(12A)/V-3~1,0A | BE146: IP54 | BF146: нет | BG146: нет | BH146: IE2 | BI146: 3~400/50 Гц | BJ146: ±10% | BK146: 5.5 | BM146: 2 | BN146: 16 | BO146: 10 | BQ146: 262 | BR146: 1697 | BS146: 122 | BT146: 1440 | BU146: 1500 | BW146: 600 | BZ146: 2350 | CB146: 650 | CD146: 1650 | CE146: 471 | CF146: 529 | CG146: чертеж pdf | CH146: чертеж dwg | CI146: чертеж step | CJ146: чертеж 3d_dwg | CK146: 30.0 | CL146: 80.0 | CM146: 120.0 | CN146: 180.0 | CO146: 220.0 | CP146: 26.09 | CQ146: 22.97 | CR146: 20.63 | CS146: 14.44 | CT146: 7.518 | CV146: -0.000 | CW146: -0.004 | CX146: 26.244 | CY146: 25.8 | CZ146: CO-3 MVI 7001 без учёта потерь напора | DA146: 30.0 | DB146: 77.5 | DC146: 125.0 | DD146: 172.5 | DE146: 220.0 | DF146: 25.8 | DG146: 23.8 | DH146: 20.1 | DI146: 14.8 | DJ146: 7.9 | EF146: -0.000 | EG146: -0.004 | EH146: 26.244 | EI146: 0.01147160302 | EJ146: 0.004160864012 | EK146: -26.24395304 | EL146: 47.6 | EM146: 25.2 | EN146: да | EO146: 125.0 | EP146: 155.4 | EQ146: 92.7 | ER146: 15.2 | ET146: -0.000 | EU146: -0.004 | EV146: 26.244 | EW146: 0.01148910302 | EX146: 0.004195864012 | EY146: -26.24395304 | EZ146: 47.6 | FA146: 25.2
J147: 2453672 | K147: CO 3 MVI 7001/1/SK-FFS-R | L147: 30.0 | M147: 80.0 | N147: 120.0 | O147: 180.0 | P147: 220.0 | Q147: 19.8 | R147: 17.5 | S147: 15.0 | T147: 7.4 | U147: 0.1 | V147: =IFERROR(VLOOKUP(J147,Прайс!A:E,Настройки!$E$1,0)*Настройки!$E$2,"по запросу") -> по запросу | W147: -0.0 | X147: 0.0 | Y147: 19.6 | Z147: 19.7 | AA147: по запросу | AB147: 30.0 | AC147: 77.5 | AD147: 125.0 | AE147: 172.5 | AF147: 220.0 | AG147: 19.7 | AH147: 18.1 | AI147: 14.3 | AJ147: 8.3 | AK147: 0.2 | AL147: 576.4 | AM147: 921.5 | AN147: 200 | AO147: 200 | AP147: 2R | AR147: CO-3 MVI 7001/1 | AS147: MVI 7001/1 | AT147: Helix | AU147: EN-GJL-250 | AV147: 1.4307 [AISI304L] | AW147: EPDM | AX147: 1.4057 [AISI431] | AY147: 1.4571 [AISI316Ti ] | AZ147: вода 100% | BA147: 20° | BB147: 998.3 kg/m3 | BC147: 1.00 mm2/s | BD147: SK-FFS/3-4,0(10A)/V-3~1,0A | BE147: IP54 | BF147: нет | BG147: нет | BH147: IE2 | BI147: 3~400/50 Гц | BJ147: ±10% | BK147: 4 | BM147: 2 | BN147: 16 | BO147: 10 | BQ147: 262 | BR147: 1697 | BS147: 122 | BT147: 1440 | BU147: 1500 | BW147: 600 | BZ147: 2350 | CB147: 650 | CD147: 1650 | CE147: 471 | CF147: 529 | CG147: чертеж pdf | CH147: чертеж dwg | CI147: чертеж step | CJ147: чертеж 3d_dwg | CK147: 30.0 | CL147: 80.0 | CM147: 120.0 | CN147: 180.0 | CO147: 220.0 | CP147: 19.85 | CQ147: 17.64 | CR147: 15.21 | CS147: 7.97 | CT147: 0.9338 | CV147: -0.000 | CW147: 0.018 | CX147: 19.578 | CY147: 19.7 | CZ147: CO-3 MVI 7001/1 без учёта потерь напора | DA147: 30.0 | DB147: 77.5 | DC147: 125.0 | DD147: 172.5 | DE147: 220.0 | DF147: 19.7 | DG147: 18.2 | DH147: 14.6 | DI147: 8.9 | DJ147: 1.1 | EF147: -0.000 | EG147: 0.018 | EH147: 19.578 | EI147: 0.01157406754 | EJ147: -0.01772573929 | EK147: -19.57792364 | EL147: 41.9 | EM147: 19.5 | EN147: да | EO147: 125.0 | EP147: 155.4 | EQ147: 92.7 | ER147: 9.5 | ET147: -0.000 | EU147: 0.018 | EV147: 19.578 | EW147: 0.01159156754 | EX147: -0.01769073929 | EY147: -19.57792364 | EZ147: 41.9 | FA147: 19.5
J148: 2453316 | K148: CO 2 BL 100/220-7.5/4/SK-FFS-R | L148: 18.0 | M148: 55.0 | N148: 100.0 | O148: 140.0 | P148: 197.0 | Q148: 14.4 | R148: 14.2 | S148: 13.5 | T148: 12.1 | U148: 8.0 | V148: =IFERROR(VLOOKUP(J148,Прайс!A:E,Настройки!$E$1,0)*Настройки!$E$2,"по запросу") -> по запросу | W148: -0.0 | X148: 0.0 | Y148: 13.9 | Z148: 14.4 | AA148: по запросу | AB148: 18.0 | AC148: 62.8 | AD148: 107.5 | AE148: 152.3 | AF148: 197.0 | AG148: 14.3 | AH148: 14.3 | AI148: 13.3 | AJ148: 11.2 | AK148: 8.1 | AL148: 420.1 | AM148: 743.4 | AN148: 200 | AO148: 200 | AP148: 2R | AR148: CO-2 BL 100/220-7.5/4 | AS148: BL 100/220-7.5/4 | AT148: BL | AU148: EN-GJL-250 | AV148: EN-GJL-200 | AX148: 1.4122 | AY148: 1.4571 [AISI316Ti ] | AZ148: вода 100% | BA148: 20° | BB148: 998.3 kg/m3 | BC148: 1.00 mm2/s | BD148: SK-FFS/2-7,5(18A)/J-6,3A/V-3~1,0A | BE148: IP54 | BF148: нет | BG148: нет | BH148: IE2 | BI148: 3~400/50 Гц | BJ148: ±10% | BK148: 7.5 | BM148: 1 | BN148: 16 | BO148: 10 | BP148: 1845 | BQ148: 406 | BR148: 929 | BT148: 1040 | BW148: 600 | BX148: 1086 | BY148: 1806 | CD148: 1466 | CG148: чертеж pdf | CH148: чертеж dwg | CI148: чертеж step | CJ148: чертеж 3d_dwg | CK148: 18.0 | CL148: 55.0 | CM148: 100.0 | CN148: 140.0 | CO148: 197.0 | CP148: 14.39 | CQ148: 14.44 | CR148: 14.2 | CS148: 13.47 | CT148: 10.71 | CV148: -0.000 | CW148: 0.023 | CX148: 13.937 | CY148: 14.5 | CZ148: CO-2 BL 100/220-7.5/4 без учёта потерь напора | DA148: 18.0 | DB148: 62.8 | DC148: 107.5 | DD148: 152.3 | DE148: 197.0 | DF148: 14.3 | DG148: 14.6 | DH148: 14.1 | DI148: 12.8 | DJ148: 10.8 | EF148: -0.000 | EG148: 0.023 | EH148: 13.937 | EI148: 0.01130954691 | EJ148: -0.02306652392 | EK148: -13.93708578 | EL148: 36.1 | EM148: 14.5 | EN148: да | EO148: 107.5 | EP148: 136.14 | EQ148: 77.07 | ER148: 4.5 | ET148: -0.000 | EU148: 0.023 | EV148: 13.924 | EW148: 0.01137954691 | EX148: -0.02308652392 | EY148: -13.92438578 | EZ148: 36.0 | FA148: 14.4
J149: 2453670 | K149: CO 3 Helix V 5205/SK-FFS-R | L149: 18.0 | M149: 40.0 | N149: 60.0 | O149: 100.0 | P149: 160.0 | Q149: 137.2 | R149: 128.3 | S149: 118.6 | T149: 94.9 | U149: 29.8 | V149: =IFERROR(VLOOKUP(J149,Прайс!A:E,Настройки!$E$1,0)*Настройки!$E$2,"по запросу") -> по запросу | W149: -0.0 | X149: -0.1 | Y149: 138.9 | Z149: 132.8 | AA149: по запросу | AB149: 18.0 | AC149: 53.5 | AD149: 89.0 | AE149: 124.5 | AF149: 160.0 | AG149: 136.0 | AH149: 123.5 | AI149: 101.6 | AJ149: 70.6 | AK149: 30.3 | AL149: 564.0 | AM149: 1038.5 | AN149: 125 | AO149: 150 | AP149: 2R | AR149: CO-3 Helix V 5205 | AS149: Helix V 5205 | AT149: Helix | AU149: EN-GJL-250 | AV149: 1.4307 [AISI304L] | AW149: EPDM | AX149: 1.4057 [AISI431] | AY149: 1.4571 [AISI316Ti ] | AZ149: вода 100% | BA149: 20° | BB149: 998.3 kg/m3 | BC149: 1.00 mm2/s | BD149: SK-FFS/3-18(40A)/V-3~1,0A | BE149: IP54 | BF149: нет | BG149: нет | BH149: IE2 | BI149: 3~400/50 Гц | BJ149: ±10% | BK149: 18.5 | BM149: 2 | BN149: 16 | BO149: 10 | BQ149: 260 | BR149: 1709 | BS149: 120 | BT149: 1444 | BU149: 1580 | BW149: 760 | BZ149: 1936 | CB149: 500 | CD149: 1413 | CE149: 434.5 | CF149: 478.5 | CG149: чертеж pdf | CH149: чертеж dwg | CI149: чертеж step | CJ149: чертеж 3d_dwg | CK149: 18.0 | CL149: 40.0 | CM149: 60.0 | CN149: 100.0 | CO149: 160.0 | CP149: 137.5 | CQ149: 128.9 | CR149: 119.7 | CS149: 96.87 | CT149: 33.64 | CV149: -0.004 | CW149: -0.079 | CX149: 138.901 | CY149: 133.3 | CZ149: CO-3 Helix V 5205 без учёта потерь напора | DA149: 18.0 | DB149: 53.5 | DC149: 89.0 | DD149: 124.5 | DE149: 160.0 | DF149: 136.3 | DG149: 124.4 | DH149: 103.4 | DI149: 73.3 | DJ149: 34.1 | EF149: -0.004 | EG149: -0.079 | EH149: 138.901 | EI149: 0.01471142266 | EJ149: 0.07892761202 | EK149: -138.9007699 | EL149: 94.5 | EM149: 99.3 | EN149: да | EO149: 89.0 | EP149: 111.72 | EQ149: 64.86 | ER149: 89.3 | ET149: -0.004 | EU149: -0.093 | EV149: 138.901 | EW149: 0.01477642266 | EX149: 0.09255261202 | EY149: -138.9007699 | EZ149: 93.9 | FA149: 97.9
J150: 2453604 | K150: CO 2 MVI 7005/1/SK-FFS-R | L150: 15.0 | M150: 40.0 | N150: 60.0 | O150: 90.0 | P150: 110.0 | Q150: 121.8 | R150: 113.8 | S150: 103.9 | T150: 74.3 | U150: 43.2 | V150: =IFERROR(VLOOKUP(J150,Прайс!A:E,Настройки!$E$1,0)*Настройки!$E$2,"по запросу") -> по запросу | W150: -0.0 | X150: 0.2 | Y150: 119.4 | Z150: 119.0 | AA150: по запросу | AB150: 15.0 | AC150: 38.8 | AD150: 62.5 | AE150: 86.3 | AF150: 110.0 | AG150: 121.1 | AH150: 116.0 | AI150: 101.5 | AJ150: 77.5 | AK150: 44.1 | AL150: 599.8 | AM150: 846 | AN150: 150 | AO150: 150 | AP150: 2R | AR150: CO-2 MVI 7005/1 | AS150: MVI 7005/1 | AT150: Helix | AU150: EN-GJL-250 | AV150: 1.4307 [AISI304L] | AW150: EPDM | AX150: 1.4057 [AISI431] | AY150: 1.4571 [AISI316Ti ] | AZ150: вода 100% | BA150: 20° | BB150: 998.3 kg/m3 | BC150: 1.00 mm2/s | BD150: SK-FFS/2-30(65A)/J-10A/V-3~1,0A | BE150: IP54 | BF150: нет | BG150: нет | BH150: IE2 | BI150: 3~400/50 Гц | BJ150: ±10% | BK150: 30 | BM150: 1 | BN150: 16 | BO150: 10 | BQ150: 262 | BR150: 1697 | BS150: 122 | BT150: 944 | BU150: 1000 | BW150: 600 | BZ150: 1980 | CB150: 650 | CD150: 1444 | CE150: 371 | CF150: 423 | CG150: чертеж pdf | CH150: чертеж dwg | CI150: чертеж step | CJ150: чертеж 3d_dwg | CK150: 15.0 | CL150: 40.0 | CM150: 60.0 | CN150: 90.0 | CO150: 110.0 | CP150: 122.2 | CQ150: 114.8 | CR150: 105.3 | CS150: 76.29 | CT150: 45.58 | CV150: -0.008 | CW150: 0.266 | CX150: 119.357 | CY150: 119.7 | CZ150: CO-2 MVI 7005/1 без учёта потерь напора | DA150: 15.0 | DB150: 38.8 | DC150: 62.5 | DD150: 86.3 | DE150: 110.0 | DF150: 121.4 | DG150: 117.0 | DH150: 103.0 | DI150: 79.5 | DJ150: 46.4 | EF150: -0.008 | EG150: 0.266 | EH150: 119.357 | EI150: 0.01955954287 | EJ150: -0.2662797145 | EK150: -119.3565907 | EL150: 85.2 | EM150: 80.7 | EN150: да | EO150: 62.5 | EP150: 77.7 | EQ150: 46.35 | ER150: 70.7 | ET150: -0.008 | EU150: 0.240 | EV150: 119.357 | EW150: 0.01951954287 | EX150: -0.2403797145 | EY150: -119.3565907 | EZ150: 84.6 | FA150: 79.5
J151: 2453618 | K151: CO 2 MVI 9504/SK-FFS-R | L151: 20.0 | M151: 55.0 | N151: 85.0 | O151: 110.0 | P151: 145.0 | Q151: 119.8 | R151: 108.0 | S151: 99.0 | T151: 84.8 | U151: 50.1 | V151: =IFERROR(VLOOKUP(J151,Прайс!A:E,Настройки!$E$1,0)*Настройки!$E$2,"по запросу") -> по запросу | W151: -0.0 | X151: 0.1 | Y151: 118.0 | Z151: 117.3 | AA151: по запросу | AB151: 20.0 | AC151: 51.3 | AD151: 82.5 | AE151: 113.8 | AF151: 145.0 | AG151: 118.3 | AH151: 112.7 | AI151: 99.7 | AJ151: 79.2 | AK151: 51.4 | AL151: 599.1 | AM151: 908 | AN151: 150 | AO151: 150 | AP151: 2R | AR151: CO-2 MVI 9504 | AS151: MVI 9504 | AT151: Helix | AU151: EN-GJL-250 | AV151: 1.4307 [AISI304L] | AW151: EPDM | AX151: 1.4057 [AISI431] | AY151: 1.4571 [AISI316Ti ] | AZ151: вода 100% | BA151: 20° | BB151: 998.3 kg/m3 | BC151: 1.00 mm2/s | BD151: SK-FFS/2-37(80A)/J-10A/V-3~1,0A | BE151: IP54 | BF151: нет | BG151: нет | BH151: IE2 | BI151: 3~400/50 Гц | BJ151: ±10% | BK151: 37 | BM151: 1 | BN151: 16 | BO151: 10 | BQ151: 262 | BR151: 1697 | BS151: 122 | BT151: 944 | BU151: 1000 | BW151: 760 | BZ151: 1980 | CB151: 650 | CD151: 1444 | CE151: 371 | CF151: 423 | CG151: чертеж pdf | CH151: чертеж dwg | CI151: чертеж step | CJ151: чертеж 3d_dwg | CK151: 20.0 | CL151: 55.0 | CM151: 85.0 | CN151: 110.0 | CO151: 145.0 | CP151: 120.3 | CQ151: 109.3 | CR151: 100.9 | CS151: 87.12 | CT151: 52.97 | CV151: -0.004 | CW151: 0.116 | CX151: 118.045 | CY151: 118.1 | CZ151: CO-2 MVI 9504 без учёта потерь напора | DA151: 20.0 | DB151: 51.3 | DC151: 82.5 | DD151: 113.8 | DE151: 145.0 | DF151: 118.8 | DG151: 113.9 | DH151: 101.5 | DI151: 81.6 | DJ151: 54.3 | EF151: -0.004 | EG151: 0.116 | EH151: 118.045 | EI151: 0.01494568175 | EJ151: -0.1162035385 | EK151: -118.0447722 | EL151: 92.8 | EM151: 95.8 | EN151: да | EO151: 82.5 | EP151: 102.5 | EQ151: 61.25 | ER151: 85.8 | ET151: -0.004 | EU151: 0.090 | EV151: 118.045 | EW151: 0.01490568175 | EX151: -0.09030353847 | EY151: -118.0447722 | EZ151: 92.1 | FA151: 94.2
J152: 2453616 | K152: CO 2 MVI 9504/1/SK-FFS-R | L152: 20.0 | M152: 55.0 | N152: 85.0 | O152: 110.0 | P152: 145.0 | Q152: 113.6 | R152: 102.3 | S152: 92.4 | T152: 77.7 | U152: 43.4 | V152: =IFERROR(VLOOKUP(J152,Прайс!A:E,Настройки!$E$1,0)*Настройки!$E$2,"по запросу") -> по запросу | W152: -0.0 | X152: 0.1 | Y152: 112.3 | Z152: 111.3 | AA152: по запросу | AB152: 20.0 | AC152: 51.3 | AD152: 82.5 | AE152: 113.8 | AF152: 145.0 | AG152: 112.4 | AH152: 106.5 | AI152: 93.2 | AJ152: 72.6 | AK152: 44.5 | AL152: 600.4 | AM152: 889 | AN152: 150 | AO152: 150 | AP152: 2R | AR152: CO-2 MVI 9504/1 | AS152: MVI 9504/1 | AT152: Helix | AU152: EN-GJL-250 | AV152: 1.4307 [AISI304L] | AW152: EPDM | AX152: 1.4057 [AISI431] | AY152: 1.4571 [AISI316Ti ] | AZ152: вода 100% | BA152: 20° | BB152: 998.3 kg/m3 | BC152: 1.00 mm2/s | BD152: SK-FFS/2-37(80A)/J-10A/V-3~1,0A | BE152: IP54 | BF152: нет | BG152: нет | BH152: IE2 | BI152: 3~400/50 Гц | BJ152: ±10% | BK152: 37 | BM152: 1 | BN152: 16 | BO152: 10 | BQ152: 262 | BR152: 1697 | BS152: 122 | BT152: 944 | BU152: 1000 | BW152: 760 | BZ152: 1980 | CB152: 650 | CD152: 1444 | CE152: 371 | CF152: 423 | CG152: чертеж pdf | CH152: чертеж dwg | CI152: чертеж step | CJ152: чертеж 3d_dwg | CK152: 20.0 | CL152: 55.0 | CM152: 85.0 | CN152: 110.0 | CO152: 145.0 | CP152: 114.1 | CQ152: 103.6 | CR152: 94.35 | CS152: 80.02 | CT152: 46.34 | CV152: -0.004 | CW152: 0.107 | CX152: 112.257 | CY152: 112.0 | CZ152: CO-2 MVI 9504/1 без учёта потерь напора | DA152: 20.0 | DB152: 51.3 | DC152: 82.5 | DD152: 113.8 | DE152: 145.0 | DF152: 112.9 | DG152: 107.7 | DH152: 95.1 | DI152: 75.0 | DJ152: 47.4 | EF152: -0.004 | EG152: 0.107 | EH152: 112.257 | EI152: 0.01493268914 | EJ152: -0.1070287203 | EK152: -112.2565319 | EL152: 90.4 | EM152: 90.7 | EN152: да | EO152: 82.5 | EP152: 102.5 | EQ152: 61.25 | ER152: 80.7 | ET152: -0.004 | EU152: 0.081 | EV152: 112.257 | EW152: 0.01489268914 | EX152: -0.08112872031 | EY152: -112.2565319 | EZ152: 89.6 | FA152: 89.2
J153: 2453370 | K153: CO 3 BL 80/220-5.5/4/SK-FFS-R | L153: 24.0 | M153: 80.0 | N153: 104.0 | O153: 168.0 | P153: 244.0 | Q153: 16.5 | R153: 16.6 | S153: 16.4 | T153: 14.7 | U153: 10.0 | V153: =IFERROR(VLOOKUP(J153,Прайс!A:E,Настройки!$E$1,0)*Настройки!$E$2,"по запросу") -> по запросу | W153: -0.0 | X153: 0.0 | Y153: 15.9 | Z153: 16.5 | AA153: по запросу | AB153: 24.0 | AC153: 79.0 | AD153: 134.0 | AE153: 189.0 | AF153: 244.0 | AG153: 16.4 | AH153: 16.7 | AI153: 15.7 | AJ153: 13.5 | AK153: 10.1 | AL153: 574.1 | AM153: 915.6 | AN153: 150 | AO153: 200 | AP153: 2R | AR153: CO-3 BL 80/220-5.5/4 | AS153: BL 80/220-5.5/4 | AT153: BL | AU153: EN-GJL-250 | AV153: EN-GJL-200 | AX153: 1.4122 | AY153: 1.4571 [AISI316Ti ] | AZ153: вода 100% | BA153: 20° | BB153: 998.3 kg/m3 | BC153: 1.00 mm2/s | BD153: SK-FFS/3-5,5(12A)/V-3~1,0A | BE153: IP54 | BF153: нет | BG153: нет | BH153: IE2 | BI153: 3~400/50 Гц | BJ153: ±10% | BK153: 5.5 | BM153: 2 | BN153: 16 | BO153: 10 | BP153: 1845 | BQ153: 386 | BR153: 842 | BT153: 1594 | BW153: 600 | BX153: 1610 | BY153: 1770 | CD153: 1430 | CG153: чертеж pdf | CH153: чертеж dwg | CI153: чертеж step | CJ153: чертеж 3d_dwg | CK153: 24.0 | CL153: 80.0 | CM153: 104.0 | CN153: 168.0 | CO153: 244.0 | CP153: 16.54 | CQ153: 16.9 | CR153: 16.91 | CS153: 16.08 | CT153: 13 | CV153: -0.000 | CW153: 0.026 | CX153: 15.937 | CY153: 16.6 | CZ153: CO-3 BL 80/220-5.5/4 без учёта потерь напора | DA153: 24.0 | DB153: 79.0 | DC153: 134.0 | DD153: 189.0 | DE153: 244.0 | DF153: 16.5 | DG153: 17.0 | DH153: 16.6 | DI153: 15.3 | DJ153: 13.1 | EF153: -0.000 | EG153: 0.026 | EH153: 15.937 | EI153: 0.01126588764 | EJ153: -0.02593895526 | EK153: -15.9369639 | EL153: 38.8 | EM153: 16.7 | EN153: да | EO153: 134.0 | EP153: 169.2 | EQ153: 96.6 | ER153: 6.7 | ET153: -0.000 | EU153: 0.026 | EV153: 15.937 | EW153: 0.01131588764 | EX153: -0.02590395526 | EY153: -15.9372639 | EZ153: 38.7 | FA153: 16.6
J154: 2453371 | K154: CO 3 BL 80/250-5.5/4/SK-FFS-R | L154: 24.0 | M154: 52.0 | N154: 80.0 | O154: 108.0 | P154: 128.0 | Q154: 20.7 | R154: 21.2 | S154: 21.3 | T154: 20.9 | U154: 20.3 | V154: =IFERROR(VLOOKUP(J154,Прайс!A:E,Настройки!$E$1,0)*Настройки!$E$2,"по запросу") -> по запросу | W154: -0.0 | X154: 0.0 | Y154: 19.8 | Z154: 20.8 | AA154: по запросу | AB154: 24.0 | AC154: 50.0 | AD154: 76.0 | AE154: 102.0 | AF154: 128.0 | AG154: 20.7 | AH154: 21.2 | AI154: 21.3 | AJ154: 21.0 | AK154: 20.3 | AL154: 549.0 | AM154: 916.6 | AN154: 150 | AO154: 150 | AP154: 2R | AR154: CO-3 BL 80/250-5.5/4 | AS154: BL 80/250-5.5/4 | AT154: BL | AU154: EN-GJL-250 | AV154: EN-GJL-200 | AX154: 1.4122 | AY154: 1.4571 [AISI316Ti ] | AZ154: вода 100% | BA154: 20° | BB154: 998.3 kg/m3 | BC154: 1.00 mm2/s | BD154: SK-FFS/3-5,5(12A)/V-3~1,0A | BE154: IP54 | BF154: нет | BG154: нет | BH154: IE2 | BI154: 3~400/50 Гц | BJ154: ±10% | BK154: 5.5 | BM154: 2 | BN154: 16 | BO154: 10 | BP154: 1845 | BQ154: 395 | BR154: 851 | BT154: 2044 | BW154: 600 | BX154: 2044 | BY154: 1728 | CD154: 1460 | CG154: чертеж pdf | CH154: чертеж dwg | CI154: чертеж step | CJ154: чертеж 3d_dwg | CK154: 24.0 | CL154: 52.0 | CM154: 80.0 | CN154: 108.0 | CO154: 128.0 | CP154: 20.68 | CQ154: 21.36 | CR154: 21.62 | CS154: 21.46 | CT154: 21.1 | CV154: -0.000 | CW154: 0.044 | CX154: 19.769 | CY154: 20.9 | CZ154: CO-3 BL 80/250-5.5/4 без учёта потерь напора | DA154: 24.0 | DB154: 50.0 | DC154: 76.0 | DD154: 102.0 | DE154: 128.0 | DF154: 20.7 | DG154: 21.3 | DH154: 21.6 | DI154: 21.5 | DJ154: 21.1 | EF154: -0.000 | EG154: 0.044 | EH154: 19.769 | EI154: 0.01137657678 | EJ154: -0.0443596535 | EK154: -19.76930094 | EL154: 43.7 | EM154: 21.2 | EN154: да | EO154: 76.0 | EP154: 92.64 | EQ154: 58.32 | ER154: 11.2 | ET154: -0.000 | EU154: 0.044 | EV154: 19.770 | EW154: 0.01142657678 | EX154: -0.0443246535 | EY154: -19.76960094 | EZ154: 43.6 | FA154: 21.1
J155: 2453606 | K155: CO 2 MVI 7005/SK-FFS-R | L155: 15.0 | M155: 40.0 | N155: 60.0 | O155: 90.0 | P155: 110.0 | Q155: 127.5 | R155: 119.0 | S155: 110.0 | T155: 82.1 | U155: 51.6 | V155: =IFERROR(VLOOKUP(J155,Прайс!A:E,Настройки!$E$1,0)*Настройки!$E$2,"по запросу") -> по запросу | W155: -0.0 | X155: 0.2 | Y155: 125.1 | Z155: 124.5 | AA155: по запросу | AB155: 15.0 | AC155: 38.8 | AD155: 62.5 | AE155: 86.3 | AF155: 110.0 | AG155: 126.6 | AH155: 121.6 | AI155: 107.7 | AJ155: 84.7 | AK155: 52.7 | AL155: 598.5 | AM155: 846 | AN155: 150 | AO155: 150 | AP155: 2R | AR155: CO-2 MVI 7005 | AS155: MVI 7005 | AT155: Helix | AU155: EN-GJL-250 | AV155: 1.4307 [AISI304L] | AW155: EPDM | AX155: 1.4057 [AISI431] | AY155: 1.4571 [AISI316Ti ] | AZ155: вода 100% | BA155: 20° | BB155: 998.3 kg/m3 | BC155: 1.00 mm2/s | BD155: SK-FFS/2-30(65A)/J-10A/V-3~1,0A | BE155: IP54 | BF155: нет | BG155: нет | BH155: IE2 | BI155: 3~400/50 Гц | BJ155: ±10% | BK155: 30 | BM155: 1 | BN155: 16 | BO155: 10 | BQ155: 262 | BR155: 1697 | BS155: 122 | BT155: 944 | BU155: 1000 | BW155: 600 | BZ155: 1980 | CB155: 650 | CD155: 1444 | CE155: 371 | CF155: 423 | CG155: чертеж pdf | CH155: чертеж dwg | CI155: чертеж step | CJ155: чертеж 3d_dwg | CK155: 15.0 | CL155: 40.0 | CM155: 60.0 | CN155: 90.0 | CO155: 110.0 | CP155: 127.9 | CQ155: 120 | CR155: 111.4 | CS155: 84.06 | CT155: 53.98 | CV155: -0.008 | CW155: 0.247 | CX155: 125.055 | CY155: 125.2 | CZ155: CO-2 MVI 7005 без учёта потерь напора | DA155: 15.0 | DB155: 38.8 | DC155: 62.5 | DD155: 86.3 | DE155: 110.0 | DF155: 127.0 | DG155: 122.6 | DH155: 109.1 | DI155: 86.6 | DJ155: 55.1 | EF155: -0.008 | EG155: 0.247 | EH155: 125.055 | EI155: 0.01914500242 | EJ155: -0.2474025545 | EK155: -125.055332 | EL155: 87.5 | EM155: 85.1 | EN155: да | EO155: 62.5 | EP155: 77.7 | EQ155: 46.35 | ER155: 75.1 | ET155: -0.008 | EU155: 0.222 | EV155: 125.055 | EW155: 0.01910500242 | EX155: -0.2215025545 | EY155: -125.055332 | EZ155: 86.9 | FA155: 83.9
J156: 2453731 | K156: CO 4 Helix V 3602/SK-FFS-R | L156: 18.0 | M156: 30.0 | N156: 90.0 | O156: 150.0 | P156: 165.0 | Q156: 50.5 | R156: 49.5 | S156: 40.7 | T156: 20.1 | U156: 12.7 | V156: =IFERROR(VLOOKUP(J156,Прайс!A:E,Настройки!$E$1,0)*Настройки!$E$2,"по запросу") -> по запросу | W156: -0.0 | X156: 0.0 | Y156: 50.0 | Z156: 49.8 | AA156: по запросу | AB156: 18.0 | AC156: 54.8 | AD156: 91.5 | AE156: 128.3 | AF156: 165.0 | AG156: 50.2 | AH156: 47.5 | AI156: 40.3 | AJ156: 28.8 | AK156: 12.9 | AL156: 561.6 | AM156: 857 | AN156: 125 | AO156: 150 | AP156: 2R | AR156: CO-4 Helix V 3602 | AS156: Helix V 3602 | AT156: Helix | AU156: EN-GJL-250 | AV156: 1.4307 [AISI304L] | AW156: EPDM | AX156: 1.4057 [AISI431] | AY156: 1.4571 [AISI316Ti ] | AZ156: вода 100% | BA156: 20° | BB156: 998.3 kg/m3 | BC156: 1.00 mm2/s | BD156: SK-FFS/4-5,5(12A) | BE156: IP54 | BF156: нет | BG156: нет | BH156: IE2 | BI156: 3~400/50 Гц | BJ156: ±10% | BK156: 5.5 | BM156: 3 | BN156: 16 | BO156: 10 | BQ156: 225 | BR156: 1695 | BS156: 120 | BT156: 1944 | BU156: 2080 | BW156: 760 | BZ156: 1891 | CB156: 500 | CD156: 1368 | CE156: 412 | CF156: 456 | CG156: чертеж pdf | CH156: чертеж dwg | CI156: чертеж step | CJ156: чертеж 3d_dwg | CK156: 18.0 | CL156: 30.0 | CM156: 90.0 | CN156: 150.0 | CO156: 165.0 | CP156: 50.69 | CQ156: 49.79 | CR156: 41.8 | CS156: 22.13 | CT156: 14.97 | CV156: -0.002 | CW156: 0.053 | CX156: 49.982 | CY156: 50.1 | CZ156: CO-4 Helix V 3602 без учёта потерь напора | DA156: 18.0 | DB156: 54.8 | DC156: 91.5 | DD156: 128.3 | DE156: 165.0 | DF156: 50.4 | DG156: 48.1 | DH156: 41.4 | DI156: 30.4 | DJ156: 15.1 | EF156: -0.002 | EG156: 0.053 | EH156: 49.982 | EI156: 0.01271070248 | EJ156: -0.05281721727 | EK156: -49.98161421 | EL156: 64.8 | EM156: 46.7 | EN156: да | EO156: 91.5 | EP156: 115.02 | EQ156: 66.51 | ER156: 36.7 | ET156: -0.002 | EU156: 0.044 | EV156: 49.982 | EW156: 0.01273959136 | EX156: -0.04373388393 | EY156: -49.98161421 | EZ156: 64.4 | FA156: 46.0
J157: 2453732 | K157: CO 4 Helix V 3603/1/SK-FFS-R | L157: 18.0 | M157: 30.0 | N157: 90.0 | O157: 150.0 | P157: 165.0 | Q157: 69.6 | R157: 65.7 | S157: 54.9 | T157: 25.0 | U157: 14.6 | V157: =IFERROR(VLOOKUP(J157,Прайс!A:E,Настройки!$E$1,0)*Настройки!$E$2,"по запросу") -> по запросу | W157: -0.0 | X157: 0.1 | Y157: 67.9 | Z157: 67.6 | AA157: по запросу | AB157: 18.0 | AC157: 54.8 | AD157: 91.5 | AE157: 128.3 | AF157: 165.0 | AG157: 68.2 | AH157: 64.1 | AI157: 53.9 | AJ157: 37.5 | AK157: 14.9 | AL157: 594.2 | AM157: 977 | AN157: 125 | AO157: 150 | AP157: 2R | AR157: CO-4 Helix V 3603/1 | AS157: Helix V 3603/1 | AT157: Helix | AU157: EN-GJL-250 | AV157: 1.4307 [AISI304L] | AW157: EPDM | AX157: 1.4057 [AISI431] | AY157: 1.4571 [AISI316Ti ] | AZ157: вода 100% | BA157: 20° | BB157: 998.3 kg/m3 | BC157: 1.00 mm2/s | BD157: SK-FFS/4-7,5(18A) | BE157: IP54 | BF157: нет | BG157: нет | BH157: IE2 | BI157: 3~400/50 Гц | BJ157: ±10% | BK157: 7.5 | BM157: 3 | BN157: 16 | BO157: 10 | BQ157: 225 | BR157: 1695 | BS157: 120 | BT157: 1944 | BU157: 2080 | BW157: 760 | BZ157: 1891 | CB157: 500 | CD157: 1368 | CE157: 412 | CF157: 456 | CG157: чертеж pdf | CH157: чертеж dwg | CI157: чертеж step | CJ157: чертеж 3d_dwg | CK157: 18.0 | CL157: 30.0 | CM157: 90.0 | CN157: 150.0 | CO157: 165.0 | CP157: 69.8 | CQ157: 66 | CR157: 56 | CS157: 27 | CT157: 16.9325 | CV157: -0.002 | CW157: 0.065 | CX157: 67.925 | CY157: 67.9 | CZ157: CO-4 Helix V 3603/1 без учёта потерь напора | DA157: 18.0 | DB157: 54.8 | DC157: 91.5 | DD157: 128.3 | DE157: 165.0 | DF157: 68.4 | DG157: 64.7 | DH157: 55.0 | DI157: 39.1 | DJ157: 17.2 | EF157: -0.002 | EG157: 0.065 | EH157: 67.925 | EI157: 0.01337238031 | EJ157: -0.06541081497 | EK157: -67.92541714 | EL157: 73.8 | EM157: 60.4 | EN157: да | EO157: 91.5 | EP157: 115.02 | EQ157: 66.51 | ER157: 50.4 | ET157: -0.002 | EU157: 0.056 | EV157: 67.925 | EW157: 0.0134012692 | EX157: -0.05632748163 | EY157: -67.92541714 | EZ157: 73.3 | FA157: 59.7
J158: 2453729 | K158: CO 4 Helix V 3602/1/SK-FFS-R | L158: 18.0 | M158: 30.0 | N158: 90.0 | O158: 150.0 | P158: 165.0 | Q158: 44.1 | R158: 43.5 | S158: 35.7 | T158: 14.6 | U158: 7.4 | V158: =IFERROR(VLOOKUP(J158,Прайс!A:E,Настройки!$E$1,0)*Настройки!$E$2,"по запросу") -> по запросу | W158: -0.0 | X158: 0.1 | Y158: 43.1 | Z158: 43.8 | AA158: по запросу | AB158: 18.0 | AC158: 54.8 | AD158: 91.5 | AE158: 128.3 | AF158: 165.0 | AG158: 43.9 | AH158: 41.9 | AI158: 35.2 | AJ158: 23.7 | AK158: 7.4 | AL158: 618.2 | AM158: 857 | AN158: 125 | AO158: 150 | AP158: 2R | AR158: CO-4 Helix V 3602/1 | AS158: Helix V 3602/1 | AT158: Helix | AU158: EN-GJL-250 | AV158: 1.4307 [AISI304L] | AW158: EPDM | AX158: 1.4057 [AISI431] | AY158: 1.4571 [AISI316Ti ] | AZ158: вода 100% | BA158: 20° | BB158: 998.3 kg/m3 | BC158: 1.00 mm2/s | BD158: SK-FFS/4-5,5(12A) | BE158: IP54 | BF158: нет | BG158: нет | BH158: IE2 | BI158: 3~400/50 Гц | BJ158: ±10% | BK158: 5.5 | BM158: 3 | BN158: 16 | BO158: 10 | BQ158: 225 | BR158: 1695 | BS158: 120 | BT158: 1944 | BU158: 2080 | BW158: 760 | BZ158: 1891 | CB158: 500 | CD158: 1368 | CE158: 412 | CF158: 456 | CG158: чертеж pdf | CH158: чертеж dwg | CI158: чертеж step | CJ158: чертеж 3d_dwg | CK158: 18.0 | CL158: 30.0 | CM158: 90.0 | CN158: 150.0 | CO158: 165.0 | CP158: 44.28 | CQ158: 43.75 | CR158: 36.71 | CS158: 16.57 | CT158: 9.698 | CV158: -0.002 | CW158: 0.084 | CX158: 43.097 | CY158: 44.1 | CZ158: CO-4 Helix V 3602/1 без учёта потерь напора | DA158: 18.0 | DB158: 54.8 | DC158: 91.5 | DD158: 128.3 | DE158: 165.0 | DF158: 44.0 | DG158: 42.5 | DH158: 36.3 | DI158: 25.3 | DJ158: 9.7 | EF158: -0.002 | EG158: 0.084 | EH158: 43.097 | EI158: 0.01284868402 | EJ158: -0.08416028566 | EK158: -43.09706662 | EL158: 61.3 | EM158: 41.7 | EN158: да | EO158: 91.5 | EP158: 115.02 | EQ158: 66.51 | ER158: 31.7 | ET158: -0.002 | EU158: 0.075 | EV158: 43.097 | EW158: 0.01287757291 | EX158: -0.07507695232 | EY158: -43.09706662 | EZ158: 60.8 | FA158: 41.1
J159: 2453396 | K159: CO 4 BL 40/140-3/2/SK-FFS-R | L159: 21.0 | M159: 30.0 | N159: 45.0 | O159: 75.0 | P159: 99.0 | Q159: 27.0 | R159: 26.9 | S159: 26.3 | T159: 24.1 | U159: 21.3 | V159: =IFERROR(VLOOKUP(J159,Прайс!A:E,Настройки!$E$1,0)*Настройки!$E$2,"по запросу") -> по запросу | W159: -0.0 | X159: 0.0 | Y159: 27.0 | Z159: 26.9 | AA159: по запросу | AB159: 21.0 | AC159: 40.5 | AD159: 60.0 | AE159: 79.5 | AF159: 99.0 | AG159: 27.0 | AH159: 26.5 | AI159: 25.4 | AJ159: 23.7 | AK159: 21.3 | AL159: 596.1 | AM159: 752.6 | AN159: 80 | AO159: 125 | AP159: 2R | AR159: CO-4 BL 40/140-3/2 | AS159: BL 40/140-3/2 | AT159: BL | AU159: EN-GJL-250 | AV159: EN-GJL-200 | AX159: 1.4122 | AY159: 1.4571 [AISI316Ti ] | AZ159: вода 100% | BA159: 20° | BB159: 998.3 kg/m3 | BC159: 1.00 mm2/s | BD159: SK-FFS/4-3,0(8A) | BE159: IP54 | BF159: нет | BG159: нет | BH159: IE2 | BI159: 3~400/50 Гц | BJ159: ±10% | BK159: 3 | BM159: 3 | BN159: 16 | BO159: 10 | BP159: 1845 | BQ159: 422 | BR159: 816 | BT159: 2154 | BW159: 760 | BX159: 2154 | BY159: 1393 | CD159: 1138 | CG159: чертеж pdf | CH159: чертеж dwg | CI159: чертеж step | CJ159: чертеж 3d_dwg | CK159: 21.0 | CL159: 30.0 | CM159: 45.0 | CN159: 75.0 | CO159: 99.0 | CP159: 27.22 | CQ159: 27.22 | CR159: 27.08 | CS159: 26.26 | CT159: 25.09 | CV159: -0.000 | CW159: 0.020 | CX159: 26.967 | CY159: 27.2 | CZ159: CO-4 BL 40/140-3/2 без учёта потерь напора | DA159: 21.0 | DB159: 40.5 | DC159: 60.0 | DD159: 79.5 | DE159: 99.0 | DF159: 27.2 | DG159: 27.1 | DH159: 26.8 | DI159: 26.1 | DJ159: 25.1 | EF159: -0.000 | EG159: 0.020 | EH159: 26.967 | EI159: 0.01150849939 | EJ159: -0.02038186667 | EK159: -26.96692329 | EL159: 49.3 | EM159: 27.0 | EN159: да | EO159: 60.0 | EP159: 72.48 | EQ159: 46.74 | ER159: 17.0 | ET159: -0.001 | EU159: 0.020 | EV159: 26.961 | EW159: 0.01189028039 | EX159: -0.02046055585 | EY159: -26.9608662 | EZ159: 48.5 | FA159: 26.1
J160: 2453405 | K160: CO 4 BL 40/265-3/4/SK-FFS-R | L160: 12.0 | M160: 30.0 | N160: 45.0 | O160: 60.0 | P160: 90.0 | Q160: 25.5 | R160: 25.2 | S160: 24.4 | T160: 23.2 | U160: 19.2 | V160: =IFERROR(VLOOKUP(J160,Прайс!A:E,Настройки!$E$1,0)*Настройки!$E$2,"по запросу") -> по запросу | W160: -0.0 | X160: 0.0 | Y160: 25.3 | Z160: 25.2 | AA160: по запросу | AB160: 12.0 | AC160: 31.5 | AD160: 51.0 | AE160: 70.5 | AF160: 90.0 | AG160: 25.5 | AH160: 25.1 | AI160: 24.0 | AJ160: 22.0 | AK160: 19.2 | AL160: 615.8 | AM160: 856.6 | AN160: 80 | AO160: 100 | AP160: 2R | AR160: CO-4 BL 40/265-3/4 | AS160: BL 40/265-3/4 | AT160: BL | AU160: EN-GJL-250 | AV160: EN-GJL-200 | AX160: 1.4122 | AY160: 1.4571 [AISI316Ti ] | AZ160: вода 100% | BA160: 20° | BB160: 998.3 kg/m3 | BC160: 1.00 mm2/s | BD160: SK-FFS/4-3,0(8A) | BE160: IP54 | BF160: нет | BG160: нет | BH160: IE2 | BI160: 3~400/50 Гц | BJ160: ±10% | BK160: 3 | BM160: 3 | BN160: 16 | BO160: 10 | BP160: 1845 | BQ160: 470 | BR160: 804 | BT160: 2154 | BW160: 760 | BX160: 2154 | BY160: 1488 | CD160: 1263 | CG160: чертеж pdf | CH160: чертеж dwg | CI160: чертеж step | CJ160: чертеж 3d_dwg | CK160: 12.0 | CL160: 30.0 | CM160: 45.0 | CN160: 60.0 | CO160: 90.0 | CP160: 25.52 | CQ160: 25.53 | CR160: 25.19 | CS160: 24.53 | CT160: 22.28 | CV160: -0.001 | CW160: 0.030 | CX160: 25.265 | CY160: 25.5 | CZ160: CO-4 BL 40/265-3/4 без учёта потерь напора | DA160: 12.0 | DB160: 31.5 | DC160: 51.0 | DD160: 70.5 | DE160: 90.0 | DF160: 25.5 | DG160: 25.5 | DH160: 25.0 | DI160: 23.9 | DJ160: 22.3 | EF160: -0.001 | EG160: 0.030 | EH160: 25.265 | EI160: 0.01181047718 | EJ160: -0.02977212574 | EK160: -25.26458872 | EL160: 47.5 | EM160: 25.1 | EN160: да | EO160: 51.0 | EP160: 63.48 | EQ160: 37.74 | ER160: 15.1 | ET160: -0.001 | EU160: 0.030 | EV160: 25.260 | EW160: 0.0121916206 | EX160: -0.02977848925 | EY160: -25.26027587 | EZ160: 46.8 | FA160: 24.3
